Workbook

Sheet START
A1: =muni -> KZN225 Msunduzi

Sheet Instructions
D2: 2020
X4: Yes
X5: No
W7: Type of Entities Range: | X7: Parent Municipality
X8: Consolidated Information
W10: Date linked | X10: 15
W11: Date | X11: =VLOOKUP(X10,W39:X55,2) -> Q3 Third Quarter | Y11: 2013-08-01
W19: MTREF Range: | X19: 2008
X20: 2009
X21: 2010
X22: 2011
X23: 2012
X24: 2013
X25: 2014
X26: 2015
X27: 2016
X28: 2017
X29: 2018
X30: 2019
X31: 2020
X32: 2021
X33: 2022
W34: MTREF Linked:
W35: MTREF: | X35: 14
X36: =INDEX(X19:X33,X35,1) -> 2021
W37: Fin Year:
X38: =MTREF&"/"&RIGHT(MTREF,2)+1 -> 2021/22
V39: Date/type of report | W39: 1 | X39: M01 July
W40: 2 | X40: M02 August
W41: 3 | X41: M03 September
W42: 4 | X42: M04 October
W43: 5 | X43: M05 November
W44: 6 | X44: M06 December
W45: 7 | X45: M07 January
W46: 8 | X46: M08 February
W47: 9 | X47: M09 March
W48: 10 | X48: M10 April
W49: 11 | X49: M11 May
W50: 12 | X50: M12 June
W51: 13 | X51: Q1 First Quarter
W52: 14 | X52: Q2 Second Quarter
W53: 15 | X53: Q3 Third Quarter
W54: 16 | X54: Q4 Fourth Quarter
W55: 17 | X55: Mid-Year Assessment

Sheet Template names (hidden)
A1: Common sheet headings
A2: Head1 | B2: =HLOOKUP(MTREF,Headings,2) -> 2020/21 | C2: Prior year -1
A3: Head2 | B3: =HLOOKUP(MTREF,Headings,5) -> Budget Year 2021/22 | C3: Year of approved budget
A4: Head2A | B4: =HLOOKUP(MTREF,Headings,4) -> 2021/22 | C4: Approved budget year
A5: Head3 | B5: =HLOOKUP(MTREF,Headings,3) -> 2021/22 Medium Term Revenue & Expenditure Framework | C5: MTREF header name
A6: Head5 | B6: Audited Outcome
A7: Head5A | B7: Outcome
A8: Head5B | B8: Pre-audit outcome
A9: Head6 | B9: Original Budget
A10: Head7 | B10: Adjusted Budget
A11: Head8 | B11: Full Year Forecast
A12: Head9 | B12: =HLOOKUP(MTREF,Headings,5) -> Budget Year 2021/22 | C12: 1st year of MTREF | D12: Year1
A13: Head10 | B13: =HLOOKUP(MTREF,Headings,6) -> Budget Year +1 2022/23 | C13: 2nd year of MTREF | D13: Year2
A14: Head11 | B14: =HLOOKUP(MTREF,Headings,7) -> Budget Year +2 2023/24 | C14: 3rd year of MTREF | D14: Year3
A15: Head12 | B15: Forecast 2010/11 | D15: Year4
A16: Head13 | B16: Forecast 2011/12 | D16: Year5
A17: Head14 | B17: Forecast 2012/13 | D17: Year6
A18: Head15 | B18: Forecast 2013/14 | D18: Year7
A19: Head16 | B19: Forecast 2014/15 | D19: Year8
A20: Head17 | B20: Forecast 2015/16 | D20: Year9
A21: Head18 | B21: Forecast 2016/17 | D21: Year10
A22: Head19 | B22: Forecast 2017/18 | D22: Year11
A23: Head20 | B23: Forecast 2018/19 | D23: Year12
A24: Head21 | B24: Forecast 2019/20 | D24: Year13
A25: Head22 | B25: Forecast 2020/21 | D25: Year14
A26: Head23 | B26: Forecast 2021/22 | D26: Year15
A27: Head24 | B27: Description | D27: Desc
A28: Head25 | B28: Schedule of funding diligence | D28: fdil
A29: Head26 | B29: Vote Description | D29: VDesc
A30: Head27 | B30: Ref
A31: Head27a | B31: References
A32: Head28 | B32: Surplus/ (Deficit) for the year | D32: Result
A33: Head29 | B33: Annual target 2007/08
A34: Head30 | B34: Revised target 2007/08
A35: Head31 | B35: Quarter ended 30 September
A36: Head32 | B36: Quarter ended 31 December
A37: Head33 | B37: Quarter ended 31 March
A38: Head34 | B38: Quarter ended 30 June
A39: Head35 | B39: Variance explanation
A40: Head36 | B40: YTD Actual 31 Dec
A41: Head37 | B41: YTD Budget 31 Dec
A42: Head38 | B42: Monthly actual
A43: Head39 | B43: YearTD actual
A44: Head40 | B44: YearTD budget
A45: Head41 | B45: YTD variance
A46: Head42 | B46: Surplus/ (Deficit) for the yr/period
A47: Head43 | B47: =Head3&" Summary" -> 2021/22 Medium Term Revenue & Expenditure Framework Summary
A48: Head44 | B48: 1996 Census
A49: Head45 | B49: 2001 Census
A50: Head46 | B50: - Adjustments Budget - Month YYYY
A51: Head47 | B51: Previous target year to complete
A52: Head48 | B52: Present value
A53: Head49 | B53: Virement
A54: Head50 | B54: Other Adjusts.
A55: Head51 | B55: Accum. Funds
A56: Head52 | B56: Multi-year capital
A57: Head53 | B57: Unfore. Unavoid.
A58: Head54 | B58: Prior Adjusted
A59: Head55 | B59: Nat. or Prov. Govt
A60: Head56 | B60: Total Adjusts.
A61: Head57 | B61: =date -> Q3 Third Quarter
A62: Head58 | B62: Parent muni.
A63: Head59 | B63: Downward adjusts
A64: Head60 | B64: Month | C64: Report header part name | D64: =date -> Q3 Third Quarter
A65: SFPerf1 | B65: Budgeted Financial Performance
A66: SFPerf2 | B66: Forecast Financial Performance
A67: SFPos1 | B67: Budgeted Financial Position
A68: SFPos2 | B68: Forecast Financial Position
A69: Cash1 | B69: Budget Cash Flow
A70: Cash2 | B70: Forecast Cash Flow
A71: RandM | B71: Expenditure includes repairs & maintenance of R'000
A72: Standard nomenclature
A73: Muni | B73: ='Lookup and lists'!B27 -> KZN225 Msunduzi
A74: Municipal Entities | B74: 1 | C74: Type of report: | D74: 2
A75: =IF((MuniEntities=1)*(MuniType=2),"YES","NO") -> YES | B75: Does this municipality have entities (consolidated budget and entity budgets required)? YES/NO
A76: s71 (Monthly Mayor report) schedules and charts
A77: S71sum | B77: =IF(Consolques="YES",E77,F77) -> Table C1 Consolidated Monthly Budget Statement Summary | D77: Table C1 | E77: =D77&"Consolidated Monthly Budget Statement Summary" -> Table C1 Consolidated Monthly Budget Statement Summary | F77: =D77&"Monthly Budget Statement Summary" -> Table C1 Monthly Budget Statement Summary
A78: S71C | B78: Table C3 Consolidated Monthly Budget Statement - Financial Performance (revenue and expenditure by municipal vote) | D78: Table C3 | E78: =D78&"Consolidated Monthly Budget Statement - Financial Performance (revenue and expenditure by municipal vote) " -> Table C3 Consolidated Monthly Budget Statement - Financial Performance (revenue and expenditure by municipal vote) | F78: =D78&"Monthly Budget Statement - Financial Performance (revenue and expenditure by municipal vote)" -> Table C3 Monthly Budget Statement - Financial Performance (revenue and expenditure by municipal vote)
A79: S71A | B79: =IF(Consolques="YES",E79,F79) -> Table C2 Consolidated Monthly Budget Statement - Financial Performance (functional classification) | D79: Table C2 | E79: =D79&"Consolidated Monthly Budget Statement - Financial Performance (functional classification) " -> Table C2 Consolidated Monthly Budget Statement - Financial Performance (functional classification) | F79: =D79&"Monthly Budget Statement - Financial Performance (functional classification)" -> Table C2 Monthly Budget Statement - Financial Performance (functional classification)
A80: S71B | B80: =IF(Consolques="YES",E80,F80) -> Table C4 Consolidated Monthly Budget Statement - Financial Performance (revenue and expenditure) | D80: Table C4 | E80: =D80&"Consolidated Monthly Budget Statement - Financial Performance (revenue and expenditure) " -> Table C4 Consolidated Monthly Budget Statement - Financial Performance (revenue and expenditure) | F80: =D80&"Monthly Budget Statement - Financial Performance (revenue and expenditure)" -> Table C4 Monthly Budget Statement - Financial Performance (revenue and expenditure)
A81: S71D | B81: =IF(Consolques="YES",E81,F81) -> Table C5 Consolidated Monthly Budget Statement - Capital Expenditure (municipal vote, functional classification and funding | D81: Table C5 | E81: =D81&"Consolidated Monthly Budget Statement - Capital Expenditure (municipal vote, functional classification and funding " -> Table C5 Consolidated Monthly Budget Statement - Capital Expenditure (municipal vote, functional classification and funding | F81: =D81&"Monthly Budget Statement - Capital Expenditure (municipal vote, functional classification and funding)" -> Table C5 Monthly Budget Statement - Capital Expenditure (municipal vote, functional classification and funding)
A82: S71E | B82: Table C6 Consolidated Monthly Budget Statement - Financial Position | D82: Table C6 | E82: =D82&"Consolidated Monthly Budget Statement - Financial Position " -> Table C6 Consolidated Monthly Budget Statement - Financial Position | F82: =D82&"Monthly Budget Statement - Financial Position" -> Table C6 Monthly Budget Statement - Financial Position
A83: S71F | B83: Table C7 Consolidated Monthly Budget Statement - Cash Flow | D83: Table C7 | E83: =D83&"Consolidated Monthly Budget Statement - Cash Flow " -> Table C7 Consolidated Monthly Budget Statement - Cash Flow | F83: =D83&"Monthly Budget Statement - Cash Flow " -> Table C7 Monthly Budget Statement - Cash Flow
A84: S71G | B84: =D84&"Material variance explanations " -> Supporting Table SC1 Material variance explanations | D84: Supporting Table SC1
A85: S71H | B85: =D85&"Monthly Budget Statement - performance indicators " -> Supporting Table SC2 Monthly Budget Statement - performance indicators | D85: Supporting Table SC2
A86: S71I | B86: =D86&"Monthly Budget Statement - aged debtors" -> Supporting Table SC3 Monthly Budget Statement - aged debtors | D86: Supporting Table SC3
A87: S71J | B87: =D87&"Monthly Budget Statement - aged creditors " -> Supporting Table SC4 Monthly Budget Statement - aged creditors | D87: Supporting Table SC4
A88: S71K | B88: =D88&"Monthly Budget Statement - investment portfolio " -> Supporting Table SC5 Monthly Budget Statement - investment portfolio | D88: Supporting Table SC5
A89: S71L | B89: =D89&"Monthly Budget Statement - transfers and grant receipts " -> Supporting Table SC6 Monthly Budget Statement - transfers and grant receipts | D89: Supporting Table SC6
A90: S71M | B90: =D90&" Monthly Budget Statement - transfers and grant expenditure " -> Supporting Table SC7(1) Monthly Budget Statement - transfers and grant expenditure | D90: Supporting Table SC7(1)
A91: S71N | B91: =D91&"Monthly Budget Statement - councillor and staff benefits " -> Supporting Table SC8 Monthly Budget Statement - councillor and staff benefits | D91: Supporting Table SC8
A92: S71O | B92: =D92&"Monthly Budget Statement - actuals and revised targets for cash receipts" -> Supporting Table SC9 Monthly Budget Statement - actuals and revised targets for cash receipts | D92: Supporting Table SC9
A93: S71P | B93: =IF(Consolques="YES",E93,F93) -> Supporting Table SC10 Monthly Budget Statement - Parent Municipality Financial Performance (revenue and expenditure) | D93: Supporting Table SC10 | E93: =D93&"Monthly Budget Statement - Parent Municipality Financial Performance (revenue and expenditure) " -> Supporting Table SC10 Monthly Budget Statement - Parent Municipality Financial Performance (revenue and expenditure) | F93: NOT REQUIRED - municipality does not have entities or this is the parent municipality's budget
A94: S71Q | B94: Supporting Table SC11 Monthly Budget Statement - summary of municipal entities | D94: Supporting Table SC11 | E94: =D94&"Monthly Budget Statement - summary of municipal entities" -> Supporting Table SC11 Monthly Budget Statement - summary of municipal entities | F94: NOT REQUIRED - municipality does not have entities or this is the parent municipality's budget
A95: S71R | B95: Supporting Table SC12 Consolidated Monthly Budget Statement - capital expenditure trend | D95: Supporting Table SC12 | E95: =D95&"Consolidated Monthly Budget Statement - capital expenditure trend " -> Supporting Table SC12 Consolidated Monthly Budget Statement - capital expenditure trend | F95: =D95&"Monthly Budget Statement - capital expenditure trend" -> Supporting Table SC12 Monthly Budget Statement - capital expenditure trend
A96: S71Sa | B96: Supporting Table SC13a Consolidated Monthly Budget Statement - capital expenditure on new assets by asset class | D96: Supporting Table SC13a | E96: =D96&"Consolidated Monthly Budget Statement - capital expenditure on new assets by asset class" -> Supporting Table SC13a Consolidated Monthly Budget Statement - capital expenditure on new assets by asset class | F96: =D96&"Monthly Budget Statement - capital expenditure on new assets by asset class" -> Supporting Table SC13a Monthly Budget Statement - capital expenditure on new assets by asset class
A97: S71Sb | B97: Supporting Table SC13b Consolidated Monthly Budget Statement - capital expenditure on renewal of existing assets by asset class | D97: Supporting Table SC13b | E97: =D97&"Consolidated Monthly Budget Statement - capital expenditure on renewal of existing assets by asset class" -> Supporting Table SC13b Consolidated Monthly Budget Statement - capital expenditure on renewal of existing assets by asset class | F97: =D97&"Monthly Budget Statement - capital expenditure on renewal of existing assets by asset class" -> Supporting Table SC13b Monthly Budget Statement - capital expenditure on renewal of existing assets by asset class
A98: S71Sc | B98: Supporting Table SC13c Consolidated Monthly Budget Statement - expenditure on repairs and maintenance by asset class | D98: Supporting Table SC13c | E98: =D98&"Consolidated Monthly Budget Statement - expenditure on repairs and maintenance by asset class" -> Supporting Table SC13c Consolidated Monthly Budget Statement - expenditure on repairs and maintenance by asset class | F98: =D98&"Monthly Budget Statement - expenditure on repairs and maintenance by asset class" -> Supporting Table SC13c Monthly Budget Statement - expenditure on repairs and maintenance by asset class
A99: S71Sd | B99: Supporting Table SC13d Consolidated Monthly Budget Statement - depreciation by asset class | D99: Supporting Table SC13d | E99: =D99&"Consolidated Monthly Budget Statement - depreciation by asset class" -> Supporting Table SC13d Consolidated Monthly Budget Statement - depreciation by asset class | F99: =D99&"Monthly Budget Statement - depreciation by asset class" -> Supporting Table SC13d Monthly Budget Statement - depreciation by asset class
A100: S71Se | B100: =IF(Consolques="YES",E100,F100) -> Supporting Table SC13e Consolidated Monthly Budget Statement - capital expenditure on upgrading of existing assets by asset class | D100: Supporting Table SC13e | E100: =D100&"Consolidated Monthly Budget Statement - capital expenditure on upgrading of existing assets by asset class" -> Supporting Table SC13e Consolidated Monthly Budget Statement - capital expenditure on upgrading of existing assets by asset class | F100: =D100&"Monthly Budget Statement - capital expenditure on upgrading of existing assets by asset class" -> Supporting Table SC13e Monthly Budget Statement - capital expenditure on upgrading of existing assets by asset class
B101: s71 charts listing
B102: =D102&Head2A&" Capital Expenditure Monthly Trend: actual v target" -> Chart C1 2021/22 Capital Expenditure Monthly Trend: actual v target | D102: Chart C1
B103: =D103&Head2A&" Capital Expenditure: YTD actual v YTD target" -> Chart C2 2021/22 Capital Expenditure: YTD actual v YTD target | D103: Chart C2
B104: =D104&"Aged Consumer Debtors Analysis" -> Chart C3 Aged Consumer Debtors Analysis | D104: Chart C3
B105: =D105&"Consumer Debtors (total by Debtor Customer Category)" -> Chart C4 Consumer Debtors (total by Debtor Customer Category) | D105: Chart C4
B106: =D106&"Aged Creditors Analysis" -> Chart C5 Aged Creditors Analysis | D106: Chart C5
A107: S71T | B107: =D107&" Monthly Budget Statement - Expenditure against approved rollovers" -> Supporting Table SC7(2) Monthly Budget Statement - Expenditure against approved rollovers | D107: Supporting Table SC7(2)

Sheet Lookup and lists (hidden)
A1: Description | B1: 2013 | C1: 2014 | D1: 2015 | E1: 2016 | F1: 2017 | G1: 2018 | H1: 2019 | I1: 2020 | J1: 2021 | K1: 2022 | L1: 2023 | M1: 2024 | N1: 2025 | O1: 2026 | Q1: Grants: | R1: National - opex | S1: Provincial - opex | T1: National - capex | U1: Provincial - capex | V1: YESNO
A2: ='Template names'!C2 -> Prior year -1 | B2: =B1-1&"/"&RIGHT(B1,2)-0 -> 2012/13 | C2: =C1-1&"/"&RIGHT(C1,2)-0 -> 2013/14 | D2: =D1-1&"/"&RIGHT(D1,2)-0 -> 2014/15 | E2: =E1-1&"/"&RIGHT(E1,2)-0 -> 2015/16 | F2: =F1-1&"/"&RIGHT(F1,2)-0 -> 2016/17 | G2: 2017/18 | H2: 2018/19 | I2: 2019/20 | J2: 2020/21 | K2: 2021/22 | L2: 2022/23 | M2: 2023/24 | N2: 2024/25 | O2: 2025/26 | R2: Local Government Equitable Share | S2: Health subsidy | T2: Municipal Infrastructure Grant (MIG) | U2: Agriculture | V2: Yes
A3: ='Template names'!C5 -> MTREF header name | B3: =B1&"/"&RIGHT(B1,2)+1&" Medium Term Revenue & Expenditure Framework" -> 2013/14 Medium Term Revenue & Expenditure Framework | C3: =C1&"/"&RIGHT(C1,2)+1&" Medium Term Revenue & Expenditure Framework" -> 2014/15 Medium Term Revenue & Expenditure Framework | D3: =D1&"/"&RIGHT(D1,2)+1&" Medium Term Revenue & Expenditure Framework" -> 2015/16 Medium Term Revenue & Expenditure Framework | E3: =E1&"/"&RIGHT(E1,2)+1&" Medium Term Revenue & Expenditure Framework" -> 2016/17 Medium Term Revenue & Expenditure Framework | F3: =F1&"/"&RIGHT(F1,2)+1&" Medium Term Revenue & Expenditure Framework" -> 2017/18 Medium Term Revenue & Expenditure Framework | G3: 2018/19 Medium Term Revenue & Expenditure Framework | H3: 2019/20 Medium Term Revenue & Expenditure Framework | I3: 2020/21 Medium Term Revenue & Expenditure Framework | J3: 2021/22 Medium Term Revenue & Expenditure Framework | K3: 2022/23 Medium Term Revenue & Expenditure Framework | L3: 2023/24 Medium Term Revenue & Expenditure Framework | M3: 2024/25 Medium Term Revenue & Expenditure Framework | N3: 2025/26 Medium Term Revenue & Expenditure Framework | O3: 2026/27 Medium Term Revenue & Expenditure Framework | R3: RSC Levy Replacement | S3: Ambulance subsidy | T3: Public Transport and Systems | U3: Education | V3: No
A4: ='Template names'!C4 -> Approved budget year | B4: =B1&"/"&RIGHT(B1,2)+1 -> 2013/14 | C4: =C1&"/"&RIGHT(C1,2)+1 -> 2014/15 | D4: =D1&"/"&RIGHT(D1,2)+1 -> 2015/16 | E4: =E1&"/"&RIGHT(E1,2)+1 -> 2016/17 | F4: =F1&"/"&RIGHT(F1,2)+1 -> 2017/18 | G4: 2018/19 | H4: 2019/20 | I4: 2020/21 | J4: 2021/22 | K4: 2022/23 | L4: 2023/24 | M4: 2024/25 | N4: 2025/26 | O4: 2026/27 | R4: Finance Management | S4: Housing | T4: Rural Transport Services and Infrastructure | U4: Health
A5: ='Template names'!C12 -> 1st year of MTREF | B5: ="Budget Year "&B1&"/"&RIGHT(B1,2)+1 -> Budget Year 2013/14 | C5: ="Budget Year "&C1&"/"&RIGHT(C1,2)+1 -> Budget Year 2014/15 | D5: ="Budget Year "&D1&"/"&RIGHT(D1,2)+1 -> Budget Year 2015/16 | E5: ="Budget Year "&E1&"/"&RIGHT(E1,2)+1 -> Budget Year 2016/17 | F5: ="Budget Year "&F1&"/"&RIGHT(F1,2)+1 -> Budget Year 2017/18 | G5: Budget Year 2018/19 | H5: Budget Year 2019/20 | I5: Budget Year 2020/21 | J5: Budget Year 2021/22 | K5: Budget Year 2022/23 | L5: Budget Year 2023/24 | M5: Budget Year 2024/25 | N5: Budget Year 2025/26 | O5: Budget Year 2026/27 | R5: Municipal Systems Improvement | S5: Sport and Recreation | T5: Regional Bulk Infrastructure | U5: Housing and Local Government
A6: ='Template names'!C13 -> 2nd year of MTREF | B6: ="Budget Year +1 "&B1+1&"/"&RIGHT(B1,2)+2 -> Budget Year +1 2014/15 | C6: ="Budget Year +1 "&C1+1&"/"&RIGHT(C1,2)+2 -> Budget Year +1 2015/16 | D6: ="Budget Year +1 "&D1+1&"/"&RIGHT(D1,2)+2 -> Budget Year +1 2016/17 | E6: ="Budget Year +1 "&E1+1&"/"&RIGHT(E1,2)+2 -> Budget Year +1 2017/18 | F6: ="Budget Year +1 "&F1+1&"/"&RIGHT(F1,2)+2 -> Budget Year +1 2018/19 | G6: Budget Year +1 2019/20 | H6: Budget Year +1 2020/21 | I6: Budget Year +1 2021/22 | J6: Budget Year +1 2022/23 | K6: Budget Year +1 2023/24 | L6: Budget Year +1 2024/25 | M6: Budget Year +1 2025/26 | N6: Budget Year +1 2026/27 | O6: Budget Year +1 2027/28 | R6: Water Services Operating Subsidy | T6: Rural Households Infrastructure | U6: Other Departments
A7: ='Template names'!C14 -> 3rd year of MTREF | B7: ="Budget Year +2 "&B1+2&"/"&RIGHT(B1,2)+3 -> Budget Year +2 2015/16 | C7: ="Budget Year +2 "&C1+2&"/"&RIGHT(C1,2)+3 -> Budget Year +2 2016/17 | D7: ="Budget Year +2 "&D1+2&"/"&RIGHT(D1,2)+3 -> Budget Year +2 2017/18 | E7: ="Budget Year +2 "&E1+2&"/"&RIGHT(E1,2)+3 -> Budget Year +2 2018/19 | F7: ="Budget Year +2 "&F1+2&"/"&RIGHT(F1,2)+3 -> Budget Year +2 2019/20 | G7: Budget Year +2 2020/21 | H7: Budget Year +2 2021/22 | I7: Budget Year +2 2022/23 | J7: Budget Year +2 2023/24 | K7: Budget Year +2 2024/25 | L7: Budget Year +2 2025/26 | M7: Budget Year +2 2026/27 | N7: Budget Year +2 2027/28 | O7: Budget Year +2 2028/29 | R7: Energy Efficiency and Demand Management | T7: Neighbourhood Development Partnership | U7: Public Works, Roads, Transport
A8: NOTE: This sheet should not be directly amended - select headings from sheet 'S' | R8: Integrated National Electrification Programme | T8: 2010 FIFA World Cup Stadiums Development | U8: Sport and Recreation
R9: Municipal Drought Relief
R10: 2010 FIFA World Cup Operating
R11: Electricity Demand Side Management
R12: EPWP Incentive
A26: Name link | B26: 85
A27: Name of Muni | B27: =INDEX(B28:B311,B26,1) -> KZN225 Msunduzi
B28: Choose name from list | C28: Set name on 'Instructions' sheet
B29: BUF Buffalo City | C29: EC EASTERN CAPE
B30: NMA Nelson Mandela Bay | C30: EC EASTERN CAPE
B31: EC101 Dr Beyers Naude | C31: EC EASTERN CAPE
B32: EC102 Blue Crane Route | C32: EC EASTERN CAPE
B33: EC104 Makana | C33: EC EASTERN CAPE
B34: EC105 Ndlambe | C34: EC EASTERN CAPE
B35: EC106 Sundays River Valley | C35: EC EASTERN CAPE
B36: EC108 Kouga | C36: EC EASTERN CAPE
B37: EC109 Kou-Kamma | C37: EC EASTERN CAPE
B38: DC10 Sarah Baartman | C38: EC EASTERN CAPE
B39: EC121 Mbhashe | C39: EC EASTERN CAPE
B40: EC122 Mnquma | C40: EC EASTERN CAPE
B41: EC123 Great Kei | C41: EC EASTERN CAPE
B42: EC124 Amahlathi | C42: EC EASTERN CAPE
B43: EC126 Ngqushwa | C43: EC EASTERN CAPE
B44: EC129 Raymond Mhlaba | C44: EC EASTERN CAPE
B45: DC12 Amathole | C45: EC EASTERN CAPE
B46: EC131 Inxuba Yethemba | C46: EC EASTERN CAPE
B47: EC135 Intsika Yethu | C47: EC EASTERN CAPE
B48: EC136 Emalahleni (Ec) | C48: EC EASTERN CAPE
B49: EC137 Engcobo | C49: EC EASTERN CAPE
B50: EC138 Sakhisizwe | C50: EC EASTERN CAPE
B51: EC139 Enoch Mgijima | C51: EC EASTERN CAPE
B52: DC13 Chris Hani | C52: EC EASTERN CAPE
B53: EC141 Elundini | C53: EC EASTERN CAPE
B54: EC142 Senqu | C54: EC EASTERN CAPE
B55: EC145 Walter Sisulu | C55: EC EASTERN CAPE
B56: DC14 Joe Gqabi | C56: EC EASTERN CAPE
B57: EC153 Ngquza Hills | C57: EC EASTERN CAPE
B58: EC154 Port St Johns | C58: EC EASTERN CAPE
B59: EC155 Nyandeni | C59: EC EASTERN CAPE
B60: EC156 Mhlontlo | C60: EC EASTERN CAPE
B61: EC157 King Sabata Dalindyebo | C61: EC EASTERN CAPE
B62: DC15 O .R. Tambo | C62: EC EASTERN CAPE
B63: EC441 Matatiele | C63: EC EASTERN CAPE
B64: EC442 Umzimvubu | C64: EC EASTERN CAPE
B65: EC443 Winnie Madikizela Mandela | C65: EC EASTERN CAPE
B66: EC444 Ntabankulu | C66: EC EASTERN CAPE
B67: DC44 Alfred Nzo | C67: EC EASTERN CAPE
B68: MAN Mangaung | C68: FS FREE STATE
B69: FS161 Letsemeng | C69: FS FREE STATE
B70: FS162 Kopanong | C70: FS FREE STATE
B71: FS163 Mohokare | C71: FS FREE STATE
B72: DC16 Xhariep | C72: FS FREE STATE
B73: FS181 Masilonyana | C73: FS FREE STATE
B74: FS182 Tokologo | C74: FS FREE STATE
B75: FS183 Tswelopele | C75: FS FREE STATE
B76: FS184 Matjhabeng | C76: FS FREE STATE
B77: FS185 Nala | C77: FS FREE STATE
B78: DC18 Lejweleputswa | C78: FS FREE STATE
B79: FS191 Setsoto | C79: FS FREE STATE
B80: FS192 Dihlabeng | C80: FS FREE STATE
B81: FS193 Nketoana | C81: FS FREE STATE
B82: FS194 Maluti-a-Phofung | C82: FS FREE STATE
B83: FS195 Phumelela | C83: FS FREE STATE
B84: FS196 Mantsopa | C84: FS FREE STATE
B85: DC19 Thabo Mofutsanyana | C85: FS FREE STATE
B86: FS201 Moqhaka | C86: FS FREE STATE
B87: FS203 Ngwathe | C87: FS FREE STATE
B88: FS204 Metsimaholo | C88: FS FREE STATE
B89: FS205 Mafube | C89: FS FREE STATE
B90: DC20 Fezile Dabi | C90: FS FREE STATE
B91: EKU City of Ekurhuleni | C91: GT GAUTENG
B92: JHB City Of Johannesburg | C92: GT GAUTENG
B93: TSH City Of Tshwane | C93: GT GAUTENG
B94: GT421 Emfuleni | C94: GT GAUTENG
B95: GT422 Midvaal | C95: GT GAUTENG
B96: GT423 Lesedi | C96: GT GAUTENG
B97: DC42 Sedibeng | C97: GT GAUTENG
B98: GT481 Mogale City | C98: GT GAUTENG
B99: GT484 Merafong City | C99: GT GAUTENG
B100: GT485 Rand West City | C100: GT GAUTENG
B101: DC48 West Rand | C101: GT GAUTENG
B102: ETH eThekwini | C102: KZN KWAZULU-NATAL
B103: KZN212 Umdoni | C103: KZN KWAZULU-NATAL
B104: KZN213 Umzumbe | C104: KZN KWAZULU-NATAL
B105: KZN214 uMuziwabantu | C105: KZN KWAZULU-NATAL
B106: KZN216 Ray Nkonyeni | C106: KZN KWAZULU-NATAL
B107: DC21 Ugu | C107: KZN KWAZULU-NATAL
B108: KZN221 uMshwathi | C108: KZN KWAZULU-NATAL
B109: KZN222 uMngeni | C109: KZN KWAZULU-NATAL
B110: KZN223 Mpofana | C110: KZN KWAZULU-NATAL
B111: KZN224 Impendle | C111: KZN KWAZULU-NATAL
B112: KZN225 Msunduzi | C112: KZN KWAZULU-NATAL
B113: KZN226 Mkhambathini | C113: KZN KWAZULU-NATAL
B114: KZN227 Richmond | C114: KZN KWAZULU-NATAL
B115: DC22 uMgungundlovu | C115: KZN KWAZULU-NATAL
B116: KZN235 Okhahlamba | C116: KZN KWAZULU-NATAL
B117: KZN237 Inkosi Langalibalele | C117: KZN KWAZULU-NATAL
B118: KZN238 Alfred Duma | C118: KZN KWAZULU-NATAL
B119: DC23 Uthukela | C119: KZN KWAZULU-NATAL
B120: KZN241 Endumeni | C120: KZN KWAZULU-NATAL
B121: KZN242 Nquthu | C121: KZN KWAZULU-NATAL
B122: KZN244 Msinga | C122: KZN KWAZULU-NATAL
B123: KZN245 Umvoti | C123: KZN KWAZULU-NATAL
B124: DC24 Umzinyathi | C124: KZN KWAZULU-NATAL
B125: KZN252 Newcastle | C125: KZN KWAZULU-NATAL
B126: KZN253 Emadlangeni | C126: KZN KWAZULU-NATAL
B127: KZN254 Dannhauser | C127: KZN KWAZULU-NATAL
B128: DC25 Amajuba | C128: KZN KWAZULU-NATAL
B129: KZN261 eDumbe | C129: KZN KWAZULU-NATAL
B130: KZN262 uPhongolo | C130: KZN KWAZULU-NATAL
B131: KZN263 Abaqulusi | C131: KZN KWAZULU-NATAL
B132: KZN265 Nongoma | C132: KZN KWAZULU-NATAL
B133: KZN266 Ulundi | C133: KZN KWAZULU-NATAL
B134: DC26 Zululand | C134: KZN KWAZULU-NATAL
B135: KZN271 Umhlabuyalingana | C135: KZN KWAZULU-NATAL
B136: KZN272 Jozini | C136: KZN KWAZULU-NATAL
B137: KZN275 Mtubatuba | C137: KZN KWAZULU-NATAL
B138: KZN276 Hlabisa Big Five | C138: KZN KWAZULU-NATAL
B139: DC27 Umkhanyakude | C139: KZN KWAZULU-NATAL
B140: KZN281 Mfolozi | C140: KZN KWAZULU-NATAL
B141: KZN282 uMhlathuze | C141: KZN KWAZULU-NATAL
B142: KZN284 uMlalazi | C142: KZN KWAZULU-NATAL
B143: KZN285 Mthonjaneni | C143: KZN KWAZULU-NATAL
B144: KZN286 Nkandla | C144: KZN KWAZULU-NATAL
B145: DC28 King Cetshwayo | C145: KZN KWAZULU-NATAL
B146: KZN291 Mandeni | C146: KZN KWAZULU-NATAL
B147: KZN292 KwaDukuza | C147: KZN KWAZULU-NATAL
B148: KZN293 Ndwedwe | C148: KZN KWAZULU-NATAL
B149: KZN294 Maphumulo | C149: KZN KWAZULU-NATAL
B150: DC29 iLembe | C150: KZN KWAZULU-NATAL
B151: KZN433 Greater Kokstad | C151: KZN KWAZULU-NATAL
B152: KZN434 Ubuhlebezwe | C152: KZN KWAZULU-NATAL
B153: KZN435 Umzimkhulu | C153: KZN KWAZULU-NATAL
B154: KZN436 Dr Nkosazana Dlamini Zuma | C154: KZN KWAZULU-NATAL
B155: DC43 Harry Gwala | C155: KZN KWAZULU-NATAL
B156: LIM331 Greater Giyani | C156: LIM LIMPOPO
B157: LIM332 Greater Letaba | C157: LIM LIMPOPO
B158: LIM333 Greater Tzaneen | C158: LIM LIMPOPO
B159: LIM334 Ba-Phalaborwa | C159: LIM LIMPOPO
B160: LIM335 Maruleng | C160: LIM LIMPOPO
B161: DC33 Mopani | C161: LIM LIMPOPO
B162: LIM341 Musina | C162: LIM LIMPOPO
B163: LIM343 Thulamela | C163: LIM LIMPOPO
B164: LIM344 Makhado | C164: LIM LIMPOPO
B165: LIM345 Collins Chabane | C165: LIM LIMPOPO
B166: DC34 Vhembe | C166: LIM LIMPOPO
B167: LIM351 Blouberg | C167: LIM LIMPOPO
B168: LIM353 Molemole | C168: LIM LIMPOPO
B169: LIM354 Polokwane | C169: LIM LIMPOPO
B170: LIM355 Lepelle-Nkumpi | C170: LIM LIMPOPO
B171: DC35 Capricorn | C171: LIM LIMPOPO
B172: LIM361 Thabazimbi | C172: LIM LIMPOPO
B173: LIM362 Lephalale | C173: LIM LIMPOPO
B174: LIM366 Bela Bela | C174: LIM LIMPOPO
B175: LIM367 Mogalakwena | C175: LIM LIMPOPO
B176: LIM368 Modimolle-Mookgopong | C176: LIM LIMPOPO
B177: DC36 Waterberg | C177: LIM LIMPOPO
B178: LIM471 Ephraim Mogale | C178: LIM LIMPOPO
B179: LIM472 Elias Motsoaledi | C179: LIM LIMPOPO
B180: LIM473 Makhuduthamaga | C180: LIM LIMPOPO
B181: LIM476 Tubatse Fetakgomo | C181: LIM LIMPOPO
B182: DC47 Sekhukhune | C182: LIM LIMPOPO
B183: MP301 Albert Luthuli | C183: MP MPUMALANGA
B184: MP302 Msukaligwa | C184: MP MPUMALANGA
B185: MP303 Mkhondo | C185: MP MPUMALANGA
B186: MP304 Pixley Ka Seme (MP) | C186: MP MPUMALANGA
B187: MP305 Lekwa | C187: MP MPUMALANGA
B188: MP306 Dipaleseng | C188: MP MPUMALANGA
B189: MP307 Govan Mbeki | C189: MP MPUMALANGA
B190: DC30 Gert Sibande | C190: MP MPUMALANGA
B191: MP311 Victor Khanye | C191: MP MPUMALANGA
B192: MP312 Emalahleni (Mp) | C192: MP MPUMALANGA
B193: MP313 Steve Tshwete | C193: MP MPUMALANGA
B194: MP314 Emakhazeni | C194: MP MPUMALANGA
B195: MP315 Thembisile Hani | C195: MP MPUMALANGA
B196: MP316 Dr J.S. Moroka | C196: MP MPUMALANGA
B197: DC31 Nkangala | C197: MP MPUMALANGA
B198: MP321 Thaba Chweu | C198: MP MPUMALANGA
B199: MP324 Nkomazi | C199: MP MPUMALANGA
B200: MP325 Bushbuckridge | C200: MP MPUMALANGA
B201: MP326 City of Mbombela | C201: MP MPUMALANGA
B202: DC32 Ehlanzeni | C202: MP MPUMALANGA
B203: NC451 Joe Morolong | C203: NC NORTHERN CAPE
B204: NC452 Ga-Segonyana | C204: NC NORTHERN CAPE
B205: NC453 Gamagara | C205: NC NORTHERN CAPE
B206: DC45 John Taolo Gaetsewe | C206: NC NORTHERN CAPE
B207: NC061 Richtersveld | C207: NC NORTHERN CAPE
B208: NC062 Nama Khoi | C208: NC NORTHERN CAPE
B209: NC064 Kamiesberg | C209: NC NORTHERN CAPE
B210: NC065 Hantam | C210: NC NORTHERN CAPE
B211: NC066 Karoo Hoogland | C211: NC NORTHERN CAPE
B212: NC067 Khai-Ma | C212: NC NORTHERN CAPE
B213: DC6 Namakwa | C213: NC NORTHERN CAPE
... 73 more rows

Sheet Org structure
A1: Organisational Structure Votes | C1: Organisational Structure Sub-Votes | E1: Display Sub-Votes
A2: Vote 1 - City Manager | B2: Vote 1 | C2: City Manager
A3: Vote 2 - City Finance | B3: 1.1 | C3: Internal Audit and Compliance | D3: =CONCATENATE(B3, " - ", C3) -> 1,1 - Internal Audit and Compliance | E3: 1.1 - Internal Audit and Compliance
A4: Vote 3 - Corporate Services | B4: 1.2 | C4: Office of the City Manager | D4: =CONCATENATE(B4, " - ", C4) -> 1,2 - Office of the City Manager | E4: 1.2 - Office of the City Manager
A5: Vote 4 - Community Services and Social Equity | B5: 1.3 | C5: Political Support | D5: =CONCATENATE(B5, " - ", C5) -> 1,3 - Political Support | E5: 1.3 - Political Support
A6: Vote 5 - Infrastructure Services | B6: 1.4 | C6: Strategic Planning | D6: =CONCATENATE(B6, " - ", C6) -> 1,4 - Strategic Planning | E6: 1.4 - Strategic Planning
A7: Vote 6 - Sustainable Development and City Enterprises | B7: 1.5 | C7: [Name of sub-vote] | D7: =CONCATENATE(B7, " - ", C7) -> 1.5 - [Name of sub-vote]
A8: =B68&" - "&C68 -> Vote 7 - [NAME OF VOTE 7] | B8: 1.6 | C8: [Name of sub-vote] | D8: 1.6 - [Name of sub-vote]
A9: =B79&" - "&C79 -> Vote 8 - [NAME OF VOTE 8] | B9: 1.7 | C9: [Name of sub-vote] | D9: 1.7 - [Name of sub-vote]
A10: =B90&" - "&C90 -> Vote 9 - [NAME OF VOTE 9] | B10: 1.8 | C10: [Name of sub-vote] | D10: 1.8 - [Name of sub-vote]
A11: =B101&" - "&C101 -> Vote 10 - [NAME OF VOTE 10] | B11: 1.9 | C11: [Name of sub-vote] | D11: 1.9 - [Name of sub-vote]
A12: =B112&" - "&C112 -> Vote 11 - [NAME OF VOTE 11] | B12: 1.10 | C12: [Name of sub-vote] | D12: 1.10 - [Name of sub-vote]
A13: =B123&" - "&C123 -> Vote 12 - [NAME OF VOTE 12] | B13: Vote 2 | C13: City Finance
A14: =B134&" - "&C134 -> Vote 13 - [NAME OF VOTE 13] | B14: 2.1 | C14: Asset Management | D14: =CONCATENATE(B14, " - ", C14) -> 2,1 - Asset Management | E14: 2.1 - Asset Management
A15: =B145&" - "&C145 -> Vote 14 - [NAME OF VOTE 14] | B15: 2.2 | C15: Budget and Treasury Management | D15: 2,2 - Budget and Treasury Management | E15: 2.2 - Budget and Treasury Management
A16: =B156&" - "&C156 -> Vote 15 - [NAME OF VOTE 15] | B16: 2.3 | C16: Expenditure Management | D16: 2,3 - Expenditure Management | E16: 2.3 - Expenditure Management
B17: 2.4 | C17: Revenue Management | D17: 2,4 - Revenue Management | E17: 2.4 - Revenue Management
B18: 2.5 | C18: Supply Chain Management | D18: 2,5 - Supply Chain Management | E18: 2.5 - Supply Chain Management
B19: 2.6 | C19: [Name of sub-vote] | D19: 2.6 - [Name of sub-vote]
B20: 2.7 | C20: [Name of sub-vote] | D20: 2.7 - [Name of sub-vote]
B21: 2.8 | C21: [Name of sub-vote] | D21: 2.8 - [Name of sub-vote]
B22: 2.9 | C22: [Name of sub-vote] | D22: 2.9 - [Name of sub-vote]
A23: Vote 4 - Corporate Services | B23: 2.10 | C23: [Name of sub-vote] | D23: 2.10 - [Name of sub-vote]
B24: Vote 3 | C24: Corporate Services
B25: 3.1 | C25: Area Based Management | D25: =CONCATENATE(B25, " - ", C25) -> 3,1 - Area Based Management | E25: 3.1 - Area Based Management
B26: 3.2 | C26: Public Safety, Emergency Services and Enforcement | D26: =CONCATENATE(B26, " - ", C26) -> 3,2 - Public Safety, Emergency Services and Enforcement | E26: 3.2 - Public Safety, Emergency Services and Enforcement
B27: 3.3 | C27: Recreation and Facilities | D27: =CONCATENATE(B27, " - ", C27) -> 3,3 - Recreation and Facilities | E27: 3.3 - Recreation and Facilities
B28: 3.4 | C28: Waste Management | D28: =CONCATENATE(B28, " - ", C28) -> 3,4 - Waste Management | E28: 3.4 - Waste Management
B29: 3.5 | C29: [Name of sub-vote] | D29: =CONCATENATE(B29, " - ", C29) -> 3.5 - [Name of sub-vote]
B30: 3.6 | C30: [Name of sub-vote] | D30: 3.6 - [Name of sub-vote]
B31: 3.7 | C31: [Name of sub-vote] | D31: 3.7 - [Name of sub-vote]
B32: 3.8 | C32: [Name of sub-vote] | D32: 3.8 - [Name of sub-vote]
B33: 3.9 | C33: [Name of sub-vote] | D33: 3.9 - [Name of sub-vote]
B34: 3.10 | C34: [Name of sub-vote] | D34: 3.10 - [Name of sub-vote]
B35: Vote 4 | C35: Community Services and Social Equity
B36: 4.1 | C36: Human Resources Management | D36: =CONCATENATE(B36, " - ", C36) -> 4,1 - Human Resources Management | E36: 4.1 - Human Resources Management
B37: 4.2 | C37: Information Technology | D37: 4,2 - Information Technology | E37: 4.2 - Information Technology
B38: 4.3 | C38: Legal Services | D38: 4,3 - Legal Services | E38: 4.3 - Legal Services
B39: 4.4 | C39: Secretariat and Auxiliary Services | D39: 4,4 - Secretariat and Auxiliary Services | E39: 4.4 - Secretariat and Auxiliary Services
B40: 4.5 | C40: General Manager: Corporate Service | D40: 4,5 - General Manager: Corporate Service | E40: 4.5 - General Manager: Corporate Service
B41: 4.6 | C41: [Name of sub-vote] | D41: 4.6 - [Name of sub-vote]
B42: 4.7 | C42: [Name of sub-vote] | D42: 4.7 - [Name of sub-vote]
B43: 4.8 | C43: [Name of sub-vote] | D43: 4.8 - [Name of sub-vote]
B44: 4.9 | C44: [Name of sub-vote] | D44: 4.9 - [Name of sub-vote]
B45: 4.10 | C45: [Name of sub-vote] | D45: 4.10 - [Name of sub-vote]
B46: Vote 5 | C46: Infrastructure Services
B47: 5.1 | C47: Electricity | D47: =CONCATENATE(B47, " - ", C47) -> 5,1 - Electricity | E47: 5.1 - Electricity
B48: 5.2 | C48: Project Management Office | D48: 5,2 - Project Management Office | E48: 5.2 - Project Management Office
B49: 5.3 | C49: Roads and Transportation | D49: 5,3 - Roads and Transportation | E49: 5.3 - Roads and Transportation
B50: 5.4 | C50: Water and Sanitation | D50: 5,4 - Water and Sanitation | E50: 5.4 - Water and Sanitation
B51: 5.5 | C51: General Manager: Infrastructure | D51: 5,5 - General Manager: Infrastructure | E51: 5.5 - General Manager: Infrastructure
B52: 5.6 | C52: [Name of sub-vote] | D52: 5.6 - [Name of sub-vote]
B53: 5.7 | C53: [Name of sub-vote] | D53: 5.7 - [Name of sub-vote]
B54: 5.8 | C54: [Name of sub-vote] | D54: 5.8 - [Name of sub-vote]
B55: 5.9 | C55: [Name of sub-vote] | D55: 5.9 - [Name of sub-vote]
B56: 5.10 | C56: [Name of sub-vote] | D56: 5.10 - [Name of sub-vote]
B57: Vote 6 | C57: Sustainable Development and City Enterprises
B58: 6.1 | C58: City Entities | D58: =CONCATENATE(B58, " - ", C58) -> 6,1 - City Entities | E58: 6.1 - City Entities
B59: 6.2 | C59: Development Services | D59: 6,2 - Development Services | E59: 6.2 - Development Services
B60: 6.3 | C60: Human Settlement Development | D60: 6,3 - Human Settlement Development | E60: 6.3 - Human Settlement Development
B61: 6.4 | C61: Town Planning | D61: 6,4 - Town Planning | E61: 6.4 - Town Planning
B62: 6.5 | C62: General Manager: Sustainable Development and City Enterprises | D62: 6,5 - General Manager: Sustainable Development and City Enterprises | E62: 6.5 - General Manager: Sustainable Development and City Enterprises
B63: 6.6 | C63: [Name of sub-vote] | D63: 6.6 - [Name of sub-vote]
B64: 6.7 | C64: [Name of sub-vote] | D64: 6.7 - [Name of sub-vote]
B65: 6.8 | C65: [Name of sub-vote] | D65: 6.8 - [Name of sub-vote]
B66: 6.9 | C66: [Name of sub-vote] | D66: 6.9 - [Name of sub-vote]
B67: 6.10 | C67: [Name of sub-vote] | D67: 6.10 - [Name of sub-vote]
B68: Vote 7 | C68: [NAME OF VOTE 7]
B69: 7.1 | C69: [Name of sub-vote] | D69: =CONCATENATE(B69, " - ", C69) -> 7.1 - [Name of sub-vote] | E69: 7.1 - [Name of sub-vote]
B70: 7.2 | C70: [Name of sub-vote] | D70: 7.2 - [Name of sub-vote]
B71: 7.3 | C71: [Name of sub-vote] | D71: 7.3 - [Name of sub-vote]
B72: 7.4 | C72: [Name of sub-vote] | D72: 7.4 - [Name of sub-vote]
B73: 7.5 | C73: [Name of sub-vote] | D73: 7.5 - [Name of sub-vote]
B74: 7.6 | C74: [Name of sub-vote] | D74: 7.6 - [Name of sub-vote]
B75: 7.7 | C75: [Name of sub-vote] | D75: 7.7 - [Name of sub-vote]
B76: 7.8 | C76: [Name of sub-vote] | D76: 7.8 - [Name of sub-vote]
B77: 7.9 | C77: [Name of sub-vote] | D77: 7.9 - [Name of sub-vote]
B78: 7.10 | C78: [Name of sub-vote] | D78: 7.10 - [Name of sub-vote]
B79: Vote 8 | C79: [NAME OF VOTE 8]
B80: 8.1 | C80: [Name of sub-vote] | D80: =CONCATENATE(B80, " - ", C80) -> 8.1 - [Name of sub-vote] | E80: 8.1 - [Name of sub-vote]
B81: 8.2 | C81: [Name of sub-vote] | D81: 8.2 - [Name of sub-vote]
B82: 8.3 | C82: [Name of sub-vote] | D82: 8.3 - [Name of sub-vote]
B83: 8.4 | C83: [Name of sub-vote] | D83: 8.4 - [Name of sub-vote]
B84: 8.5 | C84: [Name of sub-vote] | D84: 8.5 - [Name of sub-vote]
B85: 8.6 | C85: [Name of sub-vote] | D85: 8.6 - [Name of sub-vote]
B86: 8.7 | C86: [Name of sub-vote] | D86: 8.7 - [Name of sub-vote]
B87: 8.8 | C87: [Name of sub-vote] | D87: 8.8 - [Name of sub-vote]
B88: 8.9 | C88: [Name of sub-vote] | D88: 8.9 - [Name of sub-vote]
B89: 8.10 | C89: [Name of sub-vote] | D89: 8.10 - [Name of sub-vote]
B90: Vote 9 | C90: [NAME OF VOTE 9]
B91: 9.1 | C91: [Name of sub-vote] | D91: =CONCATENATE(B91, " - ", C91) -> 9.1 - [Name of sub-vote] | E91: 9.1 - [Name of sub-vote]
B92: 9.2 | C92: [Name of sub-vote] | D92: 9.2 - [Name of sub-vote]
B93: 9.3 | C93: [Name of sub-vote] | D93: 9.3 - [Name of sub-vote]
B94: 9.4 | C94: [Name of sub-vote] | D94: 9.4 - [Name of sub-vote]
B95: 9.5 | C95: [Name of sub-vote] | D95: 9.5 - [Name of sub-vote]
B96: 9.6 | C96: [Name of sub-vote] | D96: 9.6 - [Name of sub-vote]
B97: 9.7 | C97: [Name of sub-vote] | D97: 9.7 - [Name of sub-vote]
B98: 9.8 | C98: [Name of sub-vote] | D98: 9.8 - [Name of sub-vote]
B99: 9.9 | C99: [Name of sub-vote] | D99: 9.9 - [Name of sub-vote]
B100: 9.10 | C100: [Name of sub-vote] | D100: 9.10 - [Name of sub-vote]
B101: Vote 10 | C101: [NAME OF VOTE 10]
B102: 10.1 | C102: [Name of sub-vote] | D102: =CONCATENATE(B102, " - ", C102) -> 10.1 - [Name of sub-vote] | E102: 10.1 - [Name of sub-vote]
B103: 10.2 | C103: [Name of sub-vote] | D103: 10.2 - [Name of sub-vote]
B104: 10.3 | C104: [Name of sub-vote] | D104: 10.3 - [Name of sub-vote]
B105: 10.4 | C105: [Name of sub-vote] | D105: 10.4 - [Name of sub-vote]
B106: 10.5 | C106: [Name of sub-vote] | D106: 10.5 - [Name of sub-vote]
B107: 10.6 | C107: [Name of sub-vote] | D107: 10.6 - [Name of sub-vote]
B108: 10.7 | C108: [Name of sub-vote] | D108: 10.7 - [Name of sub-vote]
B109: 10.8 | C109: [Name of sub-vote] | D109: 10.8 - [Name of sub-vote]
B110: 10.9 | C110: [Name of sub-vote] | D110: 10.9 - [Name of sub-vote]
B111: 10.10 | C111: [Name of sub-vote] | D111: 10.10 - [Name of sub-vote]
B112: Vote 11 | C112: [NAME OF VOTE 11]
B113: 11.1 | C113: [Name of sub-vote] | D113: =CONCATENATE(B113, " - ", C113) -> 11.1 - [Name of sub-vote] | E113: 11.1 - [Name of sub-vote]
B114: 11.2 | C114: [Name of sub-vote] | D114: 11.2 - [Name of sub-vote]
B115: 11.3 | C115: [Name of sub-vote] | D115: 11.3 - [Name of sub-vote]
B116: 11.4 | C116: [Name of sub-vote] | D116: 11.4 - [Name of sub-vote]
B117: 11.5 | C117: [Name of sub-vote] | D117: 11.5 - [Name of sub-vote]
B118: 11.6 | C118: [Name of sub-vote] | D118: 11.6 - [Name of sub-vote]
B119: 11.7 | C119: [Name of sub-vote] | D119: 11.7 - [Name of sub-vote]
B120: 11.8 | C120: [Name of sub-vote] | D120: 11.8 - [Name of sub-vote]
B121: 11.9 | C121: [Name of sub-vote] | D121: 11.9 - [Name of sub-vote]
B122: 11.10 | C122: [Name of sub-vote] | D122: 11.10 - [Name of sub-vote]
B123: Vote 12 | C123: [NAME OF VOTE 12]
B124: 12.1 | C124: [Name of sub-vote] | D124: =CONCATENATE(B124, " - ", C124) -> 12.1 - [Name of sub-vote] | E124: 12.1 - [Name of sub-vote]
B125: 12.2 | C125: [Name of sub-vote] | D125: 12.2 - [Name of sub-vote]
B126: 12.3 | C126: [Name of sub-vote] | D126: 12.3 - [Name of sub-vote]
B127: 12.4 | C127: [Name of sub-vote] | D127: 12.4 - [Name of sub-vote]
B128: 12.5 | C128: [Name of sub-vote] | D128: 12.5 - [Name of sub-vote]
B129: 12.6 | C129: [Name of sub-vote] | D129: 12.6 - [Name of sub-vote]
B130: 12.7 | C130: [Name of sub-vote] | D130: 12.7 - [Name of sub-vote]
B131: 12.8 | C131: [Name of sub-vote] | D131: 12.8 - [Name of sub-vote]
B132: 12.9 | C132: [Name of sub-vote] | D132: 12.9 - [Name of sub-vote]
B133: 12.10 | C133: [Name of sub-vote] | D133: 12.10 - [Name of sub-vote]
B134: Vote 13 | C134: [NAME OF VOTE 13]
B135: 13.1 | C135: [Name of sub-vote] | D135: =CONCATENATE(B135, " - ", C135) -> 13.1 - [Name of sub-vote] | E135: 13.1 - [Name of sub-vote]
B136: 13.2 | C136: [Name of sub-vote] | D136: 13.2 - [Name of sub-vote]
B137: 13.3 | C137: [Name of sub-vote] | D137: 13.3 - [Name of sub-vote]
B138: 13.4 | C138: [Name of sub-vote] | D138: 13.4 - [Name of sub-vote]
B139: 13.5 | C139: [Name of sub-vote] | D139: 13.5 - [Name of sub-vote]
B140: 13.6 | C140: [Name of sub-vote] | D140: 13.6 - [Name of sub-vote]
B141: 13.7 | C141: [Name of sub-vote] | D141: 13.7 - [Name of sub-vote]
B142: 13.8 | C142: [Name of sub-vote] | D142: 13.8 - [Name of sub-vote]
B143: 13.9 | C143: [Name of sub-vote] | D143: 13.9 - [Name of sub-vote]
B144: 13.10 | C144: [Name of sub-vote] | D144: 13.10 - [Name of sub-vote]
B145: Vote 14 | C145: [NAME OF VOTE 14]
B146: 14.1 | C146: [Name of sub-vote] | D146: =CONCATENATE(B146, " - ", C146) -> 14.1 - [Name of sub-vote] | E146: 14.1 - [Name of sub-vote]
B147: 14.2 | C147: [Name of sub-vote] | D147: 14.2 - [Name of sub-vote]
B148: 14.3 | C148: [Name of sub-vote] | D148: 14.3 - [Name of sub-vote]
B149: 14.4 | C149: [Name of sub-vote] | D149: 14.4 - [Name of sub-vote]
B150: 14.5 | C150: [Name of sub-vote] | D150: 14.5 - [Name of sub-vote]
B151: 14.6 | C151: [Name of sub-vote] | D151: 14.6 - [Name of sub-vote]
B152: 14.7 | C152: [Name of sub-vote] | D152: 14.7 - [Name of sub-vote]
B153: 14.8 | C153: [Name of sub-vote] | D153: 14.8 - [Name of sub-vote]
B154: 14.9 | C154: [Name of sub-vote] | D154: 14.9 - [Name of sub-vote]
B155: 14.10 | C155: [Name of sub-vote] | D155: 14.10 - [Name of sub-vote]
B156: Vote 15 | C156: [NAME OF VOTE 15]
B157: 15.1 | C157: [Name of sub-vote] | D157: =CONCATENATE(B157, " - ", C157) -> 15.1 - [Name of sub-vote] | E157: 15.1 - [Name of sub-vote]
B158: 15.2 | C158: [Name of sub-vote] | D158: 15.2 - [Name of sub-vote]
B159: 15.3 | C159: [Name of sub-vote] | D159: 15.3 - [Name of sub-vote]
B160: 15.4 | C160: [Name of sub-vote] | D160: 15.4 - [Name of sub-vote]
B161: 15.5 | C161: [Name of sub-vote] | D161: 15.5 - [Name of sub-vote]
B162: 15.6 | C162: [Name of sub-vote] | D162: 15.6 - [Name of sub-vote]
B163: 15.7 | C163: [Name of sub-vote] | D163: 15.7 - [Name of sub-vote]
B164: 15.8 | C164: [Name of sub-vote] | D164: 15.8 - [Name of sub-vote]
B165: 15.9 | C165: [Name of sub-vote] | D165: 15.9 - [Name of sub-vote]
B166: 15.10 | C166: [Name of sub-vote] | D166: 15.10 - [Name of sub-vote]

Sheet Contacts
A1: =muni&" - "&" Contact Information" -> KZN225 Msunduzi - Contact Information
A3: A. GENERAL INFORMATION
A4: Municipality | B4: =muni -> KZN225 Msunduzi | C4: Set name on 'Instructions' sheet
A6: Grade | C6: 1 Grade in terms of the Remuneration of Public Office Bearers Act.
A8: Province | B8: =IF(B4>" ",VLOOKUP(B4,'Lookup and lists'!B28:C311,2, FALSE)," ") -> KZN KWAZULU-NATAL
A10: Web Address
A12: e-mail Address
A14: B. CONTACT INFORMATION
A15: Postal address:
A16: P.O. Box
A17: City / Town
A18: Postal Code
A20: Street address
A21: Building
A22: Street No. & Name
A23: City / Town
A24: Postal Code
A26: General Contacts
A27: Telephone number
A28: Fax number
A30: C. POLITICAL LEADERSHIP
A31: Speaker: | C31: Secretary/PA to the Speaker:
A32: ID Number | C32: ID Number
A33: Title | C33: Title
A34: Name | C34: Name
A35: Telephone number | C35: Telephone number
A36: Cell number | C36: Cell number
A37: Fax number | C37: Fax number
A38: E-mail address | C38: E-mail address
A40: Mayor/Executive Mayor: | C40: Secretary/PA to the Mayor/Executive Mayor:
A41: ID Number | C41: ID Number
A42: Title | C42: Title
A43: Name | C43: Name
A44: Telephone number | C44: Telephone number
A45: Cell number | C45: Cell number
A46: Fax number | C46: Fax number
A47: E-mail address | C47: E-mail address
A49: Deputy Mayor/Executive Mayor: | C49: Secretary/PA to the Deputy Mayor/Executive Mayor:
A50: ID Number | C50: ID Number
A51: Title | C51: Title
A52: Name | C52: Name
A53: Telephone number | C53: Telephone number
A54: Cell number | C54: Cell number
A55: Fax number | C55: Fax number
A56: E-mail address | C56: E-mail address
A58: D. MANAGEMENT LEADERSHIP
A59: Municipal Manager: | C59: Secretary/PA to the Municipal Manager:
A60: ID Number | C60: ID Number
A61: Title | C61: Title
A62: Name | C62: Name
A63: Telephone number | C63: Telephone number
A64: Cell number | C64: Cell number
A65: Fax number | C65: Fax number
A66: E-mail address | C66: E-mail address
A68: Chief Financial Officer | C68: Secretary/PA to the Chief Financial Officer
A69: ID Number | C69: ID Number
A70: Title | C70: Title
A71: Name | B71: Nelisiwe M Ngcobo | C71: Name
A72: Telephone number | B72: 0333922601 | C72: Telephone number
A73: Cell number | C73: Cell number
A74: Fax number | C74: Fax number
A75: E-mail address | C75: E-mail address
A77: Official responsible for submitting financial information | C77: Official responsible for submitting financial information
A78: ID Number | C78: ID Number
A79: Title | C79: Title
A80: Name | C80: Name
A81: Telephone number | C81: Telephone number
A82: Cell number | C82: Cell number
A83: Fax number | C83: Fax number
A84: E-mail address | C84: E-mail address
A85: Official responsible for submitting financial information | C85: Official responsible for submitting financial information
A86: ID Number | C86: ID Number
A87: Title | C87: Title
A88: Name | C88: Name
A89: Telephone number | C89: Telephone number
A90: Cell number | C90: Cell number
A91: Fax number | C91: Fax number
A92: E-mail address | C92: E-mail address
A93: Official responsible for submitting financial information | C93: Official responsible for submitting financial information
A94: ID Number | C94: ID Number
A95: Title | C95: Title
A96: Name | C96: Name
A97: Telephone number | C97: Telephone number
A98: Cell number | C98: Cell number
A99: Fax number | C99: Fax number
A100: E-mail address | C100: E-mail address
A101: Official responsible for submitting financial information | C101: Official responsible for submitting financial information
A102: ID Number | C102: ID Number
A103: Title | C103: Title
A104: Name | C104: Name
A105: Telephone number | C105: Telephone number
A106: Cell number | C106: Cell number
A107: Fax number | C107: Fax number
A108: E-mail address | C108: E-mail address
A109: Official responsible for submitting financial information | C109: Official responsible for submitting financial information
A110: ID Number | C110: ID Number
A111: Title | C111: Title
A112: Name | C112: Name
A113: Telephone number | C113: Telephone number
A114: Cell number | C114: Cell number
A115: Fax number | C115: Fax number
A116: E-mail address | C116: E-mail address
A117: Official responsible for submitting financial information | C117: Official responsible for submitting financial information
A118: ID Number | C118: ID Number
A119: Title | C119: Title
A120: Name | C120: Name
A121: Telephone number | C121: Telephone number
A122: Cell number | C122: Cell number
A123: Fax number | C123: Fax number
A124: E-mail address | C124: E-mail address
A125: Official responsible for submitting financial information | C125: Official responsible for submitting financial information
A126: ID Number | C126: ID Number
A127: Title | C127: Title
A128: Name | C128: Name
A129: Telephone number | C129: Telephone number
A130: Cell number | C130: Cell number
A131: Fax number | C131: Fax number
A132: E-mail address | C132: E-mail address
A133: Official responsible for submitting financial information
A134: ID Number
A135: Title
A136: Name
A137: Telephone number
A138: Cell number
A139: Fax number
A140: E-mail address

Sheet C1-Sum
A1: =muni& " - "&s71sum& " - "&date -> KZN225 Msunduzi - Table C1 Consolidated Monthly Budget Statement Summary - Q3 Third Quarter
A2: =desc -> Description | B2: =Head1 -> 2020/21 | C2: =Head2 -> Budget Year 2021/22
B3: =Head5 -> Audited Outcome | C3: =Head6 -> Original Budget | D3: =Head7 -> Adjusted Budget | E3: =Head38 -> Monthly actual | F3: =Head39 -> YearTD actual | G3: =Head40 -> YearTD budget | H3: =Head41 -> YTD variance | I3: =Head41 -> YTD variance | J3: =Head8 -> Full Year Forecast
A4: R thousands | I4: %
A5: Financial Performance
A6: Property rates | B6: =SUM('C4-FinPerf RE'!C6:C6) -> 1204676315 | C6: =SUM('C4-FinPerf RE'!D6:D6) -> 1321378575 | D6: =SUM('C4-FinPerf RE'!E6:E6) -> 1321378575 | E6: =SUM('C4-FinPerf RE'!F6:F6) -> 97927059.92 | F6: =SUM('C4-FinPerf RE'!G6:G6) -> 935630855.6 | G6: =SUM('C4-FinPerf RE'!H6:H6) -> 991033931.5 | H6: =F6-G6 -> -55403075.91 | I6: =IF(H6=0,"",H6/G6) -> -0.05590431786 | J6: =SUM('C4-FinPerf RE'!K6:K6) -> 1321378575
A7: Service charges | B7: =SUM('C4-FinPerf RE'!C7:C10) -> 3188294762 | C7: =SUM('C4-FinPerf RE'!D7:D10) -> 4017823674 | D7: =SUM('C4-FinPerf RE'!E7:E10) -> 4017823674 | E7: =SUM('C4-FinPerf RE'!F7:F10) -> 280565595 | F7: =SUM('C4-FinPerf RE'!G7:G10) -> 2726670999 | G7: =SUM('C4-FinPerf RE'!H7:H10) -> 3013367755 | H7: =F7-G7 -> -286696756 | I7: =IF(H7=0,"",H7/G7) -> -0.09514164194 | J7: =SUM('C4-FinPerf RE'!K7:K10) -> 4017823674
A8: Investment revenue | B8: ='C4-FinPerf RE'!C13 -> 8530436.2 | C8: ='C4-FinPerf RE'!D13 -> 16076855.03 | D8: ='C4-FinPerf RE'!E13 -> 16076855.03 | E8: ='C4-FinPerf RE'!F13 -> 794209.01 | F8: ='C4-FinPerf RE'!G13 -> 7084917.86 | G8: ='C4-FinPerf RE'!H13 -> 12057641.27 | H8: =F8-G8 -> -4972723.41 | I8: =IF(H8=0,"",H8/G8) -> -0.4124126186 | J8: ='C4-FinPerf RE'!K13 -> 16076855.03
A9: Transfers and subsidies | B9: ='C4-FinPerf RE'!C19 -> 757156210 | C9: ='C4-FinPerf RE'!D19 -> 661215834.8 | D9: ='C4-FinPerf RE'!E19 -> 725957048.3 | E9: ='C4-FinPerf RE'!F19 -> 157945533.9 | F9: ='C4-FinPerf RE'!G19 -> 656144390.8 | G9: ='C4-FinPerf RE'!H19 -> 544467786.2 | H9: =F9-G9 -> 111676604.6 | I9: =IF(H9=0,"",H9/G9) -> 0.2051115004 | J9: ='C4-FinPerf RE'!K19 -> 725957048.3
A10: Other own revenue | B10: ='C4-FinPerf RE'!C12+'C4-FinPerf RE'!C14+'C4-FinPerf RE'!C15+'C4-FinPerf RE'!C16+'C4-FinPerf RE'!C17+'C4-FinPerf RE'!C18+'C4-FinPerf RE'!C20+'C4-FinPerf RE'!C21 -> 359635828.7 | C10: ='C4-FinPerf RE'!D12+'C4-FinPerf RE'!D14+'C4-FinPerf RE'!D15+'C4-FinPerf RE'!D16+'C4-FinPerf RE'!D17+'C4-FinPerf RE'!D18+'C4-FinPerf RE'!D20+'C4-FinPerf RE'!D21 -> 401919098.5 | D10: ='C4-FinPerf RE'!E12+'C4-FinPerf RE'!E14+'C4-FinPerf RE'!E15+'C4-FinPerf RE'!E16+'C4-FinPerf RE'!E17+'C4-FinPerf RE'!E18+'C4-FinPerf RE'!E20+'C4-FinPerf RE'!E21 -> 401919098.5 | E10: ='C4-FinPerf RE'!F12+'C4-FinPerf RE'!F14+'C4-FinPerf RE'!F15+'C4-FinPerf RE'!F16+'C4-FinPerf RE'!F17+'C4-FinPerf RE'!F18+'C4-FinPerf RE'!F20+'C4-FinPerf RE'!F21 -> 24777992.15 | F10: ='C4-FinPerf RE'!G12+'C4-FinPerf RE'!G14+'C4-FinPerf RE'!G15+'C4-FinPerf RE'!G16+'C4-FinPerf RE'!G17+'C4-FinPerf RE'!G18+'C4-FinPerf RE'!G20+'C4-FinPerf RE'!G21 -> 239387471.1 | G10: ='C4-FinPerf RE'!H12+'C4-FinPerf RE'!H14+'C4-FinPerf RE'!H15+'C4-FinPerf RE'!H16+'C4-FinPerf RE'!H17+'C4-FinPerf RE'!H18+'C4-FinPerf RE'!H20+'C4-FinPerf RE'!H21 -> 301439323.9 | H10: =F10-G10 -> -62051852.8 | I10: =IF(H10=0,"",H10/G10) -> -0.2058518842 | J10: ='C4-FinPerf RE'!K12+'C4-FinPerf RE'!K14+'C4-FinPerf RE'!K15+'C4-FinPerf RE'!K16+'C4-FinPerf RE'!K17+'C4-FinPerf RE'!K18+'C4-FinPerf RE'!K20+'C4-FinPerf RE'!K21 -> 401919098.5
A11: Total Revenue (excluding capital transfers and contributions) | B11: =SUM(B6:B10) -> 5518293552 | C11: 6418414037 | D11: 6483155251 | E11: 562010390 | F11: 4564918635 | G11: 4862366438 | H11: =F11-G11 -> -297447803.6 | I11: =IF(H11=0,"",H11/G11) -> -0.06117346509 | J11: 6483155251
A12: Employee costs | B12: ='C4-FinPerf RE'!C25 -> 1434702558 | C12: ='C4-FinPerf RE'!D25 -> 1538089743 | D12: ='C4-FinPerf RE'!E25 -> 1574909638 | E12: ='C4-FinPerf RE'!F25 -> 112065341 | F12: ='C4-FinPerf RE'!G25 -> 1071985693 | G12: ='C4-FinPerf RE'!H25 -> 1181182228 | H12: -109196535.4 | I12: -0.09244681538 | J12: ='C4-FinPerf RE'!K25 -> 1574909638
A13: Remuneration of Councillors | B13: ='C4-FinPerf RE'!C26 -> 51641247.13 | C13: ='C4-FinPerf RE'!D26 -> 56332921.51 | D13: ='C4-FinPerf RE'!E26 -> 56332921.51 | E13: ='C4-FinPerf RE'!F26 -> 3986727.25 | F13: ='C4-FinPerf RE'!G26 -> 36605859.51 | G13: ='C4-FinPerf RE'!H26 -> 42249691.13 | H13: -5643831.624 | I13: -0.1335827901 | J13: ='C4-FinPerf RE'!K26 -> 56332921.51
A14: Depreciation & asset impairment | B14: ='C4-FinPerf RE'!C28 -> 381265315.9 | C14: ='C4-FinPerf RE'!D28 -> 421872297.6 | D14: ='C4-FinPerf RE'!E28 -> 421871987 | E14: ='C4-FinPerf RE'!F28 -> 32569076.34 | F14: ='C4-FinPerf RE'!G28 -> 287386550.6 | G14: ='C4-FinPerf RE'!H28 -> 316403990.2 | H14: -29017439.7 | I14: -0.09171009404 | J14: ='C4-FinPerf RE'!K28 -> 421871987
A15: Finance charges | B15: ='C4-FinPerf RE'!C29 -> 42536964.33 | C15: ='C4-FinPerf RE'!D29 -> 34724271.93 | D15: ='C4-FinPerf RE'!E29 -> 34724271.93 | E15: ='C4-FinPerf RE'!F29 -> 6457262.3 | F15: ='C4-FinPerf RE'!G29 -> 25207572.85 | G15: ='C4-FinPerf RE'!H29 -> 26043203.94 | H15: -835631.0949 | I15: -0.03208633994 | J15: ='C4-FinPerf RE'!K29 -> 34724271.93
A16: Inventory consumed and bulk purchases | B16: =SUM('C4-FinPerf RE'!C30:C31) -> 2717592971 | C16: =SUM('C4-FinPerf RE'!D30:D31) -> 3015913148 | D16: =SUM('C4-FinPerf RE'!E30:E31) -> 3023109961 | E16: =SUM('C4-FinPerf RE'!F30:F31) -> 223807827.1 | F16: =SUM('C4-FinPerf RE'!G30:G31) -> 2213789614 | G16: =SUM('C4-FinPerf RE'!H30:H31) -> 2267332471 | H16: -53542856.26 | I16: -0.02361491178 | J16: =SUM('C4-FinPerf RE'!K30:K31) -> 3023109961
A17: Transfers and subsidies | B17: ='C4-FinPerf RE'!C33 -> 16870304.99 | C17: ='C4-FinPerf RE'!D33 -> 45862882.85 | D17: ='C4-FinPerf RE'!E33 -> 45862882.85 | E17: ='C4-FinPerf RE'!F33 -> 6652172.08 | F17: ='C4-FinPerf RE'!G33 -> 37708183.07 | G17: ='C4-FinPerf RE'!H33 -> 34397162.14 | H17: 3311020.929 | I17: 0.09625854933 | J17: ='C4-FinPerf RE'!K33 -> 45862882.85
A18: Other expenditure | B18: ='C4-FinPerf RE'!C36-SUM('C1-Sum'!B12:B17) -> 1770717595 | C18: ='C4-FinPerf RE'!D36-SUM('C1-Sum'!C12:C17) -> 1005618754 | D18: ='C4-FinPerf RE'!E36-SUM('C1-Sum'!D12:D17) -> 1083587543 | E18: ='C4-FinPerf RE'!F36-SUM('C1-Sum'!E12:E17) -> 84350179.4 | F18: ='C4-FinPerf RE'!G36-SUM('C1-Sum'!F12:F17) -> 551152133.6 | G18: ='C4-FinPerf RE'!H36-SUM('C1-Sum'!G12:G17) -> 812690657.2 | H18: -261538523.6 | I18: -0.3218180513 | J18: ='C4-FinPerf RE'!K36-SUM('C1-Sum'!J12:J17) -> 1083587543
A19: Total Expenditure | B19: =SUM(B12:B18) -> 6415326957 | C19: 6118414019 | D19: 6240399205 | E19: 469888585.5 | F19: 4223835607 | G19: 4680299404 | H19: -456463796.8 | I19: -0.09752875989 | J19: =SUM(J12:J18) -> 6240399205
A20: Surplus/(Deficit) | B20: =B11-B19 -> -897033404.8 | C20: 300000018.7 | D20: 242756045.5 | E20: 92121804.43 | F20: 341083027.4 | G20: 182067034.2 | H20: 159015993.2 | I20: 0.873392561 | J20: =J11-J19 -> 242756045.5
A21: ='C4-FinPerf RE'!A39 -> Transfers and subsidies - capital (monetary allocations) (National / Provincial and District) | B21: ='C4-FinPerf RE'!C39 -> 498745626.6 | C21: ='C4-FinPerf RE'!D39 -> 380796576 | D21: ='C4-FinPerf RE'!E39 -> 429670814.7 | E21: ='C4-FinPerf RE'!F39 -> 26594782.73 | F21: ='C4-FinPerf RE'!G39 -> 262491987.4 | G21: ='C4-FinPerf RE'!H39 -> 322253111 | H21: -59761123.59 | I21: -0.1854477786 | J21: ='C4-FinPerf RE'!K39 -> 429670814.7
A22: ='C4-FinPerf RE'!A40&" & "&'C4-FinPerf RE'!A41 -> Transfers and subsidies - capital (monetary allocations) (National / Provincial Departmental Agencies, Households, Non-profit Institutions, Private Enterprises, Public Corporatons, Higher Educational Institutions) & Transfers and subsidies - capital (in-kind - all) | B22: =SUM('C4-FinPerf RE'!C40:C41) -> 0 | C22: =SUM('C4-FinPerf RE'!D40:D41) -> 0 | D22: =SUM('C4-FinPerf RE'!E40:E41) -> 0 | E22: =SUM('C4-FinPerf RE'!F40:F41) -> 0 | F22: =SUM('C4-FinPerf RE'!G40:G41) -> 0 | G22: =SUM('C4-FinPerf RE'!H40:H41) -> 0 | H22: 0 | J22: =SUM('C4-FinPerf RE'!K40:K41) -> 0
A23: Surplus/(Deficit) after capital transfers & contributions | B23: =B20+B21+B22 -> -398287778.2 | C23: 680796594.7 | D23: 672426860.2 | E23: 118716587.2 | F23: 603575014.8 | G23: 504320145.2 | H23: 99254869.65 | I23: 0.1968092502 | J23: =J20+J21+J22 -> 672426860.2
A24: Share of surplus/ (deficit) of associate | B24: ='C4-FinPerf RE'!C47 -> 0 | C24: ='C4-FinPerf RE'!D47 -> 0 | D24: ='C4-FinPerf RE'!E47 -> 0 | E24: ='C4-FinPerf RE'!F47 -> 0 | F24: ='C4-FinPerf RE'!G47 -> 0 | G24: ='C4-FinPerf RE'!H47 -> 0 | H24: 0 | J24: ='C4-FinPerf RE'!K47 -> 0
A25: Surplus/ (Deficit) for the year | B25: =B23+B24 -> -398287778.2 | C25: 680796594.7 | D25: 672426860.2 | E25: 118716587.2 | F25: 603575014.8 | G25: 504320145.2 | H25: 99254869.65 | I25: 0.1968092502 | J25: =J23+J24 -> 672426860.2
A27: Capital expenditure & funds sources
A28: Capital expenditure | B28: ='C5-Capex'!C40 -> 686255531.1 | C28: ='C5-Capex'!D40 -> 576585867 | D28: ='C5-Capex'!E40 -> 655206969 | E28: ='C5-Capex'!F40 -> 50149682.99 | F28: ='C5-Capex'!G40 -> 334491691.1 | G28: ='C5-Capex'!H40 -> 491405226.7 | H28: =F28-G28 -> -156913535.6 | I28: =IF(H28=0,"",H28/G28) -> -0.319315968 | J28: ='C5-Capex'!K40 -> 655206969
A29: Capital transfers recognised | B29: ='C5-Capex'!C70 -> 563995119.7 | C29: ='C5-Capex'!D70 -> 380796576 | D29: ='C5-Capex'!E70 -> 429670815 | E29: ='C5-Capex'!F70 -> 23481305.81 | F29: ='C5-Capex'!G70 -> 224358863.8 | G29: ='C5-Capex'!H70 -> 322253111.2 | H29: -97894247.46 | I29: -0.3037806123 | J29: ='C5-Capex'!K70 -> 429670815
A31: Borrowing | B31: ='C5-Capex'!C72 -> 0 | C31: ='C5-Capex'!D72 -> 100000000 | D31: ='C5-Capex'!E72 -> 100000000 | E31: ='C5-Capex'!F72 -> 16981892.35 | F31: ='C5-Capex'!G72 -> 25590650.2 | G31: ='C5-Capex'!H72 -> 75000000 | H31: -49409349.8 | I31: -0.6587913307 | J31: ='C5-Capex'!K72 -> 100000000
A32: Internally generated funds | B32: ='C5-Capex'!C73 -> 122260411.4 | C32: ='C5-Capex'!D73 -> 95789290.95 | D32: ='C5-Capex'!E73 -> 125536154 | E32: ='C5-Capex'!F73 -> 9686484.83 | F32: ='C5-Capex'!G73 -> 84542177.1 | G32: ='C5-Capex'!H73 -> 94152115.47 | H32: -9609938.37 | I32: -0.1020682151 | J32: ='C5-Capex'!K73 -> 125536154
A33: Total sources of capital funds | B33: =+B29+B31+B32 -> 686255531.1 | C33: 576585867 | D33: 655206969 | E33: 50149682.99 | F33: 334491691.1 | G33: 491405226.7 | H33: -156913535.6 | I33: -0.319315968 | J33: =+J29+J31+J32 -> 655206969
A35: Financial position
A36: Total current assets | B36: ='C6-FinPos'!C13 -> 2493648944 | C36: ='C6-FinPos'!D13 -> 3834269707 | D36: ='C6-FinPos'!E13 -> 3796058664 | F36: ='C6-FinPos'!F13 -> 2710829993 | J36: ='C6-FinPos'!G13 -> 3796058664
A37: Total non current assets | B37: ='C6-FinPos'!C25 -> 8078241133 | C37: ='C6-FinPos'!D25 -> 7978693588 | D37: ='C6-FinPos'!E25 -> 8048331949 | F37: ='C6-FinPos'!F25 -> 7797651933 | J37: ='C6-FinPos'!G25 -> 8048331949
A38: Total current liabilities | B38: ='C6-FinPos'!C35 -> 2039155343 | C38: ='C6-FinPos'!D35 -> 1296447302 | D38: ='C6-FinPos'!E35 -> 1295697302 | F38: ='C6-FinPos'!F35 -> 2034657544 | J38: ='C6-FinPos'!G35 -> 1295697302
A39: Total non current liabilities | B39: ='C6-FinPos'!C40 -> 827858319 | C39: ='C6-FinPos'!D40 -> 1187237456 | D39: ='C6-FinPos'!E40 -> 1187237456 | F39: ='C6-FinPos'!F40 -> 814494099.8 | J39: ='C6-FinPos'!G40 -> 1187237456
A40: Community wealth/Equity | B40: ='C6-FinPos'!C48 -> 7704876415 | C40: ='C6-FinPos'!D48 -> 9329278537 | D40: ='C6-FinPos'!E48 -> 9361455854 | F40: ='C6-FinPos'!F48 -> 7659330282 | J40: ='C6-FinPos'!G48 -> 9361455854
A42: Cash flows
A43: Net cash from (used) operating | B43: ='C7-CFlow'!C18 -> 588920701 | C43: ='C7-CFlow'!D18 -> 664164986.6 | D43: ='C7-CFlow'!E18 -> 628537882.7 | E43: ='C7-CFlow'!F18 -> -967723.23 | F43: ='C7-CFlow'!G18 -> 4559362.19 | G43: ='C7-CFlow'!H18 -> 471403412 | H43: =G43-F43 -> 466844049.8 | I43: =IF(H43=0,"",H43/G43) -> 0.9903281095 | J43: ='C7-CFlow'!K18 -> 628537882.7
A44: Net cash from (used) investing | B44: ='C7-CFlow'!C28 -> -632678326 | C44: ='C7-CFlow'!D28 -> -576585867 | D44: ='C7-CFlow'!E28 -> -655206970 | E44: ='C7-CFlow'!F28 -> -31520 | F44: ='C7-CFlow'!G28 -> -47565 | G44: ='C7-CFlow'!H28 -> -491405227.5 | H44: =G44-F44 -> -491357662.5 | I44: =IF(H44=0,"",H44/G44) -> 0.9999032062 | J44: ='C7-CFlow'!K28 -> -655206970
A45: Net cash from (used) financing | B45: ='C7-CFlow'!C37 -> -113418258 | C45: ='C7-CFlow'!D37 -> 8362465.853 | D45: ='C7-CFlow'!E37 -> 8362465.853 | E45: ='C7-CFlow'!F37 -> 0 | F45: ='C7-CFlow'!G37 -> 0 | G45: ='C7-CFlow'!H37 -> 6271849.39 | H45: =G45-F45 -> 6271849.39 | I45: =IF(H45=0,"",H45/G45) -> 1 | J45: ='C7-CFlow'!K37 -> -91637534.15
A46: Cash/cash equivalents at the month/year end | B46: ='C7-CFlow'!C41 -> 361801084 | C46: ='C7-CFlow'!D41 -> 380156963.6 | D46: ='C7-CFlow'!E41 -> 343014109.6 | E46: ='C7-CFlow'!F41 -> 0 | F46: ='C7-CFlow'!G41 -> 4511797.19 | G46: ='C7-CFlow'!H41 -> 347590764.9 | H46: =G46-F46 -> 343078967.7 | I46: =IF(H46=0,"",H46/G46) -> 0.9870198013 | J46: ='C7-CFlow'!K41 -> -118306621.4
A48: Debtors & creditors analysis | B48: ='SC3'!C3 -> 0-30 Days | C48: ='SC3'!D3 -> 31-60 Days | D48: ='SC3'!E3 -> 61-90 Days | E48: ='SC3'!F3 -> 91-120 Days | F48: ='SC3'!G3 -> 121-150 Dys | G48: ='SC3'!H3 -> 151-180 Dys | H48: ='SC3'!I3 -> 181 Dys-1 Yr | I48: ='SC3'!J3 -> Over 1Yr | J48: Total
A49: =LEFT('SC3'!A4,20) -> Debtors Age Analysis
A50: ='SC3'!A14 -> Total By Income Source | B50: ='SC3'!C14 -> 467445912.6 | C50: ='SC3'!D14 -> 143832266.9 | D50: ='SC3'!E14 -> 107841939 | E50: ='SC3'!F14 -> 102525157.9 | F50: ='SC3'!G14 -> 125684517.7 | G50: ='SC3'!H14 -> 100971120.7 | H50: ='SC3'!I14 -> 547104711.9 | I50: ='SC3'!J14 -> 3726647288 | J50: ='SC3'!K14 -> 5322052915
A51: =LEFT('SC4'!A5,22) -> Creditors Age Analysis
A52: Total Creditors | B52: ='SC4'!C15 -> 1160323382 | C52: ='SC4'!D15 -> 104216373.9 | D52: ='SC4'!E15 -> 103783323.3 | E52: ='SC4'!F15 -> 98132149.4 | F52: ='SC4'!G15 -> 109815766.7 | G52: ='SC4'!H15 -> 0 | H52: ='SC4'!I15 -> 0 | I52: ='SC4'!J15 -> 0 | J52: ='SC4'!K15 -> 1576270995

Sheet C2-FinPerf SC
A1: =muni& " - "&S71A& " - "&date -> KZN225 Msunduzi - Table C2 Consolidated Monthly Budget Statement - Financial Performance (functional classification) - Q3 Third Quarter
A2: =desc -> Description | B2: =head27 -> Ref | C2: =Head1 -> 2020/21 | D2: =Head2 -> Budget Year 2021/22
C3: =Head5 -> Audited Outcome | D3: =Head6 -> Original Budget | E3: =Head7 -> Adjusted Budget | F3: =Head38 -> Monthly actual | G3: =Head39 -> YearTD actual | H3: =Head40 -> YearTD budget | I3: =Head41 -> YTD variance | J3: =Head41 -> YTD variance | K3: =Head8 -> Full Year Forecast
A4: R thousands | B4: 1 | J4: %
A5: Revenue - Functional
A6: Governance and administration | C6: =SUM(C7:C9) -> 1685956768 | D6: 1981018743 | E6: 1977515316 | F6: 188425493.1 | G6: 1372635323 | H6: 1483136487 | I6: =G6-H6 -> -110501163.7 | J6: =IF(I6=0,"",I6/H6) -> -0.07450505375 | K6: =SUM(K7:K9) -> 1977515316
A7: Executive and council | C7: ='C2C'!C7 -> 3935419.51 | D7: ='C2C'!D7 -> 3578714.869 | E7: ='C2C'!E7 -> 3578714.869 | F7: ='C2C'!F7 -> 67917.12 | G7: ='C2C'!G7 -> 1399443.96 | H7: ='C2C'!H7 -> 2684036.152 | I7: -1284592.192 | J7: =IF(I7=0,"",I7/H7) -> -0.4786046533 | K7: ='C2C'!K7 -> 3578714.869
A8: Finance and administration | C8: ='C2C'!C10 -> 1682018698 | D8: ='C2C'!D10 -> 1977440028 | E8: ='C2C'!E10 -> 1973936601 | F8: ='C2C'!F10 -> 188357575.9 | G8: ='C2C'!G10 -> 1371235879 | H8: ='C2C'!H10 -> 1480452451 | I8: -109216571.5 | J8: -0.07377242777 | K8: ='C2C'!K10 -> 1973936601
A9: Internal audit | C9: ='C2C'!C24 -> 2649.84 | D9: ='C2C'!D24 -> 0 | E9: ='C2C'!E24 -> 0 | F9: ='C2C'!F24 -> 0 | G9: ='C2C'!G24 -> 0 | H9: ='C2C'!H24 -> 0 | I9: 0 | K9: ='C2C'!K24 -> 0
A10: Community and public safety | C10: =SUM(C11:C15) -> 196069671.7 | D10: 130529800.2 | E10: 207794444 | F10: 14519441.3 | G10: 69041015.54 | H10: 155845833 | I10: -86804817.42 | J10: -0.5569915844 | K10: =SUM(K11:K15) -> 207794444
A11: Community and social services | C11: ='C2C'!C27 -> 24279484.79 | D11: ='C2C'!D27 -> 21601427.47 | E11: ='C2C'!E27 -> 26275427.47 | F11: ='C2C'!F27 -> 3627988.42 | G11: ='C2C'!G27 -> 22239670.42 | H11: ='C2C'!H27 -> 19706570.6 | I11: 2533099.817 | J11: 0.1285408744 | K11: ='C2C'!K27 -> 26275427.47
A12: Sport and recreation | C12: ='C2C'!C49 -> 523912.59 | D12: ='C2C'!D49 -> 291935.3701 | E12: ='C2C'!E49 -> 291935.3701 | F12: ='C2C'!F49 -> 18741.92 | G12: ='C2C'!G49 -> 122119.58 | H12: ='C2C'!H49 -> 218951.5276 | I12: -96831.94761 | J12: -0.442252898 | K12: ='C2C'!K49 -> 291935.3701
A13: Public safety | C13: ='C2C'!C55 -> 28771859.6 | D13: ='C2C'!D55 -> 3970362.811 | E13: ='C2C'!E55 -> 3970362.811 | F13: ='C2C'!F55 -> 8566761.64 | G13: ='C2C'!G55 -> 20702268.81 | H13: ='C2C'!H55 -> 2977772.108 | I13: 17724496.7 | J13: 5.952267687 | K13: ='C2C'!K55 -> 3970362.811
A14: Housing | C14: ='C2C'!C64 -> 142494414.7 | D14: ='C2C'!D64 -> 104666074.6 | E14: ='C2C'!E64 -> 177256718.3 | F14: ='C2C'!F64 -> 2305949.32 | G14: ='C2C'!G64 -> 25976956.73 | H14: ='C2C'!H64 -> 132942538.7 | I14: -106965582 | J14: -0.8046001154 | K14: ='C2C'!K64 -> 177256718.3
A15: Health | C15: ='C2C'!C67 -> 0 | D15: ='C2C'!D67 -> 0 | E15: ='C2C'!E67 -> 0 | F15: ='C2C'!F67 -> 0 | G15: ='C2C'!G67 -> 0 | H15: ='C2C'!H67 -> 0 | I15: 0 | K15: ='C2C'!K67 -> 0
A16: Economic and environmental services | C16: =SUM(C17:C19) -> 272510272.7 | D16: 38412632.05 | E16: 93545442.74 | F16: 20352722.26 | G16: 130049280.6 | H16: 70159082.05 | I16: 59890198.6 | J16: 0.8536342957 | K16: =SUM(K17:K19) -> 93545442.74
A17: Planning and development | C17: ='C2C'!C76 -> 37507188.98 | D17: ='C2C'!D76 -> 38298488.01 | E17: ='C2C'!E76 -> 42985219.53 | F17: ='C2C'!F76 -> 1598644.11 | G17: ='C2C'!G76 -> 10747981.58 | H17: ='C2C'!H76 -> 32238914.65 | I17: -21490933.07 | J17: -0.6666146582 | K17: ='C2C'!K76 -> 42985219.53
A18: Road transport | C18: ='C2C'!C87 -> 234900487.5 | D18: ='C2C'!D87 -> 0 | E18: ='C2C'!E87 -> 50446079.16 | F18: ='C2C'!F87 -> 18754078.15 | G18: ='C2C'!G87 -> 119290049.1 | H18: ='C2C'!H87 -> 37834559.37 | I18: 81455489.7 | J18: 2.15293877 | K18: ='C2C'!K87 -> 50446079.16
A19: Environmental protection | C19: ='C2C'!C92 -> 102596.2 | D19: ='C2C'!D92 -> 114144.0492 | E19: ='C2C'!E92 -> 114144.0492 | F19: ='C2C'!F92 -> 0 | G19: ='C2C'!G92 -> 11250 | H19: ='C2C'!H92 -> 85608.03691 | I19: -74358.03691 | J19: -0.8685871046 | K19: ='C2C'!K92 -> 114144.0492
A20: Trading services | C20: =SUM(C21:C24) -> 3813440521 | D20: =SUM(D21:D24) -> 4904764744 | E20: 4889486173 | F20: 363355315.2 | G20: 3239732080 | H20: 3667114630 | I20: -427382549.3 | J20: -0.1165446386 | K20: =SUM(K21:K24) -> 4889486173
A21: Energy sources | C21: ='C2C'!C100 -> 2196596746 | D21: ='C2C'!D100 -> 3038086189 | E21: ='C2C'!E100 -> 3038086189 | F21: ='C2C'!F100 -> 199659506.1 | G21: ='C2C'!G100 -> 1967383498 | H21: ='C2C'!H100 -> 2278564641 | I21: =G21-H21 -> -311181143.6 | J21: -0.1365689338 | K21: ='C2C'!K100 -> 3038086189
A22: Water management | C22: ='C2C'!C104 -> 1173377413 | D22: ='C2C'!D104 -> 1476594054 | E22: ='C2C'!E104 -> 1461315483 | F22: ='C2C'!F104 -> 124491527.1 | G22: ='C2C'!G104 -> 928998913.8 | H22: ='C2C'!H104 -> 1095986612 | I22: =G22-H22 -> -166987698.4 | J22: -0.1523628998 | K22: ='C2C'!K104 -> 1461315483
A23: Waste water management | C23: ='C2C'!C108 -> 288947747.1 | D23: ='C2C'!D108 -> 213394622.9 | E23: ='C2C'!E108 -> 213394622.9 | F23: ='C2C'!F108 -> 23383424.13 | G23: ='C2C'!G108 -> 230363051.3 | H23: ='C2C'!H108 -> 160045967.2 | I23: =G23-H23 -> 70317084.08 | J23: 0.4393555509 | K23: ='C2C'!K108 -> 213394622.9
A24: Waste management | C24: ='C2C'!C113 -> 154518614.7 | D24: ='C2C'!D113 -> 176689878.4 | E24: ='C2C'!E113 -> 176689878.4 | F24: ='C2C'!F113 -> 15820857.8 | G24: ='C2C'!G113 -> 112986617.5 | H24: ='C2C'!H113 -> 132517408.8 | I24: =G24-H24 -> -19530791.34 | J24: -0.1473828346 | K24: ='C2C'!K113 -> 176689878.4
A25: Other | B25: 4 | C25: ='C2C'!C118 -> 49061946.32 | D25: ='C2C'!D118 -> 64846075.39 | E25: ='C2C'!E118 -> 64846075.39 | F25: ='C2C'!F118 -> 1952200.93 | G25: ='C2C'!G118 -> 15952922.33 | H25: ='C2C'!H118 -> 48634556.54 | I25: =G25-H25 -> -32681634.21 | J25: -0.671983802 | K25: ='C2C'!K118 -> 64846075.39
A26: Total Revenue - Functional | B26: 2 | C26: =C6+C10+C16+C20+C25 -> 6017039179 | D26: =D6+D10+D16+D20+D25 -> 7119571995 | E26: 7233187451 | F26: 588605172.7 | G26: 4827410622 | H26: 5424890588 | I26: -597479966 | J26: -0.1101367772 | K26: =K6+K10+K16+K20+K25 -> 7233187451
A28: Expenditure - Functional
A29: Governance and administration | C29: =SUM(C30:C32) -> 1520817442 | D29: 1216239065 | E29: 1247382125 | F29: 83776308.99 | G29: 672940697 | H29: 935536593.8 | I29: =G29-H29 -> -262595896.7 | J29: =IF(I29=0,"",I29/H29) -> -0.2806901392 | K29: =SUM(K30:K32) -> 1247382125
A30: Executive and council | C30: ='C2C'!C129 -> 117397847.6 | D30: ='C2C'!D129 -> 117003171.7 | E30: ='C2C'!E129 -> 126397378 | F30: ='C2C'!F129 -> 12347375.64 | G30: ='C2C'!G129 -> 86778691.8 | H30: ='C2C'!H129 -> 94798033.5 | I30: -8019341.7 | J30: =IF(I30=0,"",I30/H30) -> -0.08459396681 | K30: ='C2C'!K129 -> 126397378
A31: Finance and administration | C31: ='C2C'!C132 -> 1386457371 | D31: ='C2C'!D132 -> 1077460435 | E31: ='C2C'!E132 -> 1098210183 | F31: ='C2C'!F132 -> 70277721.68 | G31: ='C2C'!G132 -> 575247676.8 | H31: ='C2C'!H132 -> 823657637.2 | I31: -248409960.4 | J31: -0.3015937074 | K31: ='C2C'!K132 -> 1098210183
A32: Internal audit | C32: ='C2C'!C146 -> 16962222.89 | D32: ='C2C'!D146 -> 21775457.74 | E32: ='C2C'!E146 -> 22774564 | F32: ='C2C'!F146 -> 1151211.67 | G32: ='C2C'!G146 -> 10914328.41 | H32: ='C2C'!H146 -> 17080923 | I32: -6166594.59 | J32: -0.3610223282 | K32: ='C2C'!K146 -> 22774564
A33: Community and public safety | C33: =SUM(C34:C38) -> 563692276 | D33: 549083301.6 | E33: 601750011.3 | F33: 47411099.34 | G33: 419669600.5 | H33: 451312508.5 | I33: -31642907.98 | J33: -0.07011307549 | K33: =SUM(K34:K38) -> 601750011.3
A34: Community and social services | C34: ='C2C'!C149 -> 149092712.5 | D34: ='C2C'!D149 -> 138323594.9 | E34: ='C2C'!E149 -> 121773362 | F34: ='C2C'!F149 -> 11124822.78 | G34: ='C2C'!G149 -> 102844368.5 | H34: ='C2C'!H149 -> 91330021.5 | I34: 11514347.04 | J34: 0.1260740647 | K34: ='C2C'!K149 -> 121773362
A35: Sport and recreation | C35: ='C2C'!C171 -> 121244913.6 | D35: ='C2C'!D171 -> 133116283.9 | E35: ='C2C'!E171 -> 146879207 | F35: ='C2C'!F171 -> 11187362.24 | G35: ='C2C'!G171 -> 102832731.9 | H35: ='C2C'!H171 -> 110159405.2 | I35: -7326673.36 | J35: -0.06650973962 | K35: ='C2C'!K171 -> 146879207
A36: Public safety | C36: ='C2C'!C177 -> 209002717.6 | D36: ='C2C'!D177 -> 211547136.6 | E36: ='C2C'!E177 -> 231926410 | F36: ='C2C'!F177 -> 15309708.11 | G36: ='C2C'!G177 -> 156462634.8 | H36: ='C2C'!H177 -> 173944807.5 | I36: -17482172.69 | J36: -0.1005041366 | K36: ='C2C'!K177 -> 231926410
A37: Housing | C37: ='C2C'!C186 -> 74912129 | D37: ='C2C'!D186 -> 50925986.88 | E37: ='C2C'!E186 -> 89116012.3 | F37: ='C2C'!F186 -> 9082655.88 | G37: ='C2C'!G186 -> 50207155.27 | H37: ='C2C'!H186 -> 66837009.23 | I37: -16629853.95 | J37: -0.2488120601 | K37: ='C2C'!K186 -> 89116012.3
A38: Health | C38: ='C2C'!C189 -> 9439803.22 | D38: ='C2C'!D189 -> 15170299.41 | E38: ='C2C'!E189 -> 12055020 | F38: ='C2C'!F189 -> 706550.33 | G38: ='C2C'!G189 -> 7322709.99 | H38: ='C2C'!H189 -> 9041265 | I38: -1718555.01 | J38: -0.1900790442 | K38: ='C2C'!K189 -> 12055020
A39: Economic and environmental services | C39: =SUM(C40:C42) -> 313304803.3 | D39: 421022081.1 | E39: 403576432.4 | F39: 27586896.67 | G39: 256427983.4 | H39: 302682324.3 | I39: -46254340.95 | J39: -0.1528148069 | K39: =SUM(K40:K42) -> 403576432.4
A40: Planning and development | C40: ='C2C'!C198 -> 69071779.38 | D40: ='C2C'!D198 -> 73618014.47 | E40: ='C2C'!E198 -> 76603372.41 | F40: ='C2C'!F198 -> 6463930.02 | G40: ='C2C'!G198 -> 51175956.76 | H40: ='C2C'!H198 -> 57452529.31 | I40: -6276572.547 | J40: -0.1092479761 | K40: ='C2C'!K198 -> 76603372.41
A41: Road transport | C41: ='C2C'!C209 -> 223381413.3 | D41: ='C2C'!D209 -> 321529184.4 | E41: ='C2C'!E209 -> 302588292 | F41: ='C2C'!F209 -> 19345896.16 | G41: ='C2C'!G209 -> 188403373.1 | H41: ='C2C'!H209 -> 226941219 | I41: -38537845.9 | J41: -0.1698142192 | K41: ='C2C'!K209 -> 302588292
A42: Environmental protection | C42: ='C2C'!C214 -> 20851610.65 | D42: ='C2C'!D214 -> 25874882.14 | E42: ='C2C'!E214 -> 24384768 | F42: ='C2C'!F214 -> 1777070.49 | G42: ='C2C'!G214 -> 16848653.5 | H42: ='C2C'!H214 -> 18288576 | I42: -1439922.5 | J42: -0.07873343994 | K42: ='C2C'!K214 -> 24384768
A43: Trading services | C43: =SUM(C44:C47) -> 3951388059 | D43: =SUM(D44:D47) -> 4189944597 | E43: 4248508329 | F43: 305771512.5 | G43: 2827980593 | H43: 3186381247 | I43: -358400654 | J43: -0.1124788989 | K43: =SUM(K44:K47) -> 4248508329
A44: Energy sources | C44: ='C2C'!C222 -> 2126230124 | D44: ='C2C'!D222 -> 2660033713 | E44: ='C2C'!E222 -> 2670935409 | F44: ='C2C'!F222 -> 179404635.1 | G44: ='C2C'!G222 -> 1849611345 | H44: ='C2C'!H222 -> 2003201557 | I44: -153590211.8 | J44: -0.07667237042 | K44: ='C2C'!K222 -> 2670935409
A45: Water management | C45: ='C2C'!C226 -> 1382222234 | D45: ='C2C'!D226 -> 1127189124 | E45: ='C2C'!E226 -> 1147009167 | F45: ='C2C'!F226 -> 94769831.06 | G45: ='C2C'!G226 -> 680680738.6 | H45: ='C2C'!H226 -> 860256875.2 | I45: -179576136.7 | J45: -0.2087471101 | K45: ='C2C'!K226 -> 1147009167
A46: Waste water management | C46: ='C2C'!C230 -> 294864459.8 | D46: ='C2C'!D230 -> 287545278.3 | E46: ='C2C'!E230 -> 307977432 | F46: ='C2C'!F230 -> 22247035.05 | G46: ='C2C'!G230 -> 210615003 | H46: ='C2C'!H230 -> 230983074 | I46: -20368070.96 | J46: -0.08817992854 | K46: ='C2C'!K230 -> 307977432
A47: Waste management | C47: ='C2C'!C235 -> 148071241.3 | D47: ='C2C'!D235 -> 115176481.1 | E47: ='C2C'!E235 -> 122586321 | F47: ='C2C'!F235 -> 9350011.29 | G47: ='C2C'!G235 -> 87073506.15 | H47: ='C2C'!H235 -> 91939740.75 | I47: -4866234.6 | J47: -0.0529285221 | K47: ='C2C'!K235 -> 122586321
A48: Other | C48: ='C2C'!C240 -> 66124376.69 | D48: ='C2C'!D240 -> 62486356.9 | E48: ='C2C'!E240 -> 59667319 | F48: ='C2C'!F240 -> 5342768.05 | G48: ='C2C'!G240 -> 46816733.53 | H48: ='C2C'!H240 -> 44750489.25 | I48: 2066244.28 | J48: 0.04617255173 | K48: ='C2C'!K240 -> 59667319
A49: Total Expenditure - Functional | B49: 3 | C49: =C29+C33+C39+C43+C48 -> 6415326957 | D49: =D29+D33+D39+D43+D48 -> 6438775401 | E49: 6560884217 | F49: 469888585.6 | G49: 4223835607 | H49: 4920663163 | I49: -696827555.4 | J49: -0.1416125291 | K49: =K29+K33+K39+K43+K48 -> 6560884217
A50: Surplus/ (Deficit) for the year | C50: =C26-C49 -> -398287778.2 | D50: 680796594.7 | E50: 672303233.9 | F50: 118716587.2 | G50: 603575014.8 | H50: 504227425.4 | I50: =I26-I49 -> 99347589.38 | J50: =IF(I50=0,"",I50/H50) -> 0.1970293252 | K50: =K26-K49 -> 672303233.9
A51: =head27a -> References
A52: 1. Government Finance Statistics Functions and Sub-functions are standardised to assist the compilation of national and international accounts for comparison purposes
A53: 2. Total Revenue by functional classification must reconcile to Total Operating Revenue shown in the Financial Performance Statement
A54: 3. Total Expenditure by functional classification must reconcile to total operating expenditure shown in 'Financial Performance Statement'
A55: 4. All amounts must be classified under a functional classification (modified GFS). The GFS function 'Other' is only for Abbatoirs, Air Transport, Licensing and Regulation, Markets and Tourism - and if used must be supported by footnotes. Nothing else may be placed under 'Other'. Assign associate share to relevant classification

Sheet C2C
A1: =muni& " - "&S71A& " - "&date -> KZN225 Msunduzi - Table C2 Consolidated Monthly Budget Statement - Financial Performance (functional classification) - Q3 Third Quarter
A2: =desc -> Description | B2: =head27 -> Ref | C2: =Head1 -> 2020/21 | D2: =Head2 -> Budget Year 2021/22
C3: =Head5 -> Audited Outcome | D3: =Head6 -> Original Budget | E3: =Head7 -> Adjusted Budget | F3: =Head38 -> Monthly actual | G3: =Head39 -> YearTD actual | H3: =Head40 -> YearTD budget | I3: =Head41 -> YTD variance | J3: =Head41 -> YTD variance | K3: =Head8 -> Full Year Forecast
A4: R thousands | B4: 1 | J4: %
A5: Revenue - Functional
A6: Municipal governance and administration | C6: =C7+C10+C24 -> 1685956768 | D6: 1981018743 | E6: 1977515316 | F6: 188425493.1 | G6: 1372635323 | H6: 1483136487 | I6: =G6-H6 -> -110501163.7 | J6: =IF(I6=0,"",I6/H6) -> -0.07450505375 | K6: =K7+K10+K24 -> 1977515316
A7: Executive and council | C7: =SUM(C8:C9) -> 3935419.51 | D7: =SUM(D8:D9) -> 3578714.869 | E7: 3578714.869 | F7: 67917.12 | G7: 1399443.96 | H7: 2684036.152 | I7: =G7-H7 -> -1284592.192 | J7: =IF(I7=0,"",I7/H7) -> -0.4786046533 | K7: 3578714.869
A8: Mayor and Council | C8: 12674.79 | E8: 0 | I8: 0
A9: Municipal Manager, Town Secretary and Chief Executive | C9: 3922744.72 | D9: 3578714.869 | E9: 3578714.869 | F9: 67917.12 | G9: 1399443.96 | H9: =E9/12*9 -> 2684036.152 | I9: -1284592.192 | J9: -0.4786046533 | K9: =E9 -> 3578714.869
A10: Finance and administration | C10: =SUM(C11:C23) -> 1682018698 | D10: 1977440028 | E10: 1973936601 | F10: 188357575.9 | G10: 1371235879 | H10: 1480452451 | I10: -109216571.5 | J10: -0.07377242777 | K10: =SUM(K11:K23) -> 1973936601
A11: Administrative and Corporate Support | C11: 12307.09 | F11: -12.95 | G11: -12.95 | I11: -12.95
A12: Asset Management | C12: 1587023.03 | D12: 11713700.32 | E12: 11713700.32 | F12: -2465129.2 | G12: 4233799.28 | H12: =E12/12*9 -> 8785275.241 | I12: -4551475.961 | J12: -0.5180800642 | K12: =E12 -> 11713700.32
A13: Finance | C13: 1665539963 | D13: 1939216554 | E13: 1939216554 | F13: 189230588.9 | G13: 1348613983 | H13: 1454412416 | I13: -105798432.6 | J13: -0.07274307581 | K13: 1939216554
A14: Fleet Management | C14: 0 | I14: 0 | K14: 0
A15: Human Resources | C15: 8063480.46 | D15: 12339543.78 | E15: 8836116 | F15: 404539.43 | G15: 6494875.54 | H15: =E15/12*9 -> 6627087 | I15: -132211.46 | J15: -0.01995016211 | K15: 8836116
A16: Information Technology | C16: 22555.09 | D16: 2123.870749 | E16: 2123.870749 | F16: 52.17 | G16: 475.62 | H16: 1592.903062 | I16: -1117.283062 | J16: -0.701413092 | K16: 2123.870749
A17: Legal Services | C17: 2567.63 | D17: 270861.2043 | E17: 270861.2043 | F17: -12.95 | G17: 723.45 | H17: 203145.9032 | I17: -202422.4532 | J17: -0.9964387665 | K17: 270861.2043
A18: Marketing, Customer Relations, Publicity and Media Co-ordination | C18: 1362.34 | I18: 0
A19: Property Services | C19: 6676492.88 | D19: 13602002.3 | E19: 13602002.3 | F19: 1183492.24 | G19: 11808049.43 | H19: =E19/12*9 -> 10201501.72 | I19: 1606547.708 | J19: 0.1574814917 | K19: =E19 -> 13602002.3
A20: Risk Management | C20: 0 | I20: 0
A21: Security Services | C21: 3256.51 | I21: 0
A22: Supply Chain Management | C22: 109689.85 | D22: 295242.5403 | E22: 295242.5403 | F22: 4058.26 | G22: 83985.46 | H22: =E22/12*9 -> 221431.9052 | I22: -137446.4452 | J22: -0.6207165363 | K22: =E22 -> 295242.5403
A23: Valuation Service | I23: 0
A24: Internal audit | C24: =SUM(C25:C25) -> 2649.84 | D24: 0 | E24: 0 | F24: 0 | G24: 0 | H24: 0 | I24: 0 | K24: =SUM(K25:K25) -> 0
A25: Governance Function | C25: 2649.84 | I25: 0
A26: Community and public safety | C26: =C27+C49+C55+C64+C67 -> 196069671.7 | D26: =D27+D49+D55+D64+D67 -> 130529800.2 | E26: 207794444 | F26: 14519441.3 | G26: 69041015.54 | H26: 155845833 | I26: -86804817.42 | J26: -0.5569915844 | K26: 207794444
A27: Community and social services | C27: =SUM(C28:C48) -> 24279484.79 | D27: 21601427.47 | E27: 26275427.47 | F27: 3627988.42 | G27: 22239670.42 | H27: 19706570.6 | I27: 2533099.817 | J27: 0.1285408744 | K27: =SUM(K28:K48) -> 26275427.47
A28: Aged Care | I28: 0
A29: Agricultural | I29: 0
A30: Animal Care and Diseases | I30: 0
A31: Cemeteries, Funeral Parlours and Crematoriums | C31: 5208007.31 | D31: 3711678.855 | E31: 3711678.855 | F31: 434963.56 | G31: 4214362.3 | H31: =E31/12*9 -> 2783759.141 | I31: 1430603.159 | J31: 0.5139105383 | K31: =E31 -> 3711678.855
A32: Child Care Facilities | C32: 0 | H32: 0 | I32: 0
A33: Community Halls and Facilities | C33: 2902948.82 | D33: 1101748.615 | E33: 1101748.615 | F33: 2052892.18 | G33: 7643298.92 | H33: 826311.4615 | I33: 6816987.458 | J33: 8.249900644 | K33: =E33 -> 1101748.615
A34: Consumer Protection | C34: 0 | I34: 0
A35: Cultural Matters | C35: 0 | I35: 0
A36: Disaster Management | C36: 0 | I36: 0
A37: Education | C37: 0 | I37: 0
A38: Indigenous and Customary Law | C38: 0 | I38: 0
A39: Industrial Promotion | C39: 0 | I39: 0
A40: Language Policy | C40: 0 | I40: 0
A41: Libraries and Archives | C41: 15205234.72 | D41: 16363000 | E41: 21231000 | F41: 1116907.68 | G41: 9995471.16 | H41: =E41/12*9 -> 15923250 | I41: -5927778.84 | J41: -0.3722719194 | K41: =E41 -> 21231000
A42: Literacy Programmes | C42: 0 | I42: 0
A43: Media Services | C43: 0 | I43: 0
A44: Museums and Art Galleries | C44: 953550.37 | D44: 425000 | E44: 231000 | F44: 23225 | G44: 386538.04 | H44: =E44/12*9 -> 173250 | I44: 213288.04 | J44: 1.231099798 | K44: =E44 -> 231000
A45: Population Development | C45: 9743.57 | I45: 0
A46: Provincial Cultural Matters | I46: 0
A47: Theatres | I47: 0
A48: Zoo's | I48: 0
A49: Sport and recreation | C49: =SUM(C50:C54) -> 523912.59 | D49: =SUM(D50:D54) -> 291935.3701 | E49: 291935.3701 | F49: 18741.92 | G49: 122119.58 | H49: 218951.5276 | I49: -96831.94761 | J49: -0.442252898 | K49: 291935.3701
A50: Beaches and Jetties | I50: 0
A51: Casinos, Racing, Gambling, Wagering | I51: 0
A52: Community Parks (including Nurseries) | C52: 4738.68 | I52: 0
A53: Recreational Facilities | C53: 519173.91 | D53: 291935.3701 | E53: 291935.3701 | F53: 18741.92 | G53: 122119.58 | H53: =E53/12*9 -> 218951.5276 | I53: -96831.94761 | J53: -0.442252898 | K53: =E53 -> 291935.3701
A54: Sports Grounds and Stadiums | I54: 0
A55: Public safety | C55: =SUM(C56:C63) -> 28771859.6 | D55: =SUM(D56:D63) -> 3970362.811 | E55: 3970362.811 | F55: 8566761.64 | G55: 20702268.81 | H55: 2977772.108 | I55: 17724496.7 | J55: 5.952267687 | K55: 3970362.811
A56: Civil Defence | C56: 1199482.64 | I56: 0
A57: Cleansing | C57: 0 | I57: 0
A58: Control of Public Nuisances | C58: 0 | I58: =G58-H58 -> 0 | J58: =IF(I58=0,"",I58/H58) -> 
A59: Fencing and Fences | C59: 0 | I59: 0
A60: Fire Fighting and Protection | C60: 9230735.25 | D60: 352152.9407 | E60: 352152.9407 | F60: 99077.05 | G60: 9913776.39 | H60: =E60/12*9 -> 264114.7055 | I60: =G60-H60 -> 9649661.684 | J60: =(IF(I60=0,"",I60/H60))+-0.997977513087812 -> 35.5378968 | K60: =E60 -> 352152.9407
A61: Licensing and Control of Animals | C61: 0 | I61: =G61-H61 -> 0 | J61: =IF(I61=0,"",I61/H61) -> 
A62: Police Forces, Traffic and Street Parking Control | C62: 18341641.71 | D62: 3618209.871 | E62: 3618209.871 | F62: 8467684.59 | G62: 10788492.42 | H62: =E62/12*9 -> 2713657.403 | I62: =G62-H62 -> 8074835.017 | J62: =IF(I62=0,"",I62/H62) -> 2.975628025 | K62: =E62 -> 3618209.871
A63: Pounds | I63: 0
A64: Housing | C64: =SUM(C65:C66) -> 142494414.7 | D64: 104666074.6 | E64: 177256718.3 | F64: 2305949.32 | G64: 25976956.73 | H64: 132942538.7 | I64: =G64-H64 -> -106965582 | J64: =IF(I64=0,"",I64/H64) -> -0.8046001154 | K64: =SUM(K65:K66) -> 177256718.3
A65: Housing | C65: 142494414.7 | D65: 104666074.6 | E65: 177256718.3 | F65: 2305949.32 | G65: 25976956.73 | H65: =E65/12*9 -> 132942538.7 | I65: =G65-H65 -> -106965582 | J65: =IF(I65=0,"",I65/H65) -> -0.8046001154 | K65: =E65 -> 177256718.3
A66: Informal Settlements | I66: =G66-H66 -> 0 | J66: =IF(I66=0,"",I66/H66) -> 
A67: Health | C67: =SUM(C68:C74) -> 0 | D67: 0 | E67: 0 | F67: 0 | G67: 0 | H67: 0 | I67: 0 | K67: =SUM(K68:K74) -> 0
A68: Ambulance | I68: 0
A69: Health Services | I69: 0
A70: Laboratory Services | I70: =G70-H70 -> 0 | J70: =IF(I70=0,"",I70/H70) -> 
A71: Food Control | I71: =G71-H71 -> 0 | J71: =IF(I71=0,"",I71/H71) -> 
A72: Health Surveillance and Prevention of Communicable Diseases including immunizations | I72: 0
A73: Vector Control | I73: 0
A74: Chemical Safety | I74: 0
A75: Economic and environmental services | C75: =C76+C87+C92 -> 272510272.7 | D75: 38412632.05 | E75: 93545442.74 | F75: 20352722.26 | G75: 130049280.6 | H75: 70159082.05 | I75: 59890198.6 | J75: 0.8536342957 | K75: =K76+K87+K92 -> 93545442.74
A76: Planning and development | C76: =SUM(C77:C86) -> 37507188.98 | D76: 38298488.01 | E76: 42985219.53 | F76: 1598644.11 | G76: 10747981.58 | H76: 32238914.65 | I76: -21490933.07 | J76: -0.6666146582 | K76: =SUM(K77:K86) -> 42985219.53
A77: Billboards | I77: =G77-H77 -> 0 | J77: =IF(I77=0,"",I77/H77) -> 
A78: Corporate Wide Strategic Planning (IDPs, LEDs) | C78: 300065.51 | I78: =G78-H78 -> 0 | J78: =IF(I78=0,"",I78/H78) -> 
A79: Central City Improvement District | C79: 0 | I79: 0
A80: Development Facilitation | C80: 0 | I80: =G80-H80 -> 0 | J80: =IF(I80=0,"",I80/H80) -> 
A81: Economic Development/Planning | C81: 364155.19 | E81: 3686731.53 | F81: 1216290.73 | G81: 8340428.84 | H81: =E81/12*9 -> 2765048.647 | I81: =G81-H81 -> 5575380.192 | J81: =IF(I81=0,"",I81/H81) -> 2.01637689 | K81: =E81 -> 3686731.53
A82: Regional Planning and Development | C82: 0 | I82: =G82-H82 -> 0 | J82: =IF(I82=0,"",I82/H82) -> 
A83: Town Planning, Building Regulations and Enforcement, and City Engineer | C83: 36842968.28 | D83: 38298488.01 | E83: 39298488 | F83: 382353.38 | G83: 2407552.74 | H83: =E83/12*9 -> 29473866 | I83: =G83-H83 -> -27066313.26 | J83: =IF(I83=0,"",I83/H83) -> -0.9183156787 | K83: =E83 -> 39298488
A84: Project Management Unit | I84: 0
A85: Provincial Planning | I85: 0
A86: Support to Local Municipalities | I86: 0
A87: Road transport | C87: =SUM(C88:C91) -> 234900487.5 | D87: 0 | E87: 50446079.16 | F87: 18754078.15 | G87: 119290049.1 | H87: 37834559.37 | I87: 81455489.7 | J87: 2.15293877 | K87: =SUM(K88:K91) -> 50446079.16
A88: Public Transport | C88: 178133714.4 | E88: 50446079.16 | F88: 10741513.07 | G88: 49855448.82 | H88: =E88/12*9 -> 37834559.37 | I88: 12020889.45 | J88: 0.3177224646 | K88: =E88 -> 50446079.16
A89: Road and Traffic Regulation | C89: 0 | H89: 0 | I89: 0
A90: Roads | C90: 56766426.26 | F90: 8012565.08 | G90: 69434600.25 | H90: 0 | I90: 69434600.25
A91: Taxi Ranks | C91: 346.84 | I91: 0
A92: Environmental protection | C92: =SUM(C93:C98) -> 102596.2 | D92: =SUM(D93:D98) -> 114144.0492 | E92: 114144.0492 | F92: 0 | G92: 11250 | H92: 85608.03691 | I92: -74358.03691 | J92: -0.8685871046 | K92: 114144.0492
A93: Biodiversity and Landscape | I93: 0
A94: Coastal Protection | I94: 0
A95: Indigenous Forests | I95: =G95-H95 -> 0 | J95: =IF(I95=0,"",I95/H95) -> 
A96: Nature Conservation | I96: =G96-H96 -> 0 | J96: =IF(I96=0,"",I96/H96) -> 
A97: Pollution Control | C97: 102596.2 | D97: 114144.0492 | E97: 114144.0492 | F97: 0 | G97: 11250 | H97: =E97/12*9 -> 85608.03691 | I97: -74358.03691 | J97: -0.8685871046 | K97: =E97 -> 114144.0492
A98: Soil Conservation | I98: 0
A99: Trading services | C99: =C100+C104+C108+C113 -> 3813440521 | D99: =D100+D104+D108+D113 -> 4904764744 | E99: 4889486173 | F99: 363355315.2 | G99: 3239732080 | H99: 3667114630 | I99: -427382549.3 | J99: -0.1165446386 | K99: =K100+K104+K108+K113 -> 4889486173
A100: Energy sources | C100: =SUM(C101:C103) -> 2196596746 | D100: =SUM(D101:D103) -> 3038086189 | E100: 3038086189 | F100: 199659506.1 | G100: 1967383498 | H100: 2278564641 | I100: -311181143.6 | J100: -0.1365689338 | K100: 3038086189
A101: Electricity | C101: 2196596746 | D101: 3038086189 | E101: 3038086189 | F101: 199659506.1 | G101: 1967383498 | H101: =E101/12*9 -> 2278564641 | I101: -311181143.6 | J101: -0.1365689338 | K101: =E101 -> 3038086189
A102: Street Lighting and Signal Systems | H102: =D102/12*1 -> 0 | I102: =G102-H102 -> 0 | J102: =IF(I102=0,"",I102/H102) ->  | K102: =D102 -> 0
A103: Nonelectric Energy | I103: 0
A104: Water management | C104: =SUM(C105:C107) -> 1173377413 | D104: =SUM(D105:D107) -> 1476594054 | E104: 1461315483 | F104: 124491527.1 | G104: 928998913.8 | H104: 1095986612 | I104: -166987698.4 | J104: -0.1523628998 | K104: 1461315483
A105: Water Treatment | I105: 0
A106: Water Distribution | C106: 1173377413 | D106: 1476594054 | E106: 1461315483 | F106: 124491527.1 | G106: 928998913.8 | H106: =E106/12*9 -> 1095986612 | I106: =G106-H106 -> -166987698.4 | J106: =IF(I106=0,"",I106/H106) -> -0.1523628998 | K106: =E106 -> 1461315483
A107: Water Storage | I107: 0
A108: Waste water management | C108: =SUM(C109:C112) -> 288947747.1 | D108: =SUM(D109:D112) -> 213394622.9 | E108: 213394622.9 | F108: 23383424.13 | G108: 230363051.3 | H108: 160045967.2 | I108: 70317084.08 | J108: 0.4393555509 | K108: 213394622.9
A109: Public Toilets | C109: 39.55 | I109: 0
A110: Sewerage | C110: 288947597 | D110: 213394622.9 | E110: 213394622.9 | F110: 23383424.13 | G110: 230363051.3 | H110: =E110/12*9 -> 160045967.2 | I110: 70317084.08 | J110: 0.4393555509 | K110: =E110 -> 213394622.9
A111: Storm Water Management | C111: 110.56 | I111: =G111-H111 -> 0 | J111: =IF(I111=0,"",I111/H111) -> 
A112: Waste Water Treatment | I112: 0
A113: Waste management | C113: =SUM(C114:C117) -> 154518614.7 | D113: 176689878.4 | E113: 176689878.4 | F113: 15820857.8 | G113: 112986617.5 | H113: 132517408.8 | I113: -19530791.34 | J113: -0.1473828346 | K113: =SUM(K114:K117) -> 176689878.4
A114: Recycling | I114: =G114-H114 -> 0 | J114: =IF(I114=0,"",I114/H114) -> 
A115: Solid Waste Disposal (Landfill Sites) | C115: 39354941.57 | D115: 36843731.06 | E115: 36843731.06 | F115: 6064423.2 | G115: 30243041.03 | H115: =E115/12*9 -> 27632798.29 | I115: =G115-H115 -> 2610242.737 | J115: =IF(I115=0,"",I115/H115) -> 0.09446175915 | K115: =E115 -> 36843731.06
A116: Solid Waste Removal | C116: 115163673.2 | D116: 139846147.4 | E116: 139846147.4 | F116: 9756434.6 | G116: 82743576.46 | H116: 104884610.5 | I116: =G116-H116 -> -22141034.08 | J116: =IF(I116=0,"",I116/H116) -> -0.2110989779 | K116: 139846147.4
A117: Street Cleaning | I117: =G117-H117 -> 0 | J117: =IF(I117=0,"",I117/H117) -> 
A118: Other | C118: =SUM(C119:C124) -> 49061946.32 | D118: =SUM(D119:D124) -> 64846075.39 | E118: 64846075.39 | F118: 1952200.93 | G118: 15952922.33 | H118: 48634556.54 | I118: -32681634.21 | J118: -0.671983802 | K118: 64846075.39
A119: Abattoirs | I119: 0
A120: Air Transport | C120: 6456463.56 | D120: 10525223.09 | E120: 10525223.09 | F120: 0 | G120: 3504522.4 | H120: =E120/12*9 -> 7893917.32 | I120: -4389394.92 | J120: -0.5560477444 | K120: =E120 -> 10525223.09
A121: Forestry | C121: 21904865.39 | D121: 8073178.138 | E121: 8073178.138 | H121: 6054883.603 | I121: =G121-H121 -> -6054883.603 | J121: =IF(I121=0,"",I121/H121) -> -1 | K121: 8073178.138
A122: Licensing and Regulation | C122: 243272.99 | D122: 465741.516 | E122: 465741.516 | F122: 17330.38 | G122: 125603.2 | H122: 349306.137 | I122: -223702.937 | J122: -0.640420861 | K122: 465741.516
A123: Markets | C123: 20456577.8 | D123: 45781932.64 | E123: 45781932.64 | F123: 1934870.55 | G123: 12322796.73 | H123: 34336449.48 | I123: -22013652.75 | J123: -0.6411161633 | K123: 45781932.64
A124: Tourism | C124: 766.58 | I124: =G124-H124 -> 0 | J124: =IF(I124=0,"",I124/H124) -> 
A125: ="Total "&A5 -> Total Revenue - Functional | B125: 2 | C125: =C6+C26+C75+C99+C118 -> 6017039179 | D125: 7119571995 | E125: 7233187451 | F125: 588605172.7 | G125: 4827410622 | H125: 5424890588 | I125: =G125-H125 -> -597479966 | J125: =IF(I125=0,"",I125/H125) -> -0.1101367772 | K125: =K6+K26+K75+K99+K118 -> 7233187451
A127: Expenditure - Functional
A128: =A6 -> Municipal governance and administration | C128: =C129+C132+C146 -> 1520817442 | D128: 1216239065 | E128: 1247382125 | F128: 83776308.99 | G128: 672940697 | H128: 935536593.8 | I128: =G128-H128 -> -262595896.7 | J128: =IF(I128=0,"",I128/H128) -> -0.2806901392 | K128: =K129+K132+K146 -> 1247382125
A129: Executive and council | C129: =SUM(C130:C131) -> 117397847.6 | D129: 117003171.7 | E129: 126397378 | F129: 12347375.64 | G129: 86778691.8 | H129: 94798033.5 | I129: -8019341.7 | J129: -0.08459396681 | K129: 126397378
A130: Mayor and Council | C130: 76667592.01 | D130: 81937773.72 | E130: 94525624 | F130: 9846437.03 | G130: 63478924.01 | H130: =E130/12*9 -> 70894218 | I130: -7415293.99 | J130: -0.1045965976 | K130: =E130 -> 94525624
A131: Municipal Manager, Town Secretary and Chief Executive | C131: 40730255.64 | D131: 35065398.01 | E131: 31871754 | F131: 2500938.61 | G131: 23299767.79 | H131: 23903815.5 | I131: -604047.71 | J131: -0.02526992856 | K131: 31871754
A132: Finance and administration | C132: =SUM(C133:C145) -> 1386457371 | D132: 1077460435 | E132: 1098210183 | F132: 70277721.68 | G132: 575247676.8 | H132: 823657637.2 | I132: -248409960.4 | J132: -0.3015937074 | K132: =SUM(K133:K145) -> 1098210183
A133: Administrative and Corporate Support | C133: 48520851.24 | D133: 60503138.97 | E133: 55352704 | F133: 3633385.87 | G133: 37683964.75 | H133: =E133/12*9 -> 41514528 | I133: -3830563.25 | J133: -0.0922704276 | K133: =E133 -> 55352704
A134: Asset Management | C134: 62056116.67 | D134: 64914782.56 | E134: 67334696 | F134: 5248040.08 | G134: 50919579.83 | H134: 50501022 | I134: 418557.83 | J134: 0.00828810613 | K134: 67334696
A135: Finance | C135: 810749316.7 | D135: 541319059.7 | E135: 574898078 | F135: 20615858.3 | G135: 185156296.6 | H135: 431173558.5 | I135: -246017261.9 | J135: -0.5705759481 | K135: 574898078
A136: Fleet Management | C136: 0 | E136: 0 | I136: 0
A137: Human Resources | C137: 78065597.33 | D137: 120049117.5 | E137: 83147794 | F137: 4410634.02 | G137: 45017344.17 | H137: =E137/12*9 -> 62360845.5 | I137: -17343501.33 | J137: -0.2781152371 | K137: =E137 -> 83147794
A138: Information Technology | C138: 41373957.4 | D138: 32962041.95 | E138: 42814950 | F138: 3131016.71 | G138: 20614448.47 | H138: 32111212.5 | I138: -11496764.03 | J138: -0.3580295833 | K138: 42814950
A139: Legal Services | C139: 13829269.89 | D139: 16293851.43 | E139: 17784474 | F139: 1710713.2 | G139: 8878615.17 | H139: 13338355.5 | I139: -4459740.33 | J139: -0.3343545859 | K139: 17784474
A140: Marketing, Customer Relations, Publicity and Media Co-ordination | C140: 16349277.73 | D140: 14978962.98 | E140: 16956797 | F140: 1315413.98 | G140: 13014338.75 | H140: 12717597.75 | I140: 296741 | J140: 0.02333310157 | K140: =E140 -> 16956797
A141: Property Services | C141: 66799138.26 | D141: 59734838.36 | E141: 50805709 | F141: 5214503.7 | G141: 49206457.66 | H141: 38104281.75 | I141: 11102175.91 | J141: 0.2913629493 | K141: 50805709
A142: Risk Management | C142: 0 | E142: 0 | H142: 0 | I142: 0
A143: Security Services | C143: 184663244.6 | D143: 120933820.1 | E143: 125016232 | F143: 20485274.37 | G143: 119094539 | H143: 93762174 | I143: 25332365.01 | J143: 0.2701768094 | K143: =E143 -> 125016232
A144: Supply Chain Management | C144: 64050601.54 | D144: 45770821.54 | E144: 64098749 | F144: 4512881.45 | G144: 45662092.44 | H144: 48074061.75 | I144: -2411969.31 | J144: -0.05017194766 | K144: 64098749
A145: Valuation Service | C145: 0 | E145: 0 | I145: 0
A146: Internal audit | C146: =SUM(C147:C147) -> 16962222.89 | D146: 21775457.74 | E146: 22774564 | F146: 1151211.67 | G146: 10914328.41 | H146: 17080923 | I146: -6166594.59 | J146: -0.3610223282 | K146: =SUM(K147:K147) -> 22774564
A147: Governance Function | C147: 16962222.89 | D147: 21775457.74 | E147: 22774564 | F147: 1151211.67 | G147: 10914328.41 | H147: =E147/12*9 -> 17080923 | I147: -6166594.59 | J147: -0.3610223282 | K147: =E147 -> 22774564
A148: Community and public safety | C148: =C149+C171+C177+C186+C189 -> 563692276 | D148: 549083301.6 | E148: 601750011.3 | F148: 47411099.34 | G148: 419669600.5 | H148: 451312508.5 | I148: -31642907.98 | J148: -0.07011307549 | K148: =K149+K171+K177+K186+K189 -> 601750011.3
A149: Community and social services | C149: =SUM(C150:C170) -> 149092712.5 | D149: 138323594.9 | E149: 121773362 | F149: 11124822.78 | G149: 102844368.5 | H149: 91330021.5 | I149: 11514347.04 | J149: 0.1260740647 | K149: =SUM(K150:K170) -> 121773362
A150: Aged Care | C150: 556.83 | D150: 16610.15 | E150: 6609 | F150: 43.33 | G150: 411.74 | H150: =E150/12*9 -> 4956.75 | I150: -4545.01 | J150: -0.9169334746 | K150: =E150 -> 6609
A151: Agricultural | C151: 0 | H151: 0 | I151: 0
A152: Animal Care and Diseases | C152: 1400050.2 | D152: 1482653.13 | E152: 1482653 | H152: 1111989.75 | I152: -1111989.75 | J152: -1 | K152: =E152 -> 1482653
A153: Cemeteries, Funeral Parlours and Crematoriums | C153: 26495873.82 | D153: 28695970.24 | E153: 28749333 | F153: 2275547.93 | G153: 22033254.46 | H153: 21561999.75 | I153: 471254.71 | J153: 0.02185579795 | K153: =E153 -> 28749333
A154: Child Care Facilities | C154: 0 | H154: 0 | I154: 0
A155: Community Halls and Facilities | C155: 45190957.96 | D155: 15871751.88 | E155: 13058600 | F155: 2470493.31 | G155: 21582703.81 | H155: 9793950 | I155: 11788753.81 | J155: 1.203677149 | K155: =E155 -> 13058600
A156: Consumer Protection | C156: 0 | I156: 0
A157: Cultural Matters | C157: 0 | I157: =G157-H157 -> 0 | J157: =IF(I157=0,"",I157/H157) -> 
A158: Disaster Management | C158: 0 | I158: =G158-H158 -> 0 | J158: =IF(I158=0,"",I158/H158) -> 
A159: Education | C159: 0 | I159: =G159-H159 -> 0 | J159: =IF(I159=0,"",I159/H159) -> 
A160: Indigenous and Customary Law | C160: 0 | I160: 0
A161: Industrial Promotion | C161: 0 | I161: 0
A162: Language Policy | C162: 0 | I162: 0
A163: Libraries and Archives | C163: 63852761.41 | D163: 76962358.47 | E163: 66921314 | F163: 5505947.04 | G163: 50797833.44 | H163: =E163/12*9 -> 50190985.5 | I163: 606847.94 | J163: 0.01209077554 | K163: =E163 -> 66921314
A164: Literacy Programmes | C164: 0 | I164: 0
A165: Media Services | C165: 0 | I165: 0
A166: Museums and Art Galleries | C166: 7430643.27 | D166: 6232282.659 | E166: 6381471 | F166: 512063.37 | G166: 5561463.94 | H166: =E166/12*9 -> 4786103.25 | I166: 775360.69 | J166: 0.1620024996 | K166: =E166 -> 6381471
A167: Population Development | C167: 4714883.87 | D167: 9061968.331 | E167: 5173382 | F167: 360727.8 | G167: 2864402.59 | H167: 3880036.5 | I167: -1015633.91 | J167: -0.2617588546 | K167: 5173382
A168: Provincial Cultural Matters | C168: 0 | I168: 0
A169: Theatres | C169: 6985.16 | G169: 4298.56 | I169: 4298.56
A170: Zoo's | I170: 0
A171: Sport and recreation | C171: =SUM(C172:C176) -> 121244913.6 | D171: 133116283.9 | E171: 146879207 | F171: 11187362.24 | G171: 102832731.9 | H171: 110159405.2 | I171: -7326673.36 | J171: -0.06650973962 | K171: 146879207
A172: Beaches and Jetties | I172: 0
A173: Casinos, Racing, Gambling, Wagering | I173: 0
A174: Community Parks (including Nurseries) | C174: 49055094.57 | D174: 57138463.6 | E174: 68466358 | F174: 4207117.24 | G174: 43394951.72 | H174: =E174/12*9 -> 51349768.5 | I174: -7954816.78 | J174: -0.154914365 | K174: =E174 -> 68466358
A175: Recreational Facilities | C175: 72189819.07 | D175: 75977820.29 | E175: 76976845 | F175: 6980245 | G175: 59437780.17 | H175: 57732633.75 | I175: 1705146.42 | J175: 0.0295352266 | K175: 76976845
A176: Sports Grounds and Stadiums | E176: 1436004 | H176: 1077003 | I176: -1077003 | J176: -1 | K176: =E176 -> 1436004
A177: Public safety | C177: =SUM(C178:C185) -> 209002717.6 | D177: 211547136.6 | E177: 231926410 | F177: 15309708.11 | G177: 156462634.8 | H177: 173944807.5 | I177: -17482172.69 | J177: -0.1005041366 | K177: 231926410
A178: Civil Defence | C178: 14573432.22 | D178: 9112937.443 | E178: 18750340 | F178: 140777.2 | G178: 10917785.92 | H178: =E178/12*9 -> 14062755 | I178: -3144969.08 | J178: -0.2236381904 | K178: =E178 -> 18750340
A179: Cleansing | C179: 0 | I179: 0
A180: Control of Public Nuisances | C180: 0 | I180: =G180-H180 -> 0 | J180: =IF(I180=0,"",I180/H180) -> 
A181: Fencing and Fences | C181: 0 | I181: 0
A182: Fire Fighting and Protection | C182: 107850131.8 | D182: 97784309.23 | E182: 128617813 | F182: 8622378.33 | G182: 86666876.48 | H182: =E182/12*9 -> 96463359.75 | I182: =G182-H182 -> -9796483.27 | J182: =(IF(I182=0,"",I182/H182))+-0.127853536864101 -> -0.2294100584 | K182: =E182 -> 128617813
A183: Licensing and Control of Animals | C183: 0 | I183: =G183-H183 -> 0 | J183: =IF(I183=0,"",I183/H183) -> 
A184: Police Forces, Traffic and Street Parking Control | C184: 86579153.62 | D184: 104649889.9 | E184: 84558257 | F184: 6546552.58 | G184: 58877972.41 | H184: =E184/12*9 -> 63418692.75 | I184: =G184-H184 -> -4540720.34 | J184: =IF(I184=0,"",I184/H184) -> -0.07159908448 | K184: =E184 -> 84558257
A185: Pounds | I185: 0
A186: Housing | C186: =SUM(C187:C188) -> 74912129 | D186: 50925986.88 | E186: 89116012.3 | F186: 9082655.88 | G186: 50207155.27 | H186: 66837009.23 | I186: =G186-H186 -> -16629853.95 | J186: =IF(I186=0,"",I186/H186) -> -0.2488120601 | K186: =SUM(K187:K188) -> 89116012.3
A187: Housing | C187: 74912129 | D187: 50925986.88 | E187: 89116012.3 | F187: 9082655.88 | G187: 50207155.27 | H187: =E187/12*9 -> 66837009.23 | I187: =G187-H187 -> -16629853.95 | J187: =IF(I187=0,"",I187/H187) -> -0.2488120601 | K187: =E187 -> 89116012.3
A188: Informal Settlements | I188: =G188-H188 -> 0 | J188: =IF(I188=0,"",I188/H188) -> 
A189: Health | C189: =SUM(C190:C196) -> 9439803.22 | D189: 15170299.41 | E189: 12055020 | F189: 706550.33 | G189: 7322709.99 | H189: 9041265 | I189: -1718555.01 | J189: -0.1900790442 | K189: 12055020
A190: Ambulance | I190: 0
A191: Health Services | C191: 9439803.22 | D191: 15170299.41 | E191: 12055020 | F191: 706550.33 | G191: 7322709.99 | H191: =E191/12*9 -> 9041265 | I191: -1718555.01 | J191: -0.1900790442 | K191: =E191 -> 12055020
A192: =A70 -> Laboratory Services | I192: 0
A193: Food Control | I193: =G193-H193 -> 0 | J193: =IF(I193=0,"",I193/H193) -> 
A194: Health Surveillance and Prevention of Communicable Diseases including immunizations | I194: =G194-H194 -> 0 | J194: =IF(I194=0,"",I194/H194) -> 
A195: Vector Control | I195: 0
A196: Chemical Safety | I196: 0
A197: Economic and environmental services | C197: =C198+C209+C214 -> 313304803.3 | D197: 421022081.1 | E197: 403576432.4 | F197: 27586896.67 | G197: 256427983.4 | H197: 302682324.3 | I197: -46254340.95 | J197: -0.1528148069 | K197: =K198+K209+K214 -> 403576432.4
A198: Planning and development | C198: =SUM(C199:C208) -> 69071779.38 | D198: 73618014.47 | E198: 76603372.41 | F198: 6463930.02 | G198: 51175956.76 | H198: 57452529.31 | I198: -6276572.547 | J198: -0.1092479761 | K198: 76603372.41
A199: Billboards | I199: 0
A200: Corporate Wide Strategic Planning (IDPs, LEDs) | C200: 6772978.5 | D200: 7512024.147 | E200: 7833974 | F200: 486852.39 | G200: 4585834.13 | H200: =E200/12*9 -> 5875480.5 | I200: -1289646.37 | J200: -0.2194963237 | K200: =E200 -> 7833974
A201: Central City Improvement District | C201: 0 | I201: 0
... 54 more rows

Sheet C3-FinPerf V
A1: =muni& " - "&S71C& " - "&date -> KZN225 Msunduzi - Table C3 Consolidated Monthly Budget Statement - Financial Performance (revenue and expenditure by municipal vote) - Q3 Third Quarter
A2: =Vdesc -> Vote Description | B2: =head27 -> Ref | C2: =Head1 -> 2020/21 | D2: =Head2 -> Budget Year 2021/22
C3: =Head5 -> Audited Outcome | D3: =Head6 -> Original Budget | E3: =Head7 -> Adjusted Budget | F3: =Head38 -> Monthly actual | G3: =Head39 -> YearTD actual | H3: =Head40 -> YearTD budget | I3: =Head41 -> YTD variance | J3: =Head41 -> YTD variance | K3: =Head8 -> Full Year Forecast
A4: R thousands | J4: %
A5: Revenue by Vote | B5: 1
A6: ='Org structure'!A2 -> Vote 1 - City Manager | C6: ='C3C'!C6 -> 316680.28 | D6: ='C3C'!D6 -> 62714.86912 | E6: ='C3C'!E6 -> 62714.86912 | F6: ='C3C'!F6 -> 0 | G6: ='C3C'!G6 -> 0 | H6: ='C3C'!H6 -> 47036.15184 | I6: =G6-H6 -> -47036.15184 | J6: =IF(I6=0,"",I6/H6) -> -1 | K6: ='C3C'!K6 -> 62713.86912
A7: ='Org structure'!A3 -> Vote 2 - City Finance | C7: ='C3C'!C11 -> 1673384926 | D7: ='C3C'!D11 -> 1955891051 | E7: ='C3C'!E11 -> 1955891051 | F7: ='C3C'!F11 -> 188058072.3 | G7: ='C3C'!G11 -> 1364257595 | H7: ='C3C'!H11 -> 1466918288 | I7: =G7-H7 -> -102660693 | J7: =IF(I7=0,"",I7/H7) -> -0.06998392057 | K7: ='C3C'!K11 -> 1955891051
A8: ='Org structure'!A4 -> Vote 3 - Corporate Services | C8: ='C3C'!C22 -> 198749941.6 | D8: ='C3C'!D22 -> 210662798.7 | E8: ='C3C'!E22 -> 215530797.8 | F8: ='C3C'!F22 -> 27895347.18 | G8: ='C3C'!G22 -> 146756459.9 | H8: ='C3C'!H22 -> 161648098.3 | I8: -14891638.4 | J8: -0.09212380814 | K8: ='C3C'!K22 -> 215530797.8
A9: ='Org structure'!A5 -> Vote 4 - Community Services and Social Equity | C9: ='C3C'!C33 -> 5947908.75 | D9: ='C3C'!D33 -> 6094104.853 | E9: ='C3C'!E33 -> 6094104.853 | F9: ='C3C'!F33 -> 123566.58 | G9: ='C3C'!G33 -> 2742061 | H9: ='C3C'!H33 -> 4570578.64 | I9: -1828517.64 | J9: -0.4000626144 | K9: ='C3C'!K33 -> 6094104.853
A10: ='Org structure'!A6 -> Vote 5 - Infrastructure Services | C10: ='C3C'!C44 -> 3899901539 | D10: ='C3C'!D44 -> 4738511544 | E10: ='C3C'!E44 -> 4770175624 | F10: ='C3C'!F44 -> 366637438.8 | G10: ='C3C'!G44 -> 3251188944 | H10: ='C3C'!H44 -> 3577631718 | I10: -326442774.2 | J10: -0.0912454942 | K10: ='C3C'!K44 -> 4770175624
A11: ='Org structure'!A7 -> Vote 6 - Sustainable Development and City Enterprises | C11: ='C3C'!C55 -> 238738183.7 | D11: ='C3C'!D55 -> 208349782 | E11: ='C3C'!E55 -> 285433158.8 | F11: ='C3C'!F55 -> 5890747.84 | G11: ='C3C'!G55 -> 62465562.14 | H11: ='C3C'!H55 -> 214074869.1 | I11: -151609307 | J11: -0.7082069353 | K11: ='C3C'!K55 -> 285433158.8
A12: ='Org structure'!A8 -> Vote 7 - [NAME OF VOTE 7] | C12: ='C3C'!C66 -> 0 | D12: ='C3C'!D66 -> 0 | E12: ='C3C'!E66 -> 0 | F12: ='C3C'!F66 -> 0 | G12: ='C3C'!G66 -> 0 | H12: ='C3C'!H66 -> 0 | I12: 0 | K12: ='C3C'!K66 -> 0
A13: ='Org structure'!A9 -> Vote 8 - [NAME OF VOTE 8] | C13: ='C3C'!C77 -> 0 | D13: ='C3C'!D77 -> 0 | E13: ='C3C'!E77 -> 0 | F13: ='C3C'!F77 -> 0 | G13: ='C3C'!G77 -> 0 | H13: ='C3C'!H77 -> 0 | I13: 0 | K13: ='C3C'!K77 -> 0
A14: ='Org structure'!A10 -> Vote 9 - [NAME OF VOTE 9] | C14: ='C3C'!C88 -> 0 | D14: ='C3C'!D88 -> 0 | E14: ='C3C'!E88 -> 0 | F14: ='C3C'!F88 -> 0 | G14: ='C3C'!G88 -> 0 | H14: ='C3C'!H88 -> 0 | I14: 0 | K14: ='C3C'!K88 -> 0
A15: ='Org structure'!A11 -> Vote 10 - [NAME OF VOTE 10] | C15: ='C3C'!C99 -> 0 | D15: ='C3C'!D99 -> 0 | E15: ='C3C'!E99 -> 0 | F15: ='C3C'!F99 -> 0 | G15: ='C3C'!G99 -> 0 | H15: ='C3C'!H99 -> 0 | I15: 0 | K15: ='C3C'!K99 -> 0
A16: ='Org structure'!A12 -> Vote 11 - [NAME OF VOTE 11] | C16: ='C3C'!C110 -> 0 | D16: ='C3C'!D110 -> 0 | E16: ='C3C'!E110 -> 0 | F16: ='C3C'!F110 -> 0 | G16: ='C3C'!G110 -> 0 | H16: ='C3C'!H110 -> 0 | I16: 0 | K16: ='C3C'!K110 -> 0
A17: ='Org structure'!A13 -> Vote 12 - [NAME OF VOTE 12] | C17: ='C3C'!C121 -> 0 | D17: ='C3C'!D121 -> 0 | E17: ='C3C'!E121 -> 0 | F17: ='C3C'!F121 -> 0 | G17: ='C3C'!G121 -> 0 | H17: ='C3C'!H121 -> 0 | I17: 0 | K17: ='C3C'!K121 -> 0
A18: ='Org structure'!A14 -> Vote 13 - [NAME OF VOTE 13] | C18: ='C3C'!C132 -> 0 | D18: ='C3C'!D132 -> 0 | E18: ='C3C'!E132 -> 0 | F18: ='C3C'!F132 -> 0 | G18: ='C3C'!G132 -> 0 | H18: ='C3C'!H132 -> 0 | I18: 0 | K18: ='C3C'!K132 -> 0
A19: ='Org structure'!A15 -> Vote 14 - [NAME OF VOTE 14] | C19: ='C3C'!C143 -> 0 | D19: ='C3C'!D143 -> 0 | E19: ='C3C'!E143 -> 0 | F19: ='C3C'!F143 -> 0 | G19: ='C3C'!G143 -> 0 | H19: ='C3C'!H143 -> 0 | I19: 0 | K19: ='C3C'!K143 -> 0
A20: ='Org structure'!A16 -> Vote 15 - [NAME OF VOTE 15] | C20: ='C3C'!C154 -> 0 | D20: ='C3C'!D154 -> 0 | E20: ='C3C'!E154 -> 0 | F20: ='C3C'!F154 -> 0 | G20: ='C3C'!G154 -> 0 | H20: ='C3C'!H154 -> 0 | I20: 0 | K20: ='C3C'!K154 -> 0
A21: Total Revenue by Vote | B21: 2 | C21: =SUM(C6:C20) -> 6017039179 | D21: =SUM(D6:D20) -> 7119571995 | E21: 7233187451 | F21: 588605172.7 | G21: 4827410622 | H21: 5424890588 | I21: -597479966.3 | J21: -0.1101367772 | K21: =SUM(K6:K20) -> 7233187450
A23: Expenditure by Vote | B23: 1
A24: ='Org structure'!A2 -> Vote 1 - City Manager | C24: ='C3C'!C168 -> 144293564.4 | D24: ='C3C'!D168 -> 149906309.9 | E24: ='C3C'!E168 -> 166544366 | F24: ='C3C'!F168 -> 15349668.01 | G24: ='C3C'!G168 -> 110123033.5 | H24: ='C3C'!H168 -> 124908274.5 | I24: =G24-H24 -> -14785241.01 | J24: =IF(I24=0,"",I24/H24) -> -0.1183687876 | K24: ='C3C'!K168 -> 166544366
A25: ='Org structure'!A3 -> Vote 2 - City Finance | C25: ='C3C'!C179 -> 951383518.4 | D25: ='C3C'!D179 -> 646309781.6 | E25: ='C3C'!E179 -> 701273610 | F25: ='C3C'!F179 -> 31123730.83 | G25: ='C3C'!G179 -> 288361014.8 | H25: ='C3C'!H179 -> 525955207.5 | I25: -237594192.7 | J25: -0.4517384547 | K25: ='C3C'!K179 -> 701273610
A26: ='Org structure'!A4 -> Vote 3 - Corporate Services | C26: ='C3C'!C190 -> 848301582.7 | D26: ='C3C'!D190 -> 785013601.5 | E26: ='C3C'!E190 -> 799093791 | F26: ='C3C'!F190 -> 71824268.23 | G26: ='C3C'!G190 -> 596026951.7 | H26: ='C3C'!H190 -> 599320343.2 | I26: -3293391.53 | J26: -0.005495210645 | K26: ='C3C'!K190 -> 799093791
A27: ='Org structure'!A5 -> Vote 4 - Community Services and Social Equity | C27: ='C3C'!C201 -> 161898503.3 | D27: ='C3C'!D201 -> 195537113.7 | E27: ='C3C'!E201 -> 167132195 | F27: ='C3C'!F201 -> 9974470.29 | G27: ='C3C'!G201 -> 90270864.83 | H27: ='C3C'!H201 -> 125349146.2 | I27: -35078281.42 | J27: -0.2798445978 | K27: ='C3C'!K201 -> 167132195
A28: ='Org structure'!A6 -> Vote 5 - Infrastructure Services | C28: ='C3C'!C212 -> 4054928137 | D28: ='C3C'!D212 -> 4437107376 | E28: ='C3C'!E212 -> 4465095563 | F28: ='C3C'!F212 -> 317961130.3 | G28: ='C3C'!G212 -> 2954239282 | H28: ='C3C'!H212 -> 3348821672 | I28: -394582389.9 | J28: -0.1178272325 | K28: ='C3C'!K212 -> 4465095563
A29: ='Org structure'!A7 -> Vote 6 - Sustainable Development and City Enterprises | C29: ='C3C'!C223 -> 254521651.3 | D29: ='C3C'!D223 -> 224901217.9 | E29: ='C3C'!E223 -> 261744691.7 | F29: ='C3C'!F223 -> 23655317.88 | G29: ='C3C'!G223 -> 184814459.9 | H29: ='C3C'!H223 -> 196308518.8 | I29: -11494058.89 | J29: -0.05855099393 | K29: ='C3C'!K223 -> 261744691.7
A30: ='Org structure'!A8 -> Vote 7 - [NAME OF VOTE 7] | C30: ='C3C'!C234 -> 0 | D30: ='C3C'!D234 -> 0 | E30: ='C3C'!E234 -> 0 | F30: ='C3C'!F234 -> 0 | G30: ='C3C'!G234 -> 0 | H30: ='C3C'!H234 -> 0 | I30: 0 | K30: ='C3C'!K234 -> 0
A31: ='Org structure'!A9 -> Vote 8 - [NAME OF VOTE 8] | C31: ='C3C'!C245 -> 0 | D31: ='C3C'!D245 -> 0 | E31: ='C3C'!E245 -> 0 | F31: ='C3C'!F245 -> 0 | G31: ='C3C'!G245 -> 0 | H31: ='C3C'!H245 -> 0 | I31: 0 | K31: ='C3C'!K245 -> 0
A32: ='Org structure'!A10 -> Vote 9 - [NAME OF VOTE 9] | C32: ='C3C'!C256 -> 0 | D32: ='C3C'!D256 -> 0 | E32: ='C3C'!E256 -> 0 | F32: ='C3C'!F256 -> 0 | G32: ='C3C'!G256 -> 0 | H32: ='C3C'!H256 -> 0 | I32: 0 | K32: ='C3C'!K256 -> 0
A33: ='Org structure'!A11 -> Vote 10 - [NAME OF VOTE 10] | C33: ='C3C'!C267 -> 0 | D33: ='C3C'!D267 -> 0 | E33: ='C3C'!E267 -> 0 | F33: ='C3C'!F267 -> 0 | G33: ='C3C'!G267 -> 0 | H33: ='C3C'!H267 -> 0 | I33: 0 | J33: =IF(I33=0,"",I33/H33) ->  | K33: ='C3C'!K267 -> 0
A34: ='Org structure'!A12 -> Vote 11 - [NAME OF VOTE 11] | C34: ='C3C'!C278 -> 0 | D34: ='C3C'!D278 -> 0 | E34: ='C3C'!E278 -> 0 | F34: ='C3C'!F278 -> 0 | G34: ='C3C'!G278 -> 0 | H34: ='C3C'!H278 -> 0 | I34: 0 | J34: =IF(I34=0,"",I34/H34) ->  | K34: ='C3C'!K278 -> 0
A35: ='Org structure'!A13 -> Vote 12 - [NAME OF VOTE 12] | C35: ='C3C'!C289 -> 0 | D35: ='C3C'!D289 -> 0 | E35: ='C3C'!E289 -> 0 | F35: ='C3C'!F289 -> 0 | G35: ='C3C'!G289 -> 0 | H35: ='C3C'!H289 -> 0 | I35: 0 | J35: =IF(I35=0,"",I35/H35) ->  | K35: ='C3C'!K289 -> 0
A36: ='Org structure'!A14 -> Vote 13 - [NAME OF VOTE 13] | C36: ='C3C'!C300 -> 0 | D36: ='C3C'!D300 -> 0 | E36: ='C3C'!E300 -> 0 | F36: ='C3C'!F300 -> 0 | G36: ='C3C'!G300 -> 0 | H36: ='C3C'!H300 -> 0 | I36: 0 | J36: =IF(I36=0,"",I36/H36) ->  | K36: ='C3C'!K300 -> 0
A37: ='Org structure'!A15 -> Vote 14 - [NAME OF VOTE 14] | C37: ='C3C'!C311 -> 0 | D37: ='C3C'!D311 -> 0 | E37: ='C3C'!E311 -> 0 | F37: ='C3C'!F311 -> 0 | G37: ='C3C'!G311 -> 0 | H37: ='C3C'!H311 -> 0 | I37: 0 | J37: =IF(I37=0,"",I37/H37) ->  | K37: ='C3C'!K311 -> 0
A38: ='Org structure'!A16 -> Vote 15 - [NAME OF VOTE 15] | C38: ='C3C'!C322 -> 0 | D38: ='C3C'!D322 -> 0 | E38: ='C3C'!E322 -> 0 | F38: ='C3C'!F322 -> 0 | G38: ='C3C'!G322 -> 0 | H38: ='C3C'!H322 -> 0 | I38: 0 | K38: ='C3C'!K322 -> 0
A39: Total Expenditure by Vote | B39: 2 | C39: =SUM(C24:C38) -> 6415326957 | D39: =SUM(D24:D38) -> 6438775401 | E39: 6560884217 | F39: 469888585.5 | G39: 4223835607 | H39: 4920663163 | I39: -696827555.4 | J39: =IF(I39=0,"",I39/H39) -> -0.1416125291 | K39: =SUM(K24:K38) -> 6560884217
A40: =result -> Surplus/ (Deficit) for the year | B40: 2 | C40: =C21-C39 -> -398287778.2 | D40: 680796594.7 | E40: 672303234.3 | F40: 118716587.2 | G40: 603575014.8 | H40: 504227425.7 | I40: =I21-I39 -> 99347589.1 | J40: =IF(I40=0,"",I40/H40) -> 0.1970293245 | K40: =K21-K39 -> 672303233.3
A41: =head27a -> References
A42: 1. Insert 'Vote'; e.g. Department, if different to standard classification structure
A43: 2. Must reconcile to Monthly Budget Statement - Financial Performance Statement (standard classification)

Sheet C3C
A1: =muni& " - "&S71C& " - "&"A"& " - "&date -> KZN225 Msunduzi - Table C3 Consolidated Monthly Budget Statement - Financial Performance (revenue and expenditure by municipal vote) - A - Q3 Third Quarter
A2: =Vdesc -> Vote Description | B2: =head27 -> Ref | C2: =Head1 -> 2020/21 | D2: =Head2 -> Budget Year 2021/22 | L2: =Head4 -> 
A3: R thousand | C3: =Head5 -> Audited Outcome | D3: =Head6 -> Original Budget | E3: =Head7 -> Adjusted Budget | F3: =Head38 -> Monthly actual | G3: =Head39 -> YearTD actual | H3: =Head40 -> YearTD budget | I3: =Head41 -> YTD variance | J3: =Head41 -> YTD variance | K3: =Head8 -> Full Year Forecast | L3: =Head12 -> Forecast 2010/11 | M3: =Head13 -> Forecast 2011/12 | N3: =Head14 -> Forecast 2012/13 | O3: =Head15 -> Forecast 2013/14 | P3: =Head16 -> Forecast 2014/15 | Q3: =Head17 -> Forecast 2015/16 | R3: =Head18 -> Forecast 2016/17 | S3: =Head19 -> Forecast 2017/18 | T3: =Head20 -> Forecast 2018/19 | U3: =Head21 -> Forecast 2019/20 | V3: =Head22 -> Forecast 2020/21 | W3: =Head23 -> Forecast 2021/22
J4: %
A5: Revenue by Vote | B5: 1
A6: ='Org structure'!A2 -> Vote 1 - City Manager | C6: =SUM(C7:C10) -> 316680.28 | D6: 62714.86912 | E6: 62714.86912 | F6: 0 | G6: 0 | H6: 47036.15184 | I6: =G6-H6 -> -47036.15184 | J6: =IF(I6=0,"",I6/H6) -> -1 | K6: =SUM(K7:K10) -> 62713.86912
A7: ='Org structure'!E3 -> 1.1 - Internal Audit and Compliance | C7: 2649.84 | I7: 0
A8: ='Org structure'!E4 -> 1.2 - Office of the City Manager | C8: 1290.14 | D8: 62714.86912 | E8: 62714.86912 | G8: 0 | H8: =E8/12*9 -> 47036.15184 | I8: -47036.15184 | J8: -1 | K8: =IF(D8=0,C8+J8,D8+J8) -> 62713.86912
A9: ='Org structure'!E5 -> 1.3 - Political Support | C9: 12674.79 | I9: 0
A10: ='Org structure'!E6 -> 1.4 - Strategic Planning | C10: 300065.51 | I10: 0
A11: ='Org structure'!A3 -> Vote 2 - City Finance | C11: =SUM(C12:C21) -> 1673384926 | D11: 1955891051 | E11: 1955891051 | F11: 188058072.3 | G11: 1364257595 | H11: 1466918288 | I11: -102660693 | J11: -0.06998392057 | K11: =SUM(K12:K21) -> 1955891051
A12: ='Org structure'!E14 -> 2.1 - Asset Management | C12: 7754458.16 | D12: 16379253.87 | E12: 16379253.87 | F12: -1174710.45 | G12: 15574460.41 | H12: =E12/12*9 -> 12284440.41 | I12: 3290020.005 | J12: 0.2678200957 | K12: =E12 -> 16379253.87
A13: ='Org structure'!E15 -> 2.2 - Budget and Treasury Management | C13: 385609372.7 | D13: 384922702.2 | E13: 384922702.2 | F13: 85935951.19 | G13: 347416430.2 | H13: 288692026.6 | I13: 58724403.51 | J13: 0.203415398 | K13: 384922702.2
A14: ='Org structure'!E16 -> 2.3 - Expenditure Management | C14: 1233.72 | D14: 353276.725 | E14: 353276.725 | F14: -732.06 | G14: -732.06 | H14: 264957.5438 | I14: -265689.6038 | J14: -1.002762933 | K14: 353276.725
A15: ='Org structure'!E17 -> 2.4 - Revenue Management | C15: 1279910171 | D15: 1553940576 | E15: 1553940576 | F15: 103293505.4 | G15: 1001183451 | H15: 1165455432 | I15: -164271980.4 | J15: -0.1409508901 | K15: 1553940576
A16: ='Org structure'!E18 -> 2.5 - Supply Chain Management | C16: 109689.85 | D16: 295242.5403 | E16: 295242.5403 | F16: 4058.26 | G16: 83985.46 | H16: 221431.9052 | I16: -137446.4452 | J16: -0.6207165363 | K16: 295242.5403
A17: ='Org structure'!E19 -> 0 | I17: 0
A18: ='Org structure'!E20 -> 0 | I18: 0
A19: ='Org structure'!E21 -> 0 | I19: 0
A20: ='Org structure'!E22 -> 0 | I20: 0
A21: ='Org structure'!E23 -> 0 | I21: 0
A22: ='Org structure'!A4 -> Vote 3 - Corporate Services | C22: =SUM(C23:C32) -> 198749941.6 | D22: 210662798.7 | E22: 215530797.8 | F22: 27895347.18 | G22: 146756459.9 | H22: 161648098.3 | I22: -14891638.4 | J22: -0.09212380814 | K22: =SUM(K23:K32) -> 215530797.8
A23: ='Org structure'!E25 -> 3.1 - Area Based Management | C23: 185977.7 | D23: 1070442.527 | E23: 1070442.527 | F23: 63593.98 | G23: 330170.44 | H23: =E23/12*9 -> 802831.8953 | I23: -472661.4553 | J23: -0.5887427469 | K23: =E23 -> 1070442.527
A24: ='Org structure'!E26 -> 3.2 - Public Safety, Emergency Services and Enforcement | C24: 19855223.65 | D24: 3970362.811 | E24: 3970362.811 | F24: 8556033.16 | G24: 11312355.35 | H24: 2977772.108 | I24: 8334583.242 | J24: 2.798932537 | K24: 3970362.811
A25: ='Org structure'!E27 -> 3.3 - Recreation and Facilities | C25: 24190086.01 | D25: 28932114.94 | E25: 33800114 | F25: 3454862.24 | G25: 22127316.66 | H25: 25350085.5 | I25: -3222768.84 | J25: -0.1271304919 | K25: 33800114
A26: ='Org structure'!E28 -> 3.4 - Waste Management | C26: 154518654.3 | D26: 176689878.4 | E26: 176689878.4 | F26: 15820857.8 | G26: 112986617.5 | H26: 132517408.8 | I26: -19530791.34 | J26: -0.1473828346 | K26: 176689878.4
A27: ='Org structure'!E29 -> 0 | I27: 0
A28: ='Org structure'!E30 -> 0 | I28: 0
A29: ='Org structure'!E31 -> 0 | I29: 0
A30: ='Org structure'!E32 -> 0 | I30: 0
A31: ='Org structure'!E33 -> 0 | I31: 0
A32: ='Org structure'!E34 -> 0 | I32: 0
A33: ='Org structure'!A5 -> Vote 4 - Community Services and Social Equity | C33: =SUM(C34:C43) -> 5947908.75 | D33: 6094104.853 | E33: 6094104.853 | F33: 123566.58 | G33: 2742061 | H33: 4570578.64 | I33: -1828517.64 | J33: -0.4000626144 | K33: =SUM(K34:K43) -> 6094104.853
A34: ='Org structure'!E36 -> 4.1 - Human Resources Management | C34: 1989201.6 | D34: 2305119.778 | E34: 2305119.778 | F34: 55610.24 | G34: 1341417.97 | H34: =E34/12*9 -> 1728839.834 | I34: -387421.8636 | J34: -0.2240935546 | K34: =E34 -> 2305119.778
A35: ='Org structure'!E37 -> 4.2 - Information Technology | C35: 22555.09 | D35: 2123.870749 | E35: 2123.870749 | F35: 52.17 | G35: 475.62 | H35: 1592.903062 | I35: -1117.283062 | J35: -0.701413092 | K35: 2123.870749
A36: ='Org structure'!E38 -> 4.3 - Legal Services | C36: 2567.63 | D36: 270861.2043 | E36: 270861.2043 | F36: -12.95 | G36: 723.45 | H36: 203145.9032 | I36: -202422.4532 | J36: -0.9964387665 | K36: 270861.2043
A37: ='Org structure'!E39 -> 4.4 - Secretariat and Auxiliary Services | C37: 12247.85 | E37: 0 | F37: 0 | G37: 0 | H37: 0 | I37: 0 | K37: 0
A38: ='Org structure'!E40 -> 4.5 - General Manager: Corporate Service | C38: 3921336.58 | D38: 3516000 | E38: 3516000 | F38: 67917.12 | G38: 1399443.96 | H38: 2637000 | I38: -1237556.04 | J38: -0.4693045279 | K38: 3516000
A39: ='Org structure'!E41 -> 0 | I39: 0
A40: ='Org structure'!E42 -> 0 | I40: 0
A41: ='Org structure'!E43 -> 0 | I41: 0
A42: ='Org structure'!E44 -> 0 | I42: 0
A43: ='Org structure'!E45 -> 0 | I43: 0
A44: ='Org structure'!A6 -> Vote 5 - Infrastructure Services | C44: =SUM(C45:C54) -> 3899901539 | D44: 4738511544 | E44: 4770175624 | F44: 366637438.8 | G44: 3251188944 | H44: 3577631718 | I44: -326442774.2 | J44: -0.0912454942 | K44: =SUM(K45:K54) -> 4770175624
A45: ='Org structure'!E47 -> 5.1 - Electricity | C45: 2196601261 | D45: 3038086189 | E45: 3038086189 | F45: 199659506.1 | G45: 1967383498 | H45: =E45/12*9 -> 2278564641 | I45: -311181143.6 | J45: -0.1365689338 | K45: =E45 -> 3038086189
A46: ='Org structure'!E48 -> 5.2 - Project Management Office | C46: 6074552.06 | D46: 10034424 | E46: 6530996 | F46: 348903.29 | G46: 5153431.67 | H46: 4898247 | I46: 255184.67 | J46: 0.0520971421 | K46: 6530996
A47: ='Org structure'!E49 -> 5.3 - Roads and Transportation | C47: 234900598 | D47: 402254.1181 | E47: 50848333.16 | F47: 18754078.15 | G47: 119290049.1 | H47: 38136249.87 | I47: 81153799.2 | J47: 2.127996315 | K47: 50848333.16
A48: ='Org structure'!E50 -> 5.4 - Water and Sanitation | C48: 1462325010 | D48: 1689988677 | E48: 1674710106 | F48: 147874951.2 | G48: 1159361965 | H48: 1256032580 | I48: -96670614.4 | J48: -0.07696505328 | K48: 1674710106
A49: ='Org structure'!E51 -> 5.5 - General Manager: Infrastructure | C49: 118 | F49: 0 | G49: 0 | H49: =E49/12*8 -> 0 | I49: 0 | K49: 0
A50: ='Org structure'!E52 -> 0 | I50: 0
A51: ='Org structure'!E53 -> 0 | I51: 0
A52: ='Org structure'!E54 -> 0 | I52: 0
A53: ='Org structure'!E55 -> 0 | I53: 0
A54: ='Org structure'!E56 -> 0 | I54: 0
A55: ='Org structure'!A7 -> Vote 6 - Sustainable Development and City Enterprises | C55: =SUM(C56:C65) -> 238738183.7 | D55: 208349782 | E55: 285433158.8 | F55: 5890747.84 | G55: 62465562.14 | H55: 214074869.1 | I55: -151609307 | J55: -0.7082069353 | K55: =SUM(K56:K65) -> 285433158.8
A56: ='Org structure'!E58 -> 6.1 - City Entities | C56: 58692116.16 | D56: 64805333.87 | E56: 64611335 | F56: 1968824.03 | G56: 25603770.63 | H56: =E56/12*9 -> 48458501.25 | I56: =(G56-H56)+-3110418.74 -> -25965149.36 | J56: =(IF(I56=0,"",I56/H56))+-0.997977513087812 -> -1.533799891 | K56: =E56 -> 64611335
A57: ='Org structure'!E59 -> 6.2 - Development Services | C57: 607428.18 | D57: 465741.516 | E57: 4152473.53 | F57: 1233621.11 | G57: 8466032.04 | H57: 3114355.148 | I57: 5351676.893 | J57: 1.718390048 | K57: 4152473.53
A58: ='Org structure'!E60 -> 6.3 - Human Settlement Development | C58: 142494414.7 | D58: 104666074.6 | E58: 177256718.3 | F58: 2305949.32 | G58: 25976956.73 | H58: 132942538.7 | I58: -106965582 | J58: -0.8046001154 | K58: 177256718.3
A59: ='Org structure'!E61 -> 6.4 - Town Planning | C59: 36944224.7 | D59: 38412632.05 | E59: 39412632 | F59: 382353.38 | G59: 2418802.74 | H59: 29559474 | I59: -27140671.26 | J59: -0.9181716583 | K59: 39412632
A60: ='Org structure'!E62 -> 6.5 - General Manager: Sustainable Development and City Enterprises | E60: 0 | F60: 0 | G60: 0 | H60: =E60/12*8 -> 0 | I60: 0 | K60: 0
A61: ='Org structure'!E63 -> 0 | I61: 0
A62: ='Org structure'!E64 -> 0 | I62: 0
A63: ='Org structure'!E65 -> 0 | I63: 0
A64: ='Org structure'!E66 -> 0 | I64: =G64-H64 -> 0 | J64: =IF(I64=0,"",I64/H64) -> 
A65: ='Org structure'!E67 -> 0 | I65: 0
A66: ='Org structure'!A8 -> Vote 7 - [NAME OF VOTE 7] | C66: =SUM(C67:C76) -> 0 | D66: 0 | E66: 0 | F66: 0 | G66: 0 | H66: 0 | I66: 0 | K66: 0
A67: ='Org structure'!E69 -> 7.1 - [Name of sub-vote] | I67: 0
A68: ='Org structure'!E70 -> 0 | I68: 0
A69: ='Org structure'!E71 -> 0 | I69: 0
A70: ='Org structure'!E72 -> 0 | I70: 0
A71: ='Org structure'!E73 -> 0 | I71: 0
A72: ='Org structure'!E74 -> 0 | I72: 0
A73: ='Org structure'!E75 -> 0 | I73: 0
A74: ='Org structure'!E76 -> 0 | I74: 0
A75: ='Org structure'!E77 -> 0 | I75: 0
A76: ='Org structure'!E78 -> 0 | I76: 0
A77: ='Org structure'!A9 -> Vote 8 - [NAME OF VOTE 8] | C77: =SUM(C78:C87) -> 0 | D77: =SUM(D78:D87) -> 0 | E77: 0 | F77: 0 | G77: 0 | H77: 0 | I77: 0 | K77: 0
A78: ='Org structure'!E80 -> 8.1 - [Name of sub-vote] | I78: 0
A79: ='Org structure'!E81 -> 0 | I79: 0
A80: ='Org structure'!E82 -> 0 | I80: 0
A81: ='Org structure'!E83 -> 0 | I81: 0
A82: ='Org structure'!E84 -> 0 | I82: 0
A83: ='Org structure'!E85 -> 0 | I83: 0
A84: ='Org structure'!E86 -> 0 | I84: 0
A85: ='Org structure'!E87 -> 0 | I85: 0
A86: ='Org structure'!E88 -> 0 | I86: 0
A87: ='Org structure'!E89 -> 0 | I87: 0
A88: ='Org structure'!A10 -> Vote 9 - [NAME OF VOTE 9] | C88: =SUM(C89:C98) -> 0 | D88: =SUM(D89:D98) -> 0 | E88: 0 | F88: 0 | G88: 0 | H88: 0 | I88: 0 | K88: 0
A89: ='Org structure'!E91 -> 9.1 - [Name of sub-vote] | I89: 0
A90: ='Org structure'!E92 -> 0 | I90: 0
A91: ='Org structure'!E93 -> 0 | I91: 0
A92: ='Org structure'!E94 -> 0 | I92: 0
A93: ='Org structure'!E95 -> 0 | I93: 0
A94: ='Org structure'!E96 -> 0 | I94: 0
A95: ='Org structure'!E97 -> 0 | I95: 0
A96: ='Org structure'!E98 -> 0 | I96: 0
A97: ='Org structure'!E99 -> 0 | I97: 0
A98: ='Org structure'!E100 -> 0 | I98: 0
A99: ='Org structure'!A11 -> Vote 10 - [NAME OF VOTE 10] | C99: =SUM(C100:C109) -> 0 | D99: =SUM(D100:D109) -> 0 | E99: 0 | F99: 0 | G99: 0 | H99: 0 | I99: 0 | K99: 0
A100: ='Org structure'!E102 -> 10.1 - [Name of sub-vote] | I100: 0
A101: ='Org structure'!E103 -> 0 | I101: 0
A102: ='Org structure'!E104 -> 0 | I102: 0
A103: ='Org structure'!E105 -> 0 | I103: 0
A104: ='Org structure'!E106 -> 0 | I104: 0
A105: ='Org structure'!E107 -> 0 | I105: 0
A106: ='Org structure'!E108 -> 0 | I106: 0
A107: ='Org structure'!E109 -> 0 | I107: 0
A108: ='Org structure'!E110 -> 0 | I108: 0
A109: ='Org structure'!E111 -> 0 | I109: 0
A110: ='Org structure'!A12 -> Vote 11 - [NAME OF VOTE 11] | C110: =SUM(C111:C120) -> 0 | D110: =SUM(D111:D120) -> 0 | E110: 0 | F110: 0 | G110: 0 | H110: 0 | I110: 0 | K110: 0
A111: ='Org structure'!E113 -> 11.1 - [Name of sub-vote] | I111: 0
A112: ='Org structure'!E114 -> 0 | I112: 0
A113: ='Org structure'!E115 -> 0 | I113: 0
A114: ='Org structure'!E116 -> 0 | I114: 0
A115: ='Org structure'!E117 -> 0 | I115: 0
A116: ='Org structure'!E118 -> 0 | I116: 0
A117: ='Org structure'!E119 -> 0 | I117: 0
A118: ='Org structure'!E120 -> 0 | I118: 0
A119: ='Org structure'!E121 -> 0 | I119: 0
A120: ='Org structure'!E122 -> 0 | I120: 0
A121: ='Org structure'!A13 -> Vote 12 - [NAME OF VOTE 12] | C121: =SUM(C122:C131) -> 0 | D121: =SUM(D122:D131) -> 0 | E121: 0 | F121: 0 | G121: 0 | H121: 0 | I121: 0 | K121: 0
A122: ='Org structure'!E124 -> 12.1 - [Name of sub-vote] | I122: 0
A123: ='Org structure'!E125 -> 0 | I123: 0
A124: ='Org structure'!E126 -> 0 | I124: 0
A125: ='Org structure'!E127 -> 0 | I125: 0
A126: ='Org structure'!E128 -> 0 | I126: 0
A127: ='Org structure'!E129 -> 0 | I127: 0
A128: ='Org structure'!E130 -> 0 | I128: =G128-H128 -> 0 | J128: =IF(I128=0,"",I128/H128) -> 
A129: ='Org structure'!E131 -> 0 | I129: 0
A130: ='Org structure'!E132 -> 0 | I130: 0
A131: ='Org structure'!E133 -> 0 | I131: 0
A132: ='Org structure'!A14 -> Vote 13 - [NAME OF VOTE 13] | C132: =SUM(C133:C142) -> 0 | D132: =SUM(D133:D142) -> 0 | E132: 0 | F132: 0 | G132: 0 | H132: 0 | I132: 0 | K132: 0
A133: ='Org structure'!E135 -> 13.1 - [Name of sub-vote] | I133: 0
A134: ='Org structure'!E136 -> 0 | I134: 0
A135: ='Org structure'!E137 -> 0 | I135: 0
A136: ='Org structure'!E138 -> 0 | I136: 0
A137: ='Org structure'!E139 -> 0 | I137: 0
A138: ='Org structure'!E140 -> 0 | I138: 0
A139: ='Org structure'!E141 -> 0 | I139: 0
A140: ='Org structure'!E142 -> 0 | I140: 0
A141: ='Org structure'!E143 -> 0 | I141: 0
A142: ='Org structure'!E144 -> 0 | I142: 0
A143: ='Org structure'!A15 -> Vote 14 - [NAME OF VOTE 14] | C143: =SUM(C144:C153) -> 0 | D143: =SUM(D144:D153) -> 0 | E143: 0 | F143: 0 | G143: 0 | H143: 0 | I143: 0 | K143: 0
A144: ='Org structure'!E146 -> 14.1 - [Name of sub-vote] | I144: 0
A145: ='Org structure'!E147 -> 0 | I145: 0
A146: ='Org structure'!E148 -> 0 | I146: 0
A147: ='Org structure'!E149 -> 0 | I147: 0
A148: ='Org structure'!E150 -> 0 | I148: 0
A149: ='Org structure'!E151 -> 0 | I149: 0
A150: ='Org structure'!E152 -> 0 | I150: 0
A151: ='Org structure'!E153 -> 0 | I151: 0
A152: ='Org structure'!E154 -> 0 | I152: 0
A153: ='Org structure'!E155 -> 0 | I153: 0
A154: ='Org structure'!A16 -> Vote 15 - [NAME OF VOTE 15] | C154: =SUM(C155:C164) -> 0 | D154: =SUM(D155:D164) -> 0 | E154: 0 | F154: 0 | G154: 0 | H154: 0 | I154: 0 | K154: 0
A155: ='Org structure'!E157 -> 15.1 - [Name of sub-vote] | I155: 0
A156: ='Org structure'!E158 -> 0 | I156: 0
A157: ='Org structure'!E159 -> 0 | I157: 0
A158: ='Org structure'!E160 -> 0 | I158: 0
A159: ='Org structure'!E161 -> 0 | I159: 0
A160: ='Org structure'!E162 -> 0 | I160: 0
A161: ='Org structure'!E163 -> 0 | I161: 0
A162: ='Org structure'!E164 -> 0 | I162: 0
A163: ='Org structure'!E165 -> 0 | I163: 0
A164: ='Org structure'!E166 -> 0 | I164: 0 | L164: =SUM(L72:L75) -> 0 | M164: 0 | N164: 0 | O164: 0 | P164: 0 | Q164: 0 | R164: 0 | S164: 0 | T164: 0 | U164: 0 | V164: 0 | W164: 0
A165: Total Revenue by Vote | B165: 2 | C165: =C6+C11+C22+C33+C44+C55+C66+C77+C88+C99+C110+C121+C132+C143+C154 -> 6017039179 | D165: 7119571995 | E165: 7233187451 | F165: 588605172.7 | G165: 4827410622 | H165: 5424890588 | I165: -597479966.3 | J165: -0.1101367772 | K165: =K6+K11+K22+K33+K44+K55+K66+K77+K88+K99+K110+K121+K132+K143+K154 -> 7233187450
I166: 0
A167: Expenditure by Vote | B167: 1 | I167: 0
A168: ='Org structure'!A2 -> Vote 1 - City Manager | C168: =SUM(C169:C178) -> 144293564.4 | D168: 149906309.9 | E168: 166544366 | F168: 15349668.01 | G168: 110123033.5 | H168: 124908274.5 | I168: -14785241.01 | J168: -0.1183687876 | K168: =SUM(K169:K178) -> 166544366
A169: ='Org structure'!E3 -> 1.1 - Internal Audit and Compliance | C169: 16962222.89 | D169: 21775457.74 | E169: 22774564 | F169: 1151211.67 | G169: 10914328.41 | H169: =E169/12*9 -> 17080923 | I169: -6166594.59 | J169: -0.3610223282 | K169: =E169 -> 22774564
A170: ='Org structure'!E4 -> 1.2 - Office of the City Manager | C170: 40195404.76 | D170: 29733213.96 | E170: 31596319 | F170: 2898379.16 | G170: 23310547.84 | H170: 23697239.25 | I170: -386691.41 | J170: -0.01631799409 | K170: 31596319
A171: ='Org structure'!E5 -> 1.3 - Political Support | C171: 80362958.21 | D171: 90885614.01 | E171: 104339509 | F171: 10813224.79 | G171: 71312323.11 | H171: 78254631.75 | I171: -6942308.64 | J171: -0.08871434808 | K171: 104339509
A172: ='Org structure'!E6 -> 1.4 - Strategic Planning | C172: 6772978.5 | D172: 7512024.147 | E172: 7833974 | F172: 486852.39 | G172: 4585834.13 | H172: 5875480.5 | I172: -1289646.37 | J172: -0.2194963237 | K172: 7833974
A173: ='Org structure'!E7 -> 0 | F173: 0 | G173: 0 | I173: 0
A174: ='Org structure'!E8 -> 0 | I174: 0
A175: ='Org structure'!E9 -> 0 | I175: 0
A176: ='Org structure'!E10 -> 0 | I176: 0
A177: ='Org structure'!E11 -> 0 | I177: 0
A178: ='Org structure'!E12 -> 0 | I178: 0
A179: ='Org structure'!A3 -> Vote 2 - City Finance | C179: =SUM(C180:C189) -> 951383518.4 | D179: 646309781.6 | E179: 701273610 | F179: 31123730.83 | G179: 288361014.8 | H179: 525955207.5 | I179: -237594192.7 | J179: -0.4517384547 | K179: =SUM(K180:K189) -> 701273610
A180: ='Org structure'!E14 -> 2.1 - Asset Management | C180: 74248458.53 | D180: 72457420.13 | E180: 74095467 | F180: 6112000.54 | G180: 54496130.25 | H180: =E180/12*9 -> 55571600.25 | I180: -1075470 | J180: -0.0193528708 | K180: =E180 -> 74095467
A181: ='Org structure'!E15 -> 2.2 - Budget and Treasury Management | C181: 130822583.2 | D181: 122871191.4 | E181: 133471152 | F181: 7821583.71 | G181: 72995222.48 | H181: 100103364 | I181: -27108141.52 | J181: -0.2708015039 | K181: 133471152
A182: ='Org structure'!E16 -> 2.3 - Expenditure Management | C182: 44830103.27 | D182: 31427404.01 | E182: 41127253 | F182: 4503934.4 | G182: 28405865.47 | H182: 30845439.75 | I182: -2439574.28 | J182: -0.07909027395 | K182: 41127253
A183: ='Org structure'!E17 -> 2.4 - Revenue Management | C183: 637431771.8 | D183: 373782944.5 | E183: 388480989 | F183: 8173330.73 | G183: 86801704.19 | H183: 291360741.8 | I183: -204559037.6 | J183: -0.7020816749 | K183: 388480989
A184: ='Org structure'!E18 -> 2.5 - Supply Chain Management | C184: 64050601.54 | D184: 45770821.54 | E184: 64098749 | F184: 4512881.45 | G184: 45662092.44 | H184: 48074061.75 | I184: -2411969.31 | J184: -0.05017194766 | K184: 64098749
A185: ='Org structure'!E19 -> 0 | I185: 0
A186: ='Org structure'!E20 -> 0 | I186: 0
A187: ='Org structure'!E21 -> 0 | I187: 0
A188: ='Org structure'!E22 -> 0 | I188: 0
A189: ='Org structure'!E23 -> 0 | I189: 0
A190: ='Org structure'!A4 -> Vote 3 - Corporate Services | C190: =SUM(C191:C200) -> 848301582.7 | D190: =SUM(D191:D194) -> 785013601.5 | E190: =SUM(E191:E194) -> 799093791 | F190: 71824268.23 | G190: 596026951.7 | H190: 599320343.2 | I190: -3293391.53 | J190: -0.005495210645 | K190: 799093791
A191: ='Org structure'!E25 -> 3.1 - Area Based Management | C191: 36359677.5 | D191: 51984820.22 | E191: 42632269 | F191: 3141586.71 | G191: 27751344.17 | H191: =E191/12*9 -> 31974201.75 | I191: -4222857.58 | J191: -0.1320707742 | K191: =E191 -> 42632269
A192: ='Org structure'!E26 -> 3.2 - Public Safety, Emergency Services and Enforcement | C192: 369678652.9 | D192: 317247534.2 | E192: 341709220 | F192: 34751502.76 | G192: 255965050.6 | H192: 256281915 | I192: =G192-H192 -> -316864.45 | J192: =IF(I192=0,"",I192/H192) -> -0.001236390207 | K192: 341709220
A193: ='Org structure'!E27 -> 3.3 - Recreation and Facilities | C193: 291026819.5 | D193: 299705258.3 | E193: 291353678 | F193: 24404977.31 | G193: 223470905.5 | H193: 218515258.5 | I193: =G193-H193 -> 4955646.96 | J193: =IF(I193=0,"",I193/H193) -> 0.02267872273 | K193: 291353678
A194: ='Org structure'!E28 -> 3.4 - Waste Management | C194: 151236432.9 | D194: 116075988.7 | E194: 123398624 | F194: 9526201.45 | G194: 88839651.54 | H194: 92548968 | I194: =G194-H194 -> -3709316.46 | J194: =IF(I194=0,"",I194/H194) -> -0.04007950105 | K194: 123398624
A195: ='Org structure'!E29 -> 0 | D195: 45770821.54 | F195: 5104934.32 | G195: 5104934.32 | H195: =D195/12*1 -> 3814235.128 | I195: =G195-H195 -> 1290699.192 | J195: =IF(I195=0,"",I195/H195) -> 0.3383900437 | K195: =D195 -> 45770821.54
A196: ='Org structure'!E30 -> 0 | I196: =G196-H196 -> 0 | J196: =IF(I196=0,"",I196/H196) -> 
A197: ='Org structure'!E31 -> 0 | I197: 0
A198: ='Org structure'!E32 -> 0 | I198: 0
A199: ='Org structure'!E33 -> 0 | I199: 0
A200: ='Org structure'!E34 -> 0 | I200: 0
... 141 more rows

Sheet C4-FinPerf RE
A1: =muni& " - "&S71B& " - "&date -> KZN225 Msunduzi - Table C4 Consolidated Monthly Budget Statement - Financial Performance (revenue and expenditure) - Q3 Third Quarter
A2: =desc -> Description | B2: =head27 -> Ref | C2: =Head1 -> 2020/21 | D2: =Head2 -> Budget Year 2021/22
C3: =Head5 -> Audited Outcome | D3: =Head6 -> Original Budget | E3: =Head7 -> Adjusted Budget | F3: =Head38 -> Monthly actual | G3: =Head39 -> YearTD actual | H3: =Head40 -> YearTD budget | I3: =Head41 -> YTD variance | J3: =Head41 -> YTD variance | K3: =Head8 -> Full Year Forecast
A4: R thousands | J4: %
A5: Revenue By Source
A6: Property rates | C6: 1204676315 | D6: 1321378575 | E6: 1321378575 | F6: 97927059.92 | G6: 935630855.6 | H6: =E6/12*9 -> 991033931.5 | I6: =(G6-H6)+0 -> -55403075.91 | J6: =IF(I6=0,"",I6/H6) -> -0.05590431786 | K6: =E6 -> 1321378575
A7: Service charges - electricity revenue | C7: 2149844095 | D7: 2961894448 | E7: 2961894448 | F7: 193009924.9 | G7: 1917387263 | H7: =E7/12*9 -> 2221420836 | I7: =(G7-H7)+0 -> -304033573.4 | J7: =IF(I7=0,"",I7/H7) -> -0.1368644646 | K7: 2961894448
A8: Service charges - water revenue | C8: 765357790 | D8: 773217411.5 | E8: 773217411.5 | F8: 63820945.23 | G8: 598409766.8 | H8: 579913058.6 | I8: =(G8-H8)+0 -> 18496708.24 | J8: =IF(I8=0,"",I8/H8) -> 0.03189565741 | K8: 773217411.5
A9: Service charges - sanitation revenue | C9: 164794393.9 | D9: 160154913 | E9: 160154913 | F9: 14574262.27 | G9: 133166963.4 | H9: 120116184.7 | I9: =(G9-H9)+0 -> 13050778.74 | J9: =IF(I9=0,"",I9/H9) -> 0.1086512926 | K9: 160154913
A10: Service charges - refuse revenue | C10: 108298483 | D10: 122556900.8 | E10: 122556900.8 | F10: 9160462.65 | G10: 77707005.98 | H10: =E10/12*9 -> 91917675.6 | I10: =(G10-H10)+0 -> -14210669.62 | J10: =IF(I10=0,"",I10/H10) -> -0.1546021429 | K10: =E10 -> 122556900.8
A12: Rental of facilities and equipment | C12: 14558911.4 | D12: 30634513.3 | E12: 30634513.3 | F12: 1823251.76 | G12: 18689056.58 | H12: =E12/12*9 -> 22975884.98 | I12: =(G12-H12)+0 -> -4286828.395 | J12: =IF(I12=0,"",I12/H12) -> -0.186579468 | K12: =E12 -> 30634513.3
A13: Interest earned - external investments | C13: 8530436.2 | D13: 16076855.03 | E13: 16076855.03 | F13: 794209.01 | G13: 7084917.86 | H13: 12057641.27 | I13: =(G13-H13)+-6196.47 -> -4978919.88 | J13: =(IF(I13=0,"",I13/H13))+-0.4957176 -> -0.9086441226 | K13: 16076855.03
A14: Interest earned - outstanding debtors | C14: 188635158.3 | D14: 213289285.9 | E14: 213289285.9 | F14: 16480479.07 | G14: 145865864.4 | H14: 159966964.4 | I14: =(G14-H14)+0 -> -14101100 | J14: -0.08815007559 | K14: 213289285.9
A15: Dividends received | E15: 0 | F15: 0 | G15: 0 | I15: 0 | K15: 0
A16: Fines, penalties and forfeits | C16: 16062034.75 | D16: 1894773.946 | E16: 1894773.946 | F16: 7776723.48 | G16: 8143766.14 | H16: =E16/12*9 -> 1421080.459 | I16: 6722685.681 | J16: 4.730686173 | K16: 1894773.946
A17: Licences and permits | C17: 602789.25 | D17: 1179465.947 | E17: 1179465.947 | F17: 241996.7 | G17: 696882.63 | H17: 884599.4605 | I17: -187716.8305 | J17: -0.2122054544 | K17: 1179465.947
A18: Agency services | C18: 1931382 | D18: 634103.7844 | E18: 634103.7844 | F18: 466130 | G18: 2028120 | H18: 475577.8383 | I18: 1552542.162 | J18: 3.264538498 | K18: 634103.7844
A19: Transfers and subsidies | C19: 757156210 | D19: 661215834.8 | E19: 725957048.3 | F19: 157945533.9 | G19: 656144390.8 | H19: 544467786.2 | I19: 111676604.6 | J19: 0.2051115004 | K19: 725957048.3
A20: Other revenue | C20: 71484195.09 | D20: 154286955.6 | E20: 154286955.6 | F20: -2010588.86 | G20: 63963781.32 | H20: 115715216.7 | I20: =(G20-H20)+-3104222.27 -> -54855657.69 | J20: =(IF(I20=0,"",I20/H20))+-1 -> -1.474057425 | K20: 154286955.6
A21: Gains | C21: 66361357.9 | E21: 0 | I21: =(G21-H21)+0 -> 0
A22: Total Revenue (excluding capital transfers and contributions) | C22: =SUM(C6:C10)+SUM(C12:C21) -> 5518293552 | D22: 6418414037 | E22: 6483155251 | F22: 562010390 | G22: 4564918635 | H22: 4862366438 | I22: =G22-H22 -> -297447803.6 | J22: =IF(I22=0,"",I22/H22) -> -0.06117346509 | K22: =SUM(K6:K10)+SUM(K12:K21) -> 6483155251
A24: Expenditure By Type
A25: Employee related costs | C25: 1434702558 | D25: 1538089743 | E25: 1574909638 | F25: 112065341 | G25: 1071985693 | H25: =E25/12*9 -> 1181182228 | I25: =(G25-H25)+-6760.53000000002 -> -109203295.9 | J25: =(IF(I25=0,"",I25/H25))+-0.00807658728338287 -> -0.1005291262 | K25: =E25 -> 1574909638
A26: Remuneration of councillors | C26: 51641247.13 | D26: 56332921.51 | E26: 56332921.51 | F26: 3986727.25 | G26: 36605859.51 | H26: 42249691.13 | I26: =(G26-H26)+0 -> -5643831.624 | J26: =IF(I26=0,"",I26/H26) -> -0.1335827901 | K26: 56332921.51
A27: Debt impairment | C27: 1044475891 | D27: 150000000 | E27: 150000000 | F27: 10616426.99 | G27: 28874227.42 | H27: 112500000 | I27: =(G27-H27)+0 -> -83625772.58 | J27: -0.7433402007 | K27: 150000000
A28: Depreciation & asset impairment | C28: 381265315.9 | D28: 421872297.6 | E28: 421871987 | F28: 32569076.34 | G28: 287386550.6 | H28: 316403990.2 | I28: =(G28-H28)+-474 -> -29017913.7 | J28: =(IF(I28=0,"",I28/H28))+-0.0059622641509434 -> -0.09767385627 | K28: 421871987
A29: Finance charges | C29: 42536964.33 | D29: 34724271.93 | E29: 34724271.93 | F29: 6457262.3 | G29: 25207572.85 | H29: 26043203.94 | I29: =(G29-H29)+0 -> -835631.0949 | J29: -0.03208633994 | K29: 34724271.93
A30: Bulk purchases - electricity | C30: 2659404298 | D30: 2185393029 | E30: 2185393029 | F30: 142004001.2 | G30: 1615641763 | H30: 1639044772 | I30: =(G30-H30)+0 -> -23403008.52 | J30: -0.01427844372 | K30: 2185393029
A31: Inventory consumed | C31: 58188673.23 | D31: 830520119.4 | E31: 837716932 | F31: 81803825.95 | G31: 598147851.3 | H31: 628287699 | I31: =(G31-H31)+0 -> -30139847.74 | J31: -0.04797141149 | K31: 837716932
A32: Contracted services | C32: 550276122.2 | D32: 655391231 | E32: 732206082.2 | F32: 58835517.2 | G32: 424027167.8 | H32: 549154561.7 | I32: =(G32-H32)+-17711.34 -> -125145105.2 | J32: =(IF(I32=0,"",I32/H32))+-0.685885232315878 -> -0.9137720859 | K32: 732206082.2
A33: Transfers and subsidies | C33: 16870304.99 | D33: 45862882.85 | E33: 45862882.85 | F33: 6652172.08 | G33: 37708183.07 | H33: 34397162.14 | I33: =(G33-H33)+0 -> 3311020.929 | J33: 0.09625854933 | K33: 45862882.85
A34: Other expenditure | C34: 158717823.9 | D34: 200227522.5 | E34: 201381460.7 | F34: 14898235.21 | G34: 98250738.31 | H34: 151036095.5 | I34: =(G34-H34)+-114880.34 -> -52900237.55 | J34: =(IF(I34=0,"",I34/H34))+-0.759447751960656 -> -1.109696726 | K34: 201381460.7
A35: Losses | C35: 17247758.21 | E35: 0 | I35: =(G35-H35)+0 -> 0
A36: Total Expenditure | C36: =SUM(C25:C35) -> 6415326957 | D36: =SUM(D25:D35) -> 6118414019 | E36: =SUM(E25:E35) -> 6240399205 | F36: 469888585.5 | G36: 4223835607 | H36: 4680299404 | I36: =G36-H36 -> -456463796.8 | J36: =IF(I36=0,"",I36/H36) -> -0.09752875989 | K36: 6240399205
A38: Surplus/(Deficit) | C38: =C22-C36 -> -897033404.8 | D38: 300000018.7 | E38: 242756045.5 | F38: 92121804.43 | G38: 341083027.4 | H38: 182067034.2 | I38: =I22-I36 -> 159015993.2 | J38: =IF(I38=0,"",I38/H38) -> 0.873392561 | K38: =K22-K36 -> 242756045.5
A39: Transfers and subsidies - capital (monetary allocations) (National / Provincial and District) | C39: 498745626.6 | D39: 380796576 | E39: 429670814.7 | F39: 26594782.73 | G39: 262491987.4 | H39: =E39/12*9 -> 322253111 | I39: =G39-H39 -> -59761123.59 | J39: =IF(I39=0,"",I39/H39) -> -0.1854477786 | K39: =E39 -> 429670814.7
A40: Transfers and subsidies - capital (monetary allocations) (National / Provincial Departmental Agencies, Households, Non-profit Institutions, Private Enterprises, Public Corporatons, Higher Educational Institutions) | I40: =G40-H40 -> 0 | J40: =IF(I40=0,"",I40/H40) -> 
A41: Transfers and subsidies - capital (in-kind - all) | I41: =G41-H41 -> 0 | J41: =IF(I41=0,"",I41/H41) -> 
A42: Surplus/(Deficit) after capital transfers & contributions | C42: =C38+SUM(C39:C41) -> -398287778.2 | D42: 680796594.7 | E42: 672426860.2 | F42: 118716587.2 | G42: 603575014.8 | H42: 504320145.2 | K42: =K38+SUM(K39:K41) -> 672426860.2
A43: Taxation | I43: =G43-H43 -> 0 | J43: =IF(I43=0,"",I43/H43) -> 
A44: Surplus/(Deficit) after taxation | C44: =C42-C43 -> -398287778.2 | D44: 680796594.7 | E44: 672426860.2 | F44: 118716587.2 | G44: 603575014.8 | H44: 504320145.2 | K44: =K42-K43 -> 672426860.2
A45: Attributable to minorities
A46: Surplus/(Deficit) attributable to municipality | C46: =SUM(C44:C45) -> -398287778.2 | D46: 680796594.7 | E46: 672426860.2 | F46: 118716587.2 | G46: 603575014.8 | H46: 504320145.2 | K46: =SUM(K44:K45) -> 672426860.2
A47: Share of surplus/ (deficit) of associate
A48: Surplus/ (Deficit) for the year | C48: =C46+C47 -> -398287778.2 | D48: 680796594.7 | E48: 672426860.2 | F48: 118716587.2 | G48: 603575014.8 | H48: 504320145.2 | K48: =K46+K47 -> 672426860.2
A49: =head27a -> References
A50: 1. Material variances to be explained on Table SC1
A53: =A22&" including capital transfers/contributions etc" -> Total Revenue (excluding capital transfers and contributions) including capital transfers/contributions etc | C53: =C22+SUM(C39:C41) -> 6017039179 | D53: 6799210613 | E53: 6912826065 | F53: 588605172.7 | G53: 4827410622 | H53: 5184619549 | K53: =K22+SUM(K39:K41) -> 6912826065

Sheet C5-Capex
A1: =muni& " - "&S71D& " - "&date -> KZN225 Msunduzi - Table C5 Consolidated Monthly Budget Statement - Capital Expenditure (municipal vote, functional classification and funding - Q3 Third Quarter
A2: =Vdesc -> Vote Description | B2: =head27 -> Ref | C2: =Head1 -> 2020/21 | D2: =Head2 -> Budget Year 2021/22
C3: =Head5 -> Audited Outcome | D3: =Head6 -> Original Budget | E3: =Head7 -> Adjusted Budget | F3: =Head38 -> Monthly actual | G3: =Head39 -> YearTD actual | H3: =Head40 -> YearTD budget | I3: =Head41 -> YTD variance | J3: =Head41 -> YTD variance | K3: =Head8 -> Full Year Forecast
A4: R thousands | B4: 1 | J4: %
A5: Multi-Year expenditure appropriation | B5: 2
A6: ='Org structure'!A2 -> Vote 1 - City Manager | C6: ='C5C'!C7 -> 0 | D6: ='C5C'!D7 -> 0 | E6: ='C5C'!E7 -> 0 | F6: ='C5C'!F7 -> 0 | G6: ='C5C'!G7 -> 50435 | H6: ='C5C'!H7 -> 0 | I6: =G6-H6 -> 50435 | J6: =IF(I6=0,"",I6/H6) ->  | K6: ='C5C'!K7 -> 0
A7: ='Org structure'!A3 -> Vote 2 - City Finance | C7: ='C5C'!C18 -> 1592912.04 | D7: ='C5C'!D18 -> 0 | E7: ='C5C'!E18 -> 0 | F7: ='C5C'!F18 -> 0 | G7: ='C5C'!G18 -> 5771970 | H7: ='C5C'!H18 -> 0 | I7: =G7-H7 -> 5771970 | J7: =IF(I7=0,"",I7/H7) ->  | K7: ='C5C'!K18 -> 0
A8: ='Org structure'!A4 -> Vote 3 - Corporate Services | C8: ='C5C'!C29 -> 24381249.32 | D8: ='C5C'!D29 -> 0 | E8: ='C5C'!E29 -> 0 | F8: ='C5C'!F29 -> 2410094.49 | G8: ='C5C'!G29 -> 12198992.73 | H8: ='C5C'!H29 -> 0 | I8: =G8-H8 -> 12198992.73 | J8: =IF(I8=0,"",I8/H8) ->  | K8: ='C5C'!K29 -> 0
A9: ='Org structure'!A5 -> Vote 4 - Community Services and Social Equity | C9: ='C5C'!C40 -> 971615.63 | D9: ='C5C'!D40 -> 0 | E9: ='C5C'!E40 -> 0 | F9: ='C5C'!F40 -> 707267.39 | G9: ='C5C'!G40 -> 896508.69 | H9: ='C5C'!H40 -> 0 | I9: 896508.69 | K9: ='C5C'!K40 -> 0
A10: ='Org structure'!A6 -> Vote 5 - Infrastructure Services | C10: ='C5C'!C51 -> 451396897 | D10: ='C5C'!D51 -> 0 | E10: ='C5C'!E51 -> 0 | F10: ='C5C'!F51 -> 45801775.55 | G10: ='C5C'!G51 -> 298478184.4 | H10: ='C5C'!H51 -> 0 | I10: 298478184.4 | K10: ='C5C'!K51 -> 0
A11: ='Org structure'!A7 -> Vote 6 - Sustainable Development and City Enterprises | C11: ='C5C'!C62 -> 180965008.9 | D11: ='C5C'!D62 -> 0 | E11: ='C5C'!E62 -> 0 | F11: ='C5C'!F62 -> 955899.56 | G11: ='C5C'!G62 -> 9742441.43 | H11: ='C5C'!H62 -> 0 | I11: 9742441.43 | K11: ='C5C'!K62 -> 0
A12: ='Org structure'!A8 -> Vote 7 - [NAME OF VOTE 7] | C12: ='C5C'!C73 -> 0 | D12: ='C5C'!D73 -> 0 | E12: ='C5C'!E73 -> 0 | F12: ='C5C'!F73 -> 0 | G12: ='C5C'!G73 -> 0 | H12: ='C5C'!H73 -> 0 | I12: 0 | K12: ='C5C'!K73 -> 0
A13: ='Org structure'!A9 -> Vote 8 - [NAME OF VOTE 8] | C13: ='C5C'!C84 -> 0 | D13: ='C5C'!D84 -> 0 | E13: ='C5C'!E84 -> 0 | F13: ='C5C'!F84 -> 0 | G13: ='C5C'!G84 -> 0 | H13: ='C5C'!H84 -> 0 | I13: 0 | K13: ='C5C'!K84 -> 0
A14: ='Org structure'!A10 -> Vote 9 - [NAME OF VOTE 9] | C14: ='C5C'!C95 -> 0 | D14: ='C5C'!D95 -> 0 | E14: ='C5C'!E95 -> 0 | F14: ='C5C'!F95 -> 0 | G14: ='C5C'!G95 -> 0 | H14: ='C5C'!H95 -> 0 | I14: 0 | K14: ='C5C'!K95 -> 0
A15: ='Org structure'!A11 -> Vote 10 - [NAME OF VOTE 10] | C15: ='C5C'!C106 -> 0 | D15: ='C5C'!D106 -> 0 | E15: ='C5C'!E106 -> 0 | F15: ='C5C'!F106 -> 0 | G15: ='C5C'!G106 -> 0 | H15: ='C5C'!H106 -> 0 | I15: 0 | K15: ='C5C'!K106 -> 0
A16: ='Org structure'!A12 -> Vote 11 - [NAME OF VOTE 11] | C16: ='C5C'!C117 -> 0 | D16: ='C5C'!D117 -> 0 | E16: ='C5C'!E117 -> 0 | F16: ='C5C'!F117 -> 0 | G16: ='C5C'!G117 -> 0 | H16: ='C5C'!H117 -> 0 | I16: 0 | K16: ='C5C'!K117 -> 0
A17: ='Org structure'!A13 -> Vote 12 - [NAME OF VOTE 12] | C17: ='C5C'!C128 -> 0 | D17: ='C5C'!D128 -> 0 | E17: ='C5C'!E128 -> 0 | F17: ='C5C'!F128 -> 0 | G17: ='C5C'!G128 -> 0 | H17: ='C5C'!H128 -> 0 | I17: 0 | K17: ='C5C'!K128 -> 0
A18: ='Org structure'!A14 -> Vote 13 - [NAME OF VOTE 13] | C18: ='C5C'!C139 -> 0 | D18: ='C5C'!D139 -> 0 | E18: ='C5C'!E139 -> 0 | F18: ='C5C'!F139 -> 0 | G18: ='C5C'!G139 -> 0 | H18: ='C5C'!H139 -> 0 | I18: =G18-H18 -> 0 | J18: =IF(I18=0,"",I18/H18) ->  | K18: ='C5C'!K139 -> 0
A19: ='Org structure'!A15 -> Vote 14 - [NAME OF VOTE 14] | C19: ='C5C'!C150 -> 0 | D19: ='C5C'!D150 -> 0 | E19: ='C5C'!E150 -> 0 | F19: ='C5C'!F150 -> 0 | G19: ='C5C'!G150 -> 0 | H19: ='C5C'!H150 -> 0 | I19: =G19-H19 -> 0 | J19: =IF(I19=0,"",I19/H19) ->  | K19: ='C5C'!K150 -> 0
A20: ='Org structure'!A16 -> Vote 15 - [NAME OF VOTE 15] | C20: ='C5C'!C161 -> 0 | D20: ='C5C'!D161 -> 0 | E20: ='C5C'!E161 -> 0 | F20: ='C5C'!F161 -> 0 | G20: ='C5C'!G161 -> 0 | H20: ='C5C'!H161 -> 0 | I20: =G20-H20 -> 0 | J20: =IF(I20=0,"",I20/H20) ->  | K20: ='C5C'!K161 -> 0
A21: Total Capital Multi-year expenditure | B21: 4,7 | C21: =SUM(C6:C20) -> 659307682.9 | D21: =SUM(D6:D20) -> 0 | E21: 0 | F21: 49875036.99 | G21: 327138532.3 | H21: 0 | I21: 327138532.3 | J21: =IF(I21=0,"",I21/H21) ->  | K21: =SUM(K6:K20) -> 0
A23: Single Year expenditure appropriation | B23: 2
A24: ='Org structure'!A2 -> Vote 1 - City Manager | C24: ='C5C'!C176 -> 1409774.98 | D24: ='C5C'!D176 -> 9040000 | E24: ='C5C'!E176 -> 9040000 | F24: ='C5C'!F176 -> 0 | G24: ='C5C'!G176 -> 592584.04 | H24: ='C5C'!H176 -> 6780000 | I24: ='C5C'!I176 -> -6187415.96 | J24: =IF(I24=0,"",I24/H24) -> -0.9125982242 | K24: ='C5C'!K176 -> 9040000
A25: ='Org structure'!A3 -> Vote 2 - City Finance | C25: ='C5C'!C187 -> 6469188.79 | D25: ='C5C'!D187 -> 39856796.95 | E25: ='C5C'!E187 -> 43096797 | F25: ='C5C'!F187 -> 198680 | G25: ='C5C'!G187 -> 3980905.66 | H25: ='C5C'!H187 -> 32322597.75 | I25: ='C5C'!I187 -> -28341692.09 | J25: =IF(I25=0,"",I25/H25) -> -0.8768383132 | K25: ='C5C'!K187 -> 43096797
A26: ='Org structure'!A4 -> Vote 3 - Corporate Services | C26: ='C5C'!C198 -> 13964306.88 | D26: ='C5C'!D198 -> 50556700 | E26: ='C5C'!E198 -> 56476421.5 | F26: ='C5C'!F198 -> 0 | G26: ='C5C'!G198 -> 1220781.45 | H26: ='C5C'!H198 -> 42357316.12 | I26: ='C5C'!I198 -> -41136534.67 | J26: -0.9711789707 | K26: ='C5C'!K198 -> 56476421.5
A27: ='Org structure'!A5 -> Vote 4 - Community Services and Social Equity | C27: ='C5C'!C209 -> 132691.03 | D27: ='C5C'!D209 -> 4457625 | E27: ='C5C'!E209 -> 9457625 | F27: ='C5C'!F209 -> 66777.5 | G27: ='C5C'!G209 -> 446312.94 | H27: ='C5C'!H209 -> 7093218.75 | I27: ='C5C'!I209 -> -6646905.81 | J27: -0.9370789263 | K27: ='C5C'!K209 -> 9457625
A28: ='Org structure'!A6 -> Vote 5 - Infrastructure Services | C28: ='C5C'!C220 -> 4248077.95 | D28: ='C5C'!D220 -> 346647960 | E28: ='C5C'!E220 -> 398111045.2 | F28: ='C5C'!F220 -> 0 | G28: ='C5C'!G220 -> 941399.05 | H28: ='C5C'!H220 -> 298583283.9 | I28: ='C5C'!I220 -> -297641884.8 | J28: -0.996847114 | K28: ='C5C'!K220 -> 398111045.2
A29: ='Org structure'!A7 -> Vote 6 - Sustainable Development and City Enterprises | C29: ='C5C'!C231 -> 723808.54 | D29: ='C5C'!D231 -> 126026785 | E29: ='C5C'!E231 -> 139025080.3 | F29: ='C5C'!F231 -> 9188.5 | G29: ='C5C'!G231 -> 171175.66 | H29: ='C5C'!H231 -> 104268810.2 | I29: ='C5C'!I231 -> -104097634.6 | J29: -0.9983583235 | K29: ='C5C'!K231 -> 139025080.3
A30: ='Org structure'!A8 -> Vote 7 - [NAME OF VOTE 7] | C30: ='C5C'!C242 -> 0 | D30: ='C5C'!D242 -> 0 | E30: ='C5C'!E242 -> 0 | F30: ='C5C'!F242 -> 0 | G30: ='C5C'!G242 -> 0 | H30: ='C5C'!H242 -> 0 | I30: ='C5C'!I242 -> 0 | K30: ='C5C'!K242 -> 0
A31: ='Org structure'!A9 -> Vote 8 - [NAME OF VOTE 8] | C31: ='C5C'!C253 -> 0 | D31: ='C5C'!D253 -> 0 | E31: ='C5C'!E253 -> 0 | F31: ='C5C'!F253 -> 0 | G31: ='C5C'!G253 -> 0 | H31: ='C5C'!H253 -> 0 | I31: ='C5C'!I253 -> 0 | K31: ='C5C'!K253 -> 0
A32: ='Org structure'!A10 -> Vote 9 - [NAME OF VOTE 9] | C32: ='C5C'!C264 -> 0 | D32: ='C5C'!D264 -> 0 | E32: ='C5C'!E264 -> 0 | F32: ='C5C'!F264 -> 0 | G32: ='C5C'!G264 -> 0 | H32: ='C5C'!H264 -> 0 | I32: ='C5C'!I264 -> 0 | K32: ='C5C'!K264 -> 0
A33: ='Org structure'!A11 -> Vote 10 - [NAME OF VOTE 10] | C33: ='C5C'!C275 -> 0 | D33: ='C5C'!D275 -> 0 | E33: ='C5C'!E275 -> 0 | F33: ='C5C'!F275 -> 0 | G33: ='C5C'!G275 -> 0 | H33: ='C5C'!H275 -> 0 | I33: ='C5C'!I275 -> 0 | K33: ='C5C'!K275 -> 0
A34: ='Org structure'!A12 -> Vote 11 - [NAME OF VOTE 11] | C34: ='C5C'!C286 -> 0 | D34: ='C5C'!D286 -> 0 | E34: ='C5C'!E286 -> 0 | F34: ='C5C'!F286 -> 0 | G34: ='C5C'!G286 -> 0 | H34: ='C5C'!H286 -> 0 | I34: ='C5C'!I286 -> 0 | K34: ='C5C'!K286 -> 0
A35: ='Org structure'!A13 -> Vote 12 - [NAME OF VOTE 12] | C35: ='C5C'!C297 -> 0 | D35: ='C5C'!D297 -> 0 | E35: ='C5C'!E297 -> 0 | F35: ='C5C'!F297 -> 0 | G35: ='C5C'!G297 -> 0 | H35: ='C5C'!H297 -> 0 | I35: ='C5C'!I297 -> 0 | K35: ='C5C'!K297 -> 0
A36: ='Org structure'!A14 -> Vote 13 - [NAME OF VOTE 13] | C36: ='C5C'!C308 -> 0 | D36: ='C5C'!D308 -> 0 | E36: ='C5C'!E308 -> 0 | F36: ='C5C'!F308 -> 0 | G36: ='C5C'!G308 -> 0 | H36: ='C5C'!H308 -> 0 | I36: ='C5C'!I308 -> 0 | K36: ='C5C'!K308 -> 0
A37: ='Org structure'!A15 -> Vote 14 - [NAME OF VOTE 14] | C37: ='C5C'!C319 -> 0 | D37: ='C5C'!D319 -> 0 | E37: ='C5C'!E319 -> 0 | F37: ='C5C'!F319 -> 0 | G37: ='C5C'!G319 -> 0 | H37: ='C5C'!H319 -> 0 | I37: ='C5C'!I319 -> 0 | K37: ='C5C'!K319 -> 0
A38: ='Org structure'!A16 -> Vote 15 - [NAME OF VOTE 15] | C38: ='C5C'!C330 -> 0 | D38: ='C5C'!D330 -> 0 | E38: ='C5C'!E330 -> 0 | F38: ='C5C'!F330 -> 0 | G38: ='C5C'!G330 -> 0 | H38: ='C5C'!H330 -> 0 | I38: ='C5C'!I330 -> 0 | K38: ='C5C'!K330 -> 0
A39: Total Capital single-year expenditure | B39: 4 | C39: =SUM(C24:C38) -> 26947848.17 | D39: 576585867 | E39: 655206969 | F39: 274646 | G39: 7353158.8 | H39: 491405226.7 | I39: -484052067.9 | J39: -0.985036466 | K39: =SUM(K24:K38) -> 655206969
A40: Total Capital Expenditure | C40: =C39+C21 -> 686255531.1 | D40: 576585867 | E40: 655206969 | F40: 50149682.99 | G40: 334491691.1 | H40: 491405226.7 | I40: -156913535.6 | J40: =IF(I40=0,"",I40/H40) -> -0.319315968 | K40: =K39+K21 -> 655206969
A42: Capital Expenditure - Functional Classification
A43: Governance and administration | C43: =SUM(C44:C46) -> 10576182.47 | D43: 52295750.95 | E43: 60535751 | F43: 972724.89 | G43: 11461318.59 | H43: 45401813.25 | I43: =G43-H43 -> -33940494.66 | J43: =IF(I43=0,"",I43/H43) -> -0.7475581311 | K43: =SUM(K44:K46) -> 60535751
A44: Executive and council | C44: 1409774.98 | D44: 6042000 | E44: 6042000 | G44: 250340.8 | H44: =E44/12*9 -> 4531500 | I44: -4281159.2 | J44: =IF(I44=0,"",I44/H44) -> -0.9447554231 | K44: =E44 -> 6042000
A45: Finance and administration | C45: 9166407.49 | D45: 45843750.95 | E45: 54083751 | F45: 972724.89 | G45: 11210977.79 | H45: =E45/12*9 -> 40562813.25 | I45: -29351835.46 | J45: =IF(I45=0,"",I45/H45) -> -0.7236143923 | K45: 54083751
A46: Internal audit | D46: 410000 | E46: 410000 | H46: 307500 | I46: -307500 | J46: =IF(I46=0,"",I46/H46) -> -1 | K46: 410000
A47: Community and public safety | C47: =SUM(C48:C52) -> 79822491.52 | D47: 134083485 | E47: 131339885.5 | F47: 2955461.93 | G47: 11233436.62 | H47: 98504914.12 | I47: -87271477.5 | J47: =IF(I47=0,"",I47/H47) -> -0.8859606475 | K47: =SUM(K48:K52) -> 131339885.5
A48: Community and social services | C48: 14120515.58 | D48: 43382300 | E48: 38472940.5 | F48: 1999562.37 | G48: 7036209.42 | H48: =E48/12*9 -> 28854705.38 | I48: -21818495.95 | J48: -0.7561503634 | K48: =E48 -> 38472940.5
A49: Sport and recreation | C49: 2414731.14 | D49: 2475000 | E49: 725000 | G49: 799658.51 | H49: 543750 | I49: 255908.51 | J49: 0.4706363402 | K49: 725000
A50: Public safety | C50: 24917.57 | D50: 1384240 | E50: 1100000 | G50: 47565 | H50: 825000 | I50: -777435 | J50: -0.9423454545 | K50: 1100000
A51: Housing | C51: 63262327.23 | D51: 86841945 | E51: 91041945 | F51: 955899.56 | G51: 3350003.69 | H51: 68281458.75 | I51: -64931455.06 | J51: -0.9509383111 | K51: 91041945
A52: Health | E52: 0 | H52: =E52/12*8 -> 0 | I52: 0
A53: Economic and environmental services | C53: =SUM(C54:C56) -> 366180038.4 | D53: 115510000 | E53: 208378163.7 | F53: 17397752.34 | G53: 153866463.7 | H53: 156283622.8 | I53: -2417159.097 | J53: -0.01546649006 | K53: =SUM(K54:K56) -> 207680090.7
A54: Planning and development | C54: 115786718.4 | D54: 35890000 | E54: 43406731.53 | G54: 6617686.48 | H54: =E54/12*9 -> 32555048.65 | I54: -25937362.17 | J54: -0.7967231887 | K54: =E54 -> 43406731.53
A55: Road transport | C55: 250393320 | D55: 79620000 | E55: 164273359.2 | F55: 17397752.34 | G55: 147248777.2 | H55: 123205019.4 | I55: 24043757.82 | J55: 0.1951524211 | K55: 164273359.2
A56: Environmental protection | E56: 698073 | H56: 523554.75 | I56: -523554.75 | J56: -1
A57: Trading services | C57: =SUM(C58:C61) -> 227503654.9 | D57: 272096631 | E57: 251490138 | F57: 28814555.33 | G57: 157753855.6 | H57: 188617603.5 | I57: -30863747.95 | J57: -0.1636313227 | K57: =SUM(K58:K61) -> 251490138
A58: Energy sources | C58: 51098608.88 | D58: 130000000 | E58: 131423227 | F58: 19204545.47 | G58: 59855571.16 | H58: =E58/12*9 -> 98567420.25 | I58: -38711849.09 | J58: -0.3927448744 | K58: =E58 -> 131423227
A59: Water management | C59: 78159404.5 | D59: 77660964 | E59: 45181343 | F59: 7109374.35 | G59: 37424184.25 | H59: 33886007.25 | I59: 3538177 | J59: 0.1044141015 | K59: 45181343
A60: Waste water management | C60: 75993641.63 | D60: 59935667 | E60: 57801787 | F60: 2090103.39 | G60: 54878500.89 | H60: 43351340.25 | I60: 11527160.64 | J60: 0.2659009058 | K60: 57801787
A61: Waste management | C61: 22251999.91 | D61: 4500000 | E61: 17083781 | F61: 410532.12 | G61: 5595599.25 | H61: 12812835.75 | I61: -7217236.5 | J61: -0.5632817466 | K61: 17083781
A62: Other | C62: 2173163.77 | D62: 2600000 | E62: 3463030.77 | F62: 9188.5 | G62: 176616.66 | H62: 2597273.078 | I62: -2420656.417 | J62: -0.931999195 | K62: 3463030.77
A63: Total Capital Expenditure - Functional Classification | B63: 3 | C63: =C43+C47+C53+C57+C62 -> 686255531.1 | D63: =D43+D47+D53+D57+D62 -> 576585867 | E63: 655206969 | F63: 50149682.99 | G63: 334491691.1 | H63: 491405226.7 | I63: -156913535.6 | J63: -0.319315968 | K63: =K43+K47+K53+K57+K62 -> 654508896
A65: Funded by:
A66: National Government | C66: 397216558 | D66: 297296576 | E66: 332964083 | F66: 22525406.25 | G66: 223475408.3 | H66: =E66/12*9 -> 249723062.2 | I66: =G66-H66 -> -26247653.99 | J66: =IF(I66=0,"",I66/H66) -> -0.1051070484 | K66: =E66 -> 332964083
A67: Provincial Government | C67: 166778561.7 | D67: 83500000 | E67: 96706732 | F67: 955899.56 | G67: 883455.53 | H67: 72530049 | I67: =G67-H67 -> -71646593.47 | J67: =IF(I67=0,"",I67/H67) -> -0.9878194549 | K67: 96706732
A68: District Municipality | I68: =G68-H68 -> 0 | J68: =IF(I68=0,"",I68/H68) -> 
A69: ='C4-FinPerf RE'!A40 -> Transfers and subsidies - capital (monetary allocations) (National / Provincial Departmental Agencies, Households, Non-profit Institutions, Private Enterprises, Public Corporatons, Higher Educational Institutions) | I69: =G69-H69 -> 0 | J69: =IF(I69=0,"",I69/H69) -> 
A70: Transfers recognised - capital | C70: =SUM(C66:C69) -> 563995119.7 | D70: 380796576 | E70: 429670815 | F70: 23481305.81 | G70: 224358863.8 | H70: 322253111.2 | I70: =G70-H70 -> -97894247.46 | J70: =IF(I70=0,"",I70/H70) -> -0.3037806123 | K70: =SUM(K66:K69) -> 429670815
A72: Borrowing | B72: 6 | D72: 100000000 | E72: 100000000 | F72: 16981892.35 | G72: 25590650.2 | H72: =E72/12*9 -> 75000000 | I72: =G72-H72 -> -49409349.8 | J72: =IF(I72=0,"",I72/H72) -> -0.6587913307 | K72: =E72 -> 100000000
A73: Internally generated funds | C73: 122260411.4 | D73: 95789290.95 | E73: 125536154 | F73: 9686484.83 | G73: 84542177.1 | H73: 94152115.47 | I73: =G73-H73 -> -9609938.37 | J73: =IF(I73=0,"",I73/H73) -> -0.1020682151 | K73: =E73 -> 125536154
A74: Total Capital Funding | C74: =+C70+C72+C73 -> 686255531.1 | D74: 576585867 | E74: 655206969 | F74: 50149682.99 | G74: 334491691.1 | H74: 491405226.7 | I74: =G74-H74 -> -156913535.6 | J74: =IF(I74=0,"",I74/H74) -> -0.319315968 | K74: =+K70+K72+K73 -> 655206969
A75: =head27a -> References
A76: 1. Municipalities may choose to appropriate for capital expenditure for three years or for one year (if one year appropriation projected expenditure required for yr2 and yr3).
A77: 2. Include capital component of PPP unitary payment
A78: 3. Capital expenditure by functional classification must reconcile to the total of multi-year and single year appropriations
A79: 4. Include expenditure on investment property, intangible and biological assets
A81: 6. Include finance leases and PPP capital funding component of unitary payment - total borrowing/repayments to reconcile to changes in Table SA17
A86: check balance | C86: =C40-C74 -> 0 | D86: =D40-D74 -> 0 | E86: 0 | F86: 0 | G86: 0 | H86: 0 | K86: 0

Sheet C5C
A1: =muni& " - "&S71D& " - "&"A"& " - "&date -> KZN225 Msunduzi - Table C5 Consolidated Monthly Budget Statement - Capital Expenditure (municipal vote, functional classification and funding - A - Q3 Third Quarter
A2: =Vdesc -> Vote Description | B2: =head27 -> Ref | C2: =Head1 -> 2020/21 | D2: =Head2 -> Budget Year 2021/22 | L2: =Head4 -> 
A3: R thousand | C3: =Head5 -> Audited Outcome | D3: =Head6 -> Original Budget | E3: =Head7 -> Adjusted Budget | F3: =Head38 -> Monthly actual | G3: =Head39 -> YearTD actual | H3: =Head40 -> YearTD budget | I3: =Head41 -> YTD variance | J3: =Head41 -> YTD variance | K3: =Head8 -> Full Year Forecast | L3: =Head12 -> Forecast 2010/11 | M3: =Head13 -> Forecast 2011/12 | N3: =Head14 -> Forecast 2012/13 | O3: =Head15 -> Forecast 2013/14 | P3: =Head16 -> Forecast 2014/15 | Q3: =Head17 -> Forecast 2015/16 | R3: =Head18 -> Forecast 2016/17 | S3: =Head19 -> Forecast 2017/18 | T3: =Head20 -> Forecast 2018/19 | U3: =Head21 -> Forecast 2019/20 | V3: =Head22 -> Forecast 2020/21 | W3: =Head23 -> Forecast 2021/22
J4: %
A5: Capital expenditure - Municipal Vote
A6: Expenditure of multi-year capital appropriation | B6: 1
A7: ='Org structure'!A2 -> Vote 1 - City Manager | C7: =SUM(C8:C17) -> 0 | D7: =SUM(D8:D17) -> 0 | E7: 0 | F7: 0 | G7: 50435 | H7: 0 | I7: =G7-H7 -> 50435 | J7: =IF(I7=0,"",I7/H7) ->  | K7: 0
A8: ='Org structure'!E3 -> 1.1 - Internal Audit and Compliance | I8: 0
A9: ='Org structure'!E4 -> 1.2 - Office of the City Manager | G9: 50435 | I9: 50435
A10: ='Org structure'!E5 -> 1.3 - Political Support | G10: 0 | I10: 0
A11: ='Org structure'!E6 -> 1.4 - Strategic Planning | G11: 0 | I11: 0
A12: ='Org structure'!E7 -> 0 | I12: 0
A13: ='Org structure'!E8 -> 0 | I13: 0
A14: ='Org structure'!E9 -> 0 | I14: 0
A15: ='Org structure'!E10 -> 0 | I15: 0
A16: ='Org structure'!E11 -> 0 | I16: 0
A17: ='Org structure'!E12 -> 0 | I17: 0
A18: ='Org structure'!A3 -> Vote 2 - City Finance | C18: =SUM(C19:C28) -> 1592912.04 | D18: =SUM(D19:D28) -> 0 | E18: 0 | F18: 0 | G18: 5771970 | H18: 0 | I18: 5771970 | K18: 0
A19: ='Org structure'!E14 -> 2.1 - Asset Management | G19: 0 | I19: 0
A20: ='Org structure'!E15 -> 2.2 - Budget and Treasury Management | C20: 1336280.74 | G20: 5707440 | I20: 5707440
A21: ='Org structure'!E16 -> 2.3 - Expenditure Management | G21: 54550 | I21: 54550
A22: ='Org structure'!E17 -> 2.4 - Revenue Management | G22: 0 | I22: 0
A23: ='Org structure'!E18 -> 2.5 - Supply Chain Management | C23: 256631.3 | G23: 9980 | I23: 9980
A24: ='Org structure'!E19 -> 0 | I24: 0
A25: ='Org structure'!E20 -> 0 | I25: 0
A26: ='Org structure'!E21 -> 0 | I26: 0
A27: ='Org structure'!E22 -> 0 | I27: 0
A28: ='Org structure'!E23 -> 0 | I28: 0
A29: ='Org structure'!A4 -> Vote 3 - Corporate Services | C29: =SUM(C30:C39) -> 24381249.32 | D29: 0 | E29: 0 | F29: 2410094.49 | G29: 12198992.73 | H29: 0 | I29: 12198992.73 | K29: 0
A30: ='Org structure'!E25 -> 3.1 - Area Based Management | F30: 291319.77 | G30: 291319.77 | I30: 291319.77
A31: ='Org structure'!E26 -> 3.2 - Public Safety, Emergency Services and Enforcement | G31: 0 | I31: 0
A32: ='Org structure'!E27 -> 3.3 - Recreation and Facilities | C32: 12466354.57 | F32: 1708242.6 | G32: 6312073.71 | I32: 6312073.71
A33: ='Org structure'!E28 -> 3.4 - Waste Management | C33: 11914894.75 | F33: 410532.12 | G33: 5595599.25 | I33: 5595599.25
A34: ='Org structure'!E29 -> 0 | I34: 0
A35: ='Org structure'!E30 -> 0 | I35: 0
A36: ='Org structure'!E31 -> 0 | I36: 0
A37: ='Org structure'!E32 -> 0 | I37: 0
A38: ='Org structure'!E33 -> 0 | I38: 0
A39: ='Org structure'!E34 -> 0 | I39: 0
A40: ='Org structure'!A5 -> Vote 4 - Community Services and Social Equity | C40: =SUM(C41:C50) -> 971615.63 | D40: 0 | E40: 0 | F40: 707267.39 | G40: 896508.69 | H40: 0 | I40: 896508.69 | K40: 0
A41: ='Org structure'!E36 -> 4.1 - Human Resources Management | G41: 12550 | I41: 12550
A42: ='Org structure'!E37 -> 4.2 - Information Technology | C42: 971615.63 | F42: 657067.39 | G42: 818808.69 | I42: 818808.69
A43: ='Org structure'!E38 -> 4.3 - Legal Services | I43: 0
A44: ='Org structure'!E39 -> 4.4 - Secretariat and Auxiliary Services | F44: 50200 | G44: 65150 | I44: 65150
A45: ='Org structure'!E40 -> 4.5 - General Manager: Corporate Service | G45: 0 | I45: 0
A46: ='Org structure'!E41 -> 0 | I46: 0
A47: ='Org structure'!E42 -> 0 | I47: 0
A48: ='Org structure'!E43 -> 0 | I48: 0
A49: ='Org structure'!E44 -> 0 | I49: 0
A50: ='Org structure'!E45 -> 0 | I50: 0
A51: ='Org structure'!A6 -> Vote 5 - Infrastructure Services | C51: =SUM(C52:C61) -> 451396897 | D51: =SUM(D52:D61) -> 0 | E51: 0 | F51: 45801775.55 | G51: 298478184.4 | H51: 0 | I51: 298478184.4 | K51: 0
A52: ='Org structure'!E47 -> 5.1 - Electricity | C52: 46850530.93 | F52: 19204545.47 | G52: 59855571.16 | I52: 59855571.16
A53: ='Org structure'!E48 -> 5.2 - Project Management Office | G53: 12550 | I53: 12550
A54: ='Org structure'!E49 -> 5.3 - Roads and Transportation | C54: 250393320 | F54: 17397752.34 | G54: 146307378.1 | I54: 146307378.1
A55: ='Org structure'!E50 -> 5.4 - Water and Sanitation | C55: 154153046.1 | F55: 9199477.74 | G55: 92302685.14 | I55: 92302685.14
A56: ='Org structure'!E51 -> 5.5 - General Manager: Infrastructure | I56: 0
A57: ='Org structure'!E52 -> 0 | I57: 0
A58: ='Org structure'!E53 -> 0 | I58: 0
A59: ='Org structure'!E54 -> 0 | I59: 0
A60: ='Org structure'!E55 -> 0 | I60: 0
A61: ='Org structure'!E56 -> 0 | I61: 0
A62: ='Org structure'!A7 -> Vote 6 - Sustainable Development and City Enterprises | C62: =SUM(C63:C72) -> 180965008.9 | D62: =SUM(D63:D72) -> 0 | E62: 0 | F62: 955899.56 | G62: 9742441.43 | H62: 0 | I62: 9742441.43 | K62: 0
A63: ='Org structure'!E58 -> 6.1 - City Entities | C63: 2315510.77 | G63: 64699 | I63: 64699
A64: ='Org structure'!E59 -> 6.2 - Development Services | C64: 16004175.65 | G64: 6327738.74 | I64: 6327738.74
A65: ='Org structure'!E60 -> 6.3 - Human Settlement Development | C65: 62960515.34 | F65: 955899.56 | G65: 3350003.69 | I65: 3350003.69
A66: ='Org structure'!E61 -> 6.4 - Town Planning | C66: 99684807.15 | F66: 0 | G66: 0 | I66: 0
A67: ='Org structure'!E62 -> 6.5 - General Manager: Sustainable Development and City Enterprises | I67: 0
A68: ='Org structure'!E63 -> 0 | I68: 0
A69: ='Org structure'!E64 -> 0 | I69: 0
A70: ='Org structure'!E65 -> 0 | I70: 0
A71: ='Org structure'!E66 -> 0 | I71: =G71-H71 -> 0 | J71: =IF(I71=0,"",I71/H71) -> 
A72: ='Org structure'!E67 -> 0 | I72: 0
A73: ='Org structure'!A8 -> Vote 7 - [NAME OF VOTE 7] | C73: =SUM(C74:C83) -> 0 | D73: 0 | E73: 0 | F73: 0 | G73: 0 | H73: 0 | I73: 0 | K73: 0
A74: ='Org structure'!E69 -> 7.1 - [Name of sub-vote] | I74: 0
A75: ='Org structure'!E70 -> 0 | I75: 0
A76: ='Org structure'!E71 -> 0 | I76: 0
A77: ='Org structure'!E72 -> 0 | I77: 0
A78: ='Org structure'!E73 -> 0 | I78: 0
A79: ='Org structure'!E74 -> 0 | I79: 0
A80: ='Org structure'!E75 -> 0 | I80: 0
A81: ='Org structure'!E76 -> 0 | I81: 0
A82: ='Org structure'!E77 -> 0 | I82: 0
A83: ='Org structure'!E78 -> 0 | I83: 0
A84: ='Org structure'!A9 -> Vote 8 - [NAME OF VOTE 8] | C84: =SUM(C85:C94) -> 0 | D84: =SUM(D85:D94) -> 0 | E84: 0 | F84: 0 | G84: 0 | H84: 0 | I84: 0 | K84: 0
A85: ='Org structure'!E80 -> 8.1 - [Name of sub-vote] | I85: 0
A86: ='Org structure'!E81 -> 0 | I86: 0
A87: ='Org structure'!E82 -> 0 | I87: 0
A88: ='Org structure'!E83 -> 0 | I88: 0
A89: ='Org structure'!E84 -> 0 | I89: 0
A90: ='Org structure'!E85 -> 0 | I90: 0
A91: ='Org structure'!E86 -> 0 | I91: 0
A92: ='Org structure'!E87 -> 0 | I92: 0
A93: ='Org structure'!E88 -> 0 | I93: 0
A94: ='Org structure'!E89 -> 0 | I94: 0
A95: ='Org structure'!A10 -> Vote 9 - [NAME OF VOTE 9] | C95: =SUM(C96:C105) -> 0 | D95: =SUM(D96:D105) -> 0 | E95: 0 | F95: 0 | G95: 0 | H95: 0 | I95: 0 | K95: 0
A96: ='Org structure'!E91 -> 9.1 - [Name of sub-vote] | I96: 0
A97: ='Org structure'!E92 -> 0 | I97: 0
A98: ='Org structure'!E93 -> 0 | I98: 0
A99: ='Org structure'!E94 -> 0 | I99: 0
A100: ='Org structure'!E95 -> 0 | I100: 0
A101: ='Org structure'!E96 -> 0 | I101: 0
A102: ='Org structure'!E97 -> 0 | I102: 0
A103: ='Org structure'!E98 -> 0 | I103: 0
A104: ='Org structure'!E99 -> 0 | I104: 0
A105: ='Org structure'!E100 -> 0 | I105: 0
A106: ='Org structure'!A11 -> Vote 10 - [NAME OF VOTE 10] | C106: =SUM(C107:C116) -> 0 | D106: =SUM(D107:D116) -> 0 | E106: 0 | F106: 0 | G106: 0 | H106: 0 | I106: 0 | K106: 0
A107: ='Org structure'!E102 -> 10.1 - [Name of sub-vote] | I107: 0
A108: ='Org structure'!E103 -> 0 | I108: 0
A109: ='Org structure'!E104 -> 0 | I109: 0
A110: ='Org structure'!E105 -> 0 | I110: 0
A111: ='Org structure'!E106 -> 0 | I111: 0
A112: ='Org structure'!E107 -> 0 | I112: 0
A113: ='Org structure'!E108 -> 0 | I113: 0
A114: ='Org structure'!E109 -> 0 | I114: 0
A115: ='Org structure'!E110 -> 0 | I115: 0
A116: ='Org structure'!E111 -> 0 | I116: 0
A117: ='Org structure'!A12 -> Vote 11 - [NAME OF VOTE 11] | C117: =SUM(C118:C127) -> 0 | D117: =SUM(D118:D127) -> 0 | E117: 0 | F117: 0 | G117: 0 | H117: 0 | I117: 0 | K117: 0
A118: ='Org structure'!E113 -> 11.1 - [Name of sub-vote] | I118: 0
A119: ='Org structure'!E114 -> 0 | I119: 0
A120: ='Org structure'!E115 -> 0 | I120: 0
A121: ='Org structure'!E116 -> 0 | I121: 0
A122: ='Org structure'!E117 -> 0 | I122: 0
A123: ='Org structure'!E118 -> 0 | I123: 0
A124: ='Org structure'!E119 -> 0 | I124: 0
A125: ='Org structure'!E120 -> 0 | I125: 0
A126: ='Org structure'!E121 -> 0 | I126: 0
A127: ='Org structure'!E122 -> 0 | I127: 0
A128: ='Org structure'!A13 -> Vote 12 - [NAME OF VOTE 12] | C128: =SUM(C129:C138) -> 0 | D128: =SUM(D129:D138) -> 0 | E128: 0 | F128: 0 | G128: 0 | H128: 0 | I128: 0 | K128: 0
A129: ='Org structure'!E124 -> 12.1 - [Name of sub-vote] | I129: 0
A130: ='Org structure'!E125 -> 0 | I130: 0
A131: ='Org structure'!E126 -> 0 | I131: 0
A132: ='Org structure'!E127 -> 0 | I132: 0
A133: ='Org structure'!E128 -> 0 | I133: 0
A134: ='Org structure'!E129 -> 0 | I134: 0
A135: ='Org structure'!E130 -> 0 | I135: =G135-H135 -> 0 | J135: =IF(I135=0,"",I135/H135) -> 
A136: ='Org structure'!E131 -> 0 | I136: 0
A137: ='Org structure'!E132 -> 0 | I137: 0
A138: ='Org structure'!E133 -> 0 | I138: 0
A139: ='Org structure'!A14 -> Vote 13 - [NAME OF VOTE 13] | C139: =SUM(C140:C149) -> 0 | D139: =SUM(D140:D149) -> 0 | E139: 0 | F139: 0 | G139: 0 | H139: 0 | I139: 0 | K139: 0
A140: ='Org structure'!E135 -> 13.1 - [Name of sub-vote] | I140: 0
A141: ='Org structure'!E136 -> 0 | I141: 0
A142: ='Org structure'!E137 -> 0 | I142: 0
A143: ='Org structure'!E138 -> 0 | I143: 0
A144: ='Org structure'!E139 -> 0 | I144: 0
A145: ='Org structure'!E140 -> 0 | I145: 0
A146: ='Org structure'!E141 -> 0 | I146: 0
A147: ='Org structure'!E142 -> 0 | I147: 0
A148: ='Org structure'!E143 -> 0 | I148: 0
A149: ='Org structure'!E144 -> 0 | I149: 0
A150: ='Org structure'!A15 -> Vote 14 - [NAME OF VOTE 14] | C150: =SUM(C151:C160) -> 0 | D150: =SUM(D151:D160) -> 0 | E150: 0 | F150: 0 | G150: 0 | H150: 0 | I150: 0 | K150: 0
A151: ='Org structure'!E146 -> 14.1 - [Name of sub-vote] | I151: 0
A152: ='Org structure'!E147 -> 0 | I152: 0
A153: ='Org structure'!E148 -> 0 | I153: 0
A154: ='Org structure'!E149 -> 0 | I154: 0
A155: ='Org structure'!E150 -> 0 | I155: 0
A156: ='Org structure'!E151 -> 0 | I156: 0
A157: ='Org structure'!E152 -> 0 | I157: 0
A158: ='Org structure'!E153 -> 0 | I158: 0
A159: ='Org structure'!E154 -> 0 | I159: 0
A160: ='Org structure'!E155 -> 0 | I160: 0
A161: ='Org structure'!A16 -> Vote 15 - [NAME OF VOTE 15] | C161: =SUM(C162:C171) -> 0 | D161: =SUM(D162:D171) -> 0 | E161: 0 | F161: 0 | G161: 0 | H161: 0 | I161: 0 | K161: 0
A162: ='Org structure'!E157 -> 15.1 - [Name of sub-vote] | I162: 0
A163: ='Org structure'!E158 -> 0 | I163: 0
A164: ='Org structure'!E159 -> 0 | I164: 0
A165: ='Org structure'!E160 -> 0 | I165: 0
A166: ='Org structure'!E161 -> 0 | I166: 0
A167: ='Org structure'!E162 -> 0 | I167: 0
A168: ='Org structure'!E163 -> 0 | I168: 0
A169: ='Org structure'!E164 -> 0 | I169: 0
A170: ='Org structure'!E165 -> 0 | I170: 0
A171: ='Org structure'!E166 -> 0 | I171: 0 | L171: =SUM(L79:L82) -> 0 | M171: 0 | N171: 0 | O171: 0 | P171: 0 | Q171: 0 | R171: 0 | S171: 0 | T171: 0 | U171: 0 | V171: 0 | W171: 0
A172: Total multi-year capital expenditure | C172: =C7+C18+C29+C40+C51+C62+C73+C84+C95+C106+C117+C128+C139+C150+C161 -> 659307682.9 | D172: =D7+D18+D29+D40+D51+D62+D73+D84+D95+D106+D117+D128+D139+D150+D161 -> 0 | E172: 0 | F172: 49875036.99 | G172: 327138532.3 | H172: 0 | I172: 327138532.3 | K172: 0
I173: 0
A174: Capital expenditure - Municipal Vote
A175: Expenditue of single-year capital appropriation | B175: 1 | I175: 0
A176: ='Org structure'!A2 -> Vote 1 - City Manager | C176: =SUM(C177:C186) -> 1409774.98 | D176: 9040000 | E176: 9040000 | F176: 0 | G176: 592584.04 | H176: 6780000 | I176: -6187415.96 | J176: -0.9125982242 | K176: 9040000
A177: ='Org structure'!E3 -> 1.1 - Internal Audit and Compliance | D177: 510000 | E177: 410000 | G177: 0 | H177: =E177/12*9 -> 307500 | I177: -307500 | J177: -1 | K177: =E177 -> 410000
A178: ='Org structure'!E4 -> 1.2 - Office of the City Manager | C178: 274174.98 | D178: 1700000 | E178: 1800000 | G178: 52295.5 | H178: =E178/12*9 -> 1350000 | I178: -1297704.5 | J178: -0.9612625926 | K178: 1800000
A179: ='Org structure'!E5 -> 1.3 - Political Support | C179: 1135600 | D179: 4940000 | E179: 4940000 | G179: 250340.8 | H179: 3705000 | I179: -3454659.2 | J179: -0.9324316329 | K179: 4940000
A180: ='Org structure'!E6 -> 1.4 - Strategic Planning | D180: 1890000 | E180: 1890000 | G180: 289947.74 | H180: 1417500 | I180: -1127552.26 | J180: -0.7954513298 | K180: 1890000
A181: ='Org structure'!E7 -> 0 | I181: 0
A182: ='Org structure'!E8 -> 0 | I182: 0
A183: ='Org structure'!E9 -> 0 | I183: 0
A184: ='Org structure'!E10 -> 0 | I184: 0
A185: ='Org structure'!E11 -> 0 | I185: 0
A186: ='Org structure'!E12 -> 0 | I186: 0
A187: ='Org structure'!A3 -> Vote 2 - City Finance | C187: =SUM(C188:C197) -> 6469188.79 | D187: =SUM(D188:D197) -> 39856796.95 | E187: =SUM(E188:E197) -> 43096797 | F187: 198680 | G187: 3980905.66 | H187: 32322597.75 | I187: -28341692.09 | J187: -0.8768383132 | K187: 43096797
A188: ='Org structure'!E14 -> 2.1 - Asset Management | C188: 5396998.22 | D188: 4864855.4 | E188: 5294855 | G188: 3702175.08 | H188: =E188/12*9 -> 3971141.25 | I188: -268966.17 | J188: -0.06773019469 | K188: =E188 -> 5294855
A189: ='Org structure'!E15 -> 2.2 - Budget and Treasury Management | C189: 1047881.32 | D189: 31362168.94 | E189: 24012169 | G189: 0 | H189: 18009126.75 | I189: -18009126.75 | J189: -1 | K189: 24012169
A190: ='Org structure'!E16 -> 2.3 - Expenditure Management | C190: 0 | D190: 163000 | E190: 183000 | G190: 0 | H190: 137250 | I190: -137250 | J190: -1 | K190: 183000
A191: ='Org structure'!E17 -> 2.4 - Revenue Management | C191: 0 | D191: 2055000 | E191: 12395000 | G191: 49064.98 | H191: 9296250 | I191: -9247185.02 | J191: -0.9947220675 | K191: 12395000
A192: ='Org structure'!E18 -> 2.5 - Supply Chain Management | C192: 24309.25 | D192: 1411772.61 | E192: 1211773 | F192: 198680 | G192: 229665.6 | H192: 908829.75 | I192: -679164.15 | J192: -0.7472952442 | K192: 1211773
A193: ='Org structure'!E19 -> 0 | I193: 0
A194: ='Org structure'!E20 -> 0 | I194: 0
A195: ='Org structure'!E21 -> 0 | I195: 0
A196: ='Org structure'!E22 -> 0 | I196: 0
A197: ='Org structure'!E23 -> 0 | I197: 0
A198: ='Org structure'!A4 -> Vote 3 - Corporate Services | C198: =SUM(C199:C208) -> 13964306.88 | D198: 50556700 | E198: 56476421.5 | F198: 0 | G198: 1220781.45 | H198: 42357316.12 | I198: -41136534.67 | J198: -0.9711789707 | K198: 56476421.5
A199: ='Org structure'!E25 -> 3.1 - Area Based Management | D199: 2459000 | E199: 2042100 | G199: 440770.77 | H199: =E199/12*9 -> 1531575 | I199: -1090804.23 | J199: -0.712210783 | K199: =E199 -> 2042100
A200: ='Org structure'!E26 -> 3.2 - Public Safety, Emergency Services and Enforcement | C200: -299343.43 | D200: 2500000 | E200: 2500000 | G200: 0 | H200: 1875000 | I200: =G200-H200 -> -1875000 | J200: =IF(I200=0,"",I200/H200) -> -1 | K200: 2500000
... 145 more rows

Sheet C6-FinPos
A1: =muni& " - "&S71E& " - "&date -> KZN225 Msunduzi - Table C6 Consolidated Monthly Budget Statement - Financial Position - Q3 Third Quarter
A2: =desc -> Description | B2: =head27 -> Ref | C2: =Head1 -> 2020/21 | D2: =Head2 -> Budget Year 2021/22
C3: =Head5 -> Audited Outcome | D3: =Head6 -> Original Budget | E3: =Head7 -> Adjusted Budget | F3: =Head39 -> YearTD actual | G3: =Head8 -> Full Year Forecast
A4: R thousands | B4: 1
A5: ASSETS
A6: Current assets
A7: Cash | C7: 361403106.2 | D7: 380397963.6 | E7: 343014420.2 | F7: 89505079.87 | G7: =(E7) -> 343014420.2
A8: Call investment deposits | C8: 34030238.07 | D8: 825000 | E8: 0 | F8: 483334026.2 | G8: =(E8) -> 0
A9: Consumer debtors | C9: 1176104174 | D9: 2549906678 | E9: 2549906678 | F9: 1763438136 | G9: 2549906678
A10: Other debtors | C10: 568394611 | D10: 729644018.6 | E10: 729641518.6 | F10: 10427221.16 | G10: 729641518.6
A11: Current portion of long-term receivables | E11: 0 | G11: 0
A12: Inventory | C12: 353716815 | D12: 173496047.1 | E12: 173496047.1 | F12: 364125529.7 | G12: 173496047.1
A13: Total current assets | C13: =SUM(C7:C12) -> 2493648944 | D13: =SUM(D7:D12) -> 3834269707 | E13: =SUM(E7:E12) -> 3796058664 | F13: =SUM(F7:F12) -> 2710829993 | G13: =SUM(G7:G12) -> 3796058664
A15: Non current assets
A16: Long-term receivables | F16: -16305758.88 | G16: =(E16) -> 0
A17: Investments | G17: 0
A18: Investment property | C18: 892583607 | D18: 821671435 | E18: 821671435 | F18: 877142334.9 | G18: =(E18) -> 821671435
A19: Investments in Associate | G19: =(D19)+0 -> 0
A20: Property, plant and equipment | C20: 6791231397 | D20: 6764876311 | E20: 6834514672 | F20: 6820054444 | G20: =(E20) -> 6834514672
A22: Biological | D22: 1070250 | E22: 1070250 | F22: 701097.14 | G22: =(E22) -> 1070250
A23: Intangible | C23: 24463571 | D23: 30700413 | E23: 30700413 | F23: 19759815.65 | G23: 30700413
A24: Other non-current assets | C24: 369962558 | D24: 360375178.5 | E24: 360375178.5 | F24: 96300000 | G24: 360375178.5
A25: Total non current assets | C25: =SUM(C16:C20)+SUM(C22:C24) -> 8078241133 | D25: =SUM(D16:D20)+SUM(D22:D24) -> 7978693588 | E25: =SUM(E16:E20)+SUM(E22:E24) -> 8048331949 | F25: =SUM(F16:F20)+SUM(F22:F24) -> 7797651933 | G25: =SUM(G16:G20)+SUM(G22:G24) -> 8048331949
A26: TOTAL ASSETS | C26: =C13+C25 -> 1.057189008e+10 | D26: =D13+D25 -> 1.181296329e+10 | E26: =E13+E25 -> 1.184439061e+10 | F26: =F13+F25 -> 1.050848193e+10 | G26: =G13+G25 -> 1.184439061e+10
A28: LIABILITIES
A29: Current liabilities
A30: Bank overdraft | E30: 0
A31: Borrowing | C31: 81573484 | D31: 95346077.83 | E31: 95346077.83 | F31: 23513637.71 | G31: =(E31) -> 95346077.83
A32: Consumer deposits | C32: 128836470 | D32: 114344430.7 | E32: 114344430.7 | F32: 143834491.6 | G32: 114344430.7
A33: Trade and other payables | C33: 1777760258 | D33: 946358981.8 | E33: 945608981.8 | F33: 1816980221 | G33: 945608981.8
A34: Provisions | C34: 50985131 | D34: 140397811.8 | E34: 140397811.8 | F34: 50329194.03 | G34: 140397811.8
A35: Total current liabilities | C35: =SUM(C30:C34) -> 2039155343 | D35: =SUM(D30:D34) -> 1296447302 | E35: =SUM(E30:E34) -> 1295697302 | F35: =SUM(F30:F34) -> 2034657544 | G35: =SUM(G30:G34) -> 1295697302
A37: Non current liabilities
A38: Borrowing | C38: 217108731 | D38: 377458040.8 | E38: 377458040.8 | F38: 203744511.8 | G38: =(E38) -> 377458040.8
A39: Provisions | C39: 610749588 | D39: 809779414.9 | E39: 809779414.9 | F39: 610749588 | G39: 809779414.9
A40: Total non current liabilities | C40: =SUM(C38:C39) -> 827858319 | D40: =SUM(D38:D39) -> 1187237456 | E40: =SUM(E38:E39) -> 1187237456 | F40: =SUM(F38:F39) -> 814494099.8 | G40: =SUM(G38:G39) -> 1187237456
A41: TOTAL LIABILITIES | C41: =C35+C40 -> 2867013662 | D41: =D35+D40 -> 2483684758 | E41: =E35+E40 -> 2482934758 | F41: =F35+F40 -> 2849151644 | G41: =G35+G40 -> 2482934758
A43: NET ASSETS | B43: 2 | C43: =C26-C41 -> 7704876415 | D43: =D26-D41 -> 9329278537 | E43: =E26-E41 -> 9361455854 | F43: =F26-F41 -> 7659330282 | G43: =G26-G41 -> 9361455854
A45: COMMUNITY WEALTH/EQUITY
A46: Accumulated Surplus/(Deficit) | C46: 7513887393 | D46: 9100365279 | E46: 9132542596 | F46: 7458288667 | G46: =(E46) -> 9132542596
A47: Reserves | C47: 190989022 | D47: 228913258 | E47: 228913258 | F47: 201041615.3 | G47: 228913258
A48: TOTAL COMMUNITY WEALTH/EQUITY | B48: 2 | C48: =SUM(C46:C47) -> 7704876415 | D48: =SUM(D46:D47) -> 9329278537 | E48: =SUM(E46:E47) -> 9361455854 | F48: =SUM(F46:F47) -> 7659330282 | G48: =SUM(G46:G47) -> 9361455854
A49: =head27a -> References
A50: 1. Material variances to be explained in Table SC1
A51: 2. Net assets must balance with Total Community Wealth/Equity
A54: check balance | C54: =C43-C48 -> 0 | D54: =D43-D48 -> 0 | E54: =E43-E48 -> 0 | F54: =F43-F48 -> -0.4299974442 | G54: =G43-G48 -> 0

Sheet C7-CFlow
A1: =muni& " - "&S71F& " - "&date -> KZN225 Msunduzi - Table C7 Consolidated Monthly Budget Statement - Cash Flow - Q3 Third Quarter
A2: =desc -> Description | B2: =head27 -> Ref | C2: =Head1 -> 2020/21 | D2: =Head2 -> Budget Year 2021/22
C3: =Head5 -> Audited Outcome | D3: =Head6 -> Original Budget | E3: =Head7 -> Adjusted Budget | F3: =Head38 -> Monthly actual | G3: =Head39 -> YearTD actual | H3: =Head40 -> YearTD budget | I3: =Head41 -> YTD variance | J3: =Head41 -> YTD variance | K3: =Head8 -> Full Year Forecast
A4: R thousands | B4: 1 | J4: %
A5: CASH FLOW FROM OPERATING ACTIVITIES
A6: Receipts
A7: Property rates | C7: 4078704928 | D7: 1228882075 | E7: 1228882075 | H7: =E7/12*9 -> 921661556.3 | I7: =(G7-H7)+0 -> -921661556.3 | J7: =IF(I7=0,"",I7/H7) -> -1 | K7: =(E7) -> 1228882075
A8: Service charges | D8: 3495506596 | E8: 3495506596 | H8: =E8/12*9 -> 2621629947 | I8: =(G8-H8)+0 -> -2621629947 | J8: -1 | K8: =(E8) -> 3495506596
A9: Other revenue | C9: 13443702 | D9: 201961848.1 | E9: 187682425.7 | F9: 0 | G9: 14121390 | H9: 140761819.2 | I9: =(G9-H9)+286504.73 -> -126353924.5 | J9: =(IF(I9=0,"",I9/H9))+0.0922951725360826 -> -0.8053482736 | K9: 187682425.7
A10: Transfers and Subsidies - Operational | C10: 1254551714 | D10: 661215834.8 | E10: 725957048.3 | H10: 544467786.2 | I10: =(G10-H10)+0 -> -544467786.2 | J10: -1 | K10: 725957048.3
A11: Transfers and Subsidies - Capital | D11: 380796576 | E11: 429670815 | H11: 322253111.2 | I11: =(G11-H11)+0 -> -322253111.2 | J11: -1 | K11: 429670815
A12: Interest | C12: 23092208 | D12: 229516140.9 | E12: 229366140.9 | F12: 10728 | G12: 67103.68 | H12: 172024605.7 | I12: =(G12-H12)+-6196.47 -> -171963698.5 | J12: =(IF(I12=0,"",I12/H12))+-0.4957176 -> -1.495363539 | K12: 229366140.9
A13: Dividends | D13: 0 | E13: 0 | I13: =(G13-H13)+0 -> 0
A14: Payments
A15: Suppliers and employees | C15: -4744668787 | D15: -5453126929 | E15: -5587940063 | F15: -978451.23 | G15: -9629131.49 | H15: =E15/12*9 -> -4190955048 | I15: =(H15-G15)+138345.76 -> -4181187570 | J15: =(IF(I15=0,"",I15/H15))+-0.133700889486561 -> 0.8639685016 | K15: =(E15) -> -5587940063
A16: Finance charges | C16: -36203064 | D16: -34724271.93 | E16: -34724271.93 | H16: -26043203.94 | I16: =(H16-G16)+0 -> -26043203.94 | J16: =IF(I16=0,"",I16/H16) -> 1 | K16: -34724271.93
A17: Transfers and Grants | D17: -45862882.85 | E17: -45862882.85 | H17: -34397162.14 | I17: =(H17-G17)+0 -> -34397162.14 | J17: =IF(I17=0,"",I17/H17) -> 1 | K17: -45862882.85
A18: NET CASH FROM/(USED) OPERATING ACTIVITIES | C18: =SUM(C7:C13)+SUM(C15:C17) -> 588920701 | D18: =(SUM(D7:D13)+SUM(D15:D17))+0 -> 664164986.6 | E18: =(SUM(E7:E13)+SUM(E15:E17))+0 -> 628537882.7 | F18: =(SUM(F7:F13)+SUM(F15:F17))+0 -> -967723.23 | G18: =(SUM(G7:G13)+SUM(G15:G17))+0 -> 4559362.19 | H18: =(SUM(H7:H13)+SUM(H15:H17))+0 -> 471403412 | I18: =(H18-G18)+0 -> 466844049.8 | J18: =IF(I18=0,"",I18/H18) -> 0.9903281095 | K18: =(SUM(K7:K13)+SUM(K15:K17))+0 -> 628537882.7
A20: CASH FLOWS FROM INVESTING ACTIVITIES
A21: Receipts
A22: Proceeds on disposal of PPE | C22: 359833 | I22: =G22-H22 -> 0 | J22: =IF(I22=0,"",I22/H22) -> 
A24: Decrease (increase) in non-current receivables | I24: =G24-H24 -> 0
A25: Decrease (increase) in non-current investments | C25: 69164 | I25: =G25-H25 -> 0
A26: Payments
A27: Capital assets | C27: -633107323 | D27: -576585867 | E27: -655206970 | F27: -31520 | G27: -47565 | H27: =E27/12*9 -> -491405227.5 | I27: =(H27-G27)+23686.67 -> -491333975.8 | J27: =(IF(I27=0,"",I27/H27))+-1 -> -0.000144995751 | K27: =(E27) -> -655206970
A28: NET CASH FROM/(USED) INVESTING ACTIVITIES | C28: =SUM(C22:C25)+C27 -> -632678326 | D28: =SUM(D22:D25)+D27 -> -576585867 | E28: -655206970 | F28: -31520 | G28: -47565 | H28: -491405227.5 | I28: =H28-G28 -> -491357662.5 | J28: 0.9999032062 | K28: =SUM(K22:K25)+K27 -> -655206970
A30: CASH FLOWS FROM FINANCING ACTIVITIES
A31: Receipts
A32: Short term loans | I32: =G32-H32 -> 0 | J32: =IF(I32=0,"",I32/H32) -> 
A33: Borrowing long term/refinancing | D33: 100000000 | E33: 100000000 | H33: =E33/12*9 -> 75000000 | I33: =G33-H33 -> -75000000 | J33: -1
A34: Increase (decrease) in consumer deposits | I34: =G34-H34 -> 0
A35: Payments
A36: Repayment of borrowing | C36: -113418258 | D36: -91637534.15 | E36: -91637534.15 | H36: =E36/12*9 -> -68728150.61 | I36: =H36-G36 -> -68728150.61 | J36: 1 | K36: =(E36) -> -91637534.15
A37: NET CASH FROM/(USED) FINANCING ACTIVITIES | C37: =SUM(C32:C34)+C36 -> -113418258 | D37: 8362465.853 | E37: 8362465.853 | F37: 0 | G37: 0 | H37: 6271849.39 | I37: =H37-G37 -> 6271849.39 | J37: 1 | K37: =SUM(K32:K34)+K36 -> -91637534.15
A39: NET INCREASE/ (DECREASE) IN CASH HELD | C39: =C18+C28+C37 -> -157175883 | D39: 95941585.52 | E39: -18306621.43 | F39: -999243.23 | G39: 4511797.19 | H39: -13729966.07 | K39: =K18+K28+K37 -> -118306621.4
A40: Cash/cash equivalents at beginning: | C40: 518976967 | D40: 284215378.1 | E40: 361320731 | H40: =IF(E40=0, D40, E40) -> 361320731 | K40: =G40 -> 0
A41: Cash/cash equivalents at month/year end: | C41: =C39+C40 -> 361801084 | D41: =D39+D40 -> 380156963.6 | E41: =E39+E40 -> 343014109.6 | G41: =G39+G40 -> 4511797.19 | H41: =H39+H40 -> 347590764.9 | K41: =K39+K40 -> -118306621.4
A42: References
A43: 1. Material variances to be explained in Table SC1

Sheet SC1
A1: =muni& " - "&S71G& " - "&date -> KZN225 Msunduzi - Supporting Table SC1 Material variance explanations - Q3 Third Quarter
A2: =head27 -> Ref | B2: =desc -> Description
C3: Variance | D3: Reasons for material deviations | E3: Remedial or corrective steps/remarks
B4: R thousands
A5: 1 | B5: ='C4-FinPerf RE'!A5 -> Revenue By Source
B6: Other revenue | C6: -0.5277978724 | D6: Projections higher than the actual revenue | E6: Budget to be adjusted downwards during adjustment budget
B7: Rental of facilities and equipment | C7: -0.186579468 | D7: Rental lower than intially budgeted, hence interest is lower | E7: To be adjusted downwards during the adjustment budget
B8: Interest earned - external investments | C8: -1.866170715 | D8: Investments lower than intially budgeted, hence interest is lower | E8: To be adjusted downwards during the adjustment budget
B9: Fines, penalties and forfeits | C9: -0.2122054544 | D9: The variance is due to the decision of the DPP withdrawing the municipality's permission to issue traffic fines | E9: The municipality is still negotiating with the DPP
A10: 2 | B10: ='C4-FinPerf RE'!A24 -> Expenditure By Type
B11: Other expenditure | C11: -0.3504374333 | D11: Projections higher than the actual expenditure. | E11: No remedial action is required
B12: Remuneration of councillors | C12: -0.1335827901 | D12: Projections higher than the actual expenditure. | E12: No remedial action is required
B13: Debt impairment | C13: -0.7433402007 | D13: No entries for Debt Impairment have been processed. This is done at year end. | E13: This is a year end entry
B14: Finance charges | C14: -0.2270073888 | D14: Projections higher than the actual expenditure. | E14: No remedial action is required
A15: 3 | B15: =RIGHT('C5-Capex'!A40,19) -> Capital Expenditure
B16: Total Capital Funding | C16: -0.3194127618 | D16: Various reasons have been put forward, capex meetings | E16: This will self correct during the year
A20: 4 | B20: Financial Position
A25: 5 | B25: Cash Flow
A30: 6 | B30: Measureable performance
A35: 7 | B35: Municipal Entities
A41: =head27a -> References
A42: 1. Revenue for each source, vote and standard classification
A43: 2. Expenditure for each type, vote and standard classification
A44: 3. Capital expenditure for each vote and standard classification
A45: 4. Explain any material variances between the annual budget and the expected financial position based on current trends
A46: 5. Cash receipts by source and cash payments by type where not explained under revenue and expenditure
A47: 6. For Sept, Dec, Mar and Jun statements explain any material variances in achievement of measurable performance objectives

Sheet SC2
A1: =muni& " - "&S71H& " - "&Head57 -> KZN225 Msunduzi - Supporting Table SC2 Monthly Budget Statement - performance indicators - Q3 Third Quarter
A2: Description of financial indicator | B2: Basis of calculation | C2: =head27 -> Ref | D2: =Head1 -> 2020/21 | E2: =Head2 -> Budget Year 2021/22
D3: =Head5 -> Audited Outcome | E3: =Head6 -> Original Budget | F3: =Head7 -> Adjusted Budget | G3: =Head39 -> YearTD actual | H3: =Head8 -> Full Year Forecast
A5: Borrowing Management
A7: Capital Charges to Operating Expenditure | B7: Interest & principal paid/Operating Expenditure | D7: =IF(ISERROR((D42-D43)/D45),0,((D42-D43)/D45)) -> -0.0110487422 | E7: =IF(ISERROR((E42+E44)/E45),0,((E42+E44)/E45)) -> 0.0746266219 | F7: =IF(ISERROR((F42+F44)/F45),0,((F42+F44)/F45)) -> 0.07316779647 | G7: =IF(ISERROR((G42+G44)/G45),0,((G42+G44)/G45)) -> 0.00596793417 | H7: =IF(ISERROR((H42+H44)/H45),0,((H42+H44)/H45)) -> 0.01459156545
A8: Borrowed funding of 'own' capital expenditure | B8: Borrowings/Capital expenditure excl. transfers and grants | D8: =IF(ISERROR(D47/D46),0,(D47/D46)) -> 0 | E8: =IF(ISERROR(E47/E46),0,(E47/E46)) -> 0.1734347054 | F8: =IF(ISERROR(F47/F46),0,(F47/F46)) -> 0.1526235293 | G8: =IF(ISERROR(G47/G46),0,(G47/G46)) -> 0.07650608634 | H8: =IF(ISERROR(H47/H46),0,(H47/H46)) -> 0.1526235293
A9: Safety of Capital
A10: Debt to Equity | B10: Loans, Accounts Payable, Overdraft & Tax Provision/ Funds & Reserves | D10: =IF(ISERROR(D48/D49),0,(D48/D49)) -> 0.2694971809 | E10: =IF(ISERROR(E48/E49),0,(E48/E49)) -> 0.1521192764 | F10: =IF(ISERROR(F48/F49),0,(F48/F49)) -> 0.1515162943 | G10: =IF(ISERROR(G48/G49),0,(G48/G49)) -> 0.2668951847 | H10: =IF(ISERROR(H48/H49),0,(H48/H49)) -> 0.1515162943
A11: Gearing | B11: Long Term Borrowing/ Funds & Reserves | D11: =IF(ISERROR(D51/D50),0,(D51/D50)) -> 1.136760264 | E11: =IF(ISERROR(E51/E50),0,(E51/E50)) -> 1.648912973 | F11: =IF(ISERROR(F51/F50),0,(F51/F50)) -> 1.648912973 | G11: =IF(ISERROR(G51/G50),0,(G51/G50)) -> 1.013444462 | H11: =IF(ISERROR(H51/H50),0,(H51/H50)) -> 1.648912973
A12: Liquidity
A13: Current Ratio | B13: Current assets/current liabilities | C13: 1 | D13: =IF(ISERROR(D52/D53),0,(D52/D53)) -> 1.222883265 | E13: =IF(ISERROR(E52/E53),0,(E52/E53)) -> 2.957520681 | F13: =IF(ISERROR(F52/F53),0,(F52/F53)) -> 2.929741891 | G13: =IF(ISERROR(G52/G53),0,(G52/G53)) -> 1.332327399 | H13: =IF(ISERROR(H52/H53),0,(H52/H53)) -> 2.929741891
A14: Liquidity Ratio | B14: Monetary Assets/Current Liabilities | D14: =IF(ISERROR(D54/D53),0,(D54/D53)) -> 0.1939201668 | E14: =IF(ISERROR(E54/E53),0,(E54/E53)) -> 0.294052032 | F14: =IF(ISERROR(F54/F53),0,(F54/F53)) -> 0.2647334525 | G14: =IF(ISERROR(G54/G53),0,(G54/G53)) -> 0.2815407967 | H14: =IF(ISERROR(H54/H53),0,(H54/H53)) -> 0.2647334525
A15: Revenue Management
A16: Annual Debtors Collection Rate (Payment Level %) | B16: Last 12 Mths Receipts/ Last 12 Mths Billing
A17: Outstanding Debtors to Revenue | B17: Total Outstanding Debtors to Annual Revenue | D17: =IF(ISERROR(D59/D55),0,(D59/D55)) -> 0.3161301168 | E17: =IF(ISERROR(E59/E55),0,(E59/E55)) -> 0.5109596666 | F17: =IF(ISERROR(F59/F55),0,(F59/F55)) -> 0.5058568042 | G17: =IF(ISERROR(G59/G55),0,(G59/G55)) -> 0.3850144415 | H17: =IF(ISERROR(H59/H55),0,(H59/H55)) -> 0.5058568042
A18: Longstanding Debtors Recovered | B18: Debtors > 12 Mths Recovered/Total Debtors > 12 Months Old | D18: =IF(ISERROR(D64/D63),0,(D64/D63)) -> 0 | E18: =IF(ISERROR(E64/E63),0,(E64/E63)) -> 0 | F18: =IF(ISERROR(F64/F63),0,(F64/F63)) -> 0 | G18: =IF(ISERROR(G64/G63),0,(G64/G63)) -> 0 | H18: =IF(ISERROR(H64/H63),0,(H64/H63)) -> 0
A19: Creditors Management
A20: Creditors System Efficiency | B20: % of Creditors Paid Within Terms (within MFMA s 65(e))
A21: Funding of Provisions
A22: Percentage Of Provisions Not Funded | B22: Unfunded Provisions/Total Provisions
A23: Other Indicators
A24: Electricity Distribution Losses | B24: % Volume (units purchased and generated less units sold)/units purchased and generated | C24: 2
A25: Water Distribution Losses | B25: % Volume (units purchased and own source less units sold)/Total units purchased and own source | C25: 2
A26: Employee costs | B26: Employee costs/Total Revenue - capital revenue | D26: =IF(ISERROR(D40/D55),0,(D40/D55)) -> 0.2599902568 | E26: =IF(ISERROR(E40/E55),0,(E40/E55)) -> 0.2396370402 | F26: =IF(ISERROR(F40/F55),0,(F40/F55)) -> 0.2429233262 | G26: =IF(ISERROR(G40/G55),0,(G40/G55)) -> 0.2348312815 | H26: =IF(ISERROR(H40/H55),0,(H40/H55)) -> 0.2429233262
A27: Repairs & Maintenance | B27: R&M/Total Revenue - capital revenue | D27: =IF(ISERROR(D41/D55),0,(D41/D55)) -> 0 | E27: =IF(ISERROR(E41/E55),0,(E41/E55)) -> 0 | F27: =IF(ISERROR(F41/F55),0,(F41/F55)) -> 0 | G27: =IF(ISERROR(G41/G55),0,(G41/G55)) -> 0 | H27: =IF(ISERROR(H41/H55),0,(H41/H55)) -> 0
A28: Interest & Depreciation | B28: I&D/Total Revenue - capital revenue | D28: =IF(ISERROR((D42+D44)/D55),0,((D42+D44)/D55)) -> 0.07679951714 | E28: =IF(ISERROR((E42+E44)/E55),0,((E42+E44)/E55)) -> 0.07113853468 | F28: =IF(ISERROR((F42+F44)/F55),0,((F42+F44)/F55)) -> 0.07042809269 | G28: =IF(ISERROR((G42+G44)/G55),0,((G42+G44)/G55)) -> 0.005522020187 | H28: =IF(ISERROR((H42+H44)/H55),0,((H42+H44)/H55)) -> 0.01404519712
A29: IDP regulation financial viability indicators
A30: i. Debt coverage | B30: (Total Operating Revenue - Operating Grants)/Debt service payments due within financial year)
A31: ii. O/S Service Debtors to Revenue | B31: Total outstanding service debtors/annual revenue received for services
A32: iii. Cost coverage | B32: (Available cash + Investments)/monthly fixed operational expenditure
A33: References
A34: 1. Consumer debtors > 12 months old are excluded from current assets.
A35: 2. Material variances to be explained.
A37: Calculations
A38: ='C6-FinPos'!A38 -> Borrowing | D38: ='C6-FinPos'!C38 -> 217108731 | E38: ='C6-FinPos'!D38 -> 377458040.8 | F38: ='C6-FinPos'!E38 -> 377458040.8 | G38: ='C6-FinPos'!F38 -> 203744511.8 | H38: 0
A39: Total Assets | D39: ='C6-FinPos'!C26 -> 1.057189008e+10 | E39: ='C6-FinPos'!D26 -> 1.181296329e+10 | F39: ='C6-FinPos'!E26 -> 1.184439061e+10 | G39: ='C6-FinPos'!F26 -> 1.050848193e+10 | H39: ='C6-FinPos'!G26 -> 1.184439061e+10
A40: ='C4-FinPerf RE'!A25 -> Employee related costs | D40: ='C4-FinPerf RE'!C25 -> 1434702558 | E40: ='C4-FinPerf RE'!D25 -> 1538089743 | F40: ='C4-FinPerf RE'!E25 -> 1574909638 | G40: ='C4-FinPerf RE'!G25 -> 1071985693 | H40: ='C4-FinPerf RE'!K25 -> 1574909638
A41: =A27 -> Repairs & Maintenance
A42: Interest (finance charges) | D42: ='C4-FinPerf RE'!C29 -> 42536964.33 | E42: ='C4-FinPerf RE'!D29 -> 34724271.93 | F42: ='C4-FinPerf RE'!E29 -> 34724271.93 | G42: ='C4-FinPerf RE'!G29 -> 25207572.85 | H42: ='C4-FinPerf RE'!K29 -> 34724271.93
A43: Principal paid | D43: =-'C7-CFlow'!C36 -> 113418258 | E43: =-'C7-CFlow'!D36 -> 91637534.15 | F43: =-'C7-CFlow'!E36 -> 91637534.15 | G43: =-'C7-CFlow'!G36 -> 0 | H43: =-'C7-CFlow'!K36 -> 91637534.15
A44: Depreciation | D44: ='C4-FinPerf RE'!C28 -> 381265315.9 | E44: ='C4-FinPerf RE'!D28 -> 421872297.6 | F44: ='C4-FinPerf RE'!E28 -> 421871987 | H44: ='C4-FinPerf RE'!K26 -> 56332921.51
A45: Operating expenditure | D45: ='C4-FinPerf RE'!C36 -> 6415326957 | E45: ='C4-FinPerf RE'!D36 -> 6118414019 | F45: ='C4-FinPerf RE'!E36 -> 6240399205 | G45: ='C4-FinPerf RE'!G36 -> 4223835607 | H45: ='C4-FinPerf RE'!K36 -> 6240399205
A46: ='C5-Capex'!A40 -> Total Capital Expenditure | D46: ='C5-Capex'!C40 -> 686255531.1 | E46: ='C5-Capex'!D40 -> 576585867 | F46: ='C5-Capex'!E40 -> 655206969 | G46: ='C5-Capex'!G40 -> 334491691.1 | H46: ='C5-Capex'!K40 -> 655206969
A47: Borrowed funding for capital | D47: ='C5-Capex'!C72 -> 0 | E47: ='C5-Capex'!D72 -> 100000000 | F47: ='C5-Capex'!E72 -> 100000000 | G47: ='C5-Capex'!G72 -> 25590650.2 | H47: ='C5-Capex'!K72 -> 100000000
A48: Debt | D48: ='C6-FinPos'!C30+'C6-FinPos'!C31+'C6-FinPos'!C33+'C6-FinPos'!C38 -> 2076442473 | E48: ='C6-FinPos'!D30+'C6-FinPos'!D31+'C6-FinPos'!D33+'C6-FinPos'!D38 -> 1419163100 | F48: ='C6-FinPos'!E30+'C6-FinPos'!E31+'C6-FinPos'!E33+'C6-FinPos'!E38 -> 1418413100 | G48: ='C6-FinPos'!F30+'C6-FinPos'!F31+'C6-FinPos'!F33+'C6-FinPos'!F38 -> 2044238370 | H48: ='C6-FinPos'!G30+'C6-FinPos'!G31+'C6-FinPos'!G33+'C6-FinPos'!G38 -> 1418413100
A49: Equity | D49: ='C6-FinPos'!C48 -> 7704876415 | E49: ='C6-FinPos'!D48 -> 9329278537 | F49: ='C6-FinPos'!E48 -> 9361455854 | G49: ='C6-FinPos'!F48 -> 7659330282 | H49: ='C6-FinPos'!G48 -> 9361455854
A50: ='C6-FinPos'!A47 -> Reserves | D50: ='C6-FinPos'!C47 -> 190989022 | E50: ='C6-FinPos'!D47 -> 228913258 | F50: ='C6-FinPos'!E47 -> 228913258 | G50: ='C6-FinPos'!F47 -> 201041615.3 | H50: ='C6-FinPos'!G47 -> 228913258
A51: ='C6-FinPos'!A38 -> Borrowing | D51: ='C6-FinPos'!C38 -> 217108731 | E51: ='C6-FinPos'!D38 -> 377458040.8 | F51: ='C6-FinPos'!E38 -> 377458040.8 | G51: ='C6-FinPos'!F38 -> 203744511.8 | H51: ='C6-FinPos'!G38 -> 377458040.8
A52: ='C6-FinPos'!A6 -> Current assets | D52: ='C6-FinPos'!C13 -> 2493648944 | E52: ='C6-FinPos'!D13 -> 3834269707 | F52: ='C6-FinPos'!E13 -> 3796058664 | G52: ='C6-FinPos'!F13 -> 2710829993 | H52: ='C6-FinPos'!G13 -> 3796058664
A53: ='C6-FinPos'!A29 -> Current liabilities | D53: ='C6-FinPos'!C35 -> 2039155343 | E53: ='C6-FinPos'!D35 -> 1296447302 | F53: ='C6-FinPos'!E35 -> 1295697302 | G53: ='C6-FinPos'!F35 -> 2034657544 | H53: ='C6-FinPos'!G35 -> 1295697302
A54: Monetary assets | D54: ='C6-FinPos'!C7+'C6-FinPos'!C8 -> 395433344.2 | E54: ='C6-FinPos'!D7+'C6-FinPos'!D8 -> 381222963.6 | F54: ='C6-FinPos'!E7+'C6-FinPos'!E8 -> 343014420.2 | G54: ='C6-FinPos'!F7+'C6-FinPos'!F8 -> 572839106.1 | H54: ='C6-FinPos'!G7+'C6-FinPos'!G8 -> 343014420.2
A55: ='C4-FinPerf RE'!A22 -> Total Revenue (excluding capital transfers and contributions) | D55: ='C4-FinPerf RE'!C22 -> 5518293552 | E55: ='C4-FinPerf RE'!D22 -> 6418414037 | F55: ='C4-FinPerf RE'!E22 -> 6483155251 | G55: ='C4-FinPerf RE'!G22 -> 4564918635 | H55: ='C4-FinPerf RE'!K22 -> 6483155251
A56: ='C4-FinPerf RE'!A19 -> Transfers and subsidies | D56: ='C4-FinPerf RE'!C19 -> 757156210 | E56: ='C4-FinPerf RE'!D19 -> 661215834.8 | F56: ='C4-FinPerf RE'!E19 -> 725957048.3 | G56: ='C4-FinPerf RE'!G19 -> 656144390.8 | H56: ='C4-FinPerf RE'!K19 -> 725957048.3
A57: ='C4-FinPerf RE'!A39 -> Transfers and subsidies - capital (monetary allocations) (National / Provincial and District) | D57: ='C4-FinPerf RE'!C39 -> 498745626.6 | E57: ='C4-FinPerf RE'!D39 -> 380796576 | F57: ='C4-FinPerf RE'!E39 -> 429670814.7 | G57: ='C4-FinPerf RE'!G39 -> 262491987.4 | H57: ='C4-FinPerf RE'!K39 -> 429670814.7
A58: Debt service payments | D58: ='C7-CFlow'!C12+'C7-CFlow'!C36 -> -90326050 | E58: ='C7-CFlow'!D12+'C7-CFlow'!D36 -> 137878606.7 | F58: ='C7-CFlow'!E12+'C7-CFlow'!E36 -> 137728606.7 | G58: ='C7-CFlow'!G16+'C7-CFlow'!G36 -> 0 | H58: ='C7-CFlow'!K16+'C7-CFlow'!K36 -> -126361806.1
A59: Outstanding debtors (receivables) | D59: ='C6-FinPos'!C9+'C6-FinPos'!C10+'C6-FinPos'!C11+'C6-FinPos'!C16 -> 1744498785 | E59: ='C6-FinPos'!D9+'C6-FinPos'!D10+'C6-FinPos'!D11+'C6-FinPos'!D16 -> 3279550696 | F59: ='C6-FinPos'!E9+'C6-FinPos'!E10+'C6-FinPos'!E11+'C6-FinPos'!E16 -> 3279548196 | G59: ='C6-FinPos'!F9+'C6-FinPos'!F10+'C6-FinPos'!F11+'C6-FinPos'!F16 -> 1757559598 | H59: ='C6-FinPos'!G9+'C6-FinPos'!G10+'C6-FinPos'!G11+'C6-FinPos'!G16 -> 3279548196
A60: Annual services revenue | D60: =SUM('C4-FinPerf RE'!C7:C11) -> 3188294762 | E60: =SUM('C4-FinPerf RE'!D7:D11) -> 4017823674 | F60: =SUM('C4-FinPerf RE'!E7:E11) -> 4017823674 | G60: =SUM('C4-FinPerf RE'!G7:G11) -> 2726670999
A61: Cash + investments | B61: Including LT investments | D61: ='C6-FinPos'!C7+'C6-FinPos'!C8+'C6-FinPos'!C17-'C6-FinPos'!C30 -> 395433344.2 | E61: ='C6-FinPos'!D7+'C6-FinPos'!D8+'C6-FinPos'!D17-'C6-FinPos'!D30 -> 381222963.6 | F61: ='C6-FinPos'!E7+'C6-FinPos'!E8+'C6-FinPos'!E17-'C6-FinPos'!E30 -> 343014420.2 | G61: ='C6-FinPos'!F7+'C6-FinPos'!F8+'C6-FinPos'!F17-'C6-FinPos'!F30 -> 572839106.1 | H61: ='C6-FinPos'!G7+'C6-FinPos'!G8+'C6-FinPos'!G17-'C6-FinPos'!G30 -> 343014420.2
A62: Fixed operational expend. (monthly)
A63: Longstanding debtors outstanding | D63: ='C6-FinPos'!C16 -> 0 | E63: ='C6-FinPos'!D16 -> 0 | F63: ='C6-FinPos'!E16 -> 0 | G63: ='C6-FinPos'!F16 -> -16305758.88 | H63: ='C6-FinPos'!G16 -> 0
A64: Longstanding debtors recovered
A65: Attorney collections

Sheet SC3
A1: =muni& " - "&S71I& " - "&Head57 -> KZN225 Msunduzi - Supporting Table SC3 Monthly Budget Statement - aged debtors - Q3 Third Quarter
A2: =desc -> Description | C2: =Head2 -> Budget Year 2021/22
A3: R thousands | B3: NT Code | C3: 0-30 Days | D3: 31-60 Days | E3: 61-90 Days | F3: 91-120 Days | G3: 121-150 Dys | H3: 151-180 Dys | I3: 181 Dys-1 Yr | J3: Over 1Yr | K3: Total | L3: Total over 90 days | M3: Actual Bad Debts Written Off against Debtors | N3: Impairment - Bad Debts i.t.o Council Policy
A4: Debtors Age Analysis By Income Source
A5: Trade and Other Receivables from Exchange Transactions - Water | B5: 1200 | C5: 127670222.1 | D5: 42844667.38 | E5: 34225127.15 | F5: 34893510.67 | G5: 38525679.31 | H5: 37261633.51 | I5: 203642985.7 | J5: 1536862353 | K5: =SUM(C5:J5) -> 2055926179 | L5: =SUM(F5:J5) -> 1851186162 | N5: 1210706625
A6: Trade and Other Receivables from Exchange Transactions - Electricity | B6: 1300 | C6: 124728918.3 | D6: 37713981.51 | E6: 16510929.63 | F6: 13398624.13 | G6: 14569463.73 | H6: 12861893.56 | I6: 55550087.72 | J6: 170641289.7 | K6: =SUM(C6:J6) -> 445975188.3 | L6: =SUM(F6:J6) -> 267021358.8 | N6: 105589585
A7: Receivables from Non-exchange Transactions - Property Rates | B7: 1400 | C7: 143048189.1 | D7: 31945077.27 | E7: 27339385.16 | F7: 26409385.05 | G7: 45019927.33 | H7: 23805218.71 | I7: 116841508.1 | J7: 687552614.7 | K7: =SUM(C7:J7) -> 1101961305 | L7: 899628653.9 | N7: 500649673
A8: Receivables from Exchange Transactions - Waste Water Management | B8: 1500 | C8: 26051141.23 | D8: 6243942.59 | E8: 7007415.19 | F8: 5595232.23 | G8: 5685903.95 | H8: 5474758.74 | I8: 29414994.29 | J8: 247498990.5 | K8: 332972378.7 | L8: 293669879.7 | N8: 200063589.7
A9: Receivables from Exchange Transactions - Waste Management | B9: 1600 | C9: 14370782.01 | D9: 3487598.52 | E9: 3377492.86 | F9: 3103593.74 | G9: 3190363.17 | H9: 3045452.42 | I9: 16030018.56 | J9: 138086433.2 | K9: 184691734.5 | L9: =SUM(F9:J9) -> 163455861.1 | N9: 114398069.2
A10: Receivables from Exchange Transactions - Property Rental Debtors | B10: 1700 | C10: 1047650.08 | D10: 1210904.85 | E10: 1633319.82 | F10: 741260.69 | G10: 984602.2 | H10: 795941.4 | I10: 4366565.8 | J10: 41822456.47 | K10: 52602701.31 | L10: =SUM(F10:J10) -> 48710826.56 | N10: 34200930.92
A11: Interest on Arrear Debtor Accounts | B11: 1810 | C11: 34225116.11 | D11: 18780668.56 | E11: 17724276.14 | F11: 18367931.64 | G11: 17354912.22 | H11: 17599628.19 | I11: 107320786.1 | J11: 699749983 | K11: 931123301.9 | L11: 860393241.1 | N11: 505741160.6
A12: Recoverable unauthorised, irregular, fruitless and wasteful expenditure | B12: 1820 | K12: 0 | L12: 0
A13: Other | B13: 1900 | C13: -3696106.36 | D13: 1605426.21 | E13: 23993.03 | F13: 15619.79 | G13: 353665.79 | H13: 126594.18 | I13: 13937765.66 | J13: 204433167.6 | K13: 216800125.9 | L13: =SUM(F13:J13) -> 218866813 | N13: 203170568.1
A14: Total By Income Source | B14: 2000 | C14: =SUM(C5:C13) -> 467445912.6 | D14: 143832266.9 | E14: 107841939 | F14: 102525157.9 | G14: 125684517.7 | H14: 100971120.7 | I14: 547104711.9 | J14: 3726647288 | K14: 5322052915 | L14: =SUM(L5:L13) -> 4602932797 | M14: 0 | N14: 2874520201
A15: =Head1&" - totals only" -> 2020/21 - totals only | C15: 416285119.6 | D15: 141144055.8 | E15: 108374105.3 | F15: 107771172.5 | G15: 118045645.3 | H15: 101583833.5 | I15: 487194493.3 | J15: 3361079459 | K15: =SUM(C15:J15) -> 4841477884 | L15: =SUM(F15:J15) -> 4175674604 | N15: 2406181321
A16: Debtors Age Analysis By Customer Group
A17: Organs of State | B17: 2200 | C17: 25700660.44 | D17: 8150003.83 | E17: 6878184.64 | F17: 7113044.06 | G17: 9786371.6 | H17: 6455621.75 | I17: 24925340.15 | J17: 157558794.2 | K17: =SUM(C17:J17) -> 246568020.7 | L17: =SUM(F17:J17) -> 205839171.8 | N17: 113526402.9
A18: Commercial | B18: 2300 | C18: 211647359.2 | D18: 46012578.57 | E18: 22269347.17 | F18: 18908368.89 | G18: 24510332.91 | H18: 18403054.35 | I18: 110742719.7 | J18: 363164484.2 | K18: =SUM(C18:J18) -> 815658244.9 | L18: =SUM(F18:J18) -> 535728960 | N18: 249936216.7
A19: Households | B19: 2400 | C19: 228399450.3 | D19: 84936770.13 | E19: 74348682.06 | F19: 72370574.7 | G19: 85952111.53 | H19: 72679620.83 | I19: 391831317.8 | J19: 3030700862 | K19: =SUM(C19:J19) -> 4041219390 | L19: =SUM(F19:J19) -> 3653534487 | N19: 2371600836
A20: Other | B20: 2500 | C20: 1698442.7 | D20: 4732914.36 | E20: 4345725.11 | F20: 4133170.29 | G20: 5435701.66 | H20: 3432823.78 | I20: 19605334.3 | J20: 175223147.4 | K20: =SUM(C20:J20) -> 218607259.6 | L20: =SUM(F20:J20) -> 207830177.4 | N20: 139456745.8
A21: Total By Customer Group | B21: 2600 | C21: =SUM(C17:C20) -> 467445912.6 | D21: 143832266.9 | E21: 107841939 | F21: 102525157.9 | G21: 125684517.7 | H21: 100971120.7 | I21: 547104711.9 | J21: =SUM(J17:J20) -> 3726647288 | K21: =SUM(K17:K20) -> 5322052915 | L21: =SUM(L17:L20) -> 4602932797 | M21: =SUM(M17:M20) -> 0 | N21: =SUM(N17:N20) -> 2874520201
A22: Notes
A23: Material increases in value of debtors' categories compared to previous month to be explained
A24: Bad debts = amounts actually written off in the month
A25: Total by Income Source must reconcile with Total by Customer Group
C26: =C14-C21 -> 0 | D26: =D14-D21 -> 0 | E26: =E14-E21 -> 0 | F26: 0 | G26: 0 | H26: 0 | I26: 0 | J26: =J14-J21 -> 0 | K26: 0
C27: =IF(C26=0,"","MUST AGREE") ->  | D27: =IF(D26=0,"","MUST AGREE") -> 

Sheet SC4
A1: =muni& " - "&S71J& " - "&Head57 -> KZN225 Msunduzi - Supporting Table SC4 Monthly Budget Statement - aged creditors - Q3 Third Quarter
A2: =desc -> Description | B2: NT Code | C2: =Head2 -> Budget Year 2021/22 | L2: Prior year totals for chart (same period)
C3: 0 - 30 Days | D3: 31 - 60 Days | E3: 61 - 90 Days | F3: 91 - 120 Days | G3: 121 - 150 Days | H3: 151 - 180 Days | I3: 181 Days - 1 Year | J3: Over 1 Year | K3: Total
A4: R thousands
A5: Creditors Age Analysis By Customer Type
A6: Bulk Electricity | B6: 0100 | C6: 336720554.6 | D6: 0 | E6: 0 | F6: 0 | G6: 87125962.01 | K6: =SUM(C6:J6) -> 423846516.6 | L6: 144579432.5
A7: Bulk Water | B7: 0200 | C7: 196242977.8 | D7: 88942827.72 | E7: 102953298.3 | F7: 98046202.83 | G7: 21501976.6 | K7: =SUM(C7:J7) -> 507687283.3 | L7: 196700877.1
A8: PAYE deductions | B8: 0300 | K8: 0 | L8: 0
A9: VAT (output less input) | B9: 0400 | C9: 211697850.8 | K9: 211697850.8 | L9: 223802867.4
A10: Pensions / Retirement deductions | B10: 0500 | K10: 0 | L10: 0
A11: Loan repayments | B11: 0600 | K11: 0 | L11: 0
A12: Trade Creditors | B12: 0700 | C12: 63091437.63 | D12: 15273546.19 | E12: 830024.96 | F12: 85946.57 | G12: 1187828.1 | I12: 0 | K12: 80468783.45 | L12: 46899310.45
A13: Auditor General | B13: 0800 | C13: 0 | D13: 0 | K13: 0 | L13: 0
A14: Other | B14: 0900 | C14: 352570560.8 | K14: =SUM(C14:J14) -> 352570560.8 | L14: 254272708.2
A15: Total By Customer Type | B15: 1000 | C15: =SUM(C6:C14) -> 1160323382 | D15: =SUM(D6:D14) -> 104216373.9 | E15: 103783323.3 | F15: 98132149.4 | G15: 109815766.7 | H15: 0 | I15: 0 | J15: 0 | K15: =SUM(K6:K14) -> 1576270995 | L15: =SUM(L6:L14) -> 866255195.6
A16: Notes
A17: Material increases in value of creditors' categories compared to previous month to be explained

Sheet SC5
A1: =muni& " - "&S71K& " - "&Head57 -> KZN225 Msunduzi - Supporting Table SC5 Monthly Budget Statement - investment portfolio - Q3 Third Quarter
A2: Investments by maturity Name of institution & investment ID | B2: Ref | C2: Period of Investment | D2: Type of Investment | E2: Capital Guarantee (Yes/ No) | F2: Variable or Fixed interest rate | G2: Interest Rate ᶟ | H2: Commission Paid (Rands) | I2: Commission Recipient | J2: Expiry date of investment | K2: Opening balance | L2: Interest to be realised | M2: Partial / Premature Withdrawal (4) | N2: Investment Top Up | O2: Closing Balance
A3: R thousands | C3: Yrs/Months
A4: Municipality
A5: Call Accounts | K5: 316909730.9 | L5: 409200.51 | M5: -203411567.2 | N5: 364947650.8 | O5: =SUM(K5:N5) -> 478855015.1
O6: 0
O7: 0
O8: 0
O9: 0
O10: 0
O11: 0
A12: Municipality sub-total | K12: =SUM(K5:K11) -> 316909730.9 | M12: =SUM(M5:M11) -> -203411567.2 | N12: =SUM(N5:N11) -> 364947650.8 | O12: =SUM(O5:O11) -> 478855015.1
A14: Entities
K15: 3290424.4 | L15: 7987 | N15: 2469999.62 | O15: =SUM(K15:N15) -> 5768411.02
O16: 0
O17: 0
O18: 0
O19: 0
O20: 0
O21: 0
A22: Entities sub-total | K22: =SUM(K15:K21) -> 3290424.4 | M22: =SUM(M15:M21) -> 0 | N22: =SUM(N15:N21) -> 2469999.62 | O22: =SUM(O15:O21) -> 5768411.02
A24: TOTAL INVESTMENTS AND INTEREST | B24: 2 | K24: =K12+K22 -> 320200155.3 | M24: =M12+M22 -> -203411567.2 | N24: =N12+N22 -> 367417650.5 | O24: =O12+O22 -> 484623426.1
A25: =head27a -> References
A26: 2. List investments in expiry date order
A27: 3. If 'variable' is selected in column F, input interest rate range
A28: 4. Withdrawals to be entered as negative

Sheet SC6
A1: =muni& " - "&S71L& " - "&Head57 -> KZN225 Msunduzi - Supporting Table SC6 Monthly Budget Statement - transfers and grant receipts - Q3 Third Quarter
A2: =desc -> Description | B2: =head27 -> Ref | C2: =Head1 -> 2020/21 | D2: =Head2 -> Budget Year 2021/22
C3: =Head5 -> Audited Outcome | D3: =Head6 -> Original Budget | E3: =Head7 -> Adjusted Budget | F3: =Head38 -> Monthly actual | G3: =Head39 -> YearTD actual | H3: =Head40 -> YearTD budget | I3: =Head41 -> YTD variance | J3: =Head41 -> YTD variance | K3: =Head8 -> Full Year Forecast
A4: R thousands | J4: %
A5: RECEIPTS: | B5: 1,2
A7: Operating Transfers and Grants
A8: National Government: | C8: =SUM(C9:C16) -> 697606575 | D8: 631712424 | E8: 647490996 | F8: 2982640 | G8: 477293627.2 | H8: 471156747 | I8: 500 | J8: =IF(I8=0,"",I8/H8) -> 1.061217956e-06 | K8: =SUM(K9:K16) -> 647490996
A9: Local Government Equitable Share | C9: 682403000 | D9: 616262000 | E9: 616262000 | G9: 462197000 | H9: =E9/12*9 -> 462196500 | I9: =G9-H9 -> 500 | J9: 1.08179097e-06 | K9: =E9 -> 616262000
A10: Finance Management | C10: 1700000 | D10: 1900000 | E10: 1900000 | G10: 1900000 | H10: =E10/12*9 -> 1425000 | K10: 1900000
A11: Municipal Systems Improvement | C11: 4388000
A12: EPWP Incentive | C12: 9115575 | D12: 3516000 | E12: 3516000 | F12: 2637000 | G12: 3516000 | H12: =E12/12*9 -> 2637000 | K12: =E12 -> 3516000
A13: Water Services Operating Subsidy | E13: 18782000 | K13: =E13 -> 18782000
A14: Public Transport Infrastracture | E14: 500000 | K14: =E14 -> 500000
A15: Energy Efficiency and Demand Management
A16: Operating costs-MIG | D16: 10034424 | E16: 6530996 | F16: 345640 | G16: 9680627.19 | H16: =E16/12*9 -> 4898247 | K16: =E16 -> 6530996
A17: Provincial Government: | C17: =SUM(C18:C30) -> 41304907 | D17: 29503410.75 | E17: 80826479 | F17: 1146931.2 | G17: 19366188.91 | H17: 60619859.25 | I17: -41253670.34 | J17: -0.680530619 | K17: =SUM(K18:K30) -> 80826479
A18: Provincial Government: | I18: =G18-H18 -> 0
A19: Expanded Public Works Grant | I19: 0
A20: Sport and Recreation | I20: 0
A21: Human Settlements - Title Deeds Restoration | I21: 0
A22: Housing Accreditation-OPERATING | C22: 4264000 | D22: 14076900 | E22: 35574709 | G22: 1979214.11 | H22: =E22/12*9 -> 26681031.75 | I22: -24701817.64 | J22: -0.9258194313 | K22: =E22 -> 35574709
A23: Human Settlements - Accredited Municipal RO | C23: 24079242 | I23: 0
A24: Housing Projects -OPERATING | E24: 29319344 | F24: 1146931.2 | G24: 4098974.8 | H24: =E24/12*9 -> 21989508 | I24: -17890533.2 | J24: -0.813594065 | K24: =E24 -> 29319344
A25: Arts and Culture- Community Library Services | C25: 12473665 | D25: 425000 | H25: =E25/12*8 -> 0 | I25: 0 | K25: =E25 -> 0
A26: Community Library Service and Provincialsation Library-OPERATING | C26: 488000 | D26: 12863000 | E26: 13147000 | G26: 12863000 | H26: =E26/12*9 -> 9860250 | I26: 3002750 | J26: 0.3045308182 | K26: =E26 -> 13147000
A27: Tatham Art Gallery-OPERATING | E27: 515000 | G27: 425000 | H27: =E27/12*9 -> 386250 | I27: 38750 | J27: 0.1003236246 | K27: =E27 -> 515000
A28: Greater Edendale Development Iniatative-OPERATING | I28: 0
A29: Operation Dlulisumlando-OPERATING | I29: 0
A30: COGTA | D30: 2138510.75 | E30: 2270426 | H30: =E30/12*9 -> 1702819.5 | I30: -1702819.5 | J30: -1 | K30: =E30 -> 2270426
A31: District Municipality: | C31: =SUM(C32:C33) -> 0 | D31: 0 | E31: 0 | F31: 0 | G31: 0 | H31: 0 | I31: =G31-H31 -> 0 | K31: =SUM(K32:K33) -> 0
A32: [insert description] | I32: =G32-H32 -> 0
I33: =G33-H33 -> 0
A34: Other grant providers: | C34: =SUM(C35:C35) -> 0 | D34: 0 | E34: 0 | F34: 0 | G34: 0 | H34: 0 | I34: =G34-H34 -> 0 | K34: =SUM(K35:K35) -> 0
A35: [insert description] | I35: =G35-H35 -> 0
A36: Total Operating Transfers and Grants | B36: 5 | C36: =C8+C17+C31+C34 -> 738911482 | D36: 661215834.8 | E36: 728317475 | F36: 4129571.2 | G36: 496659816.1 | H36: 531776606.2 | I36: -41253170.34 | J36: -0.0775761285 | K36: =K8+K17+K31+K34 -> 728317475
A38: Capital Transfers and Grants
A39: =A8 -> National Government: | C39: =SUM(C40:C47) -> 337738291 | D39: 297296576 | E39: 332964083 | F39: 62808360 | G39: 305550372.8 | H39: 249723062.2 | I39: 55827310.56 | J39: =IF(I39=0,"",I39/H39) -> 0.2235568876 | K39: =SUM(K40:K47) -> 332964083
A40: Municipal Infrastructure Grant (MIG) | C40: 197724967 | D40: 199296576 | E40: 202800004 | F40: 16936360 | G40: 199650372.8 | H40: =E40/12*9 -> 152100003 | I40: =G40-H40 -> 47550369.81 | J40: =IF(I40=0,"",I40/H40) -> 0.3126256994 | K40: =E40 -> 202800004
A41: Public Transport and Systems | C41: 88758324 | E41: 49946079 | F41: 11900000 | G41: 11900000 | H41: =E41/12*9 -> 37459559.25 | I41: =G41-H41 -> -25559559.25 | J41: =IF(I41=0,"",I41/H41) -> -0.6823240786 | K41: =E41 -> 49946079
A42: Neighbourhood Development Partnership | C42: 18000000 | D42: 34000000 | E42: 35000000 | F42: 13972000 | G42: 34000000 | H42: =E42/12*9 -> 26250000 | I42: 7750000 | J42: 0.2952380952 | K42: =E42 -> 35000000
A43: Dept of Mineral/Electricty | I43: 0
A44: Intergrated National Electrification Porgramme | D44: 24000000 | E44: 24000000 | G44: 20000000 | H44: =E44/12*9 -> 18000000 | I44: 2000000 | J44: 0.1111111111 | K44: =E44 -> 24000000
A45: Municipal Systems Improvement | I45: 0
A46: Municipal Water Infrastructure Grant | C46: 33255000 | D46: 40000000 | E46: 21218000 | F46: 20000000 | G46: 40000000 | H46: =E46/12*9 -> 15913500 | I46: 24086500 | J46: 1.513589091 | K46: =E46 -> 21218000
A47: Energy Efficiency and Demand Manaagement | I47: 0
A48: =A17 -> Provincial Government: | C48: =SUM(C49:C67) -> 316942789 | D48: 83500000 | E48: 96616731 | F48: 16129659.83 | G48: 30548251.04 | H48: 72462548.25 | I48: =G48-H48 -> -41914297.21 | J48: =IF(I48=0,"",I48/H48) -> -0.5784270388 | K48: =SUM(K49:K67) -> 96616731
A49: Airport Development Project | I49: 0 | J49: =IF(I49=0,"",I49/H49) -> 
A50: Sport and Recreation | I50: 0
A51: KZNPA | C51: 4000000 | I51: 0
A52: Housing-Military Veterans | C52: 2500000 | I52: 0
A53: PMB Airport- CAPITAL | C53: 774000 | G53: 1000000 | I53: 1000000
A54: Arts and Culture-Museum Subsidies | C54: 2820431 | I54: 0
A55: COGTA | C55: 250388156 | I55: 0
A56: Manaye Area Precinct Upgrade-CAPITAL | I56: 0
A57: Housing Accreditation-CAPITAL | C57: 29215010 | D57: 1500000 | E57: 3630000 | H57: =E57/12*9 -> 2722500 | I57: -2722500 | J57: -1 | K57: =E57 -> 3630000
A58: Capital Provincial KZN Treausry | C58: 6124156 | H58: =E58/12*9 -> 0 | I58: =G58-H58 -> 0 | J58: =IF(I58=0,"",I58/H58) ->  | K58: =E58 -> 0
A59: Economic development tourism | C59: 12835934 | H59: 0 | I59: 0 | K59: 0
A60: Eastwood Primary Substation-CAPITAL | F60: 15000000 | G60: 15000000 | H60: 0 | I60: 15000000 | K60: =E60 -> 0
A61: Jika Joe Community Residential Units-CAPITAL | D61: 78500000 | E61: 81500000 | F61: 1129659.83 | G61: 10958251.04 | H61: 61125000 | I61: -50166748.96 | J61: -0.8207239094 | K61: =E61 -> 81500000
A62: Greater Edendale Development Iniatative-CAPITAL | I62: 0
A63: Youth Enterprise Park-CAPITAL | I63: 0
A64: Informal Economy Instructure Development-CAPITAL | E64: 3686731 | H64: =E64/12*9 -> 2765048.25 | I64: -2765048.25 | J64: -1 | K64: =E64 -> 3686731
A65: Community Library Service and Provincialsation Library-CAPITAL | C65: 8285102 | D65: 3500000 | E65: 7800000 | G65: 3500000 | H65: =E65/12*9 -> 5850000 | I65: -2350000 | J65: -0.4017094017 | K65: =E65 -> 7800000
A66: Provincial Government: | I66: 0
A67: Arts and Culture-Museum Subsidies - Tatham Art Gallery | G67: 90000 | H67: =E67/12*9 -> 0 | I67: 90000 | K67: =D67 -> 0
A68: =A31 -> District Municipality: | C68: =SUM(C69:C69) -> 0 | D68: 0 | E68: 0 | F68: 0 | G68: 0 | H68: 0 | I68: 0 | J68: =IF(I68=0,"",I68/H68) ->  | K68: =SUM(K69:K69) -> 0
A69: [insert description] | I69: 0 | J69: =IF(I69=0,"",I69/H69) -> 
A70: =A34 -> Other grant providers: | C70: =SUM(C71:C71) -> 0 | D70: 0 | E70: 0 | F70: 0 | G70: 0 | H70: 0 | I70: 0 | J70: =IF(I70=0,"",I70/H70) ->  | K70: =SUM(K71:K71) -> 0
A71: [insert description] | I71: 0 | J71: =IF(I71=0,"",I71/H71) -> 
A72: Total Capital Transfers and Grants | B72: 5 | C72: =C39+C48+C68+C70 -> 654681080 | D72: 380796576 | E72: 429580814 | F72: 78938019.83 | G72: 336098623.9 | H72: 322185610.5 | I72: 13913013.35 | J72: =IF(I72=0,"",I72/H72) -> 0.04318322388 | K72: =K39+K48+K68+K70 -> 429580814
A74: TOTAL RECEIPTS OF TRANSFERS & GRANTS | B74: 5 | C74: =C36+C72 -> 1393592562 | D74: 1042012411 | E74: 1157898289 | F74: 83067591.03 | G74: 832758440 | H74: 853962216.8 | I74: -27340156.99 | J74: =IF(I74=0,"",I74/H74) -> -0.03201565181 | K74: =K36+K72 -> 1157898289
A75: =head27a -> References
A76: 1. Each grant is listed by name as gazetted together with the name of the transferring department or municipality, donor or other organisation
A77: 2. Grant expenditure must be separately listed for each grant received
A78: 3. Replacement of RSC levies
A79: 4. Housing subsidies for housing where ownership transferred
A80: 5. Total recurrent/capital grants and subsidies must reconcile to the 'Financial Performance' Statement

Sheet SC7(1)
A1: =muni& " - "&S71M& " - "&Head57 -> KZN225 Msunduzi - Supporting Table SC7(1) Monthly Budget Statement - transfers and grant expenditure - Q3 Third Quarter
A2: =desc -> Description | B2: =head27 -> Ref | C2: =Head1 -> 2020/21 | D2: =Head2 -> Budget Year 2021/22
C3: =Head5 -> Audited Outcome | D3: =Head6 -> Original Budget | E3: =Head7 -> Adjusted Budget | F3: =Head38 -> Monthly actual | G3: =Head39 -> YearTD actual | H3: =Head40 -> YearTD budget | I3: =Head41 -> YTD variance | J3: =Head41 -> YTD variance | K3: =Head8 -> Full Year Forecast
A4: R thousands | J4: %
A5: EXPENDITURE
A7: Operating expenditure of Transfers and Grants
A8: ='SC6'!A8 -> National Government: | C8: =SUM(C9:C16) -> 697606575 | D8: 631712424 | E8: 647490990 | F8: 1014699.73 | G8: 21099211.83 | H8: 485618242.5 | I8: -464519030.7 | J8: =IF(I8=0,"",I8/H8) -> -0.956551855 | K8: =SUM(K9:K16) -> 647490990
A9: Local Government Equitable Share | C9: 682403000 | D9: 616262000 | E9: 616262000 | H9: =E9/12*9 -> 462196500 | I9: =G9-H9 -> -462196500 | J9: -1 | K9: =E9 -> 616262000
A10: Finance Management | C10: 1700000 | D10: 1900000 | E10: 1900000 | F10: 8564.9 | G10: 357404.97 | H10: =E10/12*9 -> 1425000 | I10: =G10-H10 -> -1067595.03 | J10: -0.7491894947 | K10: 1900000
A11: Municipal Systems Improvement | C11: 4388000 | I11: 0
A12: EPWP Incentive | C12: 9115575 | D12: 3516000 | E12: 3516000 | F12: 67917.12 | G12: 1337564.77 | H12: =E12/12*9 -> 2637000 | I12: -1299435.23 | J12: -0.4927702806 | K12: =E12 -> 3516000
A13: Water Services Operating Subsidy | E13: 18782000 | F13: 583554 | G13: 14245050 | H13: =E13/12*9 -> 14086500 | I13: 158550 | J13: 0.01125545735 | K13: =E13 -> 18782000
A14: Public Transport Infrastracture | E14: 500000 | F14: 5760.42 | G14: 5760.42 | H14: =E14/12*9 -> 375000 | I14: -369239.58 | J14: -0.98463888 | K14: =E14 -> 500000
A15: Energy Efficiency and Demand Management | I15: 0
A16: Operating costs-MIG | D16: 10034424 | E16: 6530990 | F16: 348903.29 | G16: 5153431.67 | H16: =E16/12*9 -> 4898242.5 | I16: 255189.17 | J16: 0.05209810866 | K16: =E16 -> 6530990
A17: ='SC6'!A17 -> Provincial Government: | C17: =SUM(C18:C31) -> 41304907 | D17: 29503410.75 | E17: 79179043 | F17: 2865834.12 | G17: 18783178.96 | H17: 59384282.25 | I17: -40601103.29 | J17: -0.6837011706 | K17: =SUM(K18:K31) -> 79179043
A18: Provincial Government: | I18: =G18-H18 -> 0
A19: Expanded Public Works Grant | G19: 61879.19 | H19: =E19/12*9 -> 0 | I19: 61879.19
A20: Sport and Recreation | I20: 0
A21: Human Settlements - Title Deeds Restoration | I21: 0
A22: Housing Accreditation-OPERATING | C22: 4264000 | D22: 14076900 | E22: 35434709 | F22: -508033.76 | G22: 3153511.77 | H22: =E22/12*9 -> 26576031.75 | I22: -23422519.98 | J22: -0.8813400059 | K22: =E22 -> 35434709
A23: Human Settlements - Accredited Municipalities | C23: 24079242 | I23: 0
A24: Human Settlements - Accredited Municipal RO | I24: 0
A25: Housing Projects -OPERATING | C25: 12473665 | D25: 425000 | E25: 29319344 | F25: 1146931.2 | G25: 4098974.8 | H25: =E25/12*9 -> 21989508 | I25: -17890533.2 | J25: -0.813594065 | K25: =E25 -> 29319344
A26: Community Library Service and Provincialsation Library-OPERATING | C26: 488000 | D26: 12863000 | E26: 12863000 | F26: 1116907.68 | G26: 9995471.16 | H26: =E26/12*9 -> 9647250 | I26: 348221.16 | J26: 0.03609538055 | K26: 12863000
A27: Arts and Culture- Provincialisation | I27: 0
A28: Tatham Art Gallery-OPERATING | E28: 425000 | F28: 23225 | G28: 386538.04 | H28: =E28/12*9 -> 318750 | I28: 67788.04 | J28: 0.2126683608 | K28: 425000
A29: Greater Edendale Development Iniatative-OPERATING | E29: 1136990 | H29: =E29/12*9 -> 852742.5 | I29: -852742.5 | J29: -1 | K29: 1136990
A30: Operation Dlulisumlando-OPERATING | F30: 1086804 | G30: 1086804 | I30: 1086804
A31: COGTA | D31: 2138510.75 | H31: =E31/12*9 -> 0 | I31: 0 | K31: =E31 -> 0
A32: ='SC6'!A31 -> District Municipality: | C32: =SUM(C33:C33) -> 0 | D32: 0 | E32: 0 | H32: 0 | I32: =G32-H32 -> 0 | K32: =SUM(K33:K33) -> 0
A33: ='SC6'!A32 -> [insert description] | I33: =G33-H33 -> 0
A34: ='SC6'!A34 -> Other grant providers: | C34: =SUM(C35:C35) -> 0 | D34: 0 | E34: 0 | F34: 0 | G34: 0 | H34: 0 | I34: =G34-H34 -> 0 | K34: =SUM(K35:K35) -> 0
A35: ='SC6'!A35 -> [insert description] | I35: =G35-H35 -> 0
A36: Total operating expenditure of Transfers and Grants: | C36: =C8+C17+C32+C34 -> 738911482 | D36: 661215834.8 | E36: 726670033 | F36: 3880533.85 | G36: 39882390.79 | H36: 545002524.8 | I36: -505120134 | J36: -0.9268216403 | K36: =K8+K17+K32+K34 -> 726670033
A38: Capital expenditure of Transfers and Grants
A39: ='SC6'!A39 -> National Government: | C39: =SUM(C40:C47) -> 337738291 | D39: 297296576 | E39: 332964082 | F39: 25638883.17 | G39: 252839029.8 | H39: 249723061.5 | I39: 3115968.26 | J39: =IF(I39=0,"",I39/H39) -> 0.01247769526 | K39: =SUM(K40:K47) -> 332964082
A40: Municipal Infrastructure Grant (MIG) | C40: 197724967 | D40: 199296576 | E40: 202800003 | F40: 15057721.26 | G40: 175317693.7 | H40: =E40/12*9 -> 152100002.2 | I40: =G40-H40 -> 23217691.42 | J40: =IF(I40=0,"",I40/H40) -> 0.1526475416 | K40: =E40 -> 202800003
A41: Public Transport and Systems | C41: 88758324 | E41: 49946079 | F41: 8934411.05 | G41: 48048346.8 | H41: =E41/12*9 -> 37459559.25 | I41: =G41-H41 -> 10588787.55 | J41: =IF(I41=0,"",I41/H41) -> 0.2826725077 | K41: =E41 -> 49946079
A42: Neighbourhood Development Partnership | C42: 18000000 | D42: 34000000 | E42: 35000000 | F42: 130192.89 | G42: 7103873.94 | H42: =E42/12*9 -> 26250000 | I42: -19146126.06 | J42: -0.7293762309 | K42: =E42 -> 35000000
A43: Dept of Mineral/Electricty | I43: 0
A44: Intergrated National Electrification Porgramme | D44: 24000000 | E44: 24000000 | F44: 1420925.18 | G44: 7587056.69 | H44: =E44/12*9 -> 18000000 | I44: -10412943.31 | J44: -0.5784968506 | K44: =E44 -> 24000000
A45: Municipal Systems Improvement | I45: 0
A46: Municipal Water Infrastructure Grant | C46: 33255000 | D46: 40000000 | E46: 21218000 | F46: 95632.79 | G46: 14782058.66 | H46: =E46/12*9 -> 15913500 | I46: -1131441.34 | J46: -0.07109946523 | K46: =E46 -> 21218000
A47: Energy Efficiency and Demand Manaagement | I47: 0
A48: ='SC6'!A48 -> Provincial Government: | C48: =SUM(C49:C66) -> 308657687 | D48: 83000000 | E48: 96706731 | F48: 955899.56 | G48: 9652957.67 | H48: 72530048.25 | I48: =G48-H48 -> -62877090.58 | J48: =IF(I48=0,"",I48/H48) -> -0.8669109162 | K48: =SUM(K49:K66) -> 96706731
A49: Arts and Culture-Museum Subsidies | I49: =G49-H49 -> 0 | J49: =IF(I49=0,"",I49/H49) -> 
A50: Airport Development Project
A51: Sport and Recreation
A52: KZNPA | C52: 4000000
A53: Housing-Military Veterans | C53: 2500000
A54: PMB Airport- CAPITAL | C54: 774000
A55: Arts and Culture-Museum Subsidies | C55: 2820431
A56: COGTA | C56: 250388156
A57: Manaye Area Precinct Upgrade-CAPITAL | K57: =D57 -> 0
A58: Housing Accreditation-CAPITAL | C58: 29215010 | D58: 3000000 | E58: 3630000 | H58: =E58/12*9 -> 2722500 | K58: =E58 -> 3630000
A59: Jika Joe Community Residential Units-CAPITAL | D59: 78500000 | E59: 81500000 | F59: 955899.56 | G59: 9502500.61 | H59: =E59/12*9 -> 61125000 | K59: 81500000
A60: Jika Joe Community Residential Units-CAPITAL | C60: 12835934 | H60: =E60/12*9 -> 0 | K60: =E60 -> 0
A61: Greater Edendale Development Iniatative-CAPITAL | I61: =G61-H61 -> 0 | J61: =IF(I61=0,"",I61/H61) -> 
A62: Youth Enterprise Park-CAPITAL
A63: Informal Economy Instructure Development-CAPITAL | E63: 3686731 | G63: 150457.06 | H63: =E63/12*9 -> 2765048.25 | K63: =E63 -> 3686731
A64: Provincial Government: | C64: 6124156 | D64: 1500000 | E64: 7800000 | H64: =E64/12*9 -> 5850000 | K64: =E64 -> 7800000
A65: Community Library Service and Provincialsation Library-CAPITAL
A66: Arts and Culture-Museum Subsidies - Tatham Art Gallery | E66: 90000 | H66: =E66/12*9 -> 67500 | K66: =E66 -> 90000
A67: ='SC6'!A68 -> District Municipality: | C67: =SUM(C68:C68) -> 0 | D67: 0 | E67: 0 | F67: 0 | G67: 0 | H67: 0 | I67: =G67-H67 -> 0 | J67: =IF(I67=0,"",I67/H67) ->  | K67: =SUM(K68:K68) -> 0
I68: =G68-H68 -> 0 | J68: =IF(I68=0,"",I68/H68) -> 
A69: ='SC6'!A70 -> Other grant providers: | C69: =SUM(C70:C70) -> 0 | D69: 0 | E69: 0 | F69: 0 | G69: 0 | H69: 0 | I69: =G69-H69 -> 0 | J69: =IF(I69=0,"",I69/H69) ->  | K69: =SUM(K70:K70) -> 0
I70: =G70-H70 -> 0 | J70: =IF(I70=0,"",I70/H70) -> 
A71: Total capital expenditure of Transfers and Grants | C71: =C39+C48+C67+C69 -> 646395978 | D71: 380296576 | E71: 429670813 | F71: 26594782.73 | G71: 262491987.4 | H71: 322253109.8 | I71: -59761122.32 | J71: =IF(I71=0,"",I71/H71) -> -0.1854477754 | K71: =K39+K48+K67+K69 -> 429670813
A73: TOTAL EXPENDITURE OF TRANSFERS AND GRANTS | C73: =C36+C71 -> 1385307460 | D73: 1041512411 | E73: 1156340846 | F73: 30475316.58 | G73: 302374378.2 | H73: 867255634.5 | I73: -564881256.3 | J73: =IF(I73=0,"",I73/H73) -> -0.6513434261 | K73: =K36+K71 -> 1156340846
A74: =head27a -> References

Sheet SC7(2)
A1: =muni& " - "&S71T& " - "&Head57 -> KZN225 Msunduzi - Supporting Table SC7(2) Monthly Budget Statement - Expenditure against approved rollovers - Q3 Third Quarter
A2: =desc -> Description | B2: =head27 -> Ref | C2: =Head2 -> Budget Year 2021/22
C3: ="Approved Rollover " &Head1 -> Approved Rollover 2020/21 | D3: =Head38 -> Monthly actual | E3: =Head39 -> YearTD actual | F3: =Head41 -> YTD variance | G3: =Head41 -> YTD variance
A4: R thousands | G4: %
A5: EXPENDITURE
A7: Operating expenditure of Approved Roll-overs
A8: ='SC6'!A8 -> National Government: | C8: =SUM(C9:C15) -> 0 | D8: =SUM(D9:D15) -> 0 | E8: =SUM(E9:E15) -> 0 | F8: =SUM(F9:F15) -> 0 | G8: =IF(F8=0,"",F8/C8) -> 
A9: ='SC6'!A9 -> Local Government Equitable Share | F9: =E9-C9 -> 0 | G9: =IF(F9=0,"",F9/C9) -> 
A10: ='SC6'!A10 -> Finance Management | F10: =C10-E10 -> 0
A11: ='SC6'!A11 -> Municipal Systems Improvement | F11: 0
A12: ='SC6'!A12 -> EPWP Incentive | F12: 0
A13: ='SC6'!A13 -> Water Services Operating Subsidy | F13: 0
A14: ='SC6'!#REF! ->  | F14: 0
A15: ='SC6'!#REF! ->  | F15: 0
A16: ='SC6'!A17 -> Provincial Government: | C16: =SUM(C17:C21) -> 0 | D16: =SUM(D17:D21) -> 0 | E16: =SUM(E17:E21) -> 0 | F16: =SUM(F17:F21) -> 0
A17: ='SC6'!A18 -> Provincial Government: | F17: =C17-E17 -> 0
A18: ='SC6'!#REF! ->  | F18: =C18-E18 -> 0
A19: ='SC6'!#REF! ->  | F19: =C19-E19 -> 0
A20: ='SC6'!#REF! ->  | F20: =C20-E20 -> 0
A21: ='SC6'!#REF! ->  | F21: =C21-E21 -> 0
A22: ='SC6'!A31 -> District Municipality: | C22: =SUM(C23:C24) -> 0 | D22: =SUM(D23:D24) -> 0 | E22: =SUM(E23:E24) -> 0 | F22: =SUM(F23:F24) -> 0
F23: =C23-E23 -> 0
A24: ='SC6'!A32 -> [insert description] | F24: =C24-E24 -> 0
A25: ='SC6'!A34 -> Other grant providers: | C25: =SUM(C26:C27) -> 0 | D25: =SUM(D26:D27) -> 0 | E25: =SUM(E26:E27) -> 0 | F25: =SUM(F26:F27) -> 0
F26: =C26-E26 -> 0
A27: ='SC6'!A35 -> [insert description] | F27: =C27-E27 -> 0
A28: Total operating expenditure of Approved Roll-overs | C28: =C8+C16+C22+C25 -> 0 | D28: =D8+D16+D22+D25 -> 0 | E28: =E8+E16+E22+E25 -> 0 | F28: =F8+F16+F22+F25 -> 0
A30: Capital expenditure of Approved Roll-overs
A31: ='SC6'!A39 -> National Government: | C31: =SUM(C32:C37) -> 0 | D31: =SUM(D32:D37) -> 0 | E31: =SUM(E32:E37) -> 0 | F31: =SUM(F32:F37) -> 0
A32: ='SC6'!A40 -> Municipal Infrastructure Grant (MIG) | F32: =C32-E32 -> 0
A33: ='SC6'!#REF! ->  | F33: 0
A34: ='SC6'!#REF! ->  | F34: 0
A35: ='SC6'!#REF! ->  | F35: 0
A36: ='SC6'!#REF! ->  | F36: 0
A37: ='SC6'!#REF! ->  | F37: 0
A38: ='SC6'!A48 -> Provincial Government: | C38: =SUM(C39:C40) -> 0 | D38: =SUM(D39:D40) -> 0 | E38: =SUM(E39:E40) -> 0 | F38: =SUM(F39:F40) -> 0
F39: =C39-E39 -> 0
A40: ='SC6'!#REF! ->  | F40: =C40-E40 -> 0
A41: ='SC6'!A68 -> District Municipality: | C41: =SUM(C42:C43) -> 0 | D41: =SUM(D42:D43) -> 0 | E41: =SUM(E42:E43) -> 0 | F41: =SUM(F42:F43) -> 0
F42: =C42-E42 -> 0
A43: ='SC6'!#REF! ->  | F43: =C43-E43 -> 0
A44: ='SC6'!A70 -> Other grant providers: | C44: =SUM(C45:C46) -> 0 | D44: =SUM(D45:D46) -> 0 | E44: =SUM(E45:E46) -> 0 | F44: =SUM(F45:F46) -> 0
F45: =C45-E45 -> 0
A46: ='SC6'!#REF! ->  | F46: =C46-E46 -> 0
A47: Total capital expenditure of Approved Roll-overs | C47: =C31+C38+C41+C44 -> 0 | D47: =D31+D38+D41+D44 -> 0 | E47: =E31+E38+E41+E44 -> 0 | F47: =F31+F38+F41+F44 -> 0
A49: TOTAL EXPENDITURE OF APPROVED ROLL-OVERS | C49: =C28+C47 -> 0 | D49: =D28+D47 -> 0 | E49: =E28+E47 -> 0 | F49: =F28+F47 -> 0
A50: =head27a -> References

Sheet SC8
A1: =muni& " - "&S71N& " - "&Head57 -> KZN225 Msunduzi - Supporting Table SC8 Monthly Budget Statement - councillor and staff benefits - Q3 Third Quarter
A2: Summary of Employee and Councillor remuneration | B2: =head27 -> Ref | C2: =Head1 -> 2020/21 | D2: =Head2 -> Budget Year 2021/22
C3: =Head5 -> Audited Outcome | D3: =Head6 -> Original Budget | E3: =Head7 -> Adjusted Budget | F3: =Head38 -> Monthly actual | G3: =Head39 -> YearTD actual | H3: =Head40 -> YearTD budget | I3: =Head41 -> YTD variance | J3: =Head41 -> YTD variance | K3: =Head8 -> Full Year Forecast
A4: R thousands | J4: %
B5: 1 | C5: A | D5: B | E5: C | K5: D
A6: Councillors (Political Office Bearers plus Other)
A7: Basic Salaries and Wages | C7: 35265667.22 | D7: 15792288.89 | E7: 15792288.89 | F7: 3254000.78 | G7: 27965443.13 | H7: =E7/12*9 -> 11844216.67 | I7: =G7-H7 -> 16121226.46 | J7: =IF(I7=0,"",I7/H7) -> 1.361105332 | K7: =E7 -> 15792288.89
A8: Pension and UIF Contributions | C8: 4619188.28 | D8: 6273530.012 | E8: 6273530.012 | F8: 197415.76 | G8: 2418627.23 | H8: =E8/12*9 -> 4705147.509 | I8: -2286520.279 | J8: -0.4859614443 | K8: 6273530.012
A9: Medical Aid Contributions | C9: 1884539.51 | D9: 10528192.96 | E9: 10528192.96 | F9: 115461.31 | G9: 1222762.44 | H9: 7896144.724 | I9: -6673382.284 | J9: -0.8451443733 | K9: 10528192.96
A10: Motor Vehicle Allowance | C10: 6323035.95 | D10: 10528194.07 | E10: 10528194.07 | F10: 185926.61 | G10: 2946047.26 | H10: 7896145.552 | I10: =G10-H10 -> -4950098.292 | J10: =IF(I10=0,"",I10/H10) -> -0.6269005883 | K10: 10528194.07
A11: Cellphone Allowance | C11: 3415924.09 | D11: 5264098.139 | E11: 5264098.139 | F11: 228650 | G11: 1975416.53 | H11: 3948073.604 | I11: =G11-H11 -> -1972657.074 | J11: =IF(I11=0,"",I11/H11) -> -0.4996505314 | K11: 5264098.139
A12: Housing Allowances | C12: 132892.08 | D12: 5264097.035 | E12: 5264097.035 | F12: 6887.17 | G12: 79177.3 | H12: 3948072.776 | I12: =G12-H12 -> -3868895.476 | J12: =IF(I12=0,"",I12/H12) -> -0.9799453292 | K12: 5264097.035
A13: Other benefits and allowances | E13: 0 | F13: -1614.38 | G13: -1614.38 | H13: 0 | I13: -1614.38 | K13: 0
A14: Sub Total - Councillors | C14: =SUM(C7:C13) -> 51641247.13 | D14: 53650401.12 | E14: 53650401.12 | F14: 3986727.25 | G14: 36605859.51 | H14: 40237800.84 | I14: =G14-H14 -> -3631941.327 | J14: =IF(I14=0,"",I14/H14) -> -0.09026192414 | K14: 53650401.12
A15: % increase | B15: 4 | D15: =IF(D14=0,"",(D14/C14)-1) -> 0.03890599273 | E15: =IF(E14=0,"",(E14/C14)-1) -> 0.03890599273 | K15: =IF(K14=0,"",(K14/C14)-1) -> 0.03890599273
A17: Senior Managers of the Municipality | B17: 3
A18: Basic Salaries and Wages | C18: 6339514.73 | D18: 10016237.04 | E18: 10016237.04 | F18: 733488.36 | G18: 6594787.12 | H18: =E18/12*9 -> 7512177.776 | I18: =G18-H18 -> -917390.6562 | J18: =IF(I18=0,"",I18/H18) -> -0.1221204667 | K18: =E18 -> 10016237.04
A19: Pension and UIF Contributions | C19: 710608.66 | D19: 1458021.125 | E19: 1458021.125 | F19: 69972.73 | G19: 627968.73 | H19: 1093515.844 | I19: -465547.1136 | J19: -0.425734219 | K19: 1458021.125
A20: Medical Aid Contributions | C20: 138133.8 | D20: 160334.4294 | E20: 160334.4294 | F20: 9769.92 | G20: 77855.28 | H20: 120250.822 | I20: -42395.54205 | J20: -0.3525592701 | K20: 160334.4294
A21: Overtime | C21: 7129.85 | D21: 0 | I21: 0 | K21: 0
A22: Performance Bonus | C22: 447744.93 | D22: 665728.8588 | E22: 665728.8588 | G22: 250018.84 | H22: =E22/12*9 -> 499296.6441 | I22: =G22-H22 -> -249277.8041 | J22: =IF(I22=0,"",I22/H22) -> -0.4992579202 | K22: 665728.8588
A23: Motor Vehicle Allowance | C23: 393231.13 | D23: 1278372.537 | E23: 1278372.537 | F23: 66296.3 | G23: 1238204.92 | H23: 958779.4028 | I23: =G23-H23 -> 279425.5172 | J23: =IF(I23=0,"",I23/H23) -> 0.2914387986 | K23: 1278372.537
A24: Cellphone Allowance | C24: 39850 | D24: 111150.7272 | E24: 111150.7272 | F24: 8350 | G24: 63950 | H24: 83363.0454 | I24: =G24-H24 -> -19413.0454 | J24: =IF(I24=0,"",I24/H24) -> -0.232873515 | K24: 111150.7272
A25: Housing Allowances | C25: 206041.77 | D25: 756254.1996 | E25: 756254.1996 | F25: 15964.51 | G25: 143680.59 | H25: 567190.6497 | I25: =G25-H25 -> -423510.0597 | J25: =IF(I25=0,"",I25/H25) -> -0.7466802563 | K25: 756254.1996
A26: Other benefits and allowances | C26: 595029.8 | I26: 0
A27: Payments in lieu of leave | I27: 0
A28: Long service awards | C28: -138606.72 | I28: 0
A29: Post-retirement benefit obligations | B29: 2 | I29: 0
A30: Sub Total - Senior Managers of Municipality | C30: =SUM(C18:C29) -> 8738677.95 | D30: 14446098.91 | E30: 14446098.91 | F30: =SUM(F18:F29) -> 903841.82 | G30: =SUM(G18:G29) -> 8996465.48 | H30: =SUM(H18:H29) -> 10834574.18 | I30: =G30-H30 -> -1838108.704 | J30: =IF(I30=0,"",I30/H30) -> -0.1696521407 | K30: 14446098.91
A31: % increase | B31: 4 | D31: =IF(D30=0,"",(D30/C30)-1) -> 0.6531217874 | E31: =IF(E30=0,"",(E30/C30)-1) -> 0.6531217874 | K31: =IF(K30=0,"",(K30/C30)-1) -> 0.6531217874
A33: Other Municipal Staff
A34: Basic Salaries and Wages | C34: 834266264 | D34: 1024927642 | E34: 1024927642 | F34: 72714973.41 | G34: 650116226.6 | H34: =E34/12*9 -> 768695731.6 | I34: =G34-H34 -> -118579505.1 | J34: =IF(I34=0,"",I34/H34) -> -0.1542606524 | K34: =E34 -> 1024927642
A35: Pension and UIF Contributions | C35: 165852527.1 | D35: 188647083.9 | E35: 188647083.9 | F35: 14282573.07 | G35: 126064165.3 | H35: 141485312.9 | I35: -15421147.66 | J35: -0.1089946889 | K35: 188647083.9
A36: Medical Aid Contributions | C36: 63734292.22 | D36: 70300830.27 | E36: 70300830.27 | F36: 5566072.36 | G36: 48918832.24 | H36: 52725622.7 | I36: -3806790.464 | J36: -0.07220000957 | K36: 70300830.27
A37: Overtime | C37: 97740395.53 | D37: 16033131.64 | E37: 16033131.64 | F37: 8996331.18 | G37: 79626605.21 | H37: 12024848.73 | I37: 67601756.48 | J37: 5.621838413 | K37: 16033131.64
A38: Performance Bonus | C38: 64175046.69 | D38: 70366153.17 | E38: 70366153.17 | F38: 330509.39 | G38: 66069271.61 | H38: 52774614.88 | I38: 13294656.73 | J38: 0.2519138559 | K38: 70366153.17
A39: Motor Vehicle Allowance | C39: 28743305.36 | D39: 24659111.79 | E39: 24659111.79 | F39: 2416250.55 | G39: 21381038.47 | H39: 18494333.84 | I39: =G39-H39 -> 2886704.629 | J39: =IF(I39=0,"",I39/H39) -> 0.1560858938 | K39: 24659111.79
A40: Cellphone Allowance | C40: 4243795.58 | D40: 4232876.804 | E40: 4232876.804 | F40: 378719.93 | G40: 3433279.37 | H40: 3174657.603 | I40: =G40-H40 -> 258621.7669 | J40: =IF(I40=0,"",I40/H40) -> 0.08146445988 | K40: 4232876.804
A41: Housing Allowances | C41: 4325827.35 | D41: 7812877.275 | E41: 7812877.275 | F41: 353010.66 | G41: 3187705.55 | H41: 5859657.956 | I41: =G41-H41 -> -2671952.406 | J41: =IF(I41=0,"",I41/H41) -> -0.4559911903 | K41: 7812877.275
A42: Other benefits and allowances | C42: 141401172.8 | D42: 46854856.6 | E42: 46854856.6 | F42: 2804519.38 | G42: 38033811.16 | H42: 35141142.45 | I42: 2892668.707 | J42: 0.08231572753 | K42: 46854856.6
A43: Payments in lieu of leave | E43: 0 | I43: 0
A44: Long service awards | C44: 13952237.61 | D44: 24172767.8 | E44: 24172767.8 | F44: 2424900.58 | G44: 17689930.31 | H44: =E44/12*9 -> 18129575.85 | I44: -439645.5368 | J44: -0.02425018327 | K44: =E44 -> 24172767.8
A45: Post-retirement benefit obligations | B45: 2 | E45: 0 | I45: 0
A46: Sub Total - Other Municipal Staff | C46: =SUM(C34:C45) -> 1418434864 | D46: 1478007331 | E46: 1478007331 | F46: =SUM(F34:F45) -> 110267860.5 | G46: =SUM(G34:G45) -> 1054520866 | H46: =SUM(H34:H45) -> 1108505499 | I46: =G46-H46 -> -53984632.83 | J46: =IF(I46=0,"",I46/H46) -> -0.04870037442 | K46: 1478007331
A47: % increase | B47: 4 | D47: =IF(D46=0,"",(D46/C46)-1) -> 0.04199873307 | E47: =IF(E46=0,"",(E46/C46)-1) -> 0.04199873307 | K47: =IF(K46=0,"",(K46/C46)-1) -> 0.04199873307
A49: Total Parent Municipality | C49: =C14+C30+C46 -> 1478814789 | D49: =D14+D30+D46 -> 1546103831 | E49: 1546103831 | F49: 115158429.6 | G49: 1100123191 | H49: 1159577874 | I49: =G49-H49 -> -59454682.86 | J49: =IF(I49=0,"",I49/H49) -> -0.05127269519 | K49: 1546103831
D50: =IF(D49=0,"",(D49/C49)-1) -> 0.04550200787 | E50: =IF(E49=0,"",(E49/C49)-1) -> 0.04550200787 | K50: =IF(K49=0,"",(K49/C49)-1) -> 0.04550200787
A51: Unpaid salary, allowances & benefits in arrears:
A53: Board Members of Entities
A54: Basic Salaries and Wages | C54: 185741.15 | G54: 125951.83 | H54: =E54/12*9 -> 0 | I54: =G54-H54 -> 125951.83 | J54: =IF(I54=0,"",I54/H54) -> 
A55: Pension and UIF Contributions | I55: 0 | J55: =IF(I55=0,"",I55/H55) -> 
A56: Medical Aid Contributions | I56: 0
A57: Overtime
A58: Performance Bonus | I58: 0
A59: Motor Vehicle Allowance | I59: 0
A60: Cellphone Allowance
A61: Housing Allowances | I61: 0
A62: Other benefits and allowances | I62: 0
A63: Board Fees | I63: =G63-H63 -> 0 | J63: =IF(I63=0,"",I63/H63) -> 
A64: Payments in lieu of leave | I64: =G64-H64 -> 0 | J64: =IF(I64=0,"",I64/H64) -> 
A65: Long service awards | I65: =G65-H65 -> 0 | J65: =IF(I65=0,"",I65/H65) -> 
A66: Post-retirement benefit obligations | I66: =G66-H66 -> 0 | J66: =IF(I66=0,"",I66/H66) -> 
A67: Sub Total - Board Members of Entities | B67: 2 | C67: =SUM(C54:C66) -> 185741.15 | D67: 0 | E67: 0 | F67: =SUM(F54:F66) -> 0 | G67: =SUM(G54:G66) -> 125951.83 | H67: =SUM(H54:H66) -> 0 | I67: =G67-H67 -> 125951.83 | J67: =IF(I67=0,"",I67/H67) ->  | K67: 0
A68: % increase | B68: 4 | D68: =IF(D67=0,"",(D67/C67)-1) ->  | E68: =IF(E67=0,"",(E67/C67)-1) ->  | K68: =IF(K67=0,"",(K67/C67)-1) -> 
A70: Senior Managers of Entities
A71: Basic Salaries and Wages | C71: 717214.57 | D71: 582641.1745 | E71: 582641.1745 | F71: 61873.79 | G71: 582552.48 | H71: =E71/12*9 -> 436980.8809 | I71: =G71-H71 -> 145571.5991 | J71: =IF(I71=0,"",I71/H71) -> 0.3331303623 | K71: =E71 -> 582641.1745
A72: Pension and UIF Contributions | D72: 0 | E72: 0 | H72: 0 | I72: 0 | K72: 0
A73: Medical Aid Contributions | C73: 27048 | D73: 27003.6288 | E73: 27003.6288 | F73: 2387.4 | G73: 21486.6 | H73: 20252.7216 | I73: 1233.8784 | J73: 0.06092407847 | K73: 27003.6288
A74: Overtime | D74: 0 | E74: 0 | H74: 0 | I74: 0 | K74: 0
A75: Performance Bonus | C75: 5211.54 | D75: 62095.41607 | E75: 62095.41607 | H75: 46571.56206 | K75: 62095.41607
A76: Motor Vehicle Allowance | C76: 30000 | D76: 24952.95 | E76: 24952.95 | F76: 2500 | G76: 22500 | H76: 18714.7125 | I76: 3785.2875 | J76: 0.2022626583 | K76: 24952.95
A77: Cellphone Allowance | C77: 8000 | D77: 8166.42 | E77: 8166.42 | F77: 900 | G77: 7300 | H77: 6124.815 | I77: 1175.185 | J77: 0.1918727341 | K77: 8166.42
A78: Housing Allowances | F78: 0 | G78: 0 | I78: 0
A79: Other benefits and allowances | I79: 0
A80: Payments in lieu of leave | I80: =G80-H80 -> 0 | J80: =IF(I80=0,"",I80/H80) -> 
A81: Long service awards | I81: =G81-H81 -> 0 | J81: =IF(I81=0,"",I81/H81) -> 
A82: Post-retirement benefit obligations | B82: 2 | I82: =G82-H82 -> 0 | J82: =IF(I82=0,"",I82/H82) -> 
A83: Sub Total - Senior Managers of Entities | C83: =SUM(C71:C82) -> 787474.11 | D83: 704859.5893 | E83: 704859.5893 | F83: =SUM(F71:F82) -> 67661.19 | G83: =SUM(G71:G82) -> 633839.08 | H83: =SUM(H71:H82) -> 528644.692 | I83: =G83-H83 -> 105194.388 | J83: =IF(I83=0,"",I83/H83) -> 0.1989888286 | K83: 704859.5893
A84: % increase | B84: 4 | D84: =IF(D83=0,"",(D83/C83)-1) -> -0.1049107769 | E84: =IF(E83=0,"",(E83/C83)-1) -> -0.1049107769 | K84: =IF(K83=0,"",(K83/C83)-1) -> -0.1049107769
A86: Other Staff of Entities
A87: Basic Salaries and Wages | C87: 6496843.53 | D87: 6769587.55 | E87: 6769587.55 | F87: 651396 | G87: 6153040.32 | H87: =E87/12*9 -> 5077190.662 | I87: =G87-H87 -> 1075849.658 | J87: =IF(I87=0,"",I87/H87) -> 0.2118986127 | K87: =E87 -> 6769587.55
A88: Pension and UIF Contributions | C88: 454584.53 | D88: 570880.6714 | E88: 570880.6714 | F88: 48794.93 | G88: 408270.85 | H88: 428160.5035 | I88: -19889.65353 | J88: -0.04645373258 | K88: 570880.6714
A89: Medical Aid Contributions | C89: 815542.88 | D89: 890013.0989 | E89: 890013.0989 | F89: 89936.6 | G89: 766586.4 | H89: 667509.8242 | I89: 99076.57581 | J89: 0.1484271425 | K89: 890013.0989
A90: Overtime | C90: 97050 | D90: 1067347.509 | E90: 1067347.509 | F90: 18499.98 | G90: 241393.88 | H90: 800510.6315 | I90: -559116.7515 | J90: -0.6984501261 | K90: 1067347.509
A91: Performance Bonus | C91: 63200 | D91: 690873.0739 | E91: 690873.0739 | H91: 518154.8054 | K91: 690873.0739
A92: Motor Vehicle Allowance | D92: 195338.5342 | E92: 195338.5342 | F92: 8500 | G92: 76500 | H92: 146503.9006 | I92: -70003.90062 | J92: -0.4778296027 | K92: 195338.5342
A93: Cellphone Allowance | C93: 764355.28 | D93: 92722.38212 | E93: 92722.38212 | F93: 8850 | G93: 61250 | H93: 69541.78659 | I93: -8291.786593 | J93: -0.1192345926 | K93: 92722.38212
A94: Housing Allowances | C94: 156052.48 | D94: 0 | E94: 0 | H94: 0 | I94: 0 | K94: 0
A95: Other benefits and allowances | C95: 32844.47 | D95: 0 | E95: 0 | F95: 0 | G95: 1529.51 | H95: 0 | I95: 1529.51 | K95: 0
A96: Payments in lieu of leave | D96: 84982.40982 | E96: 84982.40982 | H96: 63736.80736 | I96: -63736.80736 | J96: -1 | K96: =E96 -> 84982.40982
A97: Long service awards | I97: =G97-H97 -> 0 | J97: =IF(I97=0,"",I97/H97) -> 
A98: Post-retirement benefit obligations | I98: =G98-H98 -> 0 | J98: =IF(I98=0,"",I98/H98) -> 
A99: Sub Total - Other Staff of Entities | C99: =SUM(C87:C98) -> 8880473.17 | D99: 10361745.23 | E99: 10361745.23 | F99: 825977.51 | G99: 7708570.96 | H99: 7771308.922 | I99: =G99-H99 -> -62737.96163 | J99: =IF(I99=0,"",I99/H99) -> -0.008073023767 | K99: =SUM(K87:K98) -> 10361745.23
A100: % increase | B100: 4 | D100: =IF(D99=0,"",(D99/C99)-1) -> 0.1668010286 | E100: =IF(E99=0,"",(E99/C99)-1) -> 0.1668010286 | K100: =IF(K99=0,"",(K99/C99)-1) -> 0.1668010286
A102: Total Municipal Entities | C102: =C67+C83+C99 -> 9853688.43 | D102: 11066604.82 | E102: 11066604.82 | F102: 893638.7 | G102: 8468361.87 | H102: 8299953.614 | I102: =G102-H102 -> 168408.2564 | J102: =IF(I102=0,"",I102/H102) -> 0.02029026477 | K102: =K67+K83+K99 -> 11066604.82
A104: TOTAL SALARY, ALLOWANCES & BENEFITS | C104: =C49+C102 -> 1488668478 | D104: 1557170436 | E104: 1557170436 | F104: 116052068.3 | G104: 1108591553 | H104: 1167877827 | I104: =G104-H104 -> -59286274.6 | J104: =IF(I104=0,"",I104/H104) -> -0.05076410667 | K104: =K49+K102 -> 1557170436
A105: % increase | B105: 4 | D105: =IF(D104=0,"",(D104/C104)-1) -> 0.04601559017 | E105: =IF(E104=0,"",(E104/C104)-1) -> 0.04601559017 | K105: =IF(K104=0,"",(K104/C104)-1) -> 0.04601559017
A106: TOTAL MANAGERS AND STAFF | C106: =C30+C46+C83+C99 -> 1436841489 | D106: 1503520035 | E106: 1503520035 | F106: 112065341 | G106: 1071859741 | H106: 1127640026 | I106: -55780285.1 | J106: =IF(I106=0,"",I106/H106) -> -0.04946639335 | K106: =K30+K46+K83+K99 -> 1503520035
A107: =head27a -> References
A108: 1. Include 'Loans and advances' where applicable if any reportable amounts until phased compliance with s164 of MFMA achieved
A109: 2. If benefits in kind are provided (e.g. provision of living quarters) the full market value must be shown as the cost to the municipality
A110: 3. s57 of the Systems Act
A111: 4. B/A, C/A, D/A
A112: Column Definitions:
A113: A. Audited actual 2005/06 (audited financial statements). If audited amounts unavailable, unaudited amounts must be provided with a note stating these are unaudited
A114: B. The original budget approved by council for the 2006/07 budget year.
A115: C. The budget for 2006/07 budget year as adjusted by council resolution in terms of section 28 of the MFMA.
A116: D. An estimate of final actual amounts (pre audit - 2006/07 budget year) at the time of preparing the budget for the 2007/08 budget year. This may differ from C.

Sheet SC9
A1: =muni& " - "&S71O& " - "&Head57 -> KZN225 Msunduzi - Supporting Table SC9 Monthly Budget Statement - actuals and revised targets for cash receipts - Q3 Third Quarter
A2: =desc -> Description | B2: =head27 -> Ref | C2: =Head2 -> Budget Year 2021/22 | O2: ='Template names'!B5 -> 2021/22 Medium Term Revenue & Expenditure Framework
C3: July | D3: August | E3: Sept | F3: October | G3: Nov | H3: Dec | I3: January | J3: Feb | K3: March | L3: April | M3: May | N3: June | O3: =Head9 -> Budget Year 2021/22 | P3: =Head10 -> Budget Year +1 2022/23 | Q3: =Head11 -> Budget Year +2 2023/24
A4: R thousands | B4: 1 | C4: Outcome | D4: Outcome | E4: Outcome | F4: Outcome | G4: Outcome | H4: Outcome | I4: Budget | J4: Budget | K4: Budget | L4: Budget | M4: Budget | N4: Budget
A5: Cash Receipts By Source
A6: Property rates | C6: 109107996.1 | D6: 107336174.9 | E6: 97011003.32 | F6: 102541166.3 | G6: 106524025.5 | H6: 106897136.9 | I6: 105646447.4 | J6: 102639845.3 | K6: 97927059.92 | N6: =O6-SUM(C6:M6) -> -935630855.6
A7: Service charges - electricity revenue | C7: 254499423.7 | D7: 260837736 | E7: 236630652.1 | F7: 169151484.3 | G7: 193934405.8 | H7: 206770584.7 | I7: 197314026.7 | J7: 204913518.6 | K7: 193009924.9 | N7: -1917061757
A8: Service charges - water revenue | C8: 54354006.53 | D8: 67253132.05 | E8: 66172950.45 | F8: 72320008.44 | G8: 60049815.41 | H8: 64756315.54 | I8: 71834763.29 | J8: 77847829.9 | K8: 63820945.23 | N8: -598409766.8
A9: Service charges - sanitation revenue | C9: 14424666.37 | D9: 14844963.87 | E9: 16924910.26 | F9: 13630212.43 | G9: 13791801.49 | H9: 97739286.81 | I9: -67449273.86 | J9: 14686133.81 | K9: 14574262.27 | N9: -133166963.5
A10: Service charges - refuse | C10: 9205652.9 | D10: 8883087.63 | E10: 9726339.16 | F10: 9327734.2 | G10: 9420145.24 | H10: 9278504.82 | I10: 3537955.26 | J10: 9167124.12 | K10: 9160462.65 | N10: -77707005.98
A12: Rental of facilities and equipment | C12: 1921240.81 | D12: 2006399.52 | E12: 2157729.59 | F12: 2274943.23 | G12: 1562067.07 | H12: 2151546.28 | I12: 1248717.09 | J12: 3449614.04 | K12: 1823251.76 | N12: -18595509.39
A13: Interest earned - external investments | C13: 196399.34 | D13: 1222529.36 | E13: 1131374.64 | F13: 583755.31 | G13: 775950.3 | H13: 711936.45 | I13: 969775.23 | J13: 691001.6 | K13: 783480.53 | N13: -7066202.76
A14: Interest earned - outstanding debtors | C14: 16757945.39 | D14: 16858095.47 | E14: 11780376.83 | F14: 16069766.53 | G14: 18340120.11 | H14: 17331446.94 | I14: 16081380.93 | J14: 16166253.12 | K14: 16480479.07 | N14: -145865864.4
A15: Dividends received | F15: 0 | H15: 0 | I15: 0 | J15: 0 | K15: 0 | N15: 0
A16: Fines, penalties and forfeits | D16: 28115.21 | E16: 9935.66 | F16: 17298.79 | G16: 232731.3 | H16: 21344.36 | I16: 16813.91 | J16: 40803.43 | K16: 7776723.48 | N16: -8143766.14
A17: Licences and permits | C17: 5909.68 | D17: 31938.61 | E17: 79470.47 | F17: 117873.84 | G17: 41804.64 | H17: 22727.05 | I17: 120109.41 | J17: 35052.23 | K17: 241996.7 | N17: -696882.63
A18: Agency services | E18: 525090 | F18: 182890 | G18: 0 | H18: 480020 | I18: 0 | J18: 373990 | K18: 466130 | N18: -2028120
A19: Transfers and Subsidies - Operational | C19: 257654867.1 | D19: 4535152.58 | E19: 2509787.31 | F19: 1750476.17 | G19: 1971435.28 | H19: 207189294.1 | I19: 10975727.62 | J19: 11612116.81 | K19: 157945533.9 | N19: -656144390.8
A20: Other revenue | C20: 3359553.56 | D20: 10966819.04 | E20: 765226.74 | F20: 30710803.42 | G20: 4604273.52 | H20: 7443181.72 | I20: 2345008.62 | J20: 2674579.48 | K20: -2010588.86 | N20: -60858857.24
A21: Cash Receipts by Source | C21: =SUM(C6:C10)+SUM(C12:C20) -> 721487661.4 | D21: =SUM(D6:D10)+SUM(D12:D20) -> 494804144.2 | E21: 445424846.5 | F21: 418678413 | G21: 411248575.7 | H21: 720793325.7 | I21: 342641451.5 | J21: 444297862.4 | K21: 561999661.5 | L21: 0 | M21: 0 | N21: -4561375942 | O21: 0 | P21: 0 | Q21: 0
N22: =O22-SUM(C22:M22) -> 0
A23: Other Cash Flows by Source | N23: 0
A24: ='C4-FinPerf RE'!A39 -> Transfers and subsidies - capital (monetary allocations) (National / Provincial and District) | C24: 21024430.94 | D24: 18118027.06 | E24: 48030018.11 | F24: 41989015.66 | G24: 42052195.48 | H24: 31984504.78 | I24: 12343184.42 | J24: 20355828.25 | K24: 26594782.73 | N24: -262491987.4
A25: ='C4-FinPerf RE'!A40 -> Transfers and subsidies - capital (monetary allocations) (National / Provincial Departmental Agencies, Households, Non-profit Institutions, Private Enterprises, Public Corporatons, Higher Educational Institutions) | N25: 0
A26: Proceeds on Disposal of Fixed and Intangible Assets | N26: 0
A27: Short term loans | N27: 0
A28: Borrowing long term/refinancing | N28: 0
A29: Increase (decrease) in consumer deposits | N29: 0
A31: Decrease (increase) in non-current receivables | N31: 0
A32: Decrease (increase) in non-current investments | N32: 0
A33: Total Cash Receipts by Source | C33: =SUM(C21:C29)+SUM(C31:C32) -> 742512092.3 | D33: =SUM(D21:D29)+SUM(D31:D32) -> 512922171.3 | E33: 493454864.6 | F33: 460667428.6 | G33: 453300771.1 | H33: 752777830.5 | I33: 354984636 | J33: 464653690.6 | K33: 588594444.2 | L33: 0 | M33: 0 | N33: -4823867929 | O33: 0 | P33: 0 | Q33: 0
N34: =O34-SUM(C34:M34) -> 0
A35: Cash Payments by Type | N35: 0
A36: Employee related costs | C36: 109110158.4 | D36: 105879838.7 | E36: 106992253.9 | F36: 173229473 | G36: 119300386.7 | H36: 121623404.4 | I36: 110801173 | J36: 112983664 | K36: 111171702.3 | N36: -1071092054
A37: Remuneration of councillors | C37: 4032142.93 | D37: 4033665.13 | E37: 4033183.11 | F37: 3989207.69 | G37: 3661322.6 | H37: 4407025.56 | I37: 4372601.03 | J37: 4089984.21 | K37: 3986727.25 | N37: -36605859.51
A38: Interest paid | N38: 0
A39: Bulk purchases - Electricity | C39: 312016962.4 | D39: 341599669 | E39: 278045879.7 | F39: 48196519.94 | G39: 155418316.9 | H39: 158357376.4 | I39: 135535553.4 | J39: 154160631.7 | K39: 142004001.2 | N39: -1725334911
A40: Acquisitions - water & other inventory | C40: 4232320.48 | D40: 4153965.72 | E40: 86448679.63 | F40: 79759211.25 | G40: 73160448.68 | H40: 20316063.19 | I40: 80671212.88 | J40: 57840948.31 | K40: 81803825.95 | N40: -488386676.1
A41: Contracted services | C41: 13159021.51 | D41: 47001761.96 | E41: 40509993.66 | F41: -26332565.8 | G41: 126099565.4 | H41: 55511503.76 | I41: 57739569.42 | J41: 51177294.42 | K41: 58824508.06 | N41: -423690652.4
A42: Grants and subsidies paid - other municipalities | N42: 0
A43: Grants and subsidies paid - other | C43: 5780347.68 | D43: 2825860.68 | E43: 5347264.91 | F43: 2665377.5 | G43: 2667942.86 | H43: 3187221.9 | I43: 5662754.38 | J43: 2919241.08 | K43: 6652172.08 | N43: -37708183.07
A44: General expenses | C44: 5833740.28 | D44: 9642052.33 | E44: 8203784.47 | F44: 7631399.48 | G44: 18136824.28 | H44: 13231055.31 | I44: 6852593.98 | J44: 13821112.97 | K44: 14837276.43 | N44: -98189839.53
A45: Cash Payments by Type | B45: =SUM(B36:B44) -> 0 | C45: 454164693.7 | D45: 515136813.5 | E45: 529581039.4 | F45: 289138623 | G45: 498444807.3 | H45: 376633650.6 | I45: 401635458.1 | J45: 396992876.7 | K45: 419280213.3 | L45: 0 | M45: 0 | N45: -3881008176 | O45: 0 | P45: 0 | Q45: 0
N46: =O46-SUM(C46:M46) -> 0
A47: Other Cash Flows/Payments by Type
A48: Capital assets | N48: =O48-SUM(C48:M48) -> 0
A49: Repayment of borrowing | N49: =O49-SUM(C49:M49) -> 0
A50: Other Cash Flows/Payments | N50: =O50-SUM(C50:M50) -> 0
A51: Total Cash Payments by Type | B51: =SUM(B45:B50) -> 0 | C51: 454164693.7 | D51: 515136813.5 | E51: 529581039.4 | F51: 289138623 | G51: 498444807.3 | H51: 376633650.6 | I51: 401635458.1 | J51: 396992876.7 | K51: 419280213.3 | L51: 0 | M51: 0 | N51: -3881008176 | O51: 0 | P51: 0 | Q51: 0
N52: =O52-SUM(C52:M52) -> 0
A53: NET INCREASE/(DECREASE) IN CASH HELD | B53: =B33-B51 -> 0 | C53: 288347398.7 | D53: -2214642.21 | E53: -36126174.84 | F53: 171528805.6 | G53: -45144036.2 | H53: 376144179.9 | I53: -46650822.15 | J53: 67660813.98 | K53: 169314230.9 | L53: 0 | M53: 0 | N53: -942859753.7 | O53: 0 | P53: 0 | Q53: 0
A54: Cash/cash equivalents at the month/year beginning: | D54: =C55 -> 288347398.7 | E54: =D55 -> 286132756.5 | F54: 250006581.6 | G54: 421535387.2 | H54: 376391351 | I54: 752535530.9 | J54: 705884708.8 | K54: 773545522.7 | L54: 942859753.7 | M54: 942859753.7 | N54: 942859753.7 | O54: =C54 -> 0 | P54: =O55 -> 0 | Q54: =P55 -> 0
A55: Cash/cash equivalents at the month/year end: | C55: =C53+C54 -> 288347398.7 | D55: =D53+D54 -> 286132756.5 | E55: =E53+E54 -> 250006581.6 | F55: 421535387.2 | G55: 376391351 | H55: 752535530.9 | I55: 705884708.8 | J55: 773545522.7 | K55: 942859753.7 | L55: 942859753.7 | M55: 942859753.7 | N55: 1.192092896e-06 | O55: =O53+O54 -> 0 | P55: =P53+P54 -> 0 | Q55: =Q53+Q54 -> 0
A56: =head27a -> References
A57: 1. Replace 'budget' heading with adjusted budget, or 'outcome' only for month/s complete
A58: 2. Total of monthly amounts must always agree to the approved or adjusted budget
A59: 3. Amend 'cash-at-beginning' when prior year actual known (as part of the adjustments budget)
E64: =E45+E63 -> 529581039.4 | F64: 289138623 | G64: 498444807.3 | H64: 376633650.6 | I64: 401635458.1 | J64: 396992876.7 | K64: 419280213.3 | L64: 0 | N64: =N45+N63 -> -3881008176 | O64: 0 | P64: 0
E65: =E53-E63 -> -36126174.84 | F65: 171528805.6 | G65: -45144036.2 | H65: 376144179.9 | I65: -46650822.15 | J65: 67660813.98 | K65: 169314230.9 | L65: 0 | M65: =M53-M63 -> 0 | N65: =N53-N63 -> -942859753.7 | O65: 0 | P65: 0

Sheet SC10
A1: =muni& " - "&S71P& " - "&Head57 -> KZN225 Msunduzi - Supporting Table SC10 Monthly Budget Statement - Parent Municipality Financial Performance (revenue and expenditure) - Q3 Third Quarter
A2: =desc -> Description | B2: =head27 -> Ref | C2: =Head1 -> 2020/21 | D2: =Head2 -> Budget Year 2021/22
C3: =Head5 -> Audited Outcome | D3: =Head6 -> Original Budget | E3: =Head7 -> Adjusted Budget | F3: =Head38 -> Monthly actual | G3: =Head39 -> YearTD actual | H3: =Head40 -> YearTD budget | I3: =Head41 -> YTD variance | J3: =Head41 -> YTD variance | K3: =Head8 -> Full Year Forecast
A4: R thousands | B4: 1 | J4: %
A5: ='C4-FinPerf RE'!A5 -> Revenue By Source
A6: ='C4-FinPerf RE'!A6 -> Property rates | C6: 1204676315 | D6: 1321378575 | E6: 1321378575 | F6: 97927059.92 | G6: 935630855.6 | H6: =E6/12*9 -> 991033931.5 | I6: =(G6-H6)+0 -> -55403075.91 | J6: =IF(I6=0,"",I6/H6) -> -0.05590431786 | K6: =(E6) -> 1321378575
A7: ='C4-FinPerf RE'!A7 -> Service charges - electricity revenue | C7: 2149844095 | D7: 2961894448 | E7: 2961894448 | F7: 193009924.9 | G7: 1917387263 | H7: =E7/12*9 -> 2221420836 | I7: =(G7-H7)+0 -> -304033573.4 | J7: =IF(I7=0,"",I7/H7) -> -0.1368644646 | K7: =(E7) -> 2961894448
A8: ='C4-FinPerf RE'!A8 -> Service charges - water revenue | C8: 765357790 | D8: 773217411.5 | E8: 773217411.5 | F8: 63820945.23 | G8: 598409766.8 | H8: 579913058.6 | I8: =(G8-H8)+0 -> 18496708.24 | J8: =IF(I8=0,"",I8/H8) -> 0.03189565741 | K8: 773217411.5
A9: ='C4-FinPerf RE'!A9 -> Service charges - sanitation revenue | C9: 164794393.9 | D9: 160154913 | E9: 160154913 | F9: 14574262.27 | G9: 133166963.4 | H9: 120116184.7 | I9: =(G9-H9)+0 -> 13050778.74 | J9: =IF(I9=0,"",I9/H9) -> 0.1086512926 | K9: 160154913
A10: ='C4-FinPerf RE'!A10 -> Service charges - refuse revenue | C10: 108298483 | D10: 245113801.6 | E10: 122556900.8 | F10: 9160462.65 | G10: 77707005.98 | H10: =E10/12*9 -> 91917675.6 | I10: =(G10-H10)+-1007422.16688604 -> -15218091.79 | J10: =(IF(I10=0,"",I10/H10))+-0.0986404349609076 -> -0.2642026262 | K10: 122556900.8
H11: =D11/12*4 -> 0 | K11: 0
A12: ='C4-FinPerf RE'!A12 -> Rental of facilities and equipment | C12: 14558911.4 | D12: 61269026.6 | E12: 30634513.3 | F12: 1823251.76 | G12: 18689056.58 | H12: =E12/12*9 -> 22975884.98 | I12: =(G12-H12)+-631635.298337041 -> -4918463.693 | J12: =(IF(I12=0,"",I12/H12))+-0.247421054345051 -> -0.4614917506 | K12: 30634513.3
A13: ='C4-FinPerf RE'!A13 -> Interest earned - external investments | C13: 8530436.2 | D13: 32303710.05 | E13: 16076855.03 | F13: 794209.01 | G13: 7084917.86 | H13: 12057641.27 | I13: =(G13-H13)+-1174535.04892566 -> -6147258.459 | J13: =(IF(I13=0,"",I13/H13))+-1.35634807903752 -> -1.866170715 | K13: 16076855.03
A14: ='C4-FinPerf RE'!A14 -> Interest earned - outstanding debtors | C14: 188635158.3 | D14: 426578571.7 | E14: 213289285.9 | F14: 16480479.07 | G14: 145865864.4 | H14: 159966964.4 | I14: =(G14-H14)+-1016161.7648733 -> -15117261.77 | J14: =(IF(I14=0,"",I14/H14))+-0.0571709034956892 -> -0.1516733017 | K14: 213289285.9
A15: ='C4-FinPerf RE'!A15 -> Dividends received | E15: 0 | F15: 0 | G15: 0 | H15: =E15/12*8 -> 0 | I15: =(G15-H15)+0 -> 0 | J15: =IF(I15=0,"",I15/H15) -> 
A16: ='C4-FinPerf RE'!A16 -> Fines, penalties and forfeits | C16: 16062034.75 | D16: 3789547.892 | E16: 1894773.946 | F16: 7776723.48 | G16: 8143766.14 | H16: =E16/12*9 -> 1421080.459 | I16: =(G16-H16)+-157897.828828163 -> 6564787.852 | J16: =(IF(I16=0,"",I16/H16))+-1 -> 3.619575062 | K16: =(E16) -> 1894773.946
A17: ='C4-FinPerf RE'!A17 -> Licences and permits | C17: 602789.25 | D17: 2358931.895 | E17: 1179465.947 | F17: 241996.7 | G17: 696882.63 | H17: 884599.4605 | I17: =(G17-H17)+-92379.1489411875 -> -280095.9794 | J17: =(IF(I17=0,"",I17/H17))+-0.939874347230893 -> -1.256510285 | K17: 1179465.947
A18: ='C4-FinPerf RE'!A18 -> Agency services | C18: 1931382 | D18: 1268207.569 | E18: 634103.7844 | F18: 466130 | G18: 2028120 | H18: 475577.8383 | I18: =(G18-H18)+-52841.9820325833 -> 1499700.18 | J18: =(IF(I18=0,"",I18/H18))+-1 -> 2.153427386 | K18: 634103.7844
A19: ='C4-FinPerf RE'!A19 -> Transfers and subsidies | C19: 757156210 | D19: 1322431670 | E19: 725957048.3 | F19: 157945533.9 | G19: 656144390.8 | H19: 544467786.2 | I19: =(G19-H19)+202553547.4875 -> 314230152.1 | J19: =(IF(I19=0,"",I19/H19))+3.67601990470934 -> 4.253152584 | K19: 725957048.3
A20: ='C4-FinPerf RE'!A20 -> Other revenue | C20: 71484195.09 | D20: 322853333.7 | E20: 154286955.6 | F20: -2010588.86 | G20: 63963781.32 | H20: 115715216.7 | I20: =(G20-H20)+-16896089.1547844 -> -68647524.57 | J20: =(IF(I20=0,"",I20/H20))+-1.98511311113724 -> -2.57835855 | K20: 154286955.6
A21: ='C4-FinPerf RE'!A21 -> Gains | C21: 66361357.9 | I21: =(G21-H21)+0 -> 0 | J21: =IF(I21=0,"",I21/H21) -> 
A22: Total Revenue (excluding capital transfers and contributions) | C22: =SUM(C6:C10)+SUM(C12:C21) -> 5518293552 | D22: 7634612149 | E22: 6483155251 | F22: 562010390 | G22: 4564918635 | H22: 4862366438 | I22: =G22-H22 -> -297447803.6 | J22: =IF(I22=0,"",I22/H22) -> -0.06117346509 | K22: =SUM(K6:K10)+SUM(K12:K21) -> 6483155251
A24: Expenditure By Type
A25: ='C4-FinPerf RE'!A25 -> Employee related costs | C25: 1434702558 | D25: 1538089743 | E25: 1574909638 | F25: 112065341 | G25: 1071985693 | H25: =E25/12*9 -> 1181182228 | I25: =(G25-H25)+-6760.53000000002 -> -109203295.9 | J25: =(IF(I25=0,"",I25/H25))+-0.00807658728338287 -> -0.1005291262 | K25: =(E25) -> 1574909638
A26: ='C4-FinPerf RE'!A26 -> Remuneration of councillors | C26: 51641247.13 | D26: 56332921.51 | E26: 56332921.51 | F26: 3986727.25 | G26: 36605859.51 | H26: 42249691.13 | I26: =(G26-H26)+0 -> -5643831.624 | J26: =IF(I26=0,"",I26/H26) -> -0.1335827901 | K26: 56332921.51
A27: ='C4-FinPerf RE'!A27 -> Debt impairment | C27: 1044475891 | D27: 150000000 | E27: 150000000 | F27: 10616426.99 | G27: 28874227.42 | H27: 112500000 | I27: =(G27-H27)+0 -> -83625772.58 | J27: -0.7433402007 | K27: 150000000
A28: ='C4-FinPerf RE'!A28 -> Depreciation & asset impairment | C28: 381265315.9 | D28: 421872297.6 | E28: 421871987 | F28: 32569076.34 | G28: 287386550.6 | H28: 316403990.2 | I28: =(G28-H28)+-474 -> -29017913.7 | J28: =(IF(I28=0,"",I28/H28))+-0.0059622641509434 -> -0.09767385627 | K28: 421871987
A29: ='C4-FinPerf RE'!A29 -> Finance charges | C29: 42536964.33 | D29: 34724271.93 | E29: 34724271.93 | F29: 6457262.3 | G29: 25207572.85 | H29: 26043203.94 | I29: =(G29-H29)+0 -> -835631.0949 | J29: -0.03208633994 | K29: 34724271.93
A30: ='C4-FinPerf RE'!A30 -> Bulk purchases - electricity | C30: 2659404298 | D30: 2185393029 | E30: 2185393029 | F30: 142004001.2 | G30: 1615641763 | H30: 1639044772 | I30: =(G30-H30)+0 -> -23403008.52 | J30: -0.01427844372 | K30: 2185393029
A31: ='C4-FinPerf RE'!A31 -> Inventory consumed | C31: 58188673.23 | D31: 830520119.4 | E31: 837716932 | F31: 81803825.95 | G31: 598147851.3 | H31: 628287699 | I31: =(G31-H31)+0 -> -30139847.74 | J31: -0.04797141149 | K31: 837716932
A32: ='C4-FinPerf RE'!A32 -> Contracted services | C32: 550276122.2 | D32: 655631107.4 | E32: 732206082.2 | F32: 58835517.2 | G32: 424027167.8 | H32: 549154561.7 | I32: =(G32-H32)+-17711.34 -> -125145105.2 | J32: =(IF(I32=0,"",I32/H32))+-0.685885232315878 -> -0.9137720859 | K32: 732206082.2
A33: ='C4-FinPerf RE'!A33 -> Transfers and subsidies | C33: 16870304.99 | D33: 45862882.85 | E33: 45862882.85 | F33: 6652172.08 | G33: 37708183.07 | H33: 34397162.14 | I33: =(G33-H33)+0 -> 3311020.929 | J33: 0.09625854933 | K33: 45862882.85
A34: ='C4-FinPerf RE'!A34 -> Other expenditure | C34: 158717823.9 | D34: 199987645.7 | E34: 201381460.7 | F34: 14898235.21 | G34: 98250738.31 | H34: 151036095.5 | I34: =(G34-H34)+-114880.34 -> -52900237.55 | J34: =(IF(I34=0,"",I34/H34))+-0.759447751960656 -> -1.109696726 | K34: 201381460.7
A35: ='C4-FinPerf RE'!A35 -> Losses | C35: 17247758.21 | E35: 0 | I35: =(G35-H35)+0 -> 0
A36: Total Expenditure | C36: =SUM(C25:C35) -> 6415326957 | D36: 6118414018 | E36: 6240399205 | F36: 469888585.5 | G36: 4223835607 | H36: 4680299404 | I36: =G36-H36 -> -456463796.8 | J36: =IF(I36=0,"",I36/H36) -> -0.09752875989 | K36: =SUM(K25:K35) -> 6240399205
I37: 0
A38: ='C4-FinPerf RE'!A38 -> Surplus/(Deficit) | C38: =C22-C36 -> -897033404.8 | D38: 1516198130 | E38: 242756045.5 | F38: 92121804.43 | G38: 341083027.4 | H38: 182067034.2 | I38: 159015993.2 | J38: =IF(I38=0,"",I38/H38) -> 0.873392561 | K38: =K22-K36 -> 242756045.5
A39: ='C4-FinPerf RE'!A39 -> Transfers and subsidies - capital (monetary allocations) (National / Provincial and District) | C39: 498745626.6 | D39: 380796576 | E39: 429670814.7 | F39: 26594782.73 | G39: 262491987.4 | H39: =E39/12*9 -> 322253111 | I39: =G39-H39 -> -59761123.59 | J39: =IF(I39=0,"",I39/H39) -> -0.1854477786 | K39: =(E39) -> 429670814.7
A40: ='C4-FinPerf RE'!A40 -> Transfers and subsidies - capital (monetary allocations) (National / Provincial Departmental Agencies, Households, Non-profit Institutions, Private Enterprises, Public Corporatons, Higher Educational Institutions) | I40: =G40-H40 -> 0 | J40: =IF(I40=0,"",I40/H40) -> 
A41: ='C4-FinPerf RE'!A41 -> Transfers and subsidies - capital (in-kind - all) | I41: =G41-H41 -> 0 | J41: =IF(I41=0,"",I41/H41) -> 
A42: ='C4-FinPerf RE'!A42 -> Surplus/(Deficit) after capital transfers & contributions | C42: =C38+SUM(C39:C41) -> -398287778.2 | D42: =D38+SUM(D39:D41) -> 1896994706 | E42: 672426860.2 | F42: 118716587.2 | G42: 603575014.8 | H42: 504320145.2 | I42: 99254869.65 | J42: 0.1968092502 | K42: 672426860.2
A43: ='C4-FinPerf RE'!A43 -> Taxation | I43: 0
A44: ='C4-FinPerf RE'!A44 -> Surplus/(Deficit) after taxation | C44: =C42-C43 -> -398287778.2 | D44: 1896994706 | E44: 672426860.2 | F44: 118716587.2 | G44: 603575014.8 | H44: 504320145.2 | I44: 99254869.65 | J44: 0.1968092502 | K44: =K42-K43 -> 672426860.2
A45: =head27a -> References
A46: 1. Votes (consolidated) are revenue sources and expenditure type

Sheet SC11
A1: =muni& " - "&S71Q& " - "&Head57 -> KZN225 Msunduzi - Supporting Table SC11 Monthly Budget Statement - summary of municipal entities - Q3 Third Quarter
A2: =desc -> Description | B2: =head27 -> Ref | C2: =Head1 -> 2020/21 | D2: =Head2 -> Budget Year 2021/22
C3: =Head5 -> Audited Outcome | D3: =Head6 -> Original Budget | E3: =Head7 -> Adjusted Budget | F3: =Head38 -> Monthly actual | G3: =Head39 -> YearTD actual | H3: =Head40 -> YearTD budget | I3: =Head41 -> YTD variance | J3: =Head41 -> YTD variance | K3: =Head8 -> Full Year Forecast
A4: R thousands | J4: %
A5: Revenue By Municipal Entity
A6: Insert name of municipal entity | I6: =G6-H6 -> 0 | J6: =IF(I6=0,"",I6/H6) -> 
I7: 0 | J7: =IF(I7=0,"",I7/H7) -> 
I8: 0
I9: 0
I10: 0
I11: 0
I12: 0
I13: 0
I14: 0
I15: 0
A16: Total Operating Revenue | B16: 1 | C16: =SUM(C6:C15) -> 0 | D16: 0 | E16: 0 | F16: 0 | G16: 0 | H16: 0 | I16: 0 | K16: =SUM(K6:K15) -> 0
A18: Expenditure By Municipal Entity
A19: =A6 -> Insert name of municipal entity | I19: 0 | J19: =IF(I19=0,"",I19/H19) -> 
A20: =IF(A7="","",A7) ->  | I20: 0
A21: =IF(A8="","",A8) ->  | I21: 0
I22: 0
I23: 0
I24: 0
I25: 0
I26: 0
I27: 0
I28: 0
A29: Total Operating Expenditure | B29: 2 | C29: =SUM(C19:C28) -> 0 | D29: 0 | E29: 0 | F29: 0 | G29: 0 | H29: 0 | I29: 0 | K29: =SUM(K19:K28) -> 0
A31: =Head42 -> Surplus/ (Deficit) for the yr/period | C31: =C16-C29 -> 0 | D31: =D16-D29 -> 0 | E31: 0 | F31: 0 | G31: 0 | H31: 0 | I31: =I16+I29 -> 0 | K31: 0
A32: Capital Expenditure By Municipal Entity
A33: =$A$6 -> Insert name of municipal entity | I33: 0
A34: =IF(A7="","",A7) ->  | I34: 0
A35: =IF(A8="","",A8) ->  | I35: 0
I36: 0
I37: 0
I38: 0
I39: 0
I40: 0
I41: 0
A43: Total Capital Expenditure | B43: 3 | C43: =SUM(C32:C42) -> 0 | D43: =SUM(D32:D42) -> 0 | E43: 0 | F43: 0 | G43: 0 | H43: =SUM(H32:H42) -> 0 | I43: =G43-H43 -> 0 | K43: 0
A44: =head27a -> References
A45: 1. Must reconcile to the sum of all municipal entity monthly revenue reports
A46: 2. Must reconcile to the sum of all municipal entity monthly expenditure reports
A47: 3. YTD = Year to date; FAV - favourable variance or unfavourable variance
A48: 4. Material variances to be explained
A49: 5. Insert additional 'Adjustment' Budget column for each Adjustment made by an entity

Sheet SC12
A1: =muni& " - "&S71R& " - "&Head57 -> KZN225 Msunduzi - Supporting Table SC12 Consolidated Monthly Budget Statement - capital expenditure trend - Q3 Third Quarter
A2: Month | B2: =Head1 -> 2020/21 | C2: =Head2 -> Budget Year 2021/22
B3: =Head5 -> Audited Outcome | C3: =Head6 -> Original Budget | D3: =Head7 -> Adjusted Budget | E3: =Head38 -> Monthly actual | F3: =Head39 -> YearTD actual | G3: =Head40 -> YearTD budget | H3: =Head41 -> YTD variance | I3: =Head41 -> YTD variance | J3: % spend of Original Budget
A4: R thousands | I4: %
A5: Monthly expenditure performance trend
A6: July | B6: 57173776.88 | C6: 48025135.58 | D6: 54600580.83 | E6: 22664182.87 | F6: =IF(E6>0,E6,"") -> 22664182.87 | G6: =IF(D6>0,D6,C6) -> 54600580.83 | H6: =IF(F6="",0,G6-F6) -> 31936397.96 | I6: =IF(F6="","",IF(H6=0,"",H6/G6)) -> 0.5849094914 | J6: =IF(F6="","",F6/$C$18) -> 0.03932694584
A7: August | B7: 57173776.88 | C7: 48025135.58 | D7: 54600580.83 | E7: 14809144.07 | F7: =IF(E7>0,E7+F6,"") -> 37473326.94 | G7: =IF(D7>0,D7+D6,C7+C6) -> 109201161.7 | H7: 71727834.73 | I7: 0.6568413159 | J7: 0.06502380904
A8: September | B8: 57173776.88 | C8: 48025135.58 | D8: 54600580.83 | E8: 65237837.37 | F8: =IF(E8>0,E8+F7,"") -> 102711164.3 | G8: =IF(D8>0,D8+G7,C8+G7) -> 163801742.5 | H8: 61090578.19 | I8: 0.3729543853 | J8: 0.1782246648
A9: October | B9: 57173776.88 | C9: 48025135.58 | D9: 54600580.83 | E9: 46569442.03 | F9: 149280606.3 | G9: =IF(D9>0,D9+G8,C9+G8) -> 218402323.3 | H9: 69121716.99 | I9: 0.3164880114 | J9: 0.2590320751
A10: November | B10: 57173776.88 | C10: 48025135.58 | D10: 54600580.83 | E10: 56200421.27 | F10: 205481027.6 | G10: 273002904.2 | H10: 67521876.56 | I10: 0.2473302501 | J10: 0.3565511843
A11: December | B11: 57173776.88 | C11: 48025135.58 | D11: 54600580.83 | E11: 63536231.47 | F11: 269017259.1 | G11: 327603485 | H11: 58586225.92 | I11: 0.178832731 | J11: 0.4667994094
A12: January | B12: 57173776.88 | C12: 48025135.58 | D12: 54600580.83 | E12: -11203738.3 | F12: 257797475.8 | G12: 382204065.8 | H12: 124406590.1 | I12: 0.3254978196 | J12: 0.4473308138
A13: February | B13: 57173776.88 | C13: 48025135.58 | D13: 54600580.83 | E13: 26496967.32 | F13: 284294443.1 | G13: 436804646.7 | H13: 152510203.6 | I13: 0.3491496822 | J13: 0.4933084166
A14: March | B14: 57173776.88 | C14: 48025135.58 | D14: 54600580.83 | E14: 50149682.99 | F14: 334444126.1 | G14: 491405227.5 | H14: 156961101.4 | I14: 0.3194127629 | J14: 0.5803282699
A15: April | B15: 57173776.88 | C15: 48025135.58 | D15: 54600580.83 | G15: 546005808.3 | H15: 0
A16: May | B16: 57173776.88 | C16: 48025135.58 | D16: 54600580.83 | G16: 600606389.2 | H16: 0
A17: June | B17: 57173776.88 | C17: 48025135.58 | D17: 54600580.83 | G17: 655206970 | H17: =IF(F17="",0,G17-F17) -> 0 | I17: =IF(F17="","",IF(H17=0,"",H17/G17)) ->  | J17: =IF(F17="","",F17/$C$18) -> 
A18: Total Capital expenditure | B18: =SUM(B6:B17) -> 686085322.5 | C18: =SUM(C6:C17) -> 576301626.9 | D18: =SUM(D6:D17) -> 655206970 | E18: =SUM(E6:E17) -> 334460171.1

Sheet SC13a
A1: =muni& " - "&S71Sa& " - "&Head57 -> KZN225 Msunduzi - Supporting Table SC13a Consolidated Monthly Budget Statement - capital expenditure on new assets by asset class - Q3 Third Quarter
A2: =desc -> Description | B2: =head27 -> Ref | C2: =Head1 -> 2020/21 | D2: =Head2 -> Budget Year 2021/22
C3: =Head5 -> Audited Outcome | D3: =Head6 -> Original Budget | E3: =Head7 -> Adjusted Budget | F3: =Head38 -> Monthly actual | G3: =Head39 -> YearTD actual | H3: =Head40 -> YearTD budget | I3: =Head41 -> YTD variance | J3: =Head41 -> YTD variance | K3: =Head8 -> Full Year Forecast
A4: R thousands | B4: 1 | J4: %
A5: Capital expenditure on new assets by Asset Class/Sub-class
A7: Infrastructure | C7: =C8+C13+C17+C27+C38+C45+C53+C63+C69 -> 288913769.4 | D7: 31700000 | E7: 31700000 | F7: 3025988.89 | G7: 9080298.28 | H7: 23775000 | I7: =H7-G7 -> 14694701.72 | J7: =IF(I7=0,"",I7/H7) -> 0.6180736791 | K7: =K8+K13+K17+K27+K38+K45+K53+K63+K69 -> 31700000
A8: Roads Infrastructure | C8: =SUM(C9:C12) -> 165122921.7 | D8: 24100000 | E8: 24100000 | F8: 1761040 | G8: 8066200.66 | H8: 18075000 | I8: 10008799.34 | J8: 0.5537371696 | K8: =SUM(K9:K12) -> 24100000
A9: Roads | C9: 14498042.22 | D9: 24100000 | E9: 24100000 | F9: 194656 | G9: 396713.06 | H9: =E9/12*9 -> 18075000 | I9: 17678286.94 | J9: 0.9780518362 | K9: =E9 -> 24100000
A10: Road Structures | C10: 150624879.5 | F10: 1566384 | G10: 7669487.6 | I10: -7669487.6
A11: Road Furniture | I11: 0
A12: Capital Spares | I12: 0
A13: Storm water Infrastructure | C13: =SUM(C14:C16) -> 0 | D13: 0 | E13: 0 | F13: 0 | G13: 0 | H13: 0 | I13: 0 | K13: =SUM(K14:K16) -> 0
A14: Drainage Collection | I14: 0
A15: Storm water Conveyance | I15: 0
A16: Attenuation | I16: 0
A17: Electrical Infrastructure | C17: =SUM(C18:C26) -> 4653205.64 | D17: 7600000 | E17: 7600000 | F17: 1264948.89 | G17: 1014097.62 | H17: 5700000 | I17: 4685902.38 | J17: 0.8220881368 | K17: =SUM(K18:K26) -> 7600000
A18: Power Plants | C18: 4653205.64 | D18: 7600000 | E18: 7600000 | F18: 1264948.89 | G18: 1014097.62 | H18: =E18/12*9 -> 5700000 | I18: 4685902.38 | J18: 0.8220881368 | K18: =E18 -> 7600000
A19: HV Substations | I19: 0
A20: HV Switching Station | I20: 0
A21: HV Transmission Conductors | I21: 0
A22: MV Substations | I22: 0
A23: MV Switching Stations | I23: 0
A24: MV Networks | I24: 0
A25: LV Networks | I25: 0
A26: Capital Spares | I26: 0
A27: Water Supply Infrastructure | C27: =SUM(C28:C37) -> 74239163.4 | D27: 0 | E27: 0 | F27: 0 | G27: 0 | H27: 0 | I27: 0 | K27: =SUM(K28:K37) -> 0
A28: Dams and Weirs | I28: 0
A29: Boreholes | I29: 0
A30: Reservoirs | C30: 17016562.46 | I30: 0
A31: Pump Stations | I31: 0
A32: Water Treatment Works | I32: 0
A33: Bulk Mains | I33: 0
A34: Distribution | C34: 57222600.94 | I34: 0
A35: Distribution Points | I35: 0
A36: PRV Stations | I36: 0
A37: Capital Spares | I37: 0
A38: Sanitation Infrastructure | C38: =SUM(C39:C44) -> 44898478.72 | D38: 0 | E38: 0 | F38: 0 | G38: 0 | H38: 0 | I38: 0 | K38: =SUM(K39:K44) -> 0
A39: Pump Station | C39: 21546131.54 | I39: 0
A40: Reticulation | I40: =H40-G40 -> 0 | J40: =IF(I40=0,"",I40/H40) -> 
A41: Waste Water Treatment Works | I41: =H41-G41 -> 0 | J41: =IF(I41=0,"",I41/H41) -> 
A42: Outfall Sewers | C42: 23352347.18 | I42: =H42-G42 -> 0 | J42: =IF(I42=0,"",I42/H42) -> 
A43: Toilet Facilities | I43: 0
A44: Capital Spares | I44: 0
A45: Solid Waste Infrastructure | C45: =SUM(C46:C52) -> 0 | D45: 0 | E45: 0 | F45: 0 | G45: 0 | H45: 0 | I45: 0 | K45: =SUM(K46:K52) -> 0
A46: Landfill Sites | I46: 0
A47: Waste Transfer Stations | I47: 0
A48: Waste Processing Facilities | I48: =H48-G48 -> 0 | J48: =IF(I48=0,"",I48/H48) -> 
A49: Waste Drop-off Points | I49: 0
A50: Waste Separation Facilities | I50: 0
A51: Electricity Generation Facilities | I51: 0
A52: Capital Spares | I52: 0
A53: Rail Infrastructure | C53: =SUM(C54:C62) -> 0 | D53: 0 | E53: 0 | F53: 0 | G53: 0 | H53: 0 | I53: 0 | K53: =SUM(K54:K62) -> 0
A54: Rail Lines | I54: 0
A55: Rail Structures | I55: 0
A56: Rail Furniture | I56: 0
A57: Drainage Collection | I57: 0
A58: Storm water Conveyance | I58: 0
A59: Attenuation | I59: 0
A60: MV Substations | I60: 0
A61: LV Networks | I61: 0
A62: Capital Spares | I62: 0
A63: Coastal Infrastructure | C63: =SUM(C64:C68) -> 0 | D63: 0 | E63: 0 | F63: 0 | G63: 0 | H63: 0 | I63: 0 | K63: =SUM(K64:K68) -> 0
A64: Sand Pumps | I64: 0
A65: Piers | I65: 0
A66: Revetments | I66: 0
A67: Promenades | I67: 0
A68: Capital Spares | I68: 0
A69: Information and Communication Infrastructure | C69: =SUM(C70:C73) -> 0 | D69: 0 | E69: 0 | F69: 0 | G69: 0 | H69: 0 | I69: =H69-G69 -> 0 | K69: =SUM(K70:K73) -> 0
A70: Data Centres | I70: =H70-G70 -> 0
A71: Core Layers | I71: =H71-G71 -> 0 | J71: =IF(I71=0,"",I71/H71) -> 
A72: Distribution Layers | I72: =H72-G72 -> 0
A73: Capital Spares | I73: =H73-G73 -> 0
A75: Community Assets | C75: =+C76+C99 -> 13158955.79 | D75: 1800000 | E75: 1800000 | F75: 0 | G75: 0 | H75: 1350000 | I75: =H75-G75 -> 1350000 | J75: 1 | K75: =+K76+K99 -> 1800000
A76: Community Facilities | C76: =SUM(C77:C98) -> 10563092.96 | D76: 1800000 | E76: 1800000 | F76: 0 | G76: 0 | H76: 1350000 | I76: =H76-G76 -> 1350000 | J76: 1 | K76: =SUM(K77:K98) -> 1800000
A77: Halls | C77: 3074185.84 | I77: 0 | K77: =E77 -> 0
A78: Centres | C78: 250081.49 | D78: 1100000 | E78: 1800000 | H78: =E78/12*9 -> 1350000 | I78: 1350000 | J78: 1 | K78: 1800000
A79: Crèches | I79: 0 | K79: 0
A80: Clinics/Care Centres | I80: 0 | K80: 0
A81: Fire/Ambulance Stations | I81: 0 | K81: 0
A82: Testing Stations | I82: 0 | K82: 0
A83: Museums | I83: 0 | K83: 0
A84: Galleries | I84: 0 | K84: 0
A85: Theatres | I85: 0 | K85: 0
A86: Libraries | I86: 0 | K86: 0
A87: Cemeteries/Crematoria | I87: 0 | K87: 0
A88: Police | I88: 0 | K88: 0
A89: Purls | D89: 700000 | H89: =E89/12*9 -> 0 | I89: 0 | K89: 0
A90: Public Open Space | C90: 1953039.02 | I90: 0 | K90: 0
A91: Nature Reserves | C91: 787950 | I91: 0 | K91: 0
A92: Public Ablution Facilities | I92: 0 | K92: 0
A93: Markets | C93: 2324672.89 | I93: 0 | K93: 0
A94: Stalls | I94: 0 | K94: 0
A95: Abattoirs | I95: 0 | K95: 0
A96: Airports | C96: 2173163.77 | I96: 0 | K96: 0
A97: Taxi Ranks/Bus Terminals | C97: -0.05 | I97: 0 | K97: 0
A98: Capital Spares | I98: 0 | K98: 0
A99: Sport and Recreation Facilities | C99: =SUM(C100:C102) -> 2595862.83 | D99: 0 | E99: 0 | F99: 0 | G99: 0 | H99: 0 | I99: 0 | K99: =SUM(K100:K102) -> 0
A100: Indoor Facilities | I100: 0
A101: Outdoor Facilities | C101: 2595862.83 | I101: 0
A102: Capital Spares | I102: 0
A103: Heritage assets | C103: =SUM(C104:C108) -> 0 | D103: 0 | E103: 0 | F103: 0 | G103: 0 | H103: 0 | I103: 0 | K103: =SUM(K104:K108) -> 0
A104: Monuments | I104: 0
A105: Historic Buildings | I105: 0
A106: Works of Art | I106: 0
A107: Conservation Areas | I107: 0
A108: Other Heritage | I108: 0
I109: 0
A110: Investment properties | C110: =+C111+C114 -> 0 | D110: 0 | E110: 0 | F110: 0 | G110: 0 | H110: 0 | I110: 0 | K110: =+K111+K114 -> 0
A111: Revenue Generating | C111: =SUM(C112:C113) -> 0 | D111: 0 | E111: 0 | F111: 0 | G111: 0 | H111: 0 | I111: 0 | K111: =SUM(K112:K113) -> 0
A112: Improved Property | I112: 0
A113: Unimproved Property | I113: 0
A114: Non-revenue Generating | C114: =SUM(C115:C116) -> 0 | D114: 0 | E114: 0 | F114: 0 | G114: 0 | H114: 0 | I114: 0 | K114: =SUM(K115:K116) -> 0
A115: Improved Property | I115: 0
A116: Unimproved Property | I116: 0
A117: Other assets | C117: =+C118+C130 -> 59046781.33 | D117: 107341945 | E117: 107341945 | F117: 955899.56 | G117: 9502500.61 | H117: 80506458.75 | I117: 71003958.14 | J117: 0.8819659844 | K117: =+K118+K130 -> 107341945
A118: Operational Buildings | C118: =SUM(C119:C129) -> 0 | D118: 1100000 | E118: 1100000 | F118: 0 | G118: 0 | H118: 825000 | I118: 825000 | J118: 1 | K118: =SUM(K119:K129) -> 1100000
A119: Municipal Offices | D119: 1100000 | E119: 1100000 | H119: =E119/12*9 -> 825000 | I119: 825000 | J119: 1 | K119: =E119 -> 1100000
A120: Pay/Enquiry Points | I120: 0
A121: Building Plan Offices | I121: 0
A122: Workshops | I122: 0
A123: Yards | I123: 0
A124: Stores | I124: 0
A125: Laboratories | I125: 0
A126: Training Centres | I126: 0
A127: Manufacturing Plant | I127: 0
A128: Depots | I128: 0
A129: Capital Spares | I129: 0
A130: Housing | C130: =SUM(C131:C133) -> 59046781.33 | D130: 106241945 | E130: 106241945 | F130: 955899.56 | G130: 9502500.61 | H130: 79681458.75 | I130: 70178958.14 | J130: 0.8807438925 | K130: =SUM(K131:K133) -> 106241945
A131: Staff Housing | I131: 0 | K131: =D131 -> 0
A132: Social Housing | C132: 59046781.33 | D132: 106241945 | E132: 106241945 | F132: 955899.56 | G132: 9502500.61 | H132: =E132/12*9 -> 79681458.75 | I132: 70178958.14 | J132: 0.8807438925 | K132: =E132 -> 106241945
A133: Capital Spares | I133: 0
A135: Biological or Cultivated Assets | C135: =SUM(C136:C136) -> 0 | D135: 0 | E135: 0 | F135: 0 | G135: 0 | H135: 0 | I135: =H135-G135 -> 0 | J135: =IF(I135=0,"",I135/H135) ->  | K135: =SUM(K136) -> 0
A136: Biological or Cultivated Assets | I136: =H136-G136 -> 0
A138: Intangible Assets | C138: =SUM(C139:C140) -> 523018.19 | D138: 0 | E138: 0 | F138: 657067.39 | G138: 6536228.69 | H138: 0 | I138: =H138-G138 -> -6536228.69 | K138: =SUM(K139:K140) -> 0
A139: Servitudes | I139: 0
A140: Licences and Rights | C140: =SUM(C141:C146) -> 523018.19 | D140: 0 | E140: 0 | F140: 657067.39 | G140: 6536228.69 | H140: 0 | I140: -6536228.69 | K140: =SUM(K141:K146) -> 0
A141: Water Rights | I141: 0 | K141: =E141 -> 0
A142: Effluent Licenses | I142: 0 | K142: 0
A143: Solid Waste Licenses | I143: 0 | K143: 0
A144: Computer Software and Applications | I144: 0 | K144: 0
A145: Load Settlement Software Applications | C145: 523018.19 | F145: 657067.39 | G145: 6536228.69 | I145: -6536228.69 | K145: 0
A146: Unspecified | I146: 0 | K146: 0
A148: Computer Equipment | C148: =SUM(C149:C149) -> 5856387.15 | D148: 5106690.34 | E148: 24832690.34 | F148: 208970 | G148: 977685.4 | H148: 18624517.75 | I148: =H148-G148 -> 17646832.36 | J148: =IF(I148=0,"",I148/H148) -> 0.947505465 | K148: =SUM(K149) -> 24832690.34
A149: Computer Equipment | C149: 5856387.15 | D149: 5106690.34 | E149: 24832690.34 | F149: 208970 | G149: 977685.4 | H149: =E149/12*9 -> 18624517.75 | I149: =H149-G149 -> 17646832.36 | J149: =IF(I149=0,"",I149/H149) -> 0.947505465 | K149: =E149 -> 24832690.34
A151: Furniture and Office Equipment | C151: =SUM(C152:C152) -> 170000 | D151: 7196887.61 | E151: 7196887.61 | F151: 14788.5 | G151: 676032.87 | H151: 5397665.707 | I151: =H151-G151 -> 4721632.837 | J151: =IF(I151=0,"",I151/H151) -> 0.8747545871 | K151: =SUM(K152) -> 7196887.61
A152: Furniture and Office Equipment | C152: 170000 | D152: 7196887.61 | E152: 7196887.61 | F152: 14788.5 | G152: 676032.87 | H152: =E152/12*9 -> 5397665.707 | I152: =H152-G152 -> 4721632.837 | J152: =IF(I152=0,"",I152/H152) -> 0.8747545871 | K152: =E152 -> 7196887.61
J153: =IF(I153=0,"",I153/H153) -> 
A154: Machinery and Equipment | C154: =SUM(C155:C155) -> 20075464.14 | D154: 36165335 | E154: 83224095 | F154: 10749481.75 | G154: 28199755.07 | H154: 62418071.25 | I154: =H154-G154 -> 34218316.18 | J154: =IF(I154=0,"",I154/H154) -> 0.5482116877 | K154: =SUM(K155) -> 83224095
A155: Machinery and Equipment | C155: 20075464.14 | D155: 36165335 | E155: 83224095 | F155: 10749481.75 | G155: 28199755.07 | H155: =E155/12*9 -> 62418071.25 | I155: =H155-G155 -> 34218316.18 | J155: =IF(I155=0,"",I155/H155) -> 0.5482116877 | K155: =E155 -> 83224095
A157: Transport Assets | C157: =SUM(C158:C158) -> 20522659.83 | D157: 14155234 | E157: 25991576.01 | F157: 0 | G157: 5541827.51 | H157: 19493682.01 | I157: =H157-G157 -> 13951854.5 | J157: =IF(I157=0,"",I157/H157) -> 0.7157116081 | K157: =SUM(K158) -> 25991576.01
A158: Transport Assets | C158: 20522659.83 | D158: 14155234 | E158: 25991576.01 | G158: 5541827.51 | H158: =E158/12*9 -> 19493682.01 | I158: =H158-G158 -> 13951854.5 | J158: =IF(I158=0,"",I158/H158) -> 0.7157116081 | K158: =E158 -> 25991576.01
A160: Land | C160: =SUM(C161:C161) -> 0 | D160: 0 | E160: 0 | F160: 0 | G160: 0 | H160: 0 | I160: =H160-G160 -> 0 | J160: =IF(I160=0,"",I160/H160) ->  | K160: =SUM(K161) -> 0
A161: Land | I161: =H161-G161 -> 0 | J161: =IF(I161=0,"",I161/H161) -> 
A163: Zoo's, Marine and Non-biological Animals | C163: =SUM(C164:C164) -> 0 | D163: 0 | E163: 0 | F163: 0 | G163: 0 | H163: 0 | I163: =H163-G163 -> 0 | J163: =IF(I163=0,"",I163/H163) ->  | K163: =SUM(K164) -> 0
A164: Zoo's, Marine and Non-biological Animals | I164: =H164-G164 -> 0 | J164: =IF(I164=0,"",I164/H164) -> 
J165: =IF(I165=0,"",I165/H165) -> 
A166: Total Capital Expenditure on new assets | B166: 1 | C166: =C7+C75+C103+C110+C117+C135+C138+C148+C151+C154+C157+C160+C163 -> 408267035.9 | D166: 203466092 | E166: 282087194 | F166: 15612196.09 | G166: 60514328.43 | H166: 211565395.5 | I166: =H166-G166 -> 151051067 | J166: =IF(I166=0,"",I166/H166) -> 0.7139686843 | K166: =K7+K75+K103+K110+K117+K135+K138+K148+K151+K154+K157+K160+K163 -> 282087194
A168: =head27a -> References
A169: 1. Total Capital Expenditure on new assets (SC13a) plus Total Capital Expenditure on renewal of existing assets (SC13b) plus Total Capital Expenditure on upgrading of existing assets (SC13e) must reconcile to total capital expenditure in Table C5
A171: check balance | C171: =C166+SC13b!C166+SC13e!C166-'C5-Capex'!C40 -> 0 | D171: =D166+SC13b!D166+SC13e!D166-'C5-Capex'!D40 -> 0 | E171: =E166+SC13b!E166+SC13e!E166-'C5-Capex'!E40 -> 0 | F171: =F166+SC13b!F166+SC13e!F166-'C5-Capex'!F40 -> 0 | G171: =G166+SC13b!G166+SC13e!G166-'C5-Capex'!G40 -> 0 | H171: =H166+SC13b!H166+SC13e!H166-'C5-Capex'!H40 -> 0 | K171: =K166+SC13b!K166+SC13e!K166-'C5-Capex'!K40 -> 0

Sheet SC13b
A1: =muni& " - "&S71Sb& " - "&Head57 -> KZN225 Msunduzi - Supporting Table SC13b Consolidated Monthly Budget Statement - capital expenditure on renewal of existing assets by asset class - Q3 Third Quarter
A2: =desc -> Description | B2: =head27 -> Ref | C2: =Head1 -> 2020/21 | D2: =Head2 -> Budget Year 2021/22
C3: =Head5 -> Audited Outcome | D3: =Head6 -> Original Budget | E3: =Head7 -> Adjusted Budget | F3: =Head38 -> Monthly actual | G3: =Head39 -> YearTD actual | H3: =Head40 -> YearTD budget | I3: =Head41 -> YTD variance | J3: =Head41 -> YTD variance | K3: =Head8 -> Full Year Forecast
A4: R thousands | B4: 1 | J4: %
A5: Capital expenditure on renewal of existing assets by Asset Class/Sub-class
A7: Infrastructure | C7: =C8+C13+C17+C27+C38+C45+C53+C63+C69 -> 66270060.39 | D7: 181773525 | E7: 181773525 | F7: 16351330.31 | G7: 140418562.8 | H7: 136330143.8 | I7: =H7-G7 -> -4088419.09 | J7: =IF(I7=0,"",I7/H7) -> -0.02998910569 | K7: =K8+K13+K17+K27+K38+K45+K53+K63+K69 -> 181773525
A8: Roads Infrastructure | C8: =SUM(C9:C12) -> 50403832.5 | D8: 41326894 | E8: 41326894 | F8: 8626411.96 | G8: 83665804.99 | H8: 30995170.5 | I8: -52670634.49 | J8: -1.699317463 | K8: =SUM(K9:K12) -> 41326894
A9: Roads | C9: 50403832.5 | F9: 612565.2 | G9: 41641813.74 | H9: =E9/12*9 -> 0 | I9: -41641813.74 | K9: =E9 -> 0
A10: Road Structures | D10: 40480750 | E10: 40480750 | F10: 8013846.76 | G10: 42023991.25 | H10: =E10/12*9 -> 30360562.5 | I10: -11663428.75 | J10: -0.3841637898 | K10: 40480750
A11: Road Furniture | D11: 846144 | E11: 846144 | H11: 634608 | I11: 634608 | J11: 1 | K11: 846144
A12: Capital Spares | I12: 0
A13: Storm water Infrastructure | C13: =SUM(C14:C16) -> 0 | D13: 0 | E13: 0 | F13: 0 | G13: 0 | H13: 0 | I13: 0 | K13: =SUM(K14:K16) -> 0
A14: Drainage Collection | I14: 0
A15: Storm water Conveyance | I15: 0
A16: Attenuation | I16: 0
A17: Electrical Infrastructure | C17: =SUM(C18:C26) -> 0 | D17: 0 | E17: 0 | F17: 0 | G17: -6636659.96 | H17: 0 | I17: 6636659.96 | K17: =SUM(K18:K26) -> 0
A18: Power Plants | I18: 0
A19: HV Substations | I19: 0
A20: HV Switching Station | I20: 0
A21: HV Transmission Conductors | I21: 0
A22: MV Substations | I22: 0
A23: MV Switching Stations | I23: 0
A24: MV Networks | G24: -6636659.96 | I24: 6636659.96
A25: LV Networks | I25: 0
A26: Capital Spares | I26: 0
A27: Water Supply Infrastructure | C27: =SUM(C28:C37) -> 0 | D27: 64261109 | E27: 64261109 | F27: 7109374.35 | G27: 37424184.25 | H27: 48195831.75 | I27: 10771647.5 | J27: 0.2234974916 | K27: =SUM(K28:K37) -> 64261109
A28: Dams and Weirs | I28: 0
A29: Boreholes | I29: 0
A30: Reservoirs | G30: 8645972.48 | I30: -8645972.48
A31: Pump Stations | I31: 0
A32: Water Treatment Works | I32: 0
A33: Bulk Mains | I33: 0
A34: Distribution | D34: 64261109 | E34: 64261109 | F34: 7109374.35 | G34: 28778211.77 | H34: =E34/12*9 -> 48195831.75 | I34: 19417619.98 | J34: 0.4028900275 | K34: =E34 -> 64261109
A35: Distribution Points | I35: 0
A36: PRV Stations | I36: 0
A37: Capital Spares | I37: 0
A38: Sanitation Infrastructure | C38: =SUM(C39:C44) -> 15866227.89 | D38: 74185522 | E38: 74185522 | F38: 615544 | G38: 19787951.88 | H38: 55639141.5 | I38: 35851189.62 | J38: 0.6443519554 | K38: =SUM(K39:K44) -> 74185522
A39: Pump Station | D39: 10667182 | E39: 10667182 | H39: =E39/12*9 -> 8000386.5 | I39: 8000386.5 | J39: 1 | K39: =E39 -> 10667182
A40: Reticulation | C40: 15866227.89 | D40: 10857486 | E40: 10857486 | H40: 8143114.5 | I40: 8143114.5 | J40: 1 | K40: 10857486
A41: Waste Water Treatment Works | D41: 14249855 | E41: 14249855 | H41: 10687391.25 | I41: 10687391.25 | J41: 1 | K41: 14249855
A42: Outfall Sewers | D42: 24628999 | E42: 24628999 | F42: 615544 | G42: 19787951.88 | H42: 18471749.25 | I42: -1316202.63 | J42: -0.07125489915 | K42: 24628999
A43: Toilet Facilities | D43: 13782000 | E43: 13782000 | H43: 10336500 | I43: 10336500 | J43: 1 | K43: 13782000
A44: Capital Spares | E44: 0 | I44: 0
A45: Solid Waste Infrastructure | C45: =SUM(C46:C52) -> 0 | D45: 2000000 | E45: 2000000 | F45: 0 | G45: 0 | H45: 1500000 | I45: 1500000 | J45: 1 | K45: =SUM(K46:K52) -> 2000000
A46: Landfill Sites | D46: 2000000 | E46: 2000000 | H46: =E46/12*9 -> 1500000 | I46: 1500000 | J46: 1 | K46: =E46 -> 2000000
A47: Waste Transfer Stations | I47: 0
A48: Waste Processing Facilities | I48: 0
A49: Waste Drop-off Points | I49: 0
A50: Waste Separation Facilities | I50: 0
A51: Electricity Generation Facilities | I51: 0
A52: Capital Spares | I52: 0
A53: Rail Infrastructure | C53: =SUM(C54:C62) -> 0 | D53: 0 | E53: 0 | F53: 0 | G53: 0 | H53: 0 | I53: 0 | K53: =SUM(K54:K62) -> 0
A54: Rail Lines | I54: 0
A55: Rail Structures | I55: 0
A56: Rail Furniture | I56: 0
A57: Drainage Collection | I57: 0
A58: Storm water Conveyance | I58: 0
A59: Attenuation | I59: 0
A60: MV Substations | I60: 0
A61: LV Networks | I61: 0
A62: Capital Spares | I62: 0
A63: Coastal Infrastructure | C63: =SUM(C64:C68) -> 0 | D63: 0 | E63: 0 | F63: 0 | G63: 6177281.68 | H63: 0 | I63: -6177281.68 | K63: =SUM(K64:K68) -> 0
A64: Sand Pumps | I64: 0
A65: Piers | I65: 0
A66: Revetments | I66: 0
A67: Promenades | G67: 6177281.68 | I67: -6177281.68
A68: Capital Spares | I68: 0
A69: Information and Communication Infrastructure | C69: =SUM(C70:C73) -> 0 | D69: 0 | E69: 0 | F69: 0 | G69: 0 | H69: 0 | I69: 0 | K69: =SUM(K70:K73) -> 0
A70: Data Centres | I70: 0
A71: Core Layers | I71: 0
A72: Distribution Layers | I72: 0
A73: Capital Spares | I73: 0
A75: Community Assets | C75: =+C76+C99 -> 5246056.67 | D75: 35808000 | E75: 35808000 | F75: 0 | G75: 651542.79 | H75: 26856000 | I75: 26204457.21 | J75: 0.9757393957 | K75: =+K76+K99 -> 35808000
A76: Community Facilities | C76: =SUM(C77:C98) -> 1178169.95 | D76: 35808000 | E76: 35808000 | F76: 0 | G76: 651542.79 | H76: 26856000 | I76: 26204457.21 | J76: 0.9757393957 | K76: =SUM(K77:K98) -> 35808000
A77: Halls | D77: 35808000 | E77: 35808000 | G77: 651542.79 | H77: =E77/12*9 -> 26856000 | I77: 26204457.21 | J77: 0.9757393957 | K77: =E77 -> 35808000
A78: Centres | I78: 0
A79: Crèches | I79: 0
A80: Clinics/Care Centres | I80: 0
A81: Fire/Ambulance Stations | I81: 0
A82: Testing Stations | I82: 0
A83: Museums | I83: 0
A84: Galleries | I84: 0
A85: Theatres | I85: 0
A86: Libraries | I86: 0
A87: Cemeteries/Crematoria | C87: 1178169.95 | I87: 0
A88: Police | I88: 0
A89: Purls | I89: 0
A90: Public Open Space | I90: 0
A91: Nature Reserves | I91: 0
A92: Public Ablution Facilities | I92: 0
A93: Markets | I93: 0
A94: Stalls | I94: 0
A95: Abattoirs | I95: 0
A96: Airports | I96: 0
A97: Taxi Ranks/Bus Terminals | I97: 0
A98: Capital Spares | I98: 0
A99: Sport and Recreation Facilities | C99: =SUM(C100:C102) -> 4067886.72 | D99: 0 | E99: 0 | F99: 0 | G99: 0 | H99: 0 | I99: 0 | K99: =SUM(K100:K102) -> 0
A100: Indoor Facilities | I100: 0
A101: Outdoor Facilities | C101: 4067886.72 | I101: =H101-G101 -> 0 | J101: =IF(I101=0,"",I101/H101) -> 
A102: Capital Spares | I102: 0
A103: Heritage assets | C103: =SUM(C104:C108) -> 0 | D103: 0 | E103: 0 | F103: 0 | G103: 0 | H103: 0 | I103: 0 | K103: =SUM(K104:K108) -> 0
A104: Monuments | I104: 0
A105: Historic Buildings | I105: 0
A106: Works of Art | I106: 0
A107: Conservation Areas | I107: 0
A108: Other Heritage | I108: 0
I109: 0
A110: Investment properties | C110: =+C111+C114 -> 0 | D110: 0 | E110: 0 | F110: 0 | G110: 0 | H110: 0 | I110: 0 | K110: =+K111+K114 -> 0
A111: Revenue Generating | C111: =SUM(C112:C113) -> 0 | D111: 0 | E111: 0 | F111: 0 | G111: 0 | H111: 0 | I111: 0 | K111: =SUM(K112:K113) -> 0
A112: Improved Property | I112: 0
A113: Unimproved Property | I113: 0
A114: Non-revenue Generating | C114: =SUM(C115:C116) -> 0 | D114: 0 | E114: 0 | F114: 0 | G114: 0 | H114: 0 | I114: 0 | K114: =SUM(K115:K116) -> 0
A115: Improved Property | I115: 0
A116: Unimproved Property | I116: =H116-G116 -> 0 | J116: =IF(I116=0,"",I116/H116) -> 
A117: Other assets | C117: =+C118+C130 -> 1187810.39 | D117: 2000000 | E117: 2000000 | F117: 291319.77 | G117: 291319.77 | H117: 1500000 | I117: 1208680.23 | J117: 0.80578682 | K117: =+K118+K130 -> 2000000
A118: Operational Buildings | C118: =SUM(C119:C129) -> 1187810.39 | D118: 1000000 | E118: 1000000 | F118: 291319.77 | G118: 291319.77 | H118: 750000 | I118: 458680.23 | J118: 0.61157364 | K118: =SUM(K119:K129) -> 1000000
A119: Municipal Offices | C119: 1187810.39 | D119: 1000000 | E119: 1000000 | F119: 291319.77 | G119: 291319.77 | H119: =E119/12*9 -> 750000 | I119: 458680.23 | J119: 0.61157364 | K119: =E119 -> 1000000
A120: Pay/Enquiry Points | I120: 0
A121: Building Plan Offices | I121: 0
A122: Workshops | I122: 0
A123: Yards | I123: 0
A124: Stores | I124: 0
A125: Laboratories | I125: 0
A126: Training Centres | I126: 0
A127: Manufacturing Plant | I127: 0
A128: Depots | I128: 0
A129: Capital Spares | I129: 0
A130: Housing | C130: =SUM(C131:C133) -> 0 | D130: 1000000 | E130: 1000000 | F130: 0 | G130: 0 | H130: 750000 | I130: 750000 | J130: 1 | K130: =SUM(K131:K133) -> 1000000
A131: Staff Housing | D131: 1000000 | E131: 1000000 | H131: =E131/12*9 -> 750000 | I131: 750000 | J131: 1 | K131: =E131 -> 1000000
A132: Social Housing | I132: 0
A133: Capital Spares | I133: 0
A135: Biological or Cultivated Assets | C135: =SUM(C136:C136) -> 0 | D135: 0 | E135: 0 | F135: 0 | G135: 0 | H135: 0 | I135: =H135-G135 -> 0 | K135: =SUM(K136) -> 0
A136: Biological or Cultivated Assets | I136: =H136-G136 -> 0
J137: =IF(I137=0,"",I137/H137) -> 
A138: Intangible Assets | C138: =SUM(C139:C140) -> 0 | D138: 32200000 | E138: 32200000 | F138: 0 | G138: 0 | H138: 24150000 | I138: =H138-G138 -> 24150000 | J138: 1 | K138: =SUM(K139:K140) -> 32200000
A139: Servitudes | I139: 0
A140: Licences and Rights | C140: =SUM(C141:C146) -> 0 | D140: 32200000 | E140: 32200000 | F140: 0 | G140: 0 | H140: 24150000 | I140: 24150000 | J140: 1 | K140: =SUM(K141:K146) -> 32200000
A141: Water Rights | I141: 0
A142: Effluent Licenses | I142: 0
A143: Solid Waste Licenses | I143: 0
A144: Computer Software and Applications | D144: 32200000 | E144: 32200000 | H144: =E144/12*9 -> 24150000 | I144: 24150000 | J144: 1 | K144: =E144 -> 32200000
A145: Load Settlement Software Applications | I145: 0
A146: Unspecified | I146: 0
A148: Computer Equipment | C148: =SUM(C149:C149) -> 0 | D148: 0 | E148: 0 | F148: 0 | G148: 0 | H148: 0 | I148: =H148-G148 -> 0 | J148: =IF(I148=0,"",I148/H148) ->  | K148: =SUM(K149) -> 0
A149: Computer Equipment | I149: =H149-G149 -> 0 | J149: =IF(I149=0,"",I149/H149) -> 
A151: Furniture and Office Equipment | C151: =SUM(C152:C152) -> 0 | D151: 0 | E151: 0 | F151: 0 | G151: 0 | H151: 0 | I151: =H151-G151 -> 0 | J151: =IF(I151=0,"",I151/H151) ->  | K151: =SUM(K152) -> 0
A152: Furniture and Office Equipment | I152: =H152-G152 -> 0 | J152: =IF(I152=0,"",I152/H152) -> 
J153: =IF(I153=0,"",I153/H153) -> 
A154: Machinery and Equipment | C154: =SUM(C155:C155) -> 0 | D154: 0 | E154: 0 | F154: 0 | G154: 0 | H154: 0 | I154: =H154-G154 -> 0 | J154: =IF(I154=0,"",I154/H154) ->  | K154: =SUM(K155) -> 0
A155: Machinery and Equipment | I155: =H155-G155 -> 0 | J155: =IF(I155=0,"",I155/H155) -> 
A157: Transport Assets | C157: =SUM(C158:C158) -> 0 | D157: 0 | E157: 0 | F157: 0 | G157: 0 | H157: 0 | I157: =H157-G157 -> 0 | J157: =IF(I157=0,"",I157/H157) ->  | K157: =SUM(K158) -> 0
A158: Transport Assets | I158: =H158-G158 -> 0 | J158: =IF(I158=0,"",I158/H158) -> 
A160: Land | C160: =SUM(C161:C161) -> 0 | D160: 0 | E160: 0 | F160: 0 | G160: 0 | H160: 0 | I160: =H160-G160 -> 0 | J160: =IF(I160=0,"",I160/H160) ->  | K160: =SUM(K161) -> 0
A161: Land | I161: =H161-G161 -> 0 | J161: =IF(I161=0,"",I161/H161) -> 
J162: .
A163: Zoo's, Marine and Non-biological Animals | C163: =SUM(C164:C164) -> 0 | D163: 0 | E163: 0 | F163: 0 | G163: 0 | H163: 0 | I163: =H163-G163 -> 0 | J163: =IF(I163=0,"",I163/H163) ->  | K163: =SUM(K164) -> 0
A164: Zoo's, Marine and Non-biological Animals | I164: =H164-G164 -> 0 | J164: =IF(I164=0,"",I164/H164) -> 
J165: =IF(I165=0,"",I165/H165) -> 
A166: Total Capital Expenditure on renewal of existing assets | B166: 1 | C166: =C7+C75+C103+C110+C117+C135+C138+C148+C151+C154+C157+C160+C163 -> 72703927.45 | D166: 251781525 | E166: 251781525 | F166: 16642650.08 | G166: 141361425.4 | H166: 188836143.8 | I166: =H166-G166 -> 47474718.35 | J166: =IF(I166=0,"",I166/H166) -> 0.2514069468 | K166: =K7+K75+K103+K110+K117+K135+K138+K148+K151+K154+K157+K160+K163 -> 251781525
A168: =head27a -> References
A169: 1. Total Capital Expenditure on new assets (SC13a) plus Total Capital Expenditure on renewal of existing assets (SC13b) plus Total Capital Expenditure on upgrading of existing assets (SC13e) must reconcile to total capital expenditure in Table C5
A171: check balance | C171: =C166+SC13a!C166+SC13e!C166-'C5-Capex'!C40 -> 0 | D171: =D166+SC13a!D166+SC13e!D166-'C5-Capex'!D40 -> 0 | E171: =E166+SC13a!E166+SC13e!E166-'C5-Capex'!E40 -> 0 | F171: =F166+SC13a!F166+SC13e!F166-'C5-Capex'!F40 -> 0 | G171: =G166+SC13a!G166+SC13e!G166-'C5-Capex'!G40 -> 0 | H171: =H166+SC13a!H166+SC13e!H166-'C5-Capex'!H40 -> 0 | K171: =K166+SC13a!K166+SC13e!K166-'C5-Capex'!K40 -> 0

Sheet SC13c
A1: =muni& " - "&S71Sc& " - "&Head57 -> KZN225 Msunduzi - Supporting Table SC13c Consolidated Monthly Budget Statement - expenditure on repairs and maintenance by asset class - Q3 Third Quarter
A2: =desc -> Description | B2: =head27 -> Ref | C2: =Head1 -> 2020/21 | D2: =Head2 -> Budget Year 2021/22
C3: =Head5 -> Audited Outcome | D3: =Head6 -> Original Budget | E3: =Head7 -> Adjusted Budget | F3: =Head38 -> Monthly actual | G3: =Head39 -> YearTD actual | H3: =Head40 -> YearTD budget | I3: =Head41 -> YTD variance | J3: =Head41 -> YTD variance | K3: =Head8 -> Full Year Forecast
A4: R thousands | B4: 1 | J4: %
A5: Repairs and maintenance expenditure by Asset Class/Sub-class
A7: Infrastructure | C7: =C8+C13+C17+C27+C38+C45+C53+C63+C69 -> 77522286.65 | D7: 124157737.8 | E7: 73118737.78 | F7: 6442738.06 | G7: 63889570.25 | H7: 54839053.34 | I7: =H7-G7 -> -9050516.913 | J7: =IF(I7=0,"",I7/H7) -> -0.1650378036 | K7: =K8+K13+K17+K27+K38+K45+K53+K63+K69 -> 73118737.78
A8: Roads Infrastructure | C8: =SUM(C9:C12) -> 0 | D8: 0 | E8: 0 | F8: 0 | G8: 0 | H8: 0 | I8: 0 | K8: =SUM(K9:K12) -> 0
A9: Roads | I9: 0
A10: Road Structures | I10: 0
A11: Road Furniture | I11: 0
A12: Capital Spares | I12: 0
A13: Storm water Infrastructure | C13: =SUM(C14:C16) -> 0 | D13: 0 | E13: 0 | F13: 0 | G13: 0 | H13: 0 | I13: 0 | K13: =SUM(K14:K16) -> 0
A14: Drainage Collection | I14: 0
A15: Storm water Conveyance | I15: 0
A16: Attenuation | I16: 0
A17: Electrical Infrastructure | C17: =SUM(C18:C26) -> 77522286.65 | D17: 7348650 | E17: 7348650 | F17: 6442738.06 | G17: 63889570.25 | H17: 5511487.5 | I17: -58378082.75 | J17: -10.59207387 | K17: =SUM(K18:K26) -> 7348650
A18: Power Plants | D18: 7348650 | E18: 7348650 | H18: =E18/12*9 -> 5511487.5 | I18: 5511487.5 | J18: 1 | K18: =E18 -> 7348650
A19: HV Substations | C19: 21482812.6 | F19: 1694452.61 | G19: 12432491.27 | I19: -12432491.27
A20: HV Switching Station | I20: 0
A21: HV Transmission Conductors | I21: 0
A22: MV Substations | C22: 8626276.98 | F22: 499684.97 | G22: 1098542.34 | I22: -1098542.34
